Workbook

Sheet FERRI (hidden)
A1: SALE MIÉRCOLES 13/JUNIO/2018 // TELSUPREMA DESCARGA JUEVES 14/JUNIO/2018
A2: OPERAC. | B2: Nº PEDIDO | C2: PROV. | D2: NOMBRE / PROVEEDOR | E2: CAPACIDAD | F2: LIBRE HASTA | G2: CONTENEDOR | H2: MÓDULO | I2: DESP. | J2: TRANSPORTE
A3: 2018-0048 | B3: 4800018373 | C3: 117964 | D3: JIANGSU MIDEA CLEANING APPLIANCES C | E3: 1*20 | F3: 2018-06-15 | G3: TRHU3884310 | H3: INARPI | I3: MACOBSA | J3: TELSUPREMA | K3: CORREO | L3: 2018-06-13
A4: 2018-0055 | B4: 4800018312 | C4: 100326 | D4: OZECU S.R.L. (METALTEX) | E4: 1*40 | F4: 2018-06-16 | G4: CMAU5497614 | H4: NAPORTEC | I4: MACOBSA | J4: TRANSGOM | K4: CORREO | L4: 2018-06-13
A5: 2017-3045 | B5: 4800017925 | C5: 111715 | D5: ITC(AUSON) | E5: 1*40 | F5: 2018-06-20 | G5: TEMU6504149 | H5: INARPI | I5: VALERO | J5: TELSUPREMA | K5: CORREO | L5: 2018-06-13
A6: 2017-1739 | B6: 4800015804 | C6: 118175 | D6: STAR GLORY LIMITED | E6: 1*40 | F6: 2018-06-17 | G6: EITU1269045 | H6: INARPI | I6: MACOBSA | J6: TELSUPREMA | K6: CORREO | L6: 2018-06-13
A7: 2017-2462 | B7: 4800015612 | C7: 110607 | D7: ACE (PORTERS ENTERPRISE CO.LTD) | E7: C/SUELTA | F7: 401 cartones | G7: TGCU0040424 | H7: INARPI | I7: MACOBSA | J7: TELSUPREMA | K7: CORREO | L7: 2018-06-13
A9: SALE JUEVES 14/JUNIO/2018 // TELSUPREMA DESCARGA VIERNES 15/JUNIO/2018
A10: OPERAC. | B10: Nº PEDIDO | C10: PROV. | D10: NOMBRE / PROVEEDOR | E10: CAPACIDAD | F10: LIBRE HASTA | G10: CONTENEDOR | H10: MÓDULO | I10: DESP. | J10: TRANSPORTE
A11: 2018-0824 | B11: 4800019522 | C11: 114797 | D11: WHIRLPOOL CORPORATION | E11: 1*40 | F11: 2018-06-16 | G11: TRLU8256315 | H11: INARPI | I11: PEREZ | J11: TRANSGOM | K11: CORREO | L11: 2018-06-13
A12: 2018-0889 | B12: 4800020129 | C12: 101773 | D12: COMERCIALIZADORA CENTROAMERICANA GL | E12: 1*20 | F12: 2018-06-16 | G12: EITU0076904 | H12: FERTISA | I12: MACOBSA | J12: TRANSGOM | K12: CORREO | L12: 2018-06-13
A13: 2018-0662 | B13: 4800019416 | C13: 117391 | D13: TRAMONTINA CUTELARIA (INEN) | E13: 1*20 | F13: 2018-06-16 | G13: TGHU3558539 | H13: NAPORTEC | I13: VALERO | J13: TELSUPREMA | K13: CORREO | L13: 2018-06-13
A14: 2017-3063 | B14: 4800018351 | C14: 118360 | D14: WENZHOU TENYALE(CHAR GRILLER_PARRIL | E14: 1*20 | F14: 2018-06-18 | G14: TCKU2849277 | H14: INARPI | I14: VALERO | J14: TELSUPREMA | K14: CORREO | L14: 2018-06-13
A15: CONSOLIDADO 1052 | E15: C/SUELTA | F15: 485 CTNES | G15: MAGU5203730 | H15: CONTECON | I15: VALERO | J15: TELSUPREMA | K15: CORREO | L15: 2018-06-13
A16: 2018-0293 | B16: 4800019429 | C16: 107975 | D16: BOING GLOBAL S. DE R.L.- JUGUETERIA | K16: CORREO | L16: 2018-06-13
A17: 2018-0684 | B17: 4800019650 | C17: 117294 | D17: LG ELECTRONICS PANAMA S.A(MINICOMP | K17: CORREO | L17: 2018-06-13
A18: 2018-0884 | B18: 4800020117 | C18: 117291 | D18: LG ELECTRONICS PANAMA S.A(DVD) | K18: CORREO | L18: 2018-06-13
A19: 2018-0989 | B19: 4800020118 | C19: 108184 | D19: SONY INTER-AMERICAN S.A. | K19: CORREO | L19: 2018-06-13
A20: CONSOLIDADO 983 | E20: 2*40 | F20: SALIDA ALMACENERA TOTAL | H20: TCE | I20: MACOBSA | J20: TCE | K20: CORREO | L20: 2018-06-14
A21: 2018-0692 | B21: 4800019626 | C21: 112655 | D21: ACE HARDWARE INTERNATIONAL HOLDINGS | K21: CORREO | L21: 2018-06-14
A22: 2018-0946 | B22: 4800019911 | C22: 112655 | D22: ACE HARDWARE INTERNATIONAL HOLDINGS | K22: CORREO | L22: 2018-06-14
A23: 2018-0947 | B23: 4800019912 | C23: 113489 | D23: ACE (HARDWARE INTERNATIONAL HOLDING | K23: CORREO | L23: 2018-06-14

Sheet FERRIS (hidden)
J2: SALE VIERNES 15/JUNIO/2018
J3: BGA | K3: OPERAC. | L3: Nº PEDIDO | M3: PROV. | N3: NOMBRE / PROVEEDOR | O3: CAPACIDAD | P3: LIBRE HASTA | Q3: CONTENEDOR | R3: MÓDULO | S3: DESP. | T3: TRANSPORTE
J4: FERRI | K4: 2018-0215 | L4: 4800018574 | M4: 118160 | N4: ARC FRANCE | O4: 1*20 | P4: SALIDA ALMACENERA TOTAL | Q4: SE DESCARGA EL MISMO DIA | R4: TCE | S4: MACOBSA | T4: TCE | U4: CORREO | V4: 2018-06-14
J5: FERRI | K5: 2018-0123 | L5: 4800018522 | M5: 112634 | N5: ACE(ANJI CHEN) | O5: 1*20 | P5: 2018-06-20 | Q5: TEMU2543390 - 3222 kgs | R5: INARPI | S5: PEREZ | T5: TRANSGOM | U5: CORREO | V5: 2018-06-14
K6: CONSOLIDADO 981 | U6: CORREO | V6: 2018-06-14
K7: 2017-2343 | L7: 4800016674 | M7: 113239 | N7: MERIDIAN INTERNATIONAL CO, TLD | O7: 2*40 | P7: 2018-06-18 | Q7: KKFU1683609 - 21029 KGS | R7: INARPI | S7: VALERO | U7: CORREO | V7: 2018-06-14
K8: 2017-2348 | L8: 4800016739 | M8: 112542 | N8: MERIDIAN INTERNATIONAL CO,LTD(TACTI | Q8: TCNU5733310 - 12853.80 KGS | U8: CORREO | V8: 2018-06-14
J10: SALE SÁBADO 16/JUNIO/2018
J11: BGA | K11: OPERAC. | L11: Nº PEDIDO | M11: PROV. | N11: NOMBRE / PROVEEDOR | O11: CAPACIDAD | P11: LIBRE HASTA | Q11: CONTENEDOR | R11: MÓDULO | S11: DESP. | T11: TRANSPORTE
J12: FERRI | K12: 2018-1055 | L12: 4800020105 | M12: 101806 | N12: CERAMICA LIMA | O12: 2*20 | P12: 2018-06-20 | Q12: CAIU2288433 | R12: CONTECON | S12: VALERO | T12: TELSUPREMA | U12: CORREO | V12: 2018-06-15
Q13: CRSU1217975 | V13: 2018-06-15
K14: 2018-0744 | L14: 4800020128 | M14: 113613 | N14: ACE (RISH MEXICANA S.A DE | O14: C/SUELTA | P14: 2 PALLETS | Q14: PCIU9226149 | R14: INARPI | S14: VALERO | U14: CORREO | V14: 2018-06-15
K15: CONSOLIDADO 1053 | U15: CORREO | V15: 2018-06-15
K16: 2018-1171 | L16: 4800020316 | M16: 107022 | N16: JASCO PRODUCTS COMPANY | O16: 1*40 | P16: 2018-06-20 | Q16: KOSU4962633 | R16: CONTECON | S16: VALERO | U16: CORREO | V16: 2018-06-15
K17: 2018-1174 | L17: 4800020522 | M17: 101733 | N17: CHEF CRAFT CORPORATION | U17: CORREO | V17: 2018-06-15
K18: 2018-1313 | L18: 4800020533 | M18: 100784 | N18: HASBRO LATIN AMERICA, INC | U18: CORREO | V18: 2018-06-15
K19: CONSOLIDADO 1002 | U19: CORREO | V19: 2018-06-15
K20: 2018-0800 | L20: 4800019440 | M20: 100325 | N20: STANLEY BLACK & DECKER,INC(HERRAMIE | O20: 1*40 | P20: 2018-06-15 | Q20: SMLU7873441 SE QUEDO POR SELLO | R20: CONTECON | S20: MACOBSA | U20: CORREO | V20: 2018-06-15
K21: 2018-0801 | L21: 4800019729 | M21: 100325 | N21: STANLEY BLACK & DECKER,INC(HERRAMIE | U21: CORREO | V21: 2018-06-15
K22: 2018-0803 | L22: 4800019425 | M22: 100924 | N22: BLACK & DECKER(US) INC(PANAMA HERRA | U22: CORREO | V22: 2018-06-15
K23: 2018-0860 | L23: 4800019419 | M23: 117310 | N23: BLACK & DECKER(STANLEY)-INEN | U23: CORREO | V23: 2018-06-15
K24: 2018-0904 | L24: 4800019459 | M24: 100325 | N24: STANLEY BLACK & DECKER,INC(HERRAMIE | U24: CORREO | V24: 2018-06-15
K25: 2018-0966 | L25: 4800020132 | M25: 101970 | N25: STANLEY BLACK & DECKER(ACCES-MIRAMA | U25: CORREO | V25: 2018-06-15
J28: SALE JUEVES 14/JUNIO/2018
J29: BGA | K29: OPERAC. | L29: Nº PEDIDO | M29: PROV. | N29: NOMBRE / PROVEEDOR | O29: CAPACIDAD | P29: LIBRE HASTA | Q29: CONTENEDOR | R29: MÓDULO | S29: DESP. | T29: TRANSPORTE
J30: FERRI
K31: 2018-0847 | L31: 4800019804 | M31: 116522 | N31: MD MOVEIS LTDA | O31: 3*40 | P31: 2018-06-15 | Q31: FSCU9604232 | R31: INARPI | S31: VALERO | T31: TELSUPREMA | U31: CORREO | V31: 2018-06-14
Q32: HLBU1295467 | V32: 2018-06-14
Q33: TCLU6081498 | V33: 2018-06-14
A43: SALE SÁBADO 16/JUNIO/2018
J44: BGA | K44: OPERAC. | L44: Nº PEDIDO | M44: PROV. | N44: NOMBRE / PROVEEDOR | O44: CAPACIDAD | P44: LIBRE HASTA | Q44: CONTENEDOR | R44: MÓDULO | S44: DESP. | T44: TRANSPORTE
J45: FERRI | K45: 2018-1055 | L45: 4800020105 | M45: 101806 | N45: CERAMICA LIMA | O45: 2*20 | P45: 2018-06-20 | Q45: CAIU2288433 | R45: CONTECON | S45: VALERO | T45: TELSUPREMA
Q46: CRSU1217975
K47: 2018-1145 | L47: 4800020181 | M47: 100802 | N47: CACO ABBO INTERNACIONAL, S.A. | O47: 1*20 | P47: 2018-06-16 | Q47: HLXU1287290 | R47: INARPI | S47: VALERO | U47: CORREO | V47: 2018-06-15
U48: CORREO | V48: 2018-06-15
O49: DAR PRIORIDAD ESTA LIBRE HASTA EL 18/06 | U49: CORREO | V49: 2018-06-15
K50: 2018-0744 | L50: 4800020128 | M50: 113613 | N50: ACE (RISH MEXICANA S.A DE | O50: C/SUELTA | P50: 2 PALLETS | Q50: PCIU9226149 | R50: INARPI | S50: VALERO
O52: URG SOLICITADO POR DON JHONNY
K53: CONSOLIDADO 1053
K54: 2018-1171 | L54: 4800020316 | M54: 107022 | N54: JASCO PRODUCTS COMPANY | O54: 1*40 | P54: 2018-06-19 | Q54: KOSU4962633 | R54: CONTECON | S54: VALERO
K55: 2018-1174 | L55: 4800020522 | M55: 101733 | N55: CHEF CRAFT CORPORATION
K56: 2018-1313 | L56: 4800020533 | M56: 100784 | N56: HASBRO LATIN AMERICA, INC
K57: CONSOLIDADO 1002
K58: 2018-0800 | L58: 4800019440 | M58: 100325 | N58: STANLEY BLACK & DECKER,INC(HERRAMIE | O58: 1*40 | P58: 2018-06-19 | Q58: SMLU7873441 | R58: CONTECON | S58: MACOBSA
K59: 2018-0801 | L59: 4800019729 | M59: 100325 | N59: STANLEY BLACK & DECKER,INC(HERRAMIE
K60: 2018-0803 | L60: 4800019425 | M60: 100924 | N60: BLACK & DECKER(US) INC(PANAMA HERRA | O60: SE QUEDO POR SELLO EN DÍAS
K61: 2018-0860 | L61: 4800019419 | M61: 117310 | N61: BLACK & DECKER(STANLEY)-INEN | O61: ANTERIORES
K62: 2018-0904 | L62: 4800019459 | M62: 100325 | N62: STANLEY BLACK & DECKER,INC(HERRAMIE
K63: 2018-0966 | L63: 4800020132 | M63: 101970 | N63: STANLEY BLACK & DECKER(ACCES-MIRAMA
J65: SALE LUNES 18/JUNIO/2018 | U65: CORREO | W65: FILES GENERADOS | X65: FILES DMAESTROS | Y65: DRIVE
J66: BGA | K66: OPERAC. | L66: Nº PEDIDO | M66: PROV. | N66: NOMBRE / PROVEEDOR | O66: CAPACIDAD | P66: LIBRE HASTA | Q66: CONTENEDOR | R66: MÓDULO | S66: DESP. | T66: TRANSPORTE
J67: FERRI | K67: 2018-0243 | L67: 4800018283 | M67: 112689 | N67: ROYAL TOP TECHNOLOGY INC | O67: 1*40 | P67: 2018-06-25 | Q67: APZU4261070 - 17865.50 KGS | R67: INARPI | S67: MACOBSA | T67: TRANSGOM | U67: CORREO | V67: 2018-06-15 | W67: 2018-0243-4800018283.xlsm | X67: X | Y67: OK
K68: 2017-2386 | L68: 4800015320 | M68: 111575 | N68: ACE (ANHO) | O68: 1*40 | P68: 2018-06-25 | Q68: MOFU5807084 - 3575.80 KGS | R68: INARPI | S68: MACOBSA | U68: CORREO | V68: 2018-06-15 | W68: 2017-2386-4800015320.xlsm | X68: 2017-2386-4800015320.xlsm
K69: CONSOLIDADO 1014 | O69: 1*20 | P69: 2018-01-20 | Q69: TSLU4001534 - 4155.81 KGS | R69: CONTECON | S69: MACOBSA | U69: CORREO | V69: 2018-06-15 | W69: CONSOLIDADO 1014
K70: 2018-0709 | L70: 4800019722 | M70: 111395 | N70: ACE(ONTEL PRODUCTS) | U70: CORREO | V70: 2018-06-15 | W70: 2018-0709-4800019722.xlsm | X70: X
K71: 2018-0836 | L71: 4800019444 | M71: 100866 | N71: ACE (MTD PRODUCTS INC.) | U71: CORREO | V71: 2018-06-15 | W71: 2018-0836-4800019444.xlsm | X71: X
K72: 2018-0882 | L72: 4800019807 | M72: 112409 | N72: ACE(STRINGLINER COMPANY) | U72: CORREO | V72: 2018-06-15 | W72: 2018-0882-4800019807.xlsm | X72: X
K73: 2018-0985 | L73: 4800020122 | M73: 100525 | N73: ACE (CUSTOM ACCESORIES INC.) | U73: CORREO | V73: 2018-06-15 | W73: 2018-0985-4800020122.xlsm | X73: X
K74: 2018-1047 | L74: 4800020136 | M74: 110853 | N74: ACE (WESTCLOX) | U74: CORREO | V74: 2018-06-15 | W74: 2018-1047-4800020136.xlsm | X74: X
K75: 2018-1051 | L75: 4800020125 | M75: 117145 | N75: ACE (KLEIN TOOLS) | U75: CORREO | V75: 2018-06-15 | W75: 2018-1051-4800020125.xlsm | X75: X
K76: 2018-1063 | L76: 4800020156 | M76: 118026 | N76: ACE(LA CROSSE TECHNOLOGY) | U76: CORREO | V76: 2018-06-15 | W76: 2018-1063-4800020156.xlsm | X76: X
K77: 2018-1143 | L77: 4800020159 | M77: 100428 | N77: ACE (CANDLE LITE, INC.) | U77: CORREO | V77: 2018-06-15 | X77: 2018-1143-4800020159.xlsm
J78: FERRI | K78: 2018-0098 | L78: 4800018415 | M78: 117348 | N78: GREATER KINGDON LIMITED(ZHANJIANG) | O78: 1*40 | P78: 2018-06-25 | Q78: KKFU7875342 | R78: INARPI | S78: MACOBSA | T78: TELSUPREMA | U78: CORREO | V78: 2018-06-15 | W78: 2018-0098-4800018415.xlsm | X78: 2018-0098-4800018415.xlsm
K79: 2018-0907 | L79: 4800019460 | M79: 115936 | N79: SELENA IBERIA SLU | O79: 1*20 | P79: 2018-06-20 | Q79: MRKU7379219 | R79: CONTECON | S79: MACOBSA | U79: CORREO | V79: 2018-06-15 | W79: 2018-0907-4800019460.xlsm | X79: 2018-0907-4800019460.xlsm
K80: CONSOLIDADO 938 | U80: CORREO | V80: 2018-06-15 | W80: CONSOLIDADO 938
K81: 2018-0630 | L81: 4800018807 | M81: 117390 | N81: TRAMONTINA FARROUPHILA (INEN) | O81: 1*20 | P81: 2018-06-25 | Q81: MSKU3476465 | R81: CONTECON | S81: VALERO | U81: CORREO | V81: 2018-06-15 | W81: 2018-0630-4800018807.xlsm | X81: 2018-0630-4800018807.xlsm
K82: 2018-0632 | L82: 4800018802 | M82: 100917 | N82: TRAMONTINA FARROUPILHA S.A. IND. ME | U82: CORREO | V82: 2018-06-15 | W82: 2018-0632-4800018802.xlsm | X82: 2018-0632-4800018802.xlsm
K83: 2018-0659 | L83: 4800018803 | M83: 100917 | N83: TRAMONTINA FARROUPILHA S.A. IND. ME | U83: CORREO | V83: 2018-06-15 | W83: 2018-0659-4800018803.xlsm | X83: 2018-0659-4800018803.xlsm
J86: SALE MARTES 19/JUNIO/2018 | U86: CORREO | W86: FILES GENERADOS | X86: FILES DMAESTROS | Y86: DRIVE
J87: BGA | K87: OPERAC. | L87: Nº PEDIDO | M87: PROV. | N87: NOMBRE / PROVEEDOR | O87: CAPACIDAD | P87: LIBRE HASTA | Q87: CONTENEDOR | R87: MÓDULO | S87: DESP. | T87: TRANSPORTE
J88: FERRI | K88: 2018-0415 | L88: 4800018713 | M88: 118802 | N88: MIDEA ELECTRIC TRADING(SINGAPORE) | O88: 1*20 – 1*40 | P88: 2018-06-25 | Q88: FCIU5682520 - 3275 kgs | R88: INARPI | S88: MACOBSA | T88: TRANSGOM | U88: CORREO | V88: 2018-06-18 | W88: 2018-0415-4800018713.xlsm | X88: 2018-0415-4800018713.xlsm | Y88: OK
Q89: KKFU7849723 - 7842.66 kgs
K90: 2018-0038 | L90: 4800018215 | M90: 117037 | N90: MBR INC (NINGBO 02) | O90: 1*20 | P90: 2018-06-25 | Q90: CMAU1091340 - 2134.40 kgs | R90: INARPI | S90: VALERO | U90: CORREO | V90: 2018-06-18 | W90: 2018-0038-4800018215.xlsm | X90: 2018-0038-4800018215.xlsm
K91: 2017-2142 | L91: 4800014233 | M91: 118442 | N91: GREATER KINGDOM LTD | O91: 1*20 | P91: 2018-06-25 | Q91: TRHU1303525 - 4822.40kgs | R91: INARPI | S91: VALERO | U91: CORREO | V91: 2018-06-18 | W91: 2017-2142-4800014233.xlsm | X91: 2017-2142-4800014233.xlsm
J92: FERRI | K92: 2017-3063 | L92: 4800018351 | M92: 118360 | N92: WENZHOU TENYALE(CHAR GRILLER_PARRIL | O92: 1*20 | P92: 2018-06-18 | Q92: TCKU2849277 | R92: INARPI | S92: VALERO | T92: TELSUPREMA | U92: correo | V92: 2018-06-19 | W92: 2017-3063-4800018351.xlsm | X92: 2017-3063-4800018351.xlsm
K93: 2018-0342 | L93: 4800018272 | M93: 117129 | N93: GREATER KINGDON LIMITED(NINGBO) | O93: 1*40 | P93: 2018-06-25 | Q93: CAIU9215125 | R93: INARPI | S93: MACOBSA | U93: correo | V93: 2018-06-19 | W93: 2018-0342-4800018272.xlsm | X93: 2018-0342-4800018272.xlsm
K94: 2018-0039 | L94: 4800018321 | M94: 100157 | N94: AGD (NINGBO TFZ MERCURY LIGHTING AN | O94: 1*40 | P94: 2018-06-27 | Q94: UESU4246916 | R94: INARPI | S94: MACOBSA | U94: correo | V94: 2018-06-19 | W94: 2018-0039-4800018321.xlsm | X94: 2018-0039-4800018321.xlsm
J97: SALE MIÉRCOLES 20/JUNIO/2018 | U97: CORREO | W97: FILES GENERADOS | X97: FILES DMAESTROS | Y97: DRIVE
J98: BGA | K98: OPERAC. | L98: Nº PEDIDO | M98: PROV. | N98: NOMBRE / PROVEEDOR | O98: CAPACIDAD | P98: LIBRE HASTA | Q98: CONTENEDOR | R98: MÓDULO | S98: DESP. | T98: TRANSPORTE
J99: FERRI | K99: 2018-0206 | L99: 4800018514 | M99: 118147 | N99: ACE(INTCO) | O99: 1*20 – 1*40 | P99: 2018-06-28 | Q99: NYKU8049876 - 6460 kgs | R99: INARPI | S99: PEREZ | T99: TRANSGOM | U99: 2018-06-19 | W99: 2018-0206-4800018514-ACE(INTCO).xlsm | X99: 2018-0206-4800018514-ACE(INTCO).xlsm | Y99: OK
Q100: TRHU2878099 - 2691 kgs
K101: 2018-0104 | L101: 4800018249 | M101: 117169 | N101: PANASONIC LATIN(AIRE ACONDICIONADO) | O101: 1*20 – 1*40 | P101: 2018-06-26 | Q101: KKTU7734797 - 4139.10 kgs | R101: INARPI | S101: MACOBSA | U101: 2018-06-19 | W101: 2018-0104-4800018249-PANASONIC LATIN-AIRE ACONDICIONADO.xlsm | X101: 2018-0104-4800018249-PANASONIC LATIN-AIRE ACONDICIONADO.xlsm
Q102: TCKU9049614 - 9165.65 kgs
J103: FERRI | K103: 2018-0988 | L103: 4800019588 | M103: 101040 | N103: INDUSTRIAS VANYPLAS LTDA. | O103: 2*40 | P103: 2018-06-26 | Q103: MAGU5405881 | R103: FERTISA | S103: MACOBSA | T103: TELSUPREMA | U103: 2018-06-19 | W103: 2018-0988-4800019588-INDUSTRIAS VANYPLAS LTDA.xlsm | X103: 2018-0988-4800019588-INDUSTRIAS VANYPLAS LTDA.xlsm
Q104: TCLU8169253
K105: 2017-3047 | L105: 4800018219 | M105: 100719 | N105: NINGBO KING POWER INDUSTRY CO, LTD | O105: 1*20 | P105: 2018-06-28 | Q105: FCIU4551207 | R105: INARPI | S105: VALERO | U105: 2018-06-19 | W105: 2017-3047-4800018219-NINGBO KING POWER INDUSTRY CO.xlsm | X105: 2017-3047-4800018219-NINGBO KING POWER INDUSTRY CO.xlsm
K106: CONSOLIDADO 1043 | U106: CONSOLIDADO 1043
K107: 2018-0604 | L107: 4800020505 | M107: 101964 | N107: SAKAR INTERNATIONAL INC. | O107: 1*40 | P107: 2018-06-26 | Q107: SMLU7926773 | R107: CONTECON | S107: MACOBSA | U107: 2018-06-19 | W107: 2018-0604-4800020505-SAKAR INTERNATIONAL INC.xlsm | X107: 2018-0604-4800020505-SAKAR INTERNATIONAL INC.xlsm
K108: 2018-0878 | L108: 4800019557 | M108: 100325 | N108: STANLEY BLACK & DECKER,INC(HERRAMIE | U108: 2018-06-19 | W108: 2018-0878-4800019557-STANLEY BLACK & DECKER.xlsm | X108: 2018-0878-4800019557-STANLEY BLACK & DECKER.xlsm
K109: 2018-0911 | L109: 4800020141 | M109: 118652 | N109: CHEF CRAFT CORPORATION INEN | U109: 2018-06-19 | W109: 2018-0911-4800020141-CHEF CRAFT CORPORATION INEN.xlsm | X109: 2018-0911-4800020141-CHEF CRAFT CORPORATION INEN.xlsm
K110: 2018-1135 | L110: 4800020025 | M110: 118809 | N110: INTERDESIGN INC | U110: 2018-06-19 | W110: 2018-1135-4800020025-INTERDESIGN INC.xlsm | X110: 2018-1135-4800020025-INTERDESIGN INC.xlsm
K111: 2018-1172 | L111: 4800020148 | M111: 119018 | N111: ARROW FASTENER CO LLC | U111: 2018-06-19 | W111: 2018-1172-4800020148-ARROW FASTENER CO LLC.xlsm | X111: 2018-1172-4800020148-ARROW FASTENER CO LLC.xlsm
K112: 2018-1256 | L112: 4800020308 | M112: 118652 | N112: CHEF CRAFT CORPORATION INEN | U112: 2018-06-19 | W112: 2018-1256-4800020308-CHEF CRAFT CORPORATION INEN.xlsm | X112: 2018-1256-4800020308-CHEF CRAFT CORPORATION INEN.xlsm
J114: SALE JUEVES 21/JUNIO/2018 | U114: correo | W114: FILES GENERADOS | X114: FILES DMAESTROS | Y114: DRIVE
J115: BGA | K115: OPERAC. | L115: Nº PEDIDO | M115: PROV. | N115: NOMBRE / PROVEEDOR | O115: CAPACIDAD | P115: LIBRE HASTA | Q115: CONTENEDOR | R115: MÓDULO | S115: DESP. | T115: TRANSPORTE
J116: FERRI | K116: 2018-1209 | L116: 4800020315 | M116: 100798 | N116: ASC ELECTRONICA S.A. | O116: 1*20 | P116: 2018-06-26 | Q116: EISU2265360 - 2284.27 KGS | R116: FERTISA | S116: VALERO | T116: TRANSGOM | U116: 2018-06-20 | W116: 2018-1209-4800020315-ASC ELECTRONICA S.A..xlsm | X116: X | Y116: OK
K117: 2018-0146 | L117: 4800018383 | M117: 118199 | N117: ITC (SOFINE) | O117: 1*20 | P117: 2018-06-28 | Q117: ECMU1263101 | R117: INARPI | S117: MACOBSA | U117: 2018-06-20 | W117: 2018-0146-4800018383-ITC (SOFINE).xlsm | X117: X
K118: 2018-0061 | L118: 4800018322 | M118: 118732 | N118: WENZHOU TENYALE (SOPORTES) | O118: 1*20 | U118: 2018-06-20 | W118: 2018-0061-4800018322- WENZHOU TENYALE (SOPORTES).xlsm | X118: X
K119: CONSOLIDADO 1042 | U119: CONSOLIDADO 1042
K120: 2018-0986 | L120: 4800020441 | M120: 100901 | N120: ACE (LEVITON MANUFACTURING COMPANY, | O120: 1*20 | P120: 2018-06-26 | Q120: SMLU3135959 - 4378 KGS | R120: CONTECON | S120: MACOBSA | U120: 2018-06-20 | W120: 2018-0986-4800020441-ACE (LEVITON MANUFACTURING COMPANY.xlsm | X120: X
K121: 2018-0995 | L121: 4800020821 | M121: 100411 | N121: ACE (HAMILTON BEACH/PROCTOR SILEX) | U121: 2018-06-20 | W121: 2018-0995-4800020821-ACE (AMILTON BEACH-PROCTOR SILEX.xlsm | X121: X
K122: 2018-1056 | L122: 4800020173 | M122: 100606 | N122: ACE (HY-KO PRODUCTS COMPANY) | U122: 2018-06-20 | W122: 2018-1056-4800020173-ACE (HY-KO PRODUCTS COMPANY).xlsm | X122: X
K123: 2018-1065 | L123: 4800020184 | M123: 101710 | N123: ACE (EVRLHOLDER PRODUCTS, INC.) | U123: 2018-06-20 | W123: 2018-1065-4800020184- ACE (EVRLHOLDER PRODUCTS, INC.).xlsm | X123: X
K124: 2018-1132 | L124: 4800020177 | M124: 100380 | N124: ACE (RED DEVIL, INC.) | U124: 2018-06-20 | W124: 2018-1132-4800020177-ACE (RED DEVIL, INC.).xlsm | X124: X
K125: 2018-1140 | L125: 4800020507 | M125: 114494 | N125: ACE(WOLF PEAK INTERNATIONAL) | U125: 2018-06-20 | W125: 2018-1140-4800020507-ACE(WOLF PEAK INTERNATIONAL).xlsm | X125: X
K126: 2018-1173 | L126: 4800020158 | M126: 112279 | N126: ACE (SERVING SOLUTIONS) | U126: 2018-06-20 | W126: 2018-1173-4800020158-ACE (SERVING SOLUTIONS).xlsm | X126: X
K127: 2018-1194 | L127: 4800020312 | M127: 100709 | N127: ACE (ACME SPONGE & CHAMOIS ) | U127: 2018-06-20 | W127: 2018-1194-4800020312-ACE (ACME SPONGE & CHAMOIS ).xlsm | X127: X
J128: FERRI | K128: 2018-0286 | L128: 4800018252 | M128: 115649 | N128: MAJIC PRODUCTS INC. | O128: 2*40 | P128: 2018-06-28 | Q128: APHU6627988 | R128: INARPI | S128: MACOBSA | T128: TELSUPREMA | U128: 2018-06-20 | W128: 2018-0286-4800018252-MAJIC PRODUCTS INC..xlsm | X128: X
Q129: CMAU9057146
K130: 2018-1131 | L130: 4800020176 | M130: 100610 | N130: CORPORACION CERAMICA S.A. | O130: 3*40 | P130: 2018-06-23 | Q130: HMCU9097102 | R130: FERTISA | S130: VALERO | U130: 2018-06-20 | W130: 2018-1131-4800020176-CORPORACION CERAMICA S.A..xlsm | X130: X
Q131: LTIU8040652
Q132: TRLU6843648
J134: SALE VIERNES 22/JUNIO/2018 | U134: correo | W134: FILES GENERADOS | X134: FILES DMAESTROS | Y134: DRIVE
J135: BGA | K135: OPERAC. | L135: Nº PEDIDO | M135: PROV. | N135: NOMBRE / PROVEEDOR | O135: CAPACIDAD | P135: LIBRE HASTA | Q135: CONTENEDOR | R135: MÓDULO | S135: DESP. | T135: TRANSPORTE
J136: FERRI | K136: 2018-0965 | L136: 4800019654 | M136: 118734 | N136: ALUMINIO NACIONAL S.A. | O136: 1*20 – 2*40 | P136: 2018-06-26 | Q136: MRKU3712194 – 3979 KGS | R136: CONTECON | S136: VALERO | T136: TRANSGOM | U136: 2018-06-21 | W136: 2018-0965-4800019654-ALUMINIO NACIONAL S.xlsm | X136: X | Y136: OK
Q137: TCLU1415817 – 1621 KGS
J140: SALE SÁBADO 23/JUNIO/2018 | U140: correo | W140: FILES GENERADOS | X140: FILES DMAESTROS | Y140: DRIVE
J141: BGA | K141: OPERAC. | L141: Nº PEDIDO | M141: PROV. | N141: NOMBRE / PROVEEDOR | O141: CAPACIDAD | P141: LIBRE HASTA | Q141: CONTENEDOR | R141: MÓDULO | S141: DESP. | T141: TRANSPORTE
J142: FERRI | K142: CONSOLIDADO 1013 | U142: CONSOLIDADO 1013
K143: 2018-0969 | L143: 4800019820 | M143: 100647 | N143: PLASTICOS RIMAX S.A.S. | O143: 5*40 | P143: 2018-06-26 | Q143: MSKU6063022 | R143: CONTECON | S143: VALERO | T143: TELSUPREMA | U143: 2018-06-21 | W143: 2018-0969-4800019820-PLASTICOS RIMAX S.A.S..xlsm | X143: X | Y143: OK
Q144: MSKU6969927
Q145: PONU1731366
Q146: TGHU4674045
K147: 2018-1208 | L147: 4800020322 | M147: 118019 | N147: PLASTICOS RIMAX S.A.S. (INEN) | Q147: TGHU4678098 | U147: 2018-06-21 | W147: 2018-1208-4800020322-PLASTICOS RIMAX S.A.S. (INEN).xlsm | X147: X | Y147: OK
K150: MAIL-2106
J152: SALE VIERNES 22/JUNIO/2018 | U152: correo | W152: FILES GENERADOS | X152: FILES DMAESTROS | Y152: DRIVE
J153: BGA | K153: OPERAC. | L153: Nº PEDIDO | M153: PROV. | N153: NOMBRE / PROVEEDOR | O153: CAPACIDAD | P153: LIBRE HASTA | Q153: CONTENEDOR | R153: MÓDULO | S153: DESP. | T153: TRANSPORTE
I154: =T154 -> TRANSGOM | J154: FERRI | K154: 2018-0185 | L154: 4800018267 | M154: 107581 | N154: MOSAICO S.A. | O154: 1*40 | P154: 2018-06-26 | Q154: TCLU4497697 – 4051 kgs | R154: INARPI | S154: MACOBSA | T154: TRANSGOM | U154: 2018-06-21 | W154: 2018-0185-4800018267-MOSAICO S.A..xlsm | X154: 2018-0185-4800018267-MOSAICO S.A..xlsm | Y154: OK
I155: =T154 -> TRANSGOM | J155: FERRI | K155: 2018-0240 | L155: 4800019620 | M155: 100740 | N155: ACE (HUNTER FAN COMPANY) | O155: 1*20 | P155: 2018-06-26 | Q155: CAIU2843705 – 5590 KGS | R155: INARPI | S155: MACOBSA | T155: TRANSGOM | U155: 2018-06-21 | W155: 2018-0240-4800019620-ACE (HUNTER FAN COMPANY).xlsm | X155: 2018-0240-4800019620-ACE (HUNTER FAN COMPANY).xlsm | Y155: OK
I156: =T154 -> TRANSGOM | J156: FERRI | K156: 2018-1112 | L156: 4800020180 | M156: 100098 | N156: NMC S.A | O156: 1*20 | P156: 2018-06-26 | Q156: GESU1456860 – 3287.18 KGS | R156: INARPI | S156: MACOBSA | T156: TRANSGOM | U156: 2018-06-21 | W156: 2018-1112-4800020180-NMC S.A.xlsm | X156: 2018-1112-4800020180-NMC S.A.xlsm | Y156: OK
K159: 2018-06-22
J161: SALE SÁBADO 23/JUNIO/2018 | U161: correo | W161: FILES GENERADOS | X161: FILES DMAESTROS | Y161: DRIVE
J162: BGA | K162: OPERAC. | L162: Nº PEDIDO | M162: PROV. | N162: NOMBRE / PROVEEDOR | O162: CAPACIDAD | P162: LIBRE HASTA | Q162: CONTENEDOR | R162: MÓDULO | S162: DESP. | T162: TRANSPORTE
I163: =T163 -> TELSUPREMA | J163: FERRI | K163: 2018-0248 | L163: 4800018412 | M163: 114901 | N163: RUIAN ROCO SANITARYWARE CO.,LTD. | O163: C/SUELTA | P163: 1036 CTNES | Q163: DFOU6143667 | R163: INARPI | S163: VALERO | T163: TELSUPREMA | U163: 2018-06-22 | W163: 2018-0248-4800018412- RUIAN ROCO SANITARYWARE CO.,LTD..xlsm | X163: 018-0248-4800018412- RUIAN ROCO SANITARYWARE CO.,LTD..xlsm | Y163: OK
I164: =T163 -> TELSUPREMA | J164: FERRI | K164: 2018-0131 | L164: 4800018254 | M164: 111177 | N164: ITC (NETWORK GLOBAL DSTRIBUTION) | O164: 1*20 | P164: 2018-06-30 | Q164: TRLU9337622 | R164: INARPI | S164: VALERO | T164: TELSUPREMA | U164: 2018-06-22 | W164: 2018-0131-4800018254-ITC (NETWORK GLOBAL DSTRIBUTION).xlsm | X164: 2018-0131-4800018254-ITC (NETWORK GLOBAL DSTRIBUTION).xlsm | Y164: OK
K166: 2018-06-26
J168: SALE MIÉRCOLES 27/JUNIO/2018 | U168: correo | W168: FILES GENERADOS | X168: FILES DMAESTROS | Y168: DRIVE
J169: BGA | K169: OPERAC. | L169: Nº PEDIDO | M169: PROV. | N169: NOMBRE / PROVEEDOR | O169: CAPACIDAD | P169: LIBRE HASTA | Q169: CONTENEDOR | R169: MÓDULO | S169: DESP. | T169: TRANSPORTE
G170: =IF(L170>0,IFERROR(IF(H170=L170,"OK",""),""),"") -> OK | H170: =IF(L170>0,IFERROR(VLOOKUP(L170,TB.TDS[Nº PEDIDO],1,FALSE),""),"") -> 4800014824 | I170: =T170 -> TRANSGOM | J170: FERRI | K170: 2017-2114 | L170: 4800014824 | M170: 118420 | N170: ITC (SUNWAY) | O170: 1*20 | P170: 2018-06-30 | Q170: TRLU9360957 – 1415 KGS | R170: INARPI | S170: VALERO | T170: TRANSGOM | U170: 2018-06-26
G171: =IF(L171>0,IFERROR(IF(H171=L171,"OK",""),""),"") ->  | H171: =IF(L171>0,IFERROR(VLOOKUP(L171,TB.TDS[Nº PEDIDO],1,FALSE),""),"") ->  | I171: =T171 -> TCE | J171: FERRI | K171: CONSOLIDADO 993 | T171: TCE
G172: OK | H172: =IF(L172>0,IFERROR(VLOOKUP(L172,TB.TDS[Nº PEDIDO],1,FALSE),""),"") -> 4800019601 | I172: TCE | J172: FERRI | K172: 2018-0854 | L172: 4800019601 | M172: 118809 | N172: INTERDESIGN INC | O172: 1*40 | P172: SEPARACIÓN | Q172: SALIDA ALMACENERA SE DESCARGA EL MISMO DÍA | R172: TCE | S172: MACOBSA | T172: TCE | U172: 2018-06-26
G173: OK | H173: =IF(L173>0,IFERROR(VLOOKUP(L173,TB.TDS[Nº PEDIDO],1,FALSE),""),"") -> 4800017918 | I173: TELSUPREMA | J173: FERRI | K173: 2017-2824 | L173: 4800017918 | M173: 117582 | N173: GBR CORPORATION LTD (ZONA "C") | O173: 1*20 | P173: 2018-06-30 | Q173: APZU3170340 | R173: INARPI | S173: MACOBSA | T173: TELSUPREMA | U173: 2018-06-26
G174: OK | H174: =IF(L174>0,IFERROR(VLOOKUP(L174,TB.TDS[Nº PEDIDO],1,FALSE),""),"") -> 4800018573 | I174: TELSUPREMA | J174: FERRI | K174: 2018-0329 | L174: 4800018573 | M174: 118223 | N174: ITC-NINGBO BATTERY &ELECTRICAL | O174: 1*20 | P174: 2018-06-30 | Q174: DFOU2044959 | R174: INARPI | S174: PEREZ | T174: TELSUPREMA | U174: 2018-06-26
H175: =IF(L175>0,IFERROR(VLOOKUP(L175,TB.TDS[Nº PEDIDO],1,FALSE),""),"") ->  | I175: TELSUPREMA | J175: FERRI | K175: CONSOLIDADO 926 | T175: TELSUPREMA
G176: OK | H176: =IF(L176>0,IFERROR(VLOOKUP(L176,TB.TDS[Nº PEDIDO],1,FALSE),""),"") -> 4800018388 | I176: TELSUPREMA | J176: FERRI | K176: 2018-0200 | L176: 4800018388 | M176: 114781 | N176: KINGTEC INDUSTRIAL CO, LTD. | O176: C/SUELTA | P176: 370 CARTONES | Q176: SZLU9659521 – 19 M3 | R176: INARPI | S176: MACOBSA | T176: TELSUPREMA | U176: 2018-06-26
G177: OK | H177: =IF(L177>0,IFERROR(VLOOKUP(L177,TB.TDS[Nº PEDIDO],1,FALSE),""),"") -> 4800018620 | I177: TELSUPREMA | J177: FERRI | K177: 2018-0201 | L177: 4800018620 | M177: 114781 | N177: KINGTEC INDUSTRIAL CO, LTD. | O177: C/SUELTA | T177: TELSUPREMA | U177: 2018-06-26
H178: =IF(L178>0,IFERROR(VLOOKUP(L178,TB.TDS[Nº PEDIDO],1,FALSE),""),"") ->  | I178: TELSUPREMA | J178: FERRI | K178: CONSOLIDADO 937 | T178: TELSUPREMA
G179: OK | H179: =IF(L179>0,IFERROR(VLOOKUP(L179,TB.TDS[Nº PEDIDO],1,FALSE),""),"") -> 4800018804 | I179: TELSUPREMA | J179: FERRI | K179: 2018-0629 | L179: 4800018804 | M179: 117480 | N179: TRAMONTINA ELETRIK S.A. | O179: 1*40 | P179: 2018-06-30 | Q179: MSKU8958963 – 6957.10 KGS | R179: CONTECON | S179: VALERO | T179: TELSUPREMA | U179: 2018-06-26
G180: OK | H180: =IF(L180>0,IFERROR(VLOOKUP(L180,TB.TDS[Nº PEDIDO],1,FALSE),""),"") -> 4800018806 | I180: TELSUPREMA | J180: FERRI | K180: 2018-0631 | L180: 4800018806 | M180: 117391 | N180: TRAMONTINA CUTELARIA (INEN) | O180: 1*40 | T180: TELSUPREMA | U180: 2018-06-26
G181: OK | H181: =IF(L181>0,IFERROR(VLOOKUP(L181,TB.TDS[Nº PEDIDO],1,FALSE),""),"") -> 4800018742 | I181: TELSUPREMA | J181: FERRI | K181: 2018-0633 | L181: 4800018742 | M181: 100910 | N181: TRAMONTINA S/A CUTELARIA | O181: 1*40 | T181: TELSUPREMA | U181: 2018-06-26
G182: OK | H182: =IF(L182>0,IFERROR(VLOOKUP(L182,TB.TDS[Nº PEDIDO],1,FALSE),""),"") -> 4800018805 | I182: TELSUPREMA | J182: FERRI | K182: 2018-0634 | L182: 4800018805 | M182: 100907 | N182: TRAMONTINA MULTI S/A | O182: 1*40 | T182: TELSUPREMA | U182: 2018-06-26
G183: OK | H183: =IF(L183>0,IFERROR(VLOOKUP(L183,TB.TDS[Nº PEDIDO],1,FALSE),""),"") -> 4800018808 | I183: TELSUPREMA | J183: FERRI | K183: 2018-0661 | L183: 4800018808 | M183: 100910 | N183: TRAMONTINA S/A CUTELARIA | O183: 1*40 | T183: TELSUPREMA | U183: 2018-06-26
K185: 2018-06-27
J187: SALE JUEVES 28/JUNIO/2018 | U187: correo | W187: FILES GENERADOS | X187: FILES DMAESTROS | Y187: DRIVE
J188: BGA | K188: OPERAC. | L188: Nº PEDIDO | M188: PROV. | N188: NOMBRE / PROVEEDOR | O188: CAPACIDAD | P188: LIBRE HASTA | Q188: CONTENEDOR | R188: MÓDULO | S188: DESP. | T188: TRANSPORTE
I189: =T189 -> TRANSGOM | J189: FERRI | K189: 2017-2293 | L189: 4800016534 | M189: 111899 | N189: ACE(PLG-PULAIGAO SANITARY WARE) | O189: 1*20 | P189: 2018-06-30 | Q189: CMAU1969060 – 3783.60 KGS | R189: INARPI | S189: MACOBSA | T189: TRANSGOM | U189: 2018-06-27
I190: =T190 -> TRANSGOM | J190: FERRI | K190: 2018-0702 | L190: 4800020304 | M190: 102008 | N190: ASSA ABLOY CHILE SPA | O190: 1*20 | P190: 2018-06-30 | Q190: DRYU2523791 – 3919.20 KGS | R190: FERTISA | S190: MACOBSA | T190: TRANSGOM | U190: 2018-06-27
I191: TRANSGOM | J191: FERRI | K191: 2018-0596 | L191: 4800018650 | M191: 118386 | N191: WENZHOU TENYALE (ESPEJOS) | O191: 1*20 | P191: 2018-06-30 | Q191: TRLU9292087 – 9684 KGS | R191: INARPI | S191: PEREZ | T191: TRANSGOM | U191: 2018-06-27
I192: TRANSGOM | J192: FERRI | K192: 2018-0543 | L192: 4800018749 | M192: 107205 | N192: GLOBAL LYNX CORPORATION LIMITED ZON | O192: C/SUELTA | P192: 57 CTNES | Q192: CBHU2835612 – 427.50kg – 4.627 m3 | R192: INARPI | S192: MACOBSA | T192: TRANSGOM | U192: 2018-06-27
I193: TELSUPREMA | J193: FERRI | K193: 2018-1269 | L193: 4800020428 | M193: 116490 | N193: CORTINEROS LIDER S.A.S. | O193: 1*20 | P193: 2018-06-30 | Q193: FCIU5147421 | R193: INARPI | S193: VALERO | T193: TELSUPREMA | U193: 2018-06-27
I194: TELSUPREMA | J194: FERRI | K194: 2018-0701 | L194: 4800019530 | M194: 116116 | N194: ACE (QUNSHENG) | O194: 1*40 | P194: 2018-06-30 | Q194: ECMU9503997 | R194: INARPI | S194: PEREZ | T194: TELSUPREMA | U194: 2018-06-27
I196: FERRI | J196: FERRI | K196: 2018-1396 | L196: 4800020498 | M196: 118175 | N196: STAR GLORY LIMITED | O196: MUESTRAS OFICINA COMPRAS FERRI | U196: 2018-06-28
J200: SALE VIERNES 29/JUNIO/2018
J201: BGA | K201: OPERAC. | L201: Nº PEDIDO | M201: PROV. | N201: NOMBRE / PROVEEDOR | O201: CAPACIDAD | P201: LIBRE HASTA | Q201: CONTENEDOR | R201: MÓDULO | S201: DESP. | T201: TRANSPORTE
J202: FERRI | K202: 2018-0364 | L202: 4800019711 | M202: 118790 | N202: MAJIC PRODUCTS INC. (GATA) | O202: 1*20 | P202: 2018-07-02 | Q202: CMAU1808723 – 12743.50 KGS | R202: INARPI | S202: MACOBSA | T202: TRANSGOM
K203: 2018-0832 | L203: 4800019520 | M203: 117169 | N203: PANASONIC LATIN(AIRE ACONDICIONADO) | O203: 1*40 | P203: 2018-07-02 | Q203: TCLU4560022 – 8787.85 KGS | R203: INARPI | S203: MACOBSA
K204: 2018-0244 | L204: 4800018247 | M204: 117247 | N204: ROYAL TOP TECHNOLOGY INC (ALEROS) | O204: 2*40 | P204: 2018-07-02 | Q204: TCLU4532782 | R204: INARPI | S204: MACOBSA
Q205: TCLU9775091
J206: FERRI | K206: 2018-0215 | L206: 4800018574 | M206: 118160 | N206: ARC FRANCE | O206: 1*20 | P206: SALIDA ALMACENERA TOTAL | Q206: SE DESCARGA EL MISMO DIA | R206: TCE | S206: MACOBSA | T206: TCE
K207: CONSOLIDADO 939
K208: 2018-0583 | L208: 4800019513 | M208: 112717 | N208: ACE HARDWARE INTER HOLDINGS, LTD(IN | O208: GAFAS | P208: SALIDA TOTAL | Q208: SEGUNDA SALIDA | R208: TCE | S208: MACOBSA
K209: CONSOLIDADO 973
K210: 2018-0278 | L210: 4800018575 | M210: 112379 | N210: ACE HARDWARE(INEN) | O210: 1*40 | Q210: SALIDA ALMACENERA | R210: TCE | S210: VALERO
K211: 2018-0643 | L211: 4800019630 | M211: 117051 | N211: ACE HARDWARE E.E.U.U (FITOSANITARIO
K212: 2018-0740 | L212: 4800019105 | M212: 112379 | N212: ACE HARDWARE(INEN) | Q212: SE DESCARGA EL MISMO DIA
K213: 2018-0948 | L213: 4800019906 | M213: 100349 | N213: ACE HARDWARE CORPORATION
K214: 2018-0949 | L214: 4800019905 | M214: 109838 | N214: ACE HARDWARE CORPORATION(ESPECIALES
K215: 2018-0950 | L215: 4800019904 | M215: 117397 | N215: ACE HARDWARE (JARDIN/CONST/MUEB)
K216: 2018-0951 | L216: 4800019903 | M216: 117398 | N216: ACE HARDWARE (HERR/AUTOM)
K217: 2018-0952 | L217: 4800019902 | M217: 117399 | N217: ACE HARDWARE (PLOMERIA/PINTU)

Sheet DATAS (hidden)
B1: GCP | C1: Denominación | E1: IND AR | F1: Denominación | H1: tp ubi | I1: Denominación | K1: Ubicación | L1: Tipo de ubicación | M1: Denominación | N1: IND AR | O1: CAPACIDAD | Q1: Materiales | R1: UxC E/S
B2: F88 | C2: PINTURAS | E2: 101 | F2: PINTURAS | H2: 01 | I2: PALLET NORMAL | K2: F0010102 | L2: 08 | M2: =VLOOKUP(tb.ubicacion[[#This Row],[Tipo de ubicación]],tb.tipubic[],2,FALSE) -> PALLET DOBLE | N2: 107 | O2: 3.2 | Q2: 40000008 | R2: 1
B3: F89 | C3: HERRAMIENTAS | E3: 102 | F3: HERRAMIENTAS | H3: 02 | I3: MEDIO PALLET | K3: F0010103 | L3: 08 | M3: =VLOOKUP(tb.ubicacion[[#This Row],[Tipo de ubicación]],tb.tipubic[],2,FALSE) -> PALLET DOBLE | N3: 107 | O3: 3.2 | Q3: 40000009 | R3: 1
B4: F90 | C4: MATERIALES ELECTRI | E4: 103 | F4: MATERIALES ELECTRI | H4: 03 | I4: BALDA | K4: F0010104 | L4: 08 | M4: =VLOOKUP(tb.ubicacion[[#This Row],[Tipo de ubicación]],tb.tipubic[],2,FALSE) -> PALLET DOBLE | N4: 107 | O4: 3.2 | Q4: 40000053 | R4: 1
B5: F91 | C5: PLOMERIA | E5: 104 | F5: PLOMERIA | H5: 04 | I5: QUIPICK | K5: F0010105 | L5: 01 | M5: =VLOOKUP(tb.ubicacion[[#This Row],[Tipo de ubicación]],tb.tipubic[],2,FALSE) -> PALLET NORMAL | N5: 107 | O5: 1.39 | Q5: 40000058 | R5: 1
B6: F92 | C6: CERRAJERIA | E6: 105 | F6: CERRAJERIA | H6: 07 | I6: PALLET ALTO | K6: F0010106 | L6: 07 | M6: =VLOOKUP(tb.ubicacion[[#This Row],[Tipo de ubicación]],tb.tipubic[],2,FALSE) -> PALLET ALTO | N6: 107 | O6: 2.47 | Q6: 40000059 | R6: 1
B7: F93 | C7: JARDIN Y EXTERIORE | E7: 106 | F7: JARDIN Y EXTERIORE | H7: 08 | I7: PALLET DOBLE | K7: F0010204 | L7: 01 | M7: =VLOOKUP(tb.ubicacion[[#This Row],[Tipo de ubicación]],tb.tipubic[],2,FALSE) -> PALLET NORMAL | N7: 107 | O7: 1.39 | Q7: 40000060 | R7: 1
B8: F94 | C8: MUEBLES | E8: 107 | F8: MUEBLES | H8: 09 | I8: MEDIO PALLET DOBLE | K8: F0010205 | L8: 01 | M8: =VLOOKUP(tb.ubicacion[[#This Row],[Tipo de ubicación]],tb.tipubic[],2,FALSE) -> PALLET NORMAL | N8: 107 | O8: 1.39 | Q8: 40000063 | R8: 60
B9: F95 | C9: CONSTRUCCION | E9: 108 | F9: CONSTRUCCION | K9: F0010206 | L9: 07 | M9: =VLOOKUP(tb.ubicacion[[#This Row],[Tipo de ubicación]],tb.tipubic[],2,FALSE) -> PALLET ALTO | N9: 107 | O9: 2.47 | Q9: 40000066 | R9: 1
B10: FA3 | C10: MOTOS | E10: 109 | F10: MOTOS | K10: F0010302 | L10: 08 | M10: =VLOOKUP(tb.ubicacion[[#This Row],[Tipo de ubicación]],tb.tipubic[],2,FALSE) -> PALLET DOBLE | N10: 107 | O10: 3.2 | Q10: 40000068 | R10: 60
B11: FA4 | C11: AUTOMOTRIZ | E11: 110 | F11: AUTOMOTRIZ | K11: F0010303 | L11: 08 | M11: =VLOOKUP(tb.ubicacion[[#This Row],[Tipo de ubicación]],tb.tipubic[],2,FALSE) -> PALLET DOBLE | N11: 107 | O11: 3.2 | Q11: 40000076 | R11: 2
B12: FA5 | C12: ILUMINACION | E12: 111 | F12: ILUMINACION | K12: F0010304 | L12: 08 | M12: =VLOOKUP(tb.ubicacion[[#This Row],[Tipo de ubicación]],tb.tipubic[],2,FALSE) -> PALLET DOBLE | N12: 107 | O12: 3.2 | Q12: 40000091 | R12: 1
B13: FA6 | C13: ELECTRODOMESTICOS | E13: 112 | F13: ELECTRODOMESTICOS | K13: F0010305 | L13: 01 | M13: =VLOOKUP(tb.ubicacion[[#This Row],[Tipo de ubicación]],tb.tipubic[],2,FALSE) -> PALLET NORMAL | N13: 107 | O13: 1.39 | Q13: 40000094 | R13: 1
B14: FA7 | C14: PUERTAS Y MADERAS | E14: 113 | F14: PUERTAS Y MADERAS | K14: F0010306 | L14: 07 | M14: =VLOOKUP(tb.ubicacion[[#This Row],[Tipo de ubicación]],tb.tipubic[],2,FALSE) -> PALLET ALTO | N14: 107 | O14: 2.47 | Q14: 40000132 | R14: 3
B15: FA8 | C15: SERVICIOS FERRISAR | E15: 114 | F15: HOGAR FERRISARIATO | K15: F0010404 | L15: 01 | M15: =VLOOKUP(tb.ubicacion[[#This Row],[Tipo de ubicación]],tb.tipubic[],2,FALSE) -> PALLET NORMAL | N15: 107 | O15: 1.39 | Q15: 40000134 | R15: 6
B16: FD2 | C16: HOGAR FERRISARIATO | E16: 115 | F16: LAMPARAS | K16: F0010405 | L16: 01 | M16: =VLOOKUP(tb.ubicacion[[#This Row],[Tipo de ubicación]],tb.tipubic[],2,FALSE) -> PALLET NORMAL | N16: 107 | O16: 1.39 | Q16: 40000135 | R16: 6
B17: FF3 | C17: LAMPARAS | E17: 116 | F17: PLASTICOS FERRISAR | K17: F0010406 | L17: 07 | M17: =VLOOKUP(tb.ubicacion[[#This Row],[Tipo de ubicación]],tb.tipubic[],2,FALSE) -> PALLET ALTO | N17: 107 | O17: 2.47 | Q17: 40000136 | R17: 6
B18: FF4 | C18: PLASTICOS FERRISAR | E18: 117 | F18: PESADOS | K18: F0010502 | L18: 08 | M18: =VLOOKUP(tb.ubicacion[[#This Row],[Tipo de ubicación]],tb.tipubic[],2,FALSE) -> PALLET DOBLE | N18: 107 | O18: 3.2 | Q18: 40000138 | R18: 6
B19: J04 | C19: JUGUETERIA | E19: 118 | F19: PESADOS ALTOS | K19: F0010503 | L19: 08 | M19: =VLOOKUP(tb.ubicacion[[#This Row],[Tipo de ubicación]],tb.tipubic[],2,FALSE) -> PALLET DOBLE | N19: 107 | O19: 3.2 | Q19: 40000142 | R19: 5
B20: J05 | C20: ESCOLAR | E20: 119 | F20: TÓXICOS | K20: F0010504 | L20: 08 | M20: =VLOOKUP(tb.ubicacion[[#This Row],[Tipo de ubicación]],tb.tipubic[],2,FALSE) -> PALLET DOBLE | N20: 107 | O20: 3.2 | Q20: 40000143 | R20: 1
B21: J06 | C21: JUGUETERIA | E21: 120 | F21: MATERIALES | K21: F0010505 | L21: 01 | M21: =VLOOKUP(tb.ubicacion[[#This Row],[Tipo de ubicación]],tb.tipubic[],2,FALSE) -> PALLET NORMAL | N21: 107 | O21: 1.39 | Q21: 40000145 | R21: 6
B22: J41 | C22: JUGUETERIA | E22: 121 | F22: ALTO COSTO | K22: F0010506 | L22: 07 | M22: =VLOOKUP(tb.ubicacion[[#This Row],[Tipo de ubicación]],tb.tipubic[],2,FALSE) -> PALLET ALTO | N22: 107 | O22: 2.47 | Q22: 40000146 | R22: 6
B23: JC2 | C23: JUGUETERIA | E23: 122 | F23: INFLAMABLE | K23: F0010604 | L23: 01 | M23: =VLOOKUP(tb.ubicacion[[#This Row],[Tipo de ubicación]],tb.tipubic[],2,FALSE) -> PALLET NORMAL | N23: 107 | O23: 1.39 | Q23: 40000147 | R23: 3
B24: JC3 | C24: JUGUETERIA | E24: 123 | F24: JUGUETERIA | K24: F0010605 | L24: 01 | M24: =VLOOKUP(tb.ubicacion[[#This Row],[Tipo de ubicación]],tb.tipubic[],2,FALSE) -> PALLET NORMAL | N24: 107 | O24: 1.39 | Q24: 40000149 | R24: 1
B25: JC4 | C25: JUGUETERIA | E25: 124 | F25: ESCOLAR | K25: F0010606 | L25: 07 | M25: =VLOOKUP(tb.ubicacion[[#This Row],[Tipo de ubicación]],tb.tipubic[],2,FALSE) -> PALLET ALTO | N25: 107 | O25: 2.47 | Q25: 40000150 | R25: 1
B26: JC5 | C26: JUGUETERIA | E26: 125 | F26: ALTO COSTO ZSMU | K26: F0010702 | L26: 08 | M26: =VLOOKUP(tb.ubicacion[[#This Row],[Tipo de ubicación]],tb.tipubic[],2,FALSE) -> PALLET DOBLE | N26: 107 | O26: 3.2 | Q26: 40000152 | R26: 50
B27: JC6 | C27: JUGUETERIA | E27: 126 | F27: ALTO COSTO ZSMU | K27: F0010703 | L27: 08 | M27: =VLOOKUP(tb.ubicacion[[#This Row],[Tipo de ubicación]],tb.tipubic[],2,FALSE) -> PALLET DOBLE | N27: 107 | O27: 3.2 | Q27: 40000153 | R27: 18
B28: JC7 | C28: JUGUETERIA | E28: 127 | F28: CANTILEVER | K28: F0010704 | L28: 08 | M28: =VLOOKUP(tb.ubicacion[[#This Row],[Tipo de ubicación]],tb.tipubic[],2,FALSE) -> PALLET DOBLE | N28: 107 | O28: 3.2 | Q28: 40000154 | R28: 30
B29: JC8 | C29: JUGUETERIA | K29: F0010705 | L29: 01 | M29: =VLOOKUP(tb.ubicacion[[#This Row],[Tipo de ubicación]],tb.tipubic[],2,FALSE) -> PALLET NORMAL | N29: 107 | O29: 1.39 | Q29: 40000155 | R29: 10
B30: JC9 | C30: JUGUETERIA | K30: F0010706 | L30: 07 | M30: =VLOOKUP(tb.ubicacion[[#This Row],[Tipo de ubicación]],tb.tipubic[],2,FALSE) -> PALLET ALTO | N30: 107 | O30: 2.47 | Q30: 40000156 | R30: 5
B31: JD0 | C31: JUGUETERIA | K31: F0010804 | L31: 01 | M31: =VLOOKUP(tb.ubicacion[[#This Row],[Tipo de ubicación]],tb.tipubic[],2,FALSE) -> PALLET NORMAL | N31: 107 | O31: 1.39 | Q31: 40000157 | R31: 30
B32: X07 | C32: REPUESTOS | K32: F0010805 | L32: 01 | M32: =VLOOKUP(tb.ubicacion[[#This Row],[Tipo de ubicación]],tb.tipubic[],2,FALSE) -> PALLET NORMAL | N32: 107 | O32: 1.39 | Q32: 40000158 | R32: 30
C33: CANTILEVER | K33: F0010806 | L33: 07 | M33: =VLOOKUP(tb.ubicacion[[#This Row],[Tipo de ubicación]],tb.tipubic[],2,FALSE) -> PALLET ALTO | N33: 107 | O33: 2.47 | Q33: 40000159 | R33: 14
C34: PESADOS | K34: F0010902 | L34: 08 | M34: =VLOOKUP(tb.ubicacion[[#This Row],[Tipo de ubicación]],tb.tipubic[],2,FALSE) -> PALLET DOBLE | N34: 107 | O34: 3.2 | Q34: 40000160 | R34: 16
C35: PESADOS ALTOS | K35: F0010903 | L35: 08 | M35: =VLOOKUP(tb.ubicacion[[#This Row],[Tipo de ubicación]],tb.tipubic[],2,FALSE) -> PALLET DOBLE | N35: 107 | O35: 3.2 | Q35: 40000161 | R35: 16
C36: TÓXICOS | K36: F0010904 | L36: 08 | M36: =VLOOKUP(tb.ubicacion[[#This Row],[Tipo de ubicación]],tb.tipubic[],2,FALSE) -> PALLET DOBLE | N36: 107 | O36: 3.2 | Q36: 40000169 | R36: 1
C37: MATERIALES | K37: F0010905 | L37: 01 | M37: =VLOOKUP(tb.ubicacion[[#This Row],[Tipo de ubicación]],tb.tipubic[],2,FALSE) -> PALLET NORMAL | N37: 107 | O37: 1.39 | Q37: 40000170 | R37: 1
C38: ALTO COSTO | K38: F0010906 | L38: 07 | M38: =VLOOKUP(tb.ubicacion[[#This Row],[Tipo de ubicación]],tb.tipubic[],2,FALSE) -> PALLET ALTO | N38: 107 | O38: 2.47 | Q38: 40000190 | R38: 6
C39: INFLAMABLE | K39: F0011004 | L39: 01 | M39: =VLOOKUP(tb.ubicacion[[#This Row],[Tipo de ubicación]],tb.tipubic[],2,FALSE) -> PALLET NORMAL | N39: 107 | O39: 1.39 | Q39: 40000191 | R39: 1
K40: F0011005 | L40: 01 | M40: =VLOOKUP(tb.ubicacion[[#This Row],[Tipo de ubicación]],tb.tipubic[],2,FALSE) -> PALLET NORMAL | N40: 107 | O40: 1.39 | Q40: 40000192 | R40: 12
K41: F0011006 | L41: 07 | M41: =VLOOKUP(tb.ubicacion[[#This Row],[Tipo de ubicación]],tb.tipubic[],2,FALSE) -> PALLET ALTO | N41: 107 | O41: 2.47 | Q41: 40000193 | R41: 6
K42: F0011102 | L42: 08 | M42: =VLOOKUP(tb.ubicacion[[#This Row],[Tipo de ubicación]],tb.tipubic[],2,FALSE) -> PALLET DOBLE | N42: 107 | O42: 3.2 | Q42: 40000194 | R42: 6
K43: F0011103 | L43: 08 | M43: =VLOOKUP(tb.ubicacion[[#This Row],[Tipo de ubicación]],tb.tipubic[],2,FALSE) -> PALLET DOBLE | N43: 107 | O43: 3.2 | Q43: 40000195 | R43: 1
K44: F0011104 | L44: 08 | M44: =VLOOKUP(tb.ubicacion[[#This Row],[Tipo de ubicación]],tb.tipubic[],2,FALSE) -> PALLET DOBLE | N44: 107 | O44: 3.2 | Q44: 40000196 | R44: 1
K45: F0011105 | L45: 01 | M45: =VLOOKUP(tb.ubicacion[[#This Row],[Tipo de ubicación]],tb.tipubic[],2,FALSE) -> PALLET NORMAL | N45: 107 | O45: 1.39 | Q45: 40000197 | R45: 6
K46: F0011106 | L46: 07 | M46: =VLOOKUP(tb.ubicacion[[#This Row],[Tipo de ubicación]],tb.tipubic[],2,FALSE) -> PALLET ALTO | N46: 107 | O46: 2.47 | Q46: 40000198 | R46: 1
K47: F0011204 | L47: 01 | M47: =VLOOKUP(tb.ubicacion[[#This Row],[Tipo de ubicación]],tb.tipubic[],2,FALSE) -> PALLET NORMAL | N47: 107 | O47: 1.39 | Q47: 40000199 | R47: 1
K48: F0011205 | L48: 01 | M48: =VLOOKUP(tb.ubicacion[[#This Row],[Tipo de ubicación]],tb.tipubic[],2,FALSE) -> PALLET NORMAL | N48: 107 | O48: 1.39 | Q48: 40000204 | R48: 6
K49: F0011206 | L49: 07 | M49: =VLOOKUP(tb.ubicacion[[#This Row],[Tipo de ubicación]],tb.tipubic[],2,FALSE) -> PALLET ALTO | N49: 107 | O49: 2.47 | Q49: 40000205 | R49: 1
K50: F0011302 | L50: 08 | M50: =VLOOKUP(tb.ubicacion[[#This Row],[Tipo de ubicación]],tb.tipubic[],2,FALSE) -> PALLET DOBLE | N50: 107 | O50: 3.2 | Q50: 40000207 | R50: 1
K51: F0011303 | L51: 08 | M51: =VLOOKUP(tb.ubicacion[[#This Row],[Tipo de ubicación]],tb.tipubic[],2,FALSE) -> PALLET DOBLE | N51: 107 | O51: 3.2 | Q51: 40000212 | R51: 6
K52: F0011304 | L52: 08 | M52: =VLOOKUP(tb.ubicacion[[#This Row],[Tipo de ubicación]],tb.tipubic[],2,FALSE) -> PALLET DOBLE | N52: 107 | O52: 3.2 | Q52: 40000213 | R52: 3
K53: F0011305 | L53: 01 | M53: =VLOOKUP(tb.ubicacion[[#This Row],[Tipo de ubicación]],tb.tipubic[],2,FALSE) -> PALLET NORMAL | N53: 107 | O53: 1.39 | Q53: 40000214 | R53: 2
K54: F0011306 | L54: 07 | M54: =VLOOKUP(tb.ubicacion[[#This Row],[Tipo de ubicación]],tb.tipubic[],2,FALSE) -> PALLET ALTO | N54: 107 | O54: 2.47 | Q54: 40000216 | R54: 2
K55: F0011404 | L55: 01 | M55: =VLOOKUP(tb.ubicacion[[#This Row],[Tipo de ubicación]],tb.tipubic[],2,FALSE) -> PALLET NORMAL | N55: 107 | O55: 1.39 | Q55: 40000217 | R55: 2
K56: F0011405 | L56: 01 | M56: =VLOOKUP(tb.ubicacion[[#This Row],[Tipo de ubicación]],tb.tipubic[],2,FALSE) -> PALLET NORMAL | N56: 107 | O56: 1.39 | Q56: 40000218 | R56: 2
K57: F0011406 | L57: 07 | M57: =VLOOKUP(tb.ubicacion[[#This Row],[Tipo de ubicación]],tb.tipubic[],2,FALSE) -> PALLET ALTO | N57: 107 | O57: 2.47 | Q57: 40000221 | R57: 6
K58: F0011502 | L58: 08 | M58: =VLOOKUP(tb.ubicacion[[#This Row],[Tipo de ubicación]],tb.tipubic[],2,FALSE) -> PALLET DOBLE | N58: 107 | O58: 3.2 | Q58: 40000222 | R58: 6
K59: F0011503 | L59: 08 | M59: =VLOOKUP(tb.ubicacion[[#This Row],[Tipo de ubicación]],tb.tipubic[],2,FALSE) -> PALLET DOBLE | N59: 107 | O59: 3.2 | Q59: 40000223 | R59: 6
K60: F0011504 | L60: 08 | M60: =VLOOKUP(tb.ubicacion[[#This Row],[Tipo de ubicación]],tb.tipubic[],2,FALSE) -> PALLET DOBLE | N60: 107 | O60: 3.2 | Q60: 40000224 | R60: 6
K61: F0011505 | L61: 01 | M61: =VLOOKUP(tb.ubicacion[[#This Row],[Tipo de ubicación]],tb.tipubic[],2,FALSE) -> PALLET NORMAL | N61: 107 | O61: 1.39 | Q61: 40000225 | R61: 1
K62: F0011506 | L62: 07 | M62: =VLOOKUP(tb.ubicacion[[#This Row],[Tipo de ubicación]],tb.tipubic[],2,FALSE) -> PALLET ALTO | N62: 107 | O62: 2.47 | Q62: 40000229 | R62: 6
K63: F0011604 | L63: 01 | M63: =VLOOKUP(tb.ubicacion[[#This Row],[Tipo de ubicación]],tb.tipubic[],2,FALSE) -> PALLET NORMAL | N63: 107 | O63: 1.39 | Q63: 40000230 | R63: 6
K64: F0011605 | L64: 01 | M64: =VLOOKUP(tb.ubicacion[[#This Row],[Tipo de ubicación]],tb.tipubic[],2,FALSE) -> PALLET NORMAL | N64: 107 | O64: 1.39 | Q64: 40000231 | R64: 6
K65: F0011606 | L65: 07 | M65: =VLOOKUP(tb.ubicacion[[#This Row],[Tipo de ubicación]],tb.tipubic[],2,FALSE) -> PALLET ALTO | N65: 107 | O65: 2.47 | Q65: 40000234 | R65: 1
K66: F0011704 | L66: 08 | M66: =VLOOKUP(tb.ubicacion[[#This Row],[Tipo de ubicación]],tb.tipubic[],2,FALSE) -> PALLET DOBLE | N66: 107 | O66: 3.2 | Q66: 40000235 | R66: 1
K67: F0011705 | L67: 01 | M67: =VLOOKUP(tb.ubicacion[[#This Row],[Tipo de ubicación]],tb.tipubic[],2,FALSE) -> PALLET NORMAL | N67: 107 | O67: 1.39 | Q67: 40000236 | R67: 12
K68: F0011706 | L68: 01 | M68: =VLOOKUP(tb.ubicacion[[#This Row],[Tipo de ubicación]],tb.tipubic[],2,FALSE) -> PALLET NORMAL | N68: 107 | O68: 1.39 | Q68: 40000237 | R68: 1
K69: F0011707 | L69: 07 | M69: =VLOOKUP(tb.ubicacion[[#This Row],[Tipo de ubicación]],tb.tipubic[],2,FALSE) -> PALLET ALTO | N69: 107 | O69: 2.47 | Q69: 40000246 | R69: 4
K70: F0011804 | L70: 01 | M70: =VLOOKUP(tb.ubicacion[[#This Row],[Tipo de ubicación]],tb.tipubic[],2,FALSE) -> PALLET NORMAL | N70: 107 | O70: 1.39 | Q70: 40000248 | R70: 4
K71: F0011805 | L71: 01 | M71: =VLOOKUP(tb.ubicacion[[#This Row],[Tipo de ubicación]],tb.tipubic[],2,FALSE) -> PALLET NORMAL | N71: 107 | O71: 1.39 | Q71: 40000249 | R71: 1
K72: F0011806 | L72: 01 | M72: =VLOOKUP(tb.ubicacion[[#This Row],[Tipo de ubicación]],tb.tipubic[],2,FALSE) -> PALLET NORMAL | N72: 107 | O72: 1.39 | Q72: 40000251 | R72: 4
K73: F0011807 | L73: 07 | M73: =VLOOKUP(tb.ubicacion[[#This Row],[Tipo de ubicación]],tb.tipubic[],2,FALSE) -> PALLET ALTO | N73: 107 | O73: 2.47 | Q73: 40000256 | R73: 1
K74: F0011902 | L74: 08 | M74: =VLOOKUP(tb.ubicacion[[#This Row],[Tipo de ubicación]],tb.tipubic[],2,FALSE) -> PALLET DOBLE | N74: 107 | O74: 3.2 | Q74: 40000259 | R74: 1
K75: F0011903 | L75: 08 | M75: =VLOOKUP(tb.ubicacion[[#This Row],[Tipo de ubicación]],tb.tipubic[],2,FALSE) -> PALLET DOBLE | N75: 107 | O75: 3.2 | Q75: 40000260 | R75: 1
K76: F0011904 | L76: 08 | M76: =VLOOKUP(tb.ubicacion[[#This Row],[Tipo de ubicación]],tb.tipubic[],2,FALSE) -> PALLET DOBLE | N76: 107 | O76: 3.2 | Q76: 40000262 | R76: 1
K77: F0011905 | L77: 01 | M77: =VLOOKUP(tb.ubicacion[[#This Row],[Tipo de ubicación]],tb.tipubic[],2,FALSE) -> PALLET NORMAL | N77: 107 | O77: 1.39 | Q77: 40000263 | R77: 1
K78: F0011906 | L78: 01 | M78: =VLOOKUP(tb.ubicacion[[#This Row],[Tipo de ubicación]],tb.tipubic[],2,FALSE) -> PALLET NORMAL | N78: 107 | O78: 1.39 | Q78: 40000264 | R78: 25
K79: F0011907 | L79: 07 | M79: =VLOOKUP(tb.ubicacion[[#This Row],[Tipo de ubicación]],tb.tipubic[],2,FALSE) -> PALLET ALTO | N79: 107 | O79: 2.47 | Q79: 40000265 | R79: 25
K80: F0012004 | L80: 01 | M80: =VLOOKUP(tb.ubicacion[[#This Row],[Tipo de ubicación]],tb.tipubic[],2,FALSE) -> PALLET NORMAL | N80: 107 | O80: 1.39 | Q80: 40000266 | R80: 25
K81: F0012005 | L81: 01 | M81: =VLOOKUP(tb.ubicacion[[#This Row],[Tipo de ubicación]],tb.tipubic[],2,FALSE) -> PALLET NORMAL | N81: 107 | O81: 1.39 | Q81: 40000267 | R81: 25
K82: F0012006 | L82: 01 | M82: =VLOOKUP(tb.ubicacion[[#This Row],[Tipo de ubicación]],tb.tipubic[],2,FALSE) -> PALLET NORMAL | N82: 107 | O82: 1.39 | Q82: 40000268 | R82: 1
K83: F0012007 | L83: 07 | M83: =VLOOKUP(tb.ubicacion[[#This Row],[Tipo de ubicación]],tb.tipubic[],2,FALSE) -> PALLET ALTO | N83: 107 | O83: 2.47 | Q83: 40000269 | R83: 1
K84: F0012102 | L84: 08 | M84: =VLOOKUP(tb.ubicacion[[#This Row],[Tipo de ubicación]],tb.tipubic[],2,FALSE) -> PALLET DOBLE | N84: 107 | O84: 3.2 | Q84: 40000271 | R84: 6
K85: F0012103 | L85: 08 | M85: =VLOOKUP(tb.ubicacion[[#This Row],[Tipo de ubicación]],tb.tipubic[],2,FALSE) -> PALLET DOBLE | N85: 107 | O85: 3.2 | Q85: 40000272 | R85: 6
K86: F0012104 | L86: 08 | M86: =VLOOKUP(tb.ubicacion[[#This Row],[Tipo de ubicación]],tb.tipubic[],2,FALSE) -> PALLET DOBLE | N86: 107 | O86: 3.2 | Q86: 40000273 | R86: 1
K87: F0012105 | L87: 01 | M87: =VLOOKUP(tb.ubicacion[[#This Row],[Tipo de ubicación]],tb.tipubic[],2,FALSE) -> PALLET NORMAL | N87: 107 | O87: 1.39 | Q87: 40000274 | R87: 3
K88: F0012106 | L88: 01 | M88: =VLOOKUP(tb.ubicacion[[#This Row],[Tipo de ubicación]],tb.tipubic[],2,FALSE) -> PALLET NORMAL | N88: 107 | O88: 1.39 | Q88: 40000275 | R88: 3
K89: F0012107 | L89: 07 | M89: =VLOOKUP(tb.ubicacion[[#This Row],[Tipo de ubicación]],tb.tipubic[],2,FALSE) -> PALLET ALTO | N89: 107 | O89: 2.47 | Q89: 40000276 | R89: 6
K90: F0012204 | L90: 01 | M90: =VLOOKUP(tb.ubicacion[[#This Row],[Tipo de ubicación]],tb.tipubic[],2,FALSE) -> PALLET NORMAL | N90: 107 | O90: 1.39 | Q90: 40000277 | R90: 1
K91: F0012205 | L91: 01 | M91: =VLOOKUP(tb.ubicacion[[#This Row],[Tipo de ubicación]],tb.tipubic[],2,FALSE) -> PALLET NORMAL | N91: 107 | O91: 1.39 | Q91: 40000278 | R91: 1
K92: F0012206 | L92: 01 | M92: =VLOOKUP(tb.ubicacion[[#This Row],[Tipo de ubicación]],tb.tipubic[],2,FALSE) -> PALLET NORMAL | N92: 107 | O92: 1.39 | Q92: 40000279 | R92: 1
K93: F0012207 | L93: 07 | M93: =VLOOKUP(tb.ubicacion[[#This Row],[Tipo de ubicación]],tb.tipubic[],2,FALSE) -> PALLET ALTO | N93: 107 | O93: 2.47 | Q93: 40000280 | R93: 1
K94: F0012302 | L94: 08 | M94: =VLOOKUP(tb.ubicacion[[#This Row],[Tipo de ubicación]],tb.tipubic[],2,FALSE) -> PALLET DOBLE | N94: 107 | O94: 3.2 | Q94: 40000282 | R94: 1
K95: F0012303 | L95: 08 | M95: =VLOOKUP(tb.ubicacion[[#This Row],[Tipo de ubicación]],tb.tipubic[],2,FALSE) -> PALLET DOBLE | N95: 107 | O95: 3.2 | Q95: 40000284 | R95: 1
K96: F0012304 | L96: 08 | M96: =VLOOKUP(tb.ubicacion[[#This Row],[Tipo de ubicación]],tb.tipubic[],2,FALSE) -> PALLET DOBLE | N96: 107 | O96: 3.2 | Q96: 40000285 | R96: 1
K97: F0012305 | L97: 01 | M97: =VLOOKUP(tb.ubicacion[[#This Row],[Tipo de ubicación]],tb.tipubic[],2,FALSE) -> PALLET NORMAL | N97: 107 | O97: 1.39 | Q97: 40000286 | R97: 1
K98: F0012306 | L98: 01 | M98: =VLOOKUP(tb.ubicacion[[#This Row],[Tipo de ubicación]],tb.tipubic[],2,FALSE) -> PALLET NORMAL | N98: 107 | O98: 1.39 | Q98: 40000287 | R98: 1
K99: F0012307 | L99: 07 | M99: =VLOOKUP(tb.ubicacion[[#This Row],[Tipo de ubicación]],tb.tipubic[],2,FALSE) -> PALLET ALTO | N99: 107 | O99: 2.47 | Q99: 40000290 | R99: 1
K100: F0012404 | L100: 01 | M100: =VLOOKUP(tb.ubicacion[[#This Row],[Tipo de ubicación]],tb.tipubic[],2,FALSE) -> PALLET NORMAL | N100: 107 | O100: 1.39 | Q100: 40000291 | R100: 5
K101: F0012405 | L101: 01 | M101: =VLOOKUP(tb.ubicacion[[#This Row],[Tipo de ubicación]],tb.tipubic[],2,FALSE) -> PALLET NORMAL | N101: 107 | O101: 1.39 | Q101: 40000292 | R101: 6
K102: F0012406 | L102: 01 | M102: =VLOOKUP(tb.ubicacion[[#This Row],[Tipo de ubicación]],tb.tipubic[],2,FALSE) -> PALLET NORMAL | N102: 107 | O102: 1.39 | Q102: 40000293 | R102: 6
K103: F0012407 | L103: 07 | M103: =VLOOKUP(tb.ubicacion[[#This Row],[Tipo de ubicación]],tb.tipubic[],2,FALSE) -> PALLET ALTO | N103: 107 | O103: 2.47 | Q103: 40000294 | R103: 6
K104: F0012502 | L104: 08 | M104: =VLOOKUP(tb.ubicacion[[#This Row],[Tipo de ubicación]],tb.tipubic[],2,FALSE) -> PALLET DOBLE | N104: 107 | O104: 3.2 | Q104: 40000295 | R104: 6
K105: F0012503 | L105: 08 | M105: =VLOOKUP(tb.ubicacion[[#This Row],[Tipo de ubicación]],tb.tipubic[],2,FALSE) -> PALLET DOBLE | N105: 107 | O105: 3.2 | Q105: 40000296 | R105: 6
K106: F0012504 | L106: 08 | M106: =VLOOKUP(tb.ubicacion[[#This Row],[Tipo de ubicación]],tb.tipubic[],2,FALSE) -> PALLET DOBLE | N106: 107 | O106: 3.2 | Q106: 40000299 | R106: 1
K107: F0012505 | L107: 01 | M107: =VLOOKUP(tb.ubicacion[[#This Row],[Tipo de ubicación]],tb.tipubic[],2,FALSE) -> PALLET NORMAL | N107: 107 | O107: 1.39 | Q107: 40000300 | R107: 12
K108: F0012506 | L108: 01 | M108: =VLOOKUP(tb.ubicacion[[#This Row],[Tipo de ubicación]],tb.tipubic[],2,FALSE) -> PALLET NORMAL | N108: 107 | O108: 1.39 | Q108: 40000301 | R108: 12
K109: F0012507 | L109: 07 | M109: =VLOOKUP(tb.ubicacion[[#This Row],[Tipo de ubicación]],tb.tipubic[],2,FALSE) -> PALLET ALTO | N109: 107 | O109: 2.47 | Q109: 40000310 | R109: 12
K110: F0012604 | L110: 01 | M110: =VLOOKUP(tb.ubicacion[[#This Row],[Tipo de ubicación]],tb.tipubic[],2,FALSE) -> PALLET NORMAL | N110: 107 | O110: 1.39 | Q110: 40000321 | R110: 12
K111: F0012605 | L111: 01 | M111: =VLOOKUP(tb.ubicacion[[#This Row],[Tipo de ubicación]],tb.tipubic[],2,FALSE) -> PALLET NORMAL | N111: 107 | O111: 1.39 | Q111: 40000322 | R111: 4
K112: F0012606 | L112: 01 | M112: =VLOOKUP(tb.ubicacion[[#This Row],[Tipo de ubicación]],tb.tipubic[],2,FALSE) -> PALLET NORMAL | N112: 107 | O112: 1.39 | Q112: 40000326 | R112: 12
K113: F0012607 | L113: 07 | M113: =VLOOKUP(tb.ubicacion[[#This Row],[Tipo de ubicación]],tb.tipubic[],2,FALSE) -> PALLET ALTO | N113: 107 | O113: 2.47 | Q113: 40000329 | R113: 12
K114: F0012702 | L114: 08 | M114: =VLOOKUP(tb.ubicacion[[#This Row],[Tipo de ubicación]],tb.tipubic[],2,FALSE) -> PALLET DOBLE | N114: 107 | O114: 3.2 | Q114: 40000347 | R114: 12
K115: F0012703 | L115: 08 | M115: =VLOOKUP(tb.ubicacion[[#This Row],[Tipo de ubicación]],tb.tipubic[],2,FALSE) -> PALLET DOBLE | N115: 107 | O115: 3.2 | Q115: 40000355 | R115: 12
K116: F0012704 | L116: 08 | M116: =VLOOKUP(tb.ubicacion[[#This Row],[Tipo de ubicación]],tb.tipubic[],2,FALSE) -> PALLET DOBLE | N116: 107 | O116: 3.2 | Q116: 40000356 | R116: 12
K117: F0012705 | L117: 01 | M117: =VLOOKUP(tb.ubicacion[[#This Row],[Tipo de ubicación]],tb.tipubic[],2,FALSE) -> PALLET NORMAL | N117: 107 | O117: 1.39 | Q117: 40000357 | R117: 24
K118: F0012706 | L118: 01 | M118: =VLOOKUP(tb.ubicacion[[#This Row],[Tipo de ubicación]],tb.tipubic[],2,FALSE) -> PALLET NORMAL | N118: 107 | O118: 1.39 | Q118: 40000358 | R118: 12
K119: F0012707 | L119: 07 | M119: =VLOOKUP(tb.ubicacion[[#This Row],[Tipo de ubicación]],tb.tipubic[],2,FALSE) -> PALLET ALTO | N119: 107 | O119: 2.47 | Q119: 40000366 | R119: 12
K120: F0012804 | L120: 01 | M120: =VLOOKUP(tb.ubicacion[[#This Row],[Tipo de ubicación]],tb.tipubic[],2,FALSE) -> PALLET NORMAL | N120: 107 | O120: 1.39 | Q120: 40000367 | R120: 12
K121: F0012805 | L121: 01 | M121: =VLOOKUP(tb.ubicacion[[#This Row],[Tipo de ubicación]],tb.tipubic[],2,FALSE) -> PALLET NORMAL | N121: 107 | O121: 1.39 | Q121: 40000385 | R121: 12
K122: F0012806 | L122: 01 | M122: =VLOOKUP(tb.ubicacion[[#This Row],[Tipo de ubicación]],tb.tipubic[],2,FALSE) -> PALLET NORMAL | N122: 107 | O122: 1.39 | Q122: 40000398 | R122: 12
K123: F0012807 | L123: 07 | M123: =VLOOKUP(tb.ubicacion[[#This Row],[Tipo de ubicación]],tb.tipubic[],2,FALSE) -> PALLET ALTO | N123: 107 | O123: 2.47 | Q123: 40000401 | R123: 12
K124: F0012902 | L124: 08 | M124: =VLOOKUP(tb.ubicacion[[#This Row],[Tipo de ubicación]],tb.tipubic[],2,FALSE) -> PALLET DOBLE | N124: 107 | O124: 3.2 | Q124: 40000427 | R124: 24
K125: F0012903 | L125: 08 | M125: =VLOOKUP(tb.ubicacion[[#This Row],[Tipo de ubicación]],tb.tipubic[],2,FALSE) -> PALLET DOBLE | N125: 107 | O125: 3.2 | Q125: 40000428 | R125: 12
K126: F0012904 | L126: 08 | M126: =VLOOKUP(tb.ubicacion[[#This Row],[Tipo de ubicación]],tb.tipubic[],2,FALSE) -> PALLET DOBLE | N126: 107 | O126: 3.2 | Q126: 40000430 | R126: 12
K127: F0012905 | L127: 01 | M127: =VLOOKUP(tb.ubicacion[[#This Row],[Tipo de ubicación]],tb.tipubic[],2,FALSE) -> PALLET NORMAL | N127: 107 | O127: 1.39 | Q127: 40000443 | R127: 12
K128: F0012906 | L128: 01 | M128: =VLOOKUP(tb.ubicacion[[#This Row],[Tipo de ubicación]],tb.tipubic[],2,FALSE) -> PALLET NORMAL | N128: 107 | O128: 1.39 | Q128: 40000451 | R128: 6
K129: F0012907 | L129: 07 | M129: =VLOOKUP(tb.ubicacion[[#This Row],[Tipo de ubicación]],tb.tipubic[],2,FALSE) -> PALLET ALTO | N129: 107 | O129: 2.47 | Q129: 40000452 | R129: 6
K130: F0013004 | L130: 01 | M130: =VLOOKUP(tb.ubicacion[[#This Row],[Tipo de ubicación]],tb.tipubic[],2,FALSE) -> PALLET NORMAL | N130: 107 | O130: 1.39 | Q130: 40000453 | R130: 6
K131: F0013005 | L131: 01 | M131: =VLOOKUP(tb.ubicacion[[#This Row],[Tipo de ubicación]],tb.tipubic[],2,FALSE) -> PALLET NORMAL | N131: 107 | O131: 1.39 | Q131: 40000461 | R131: 12
K132: F0013006 | L132: 01 | M132: =VLOOKUP(tb.ubicacion[[#This Row],[Tipo de ubicación]],tb.tipubic[],2,FALSE) -> PALLET NORMAL | N132: 107 | O132: 1.39 | Q132: 40000465 | R132: 12
K133: F0013007 | L133: 07 | M133: =VLOOKUP(tb.ubicacion[[#This Row],[Tipo de ubicación]],tb.tipubic[],2,FALSE) -> PALLET ALTO | N133: 107 | O133: 2.47 | Q133: 40000468 | R133: 12
K134: F0013102 | L134: 08 | M134: =VLOOKUP(tb.ubicacion[[#This Row],[Tipo de ubicación]],tb.tipubic[],2,FALSE) -> PALLET DOBLE | N134: 107 | O134: 3.2 | Q134: 40000515 | R134: 6
K135: F0013103 | L135: 08 | M135: =VLOOKUP(tb.ubicacion[[#This Row],[Tipo de ubicación]],tb.tipubic[],2,FALSE) -> PALLET DOBLE | N135: 107 | O135: 3.2 | Q135: 40000518 | R135: 12
K136: F0013104 | L136: 08 | M136: =VLOOKUP(tb.ubicacion[[#This Row],[Tipo de ubicación]],tb.tipubic[],2,FALSE) -> PALLET DOBLE | N136: 107 | O136: 3.2 | Q136: 40000519 | R136: 24
K137: F0013105 | L137: 01 | M137: =VLOOKUP(tb.ubicacion[[#This Row],[Tipo de ubicación]],tb.tipubic[],2,FALSE) -> PALLET NORMAL | N137: 107 | O137: 1.39 | Q137: 40000520 | R137: 12
K138: F0013106 | L138: 01 | M138: =VLOOKUP(tb.ubicacion[[#This Row],[Tipo de ubicación]],tb.tipubic[],2,FALSE) -> PALLET NORMAL | N138: 107 | O138: 1.39 | Q138: 40000521 | R138: 12
K139: F0013107 | L139: 07 | M139: =VLOOKUP(tb.ubicacion[[#This Row],[Tipo de ubicación]],tb.tipubic[],2,FALSE) -> PALLET ALTO | N139: 107 | O139: 2.47 | Q139: 40000522 | R139: 12
K140: F0013204 | L140: 01 | M140: =VLOOKUP(tb.ubicacion[[#This Row],[Tipo de ubicación]],tb.tipubic[],2,FALSE) -> PALLET NORMAL | N140: 107 | O140: 1.39 | Q140: 40000547 | R140: 12
K141: F0013205 | L141: 01 | M141: =VLOOKUP(tb.ubicacion[[#This Row],[Tipo de ubicación]],tb.tipubic[],2,FALSE) -> PALLET NORMAL | N141: 107 | O141: 1.39 | Q141: 40000555 | R141: 6
K142: F0013206 | L142: 01 | M142: =VLOOKUP(tb.ubicacion[[#This Row],[Tipo de ubicación]],tb.tipubic[],2,FALSE) -> PALLET NORMAL | N142: 107 | O142: 1.39 | Q142: 40000556 | R142: 6
K143: F0013207 | L143: 07 | M143: =VLOOKUP(tb.ubicacion[[#This Row],[Tipo de ubicación]],tb.tipubic[],2,FALSE) -> PALLET ALTO | N143: 107 | O143: 2.47 | Q143: 40000559 | R143: 12
K144: F0013302 | L144: 08 | M144: =VLOOKUP(tb.ubicacion[[#This Row],[Tipo de ubicación]],tb.tipubic[],2,FALSE) -> PALLET DOBLE | N144: 107 | O144: 3.2 | Q144: 40000567 | R144: 12
K145: F0013303 | L145: 08 | M145: =VLOOKUP(tb.ubicacion[[#This Row],[Tipo de ubicación]],tb.tipubic[],2,FALSE) -> PALLET DOBLE | N145: 107 | O145: 3.2 | Q145: 40000568 | R145: 10
K146: F0013304 | L146: 08 | M146: =VLOOKUP(tb.ubicacion[[#This Row],[Tipo de ubicación]],tb.tipubic[],2,FALSE) -> PALLET DOBLE | N146: 107 | O146: 3.2 | Q146: 40000570 | R146: 12
K147: F0013305 | L147: 01 | M147: =VLOOKUP(tb.ubicacion[[#This Row],[Tipo de ubicación]],tb.tipubic[],2,FALSE) -> PALLET NORMAL | N147: 107 | O147: 1.39 | Q147: 40000574 | R147: 12
K148: F0013306 | L148: 01 | M148: =VLOOKUP(tb.ubicacion[[#This Row],[Tipo de ubicación]],tb.tipubic[],2,FALSE) -> PALLET NORMAL | N148: 107 | O148: 1.39 | Q148: 40000576 | R148: 12
K149: F0013307 | L149: 07 | M149: =VLOOKUP(tb.ubicacion[[#This Row],[Tipo de ubicación]],tb.tipubic[],2,FALSE) -> PALLET ALTO | N149: 107 | O149: 2.47 | Q149: 40000657 | R149: 12
K150: F0013404 | L150: 01 | M150: =VLOOKUP(tb.ubicacion[[#This Row],[Tipo de ubicación]],tb.tipubic[],2,FALSE) -> PALLET NORMAL | N150: 107 | O150: 1.39 | Q150: 40000677 | R150: 12
K151: F0013405 | L151: 01 | M151: =VLOOKUP(tb.ubicacion[[#This Row],[Tipo de ubicación]],tb.tipubic[],2,FALSE) -> PALLET NORMAL | N151: 107 | O151: 1.39 | Q151: 40000689 | R151: 12
K152: F0013406 | L152: 01 | M152: =VLOOKUP(tb.ubicacion[[#This Row],[Tipo de ubicación]],tb.tipubic[],2,FALSE) -> PALLET NORMAL | N152: 107 | O152: 1.39 | Q152: 40000693 | R152: 6
K153: F0013407 | L153: 07 | M153: =VLOOKUP(tb.ubicacion[[#This Row],[Tipo de ubicación]],tb.tipubic[],2,FALSE) -> PALLET ALTO | N153: 107 | O153: 2.47 | Q153: 40000694 | R153: 12
K154: F0013502 | L154: 08 | M154: =VLOOKUP(tb.ubicacion[[#This Row],[Tipo de ubicación]],tb.tipubic[],2,FALSE) -> PALLET DOBLE | N154: 107 | O154: 3.2 | Q154: 40000696 | R154: 6
K155: F0013503 | L155: 08 | M155: =VLOOKUP(tb.ubicacion[[#This Row],[Tipo de ubicación]],tb.tipubic[],2,FALSE) -> PALLET DOBLE | N155: 107 | O155: 3.2 | Q155: 40000698 | R155: 12
K156: F0013504 | L156: 08 | M156: =VLOOKUP(tb.ubicacion[[#This Row],[Tipo de ubicación]],tb.tipubic[],2,FALSE) -> PALLET DOBLE | N156: 107 | O156: 3.2 | Q156: 40000699 | R156: 6
K157: F0013505 | L157: 01 | M157: =VLOOKUP(tb.ubicacion[[#This Row],[Tipo de ubicación]],tb.tipubic[],2,FALSE) -> PALLET NORMAL | N157: 107 | O157: 1.39 | Q157: 40000849 | R157: 1
K158: F0013506 | L158: 01 | M158: =VLOOKUP(tb.ubicacion[[#This Row],[Tipo de ubicación]],tb.tipubic[],2,FALSE) -> PALLET NORMAL | N158: 107 | O158: 1.39 | Q158: 40000851 | R158: 24
K159: F0013507 | L159: 07 | M159: =VLOOKUP(tb.ubicacion[[#This Row],[Tipo de ubicación]],tb.tipubic[],2,FALSE) -> PALLET ALTO | N159: 107 | O159: 2.47 | Q159: 40000855 | R159: 12
K160: F0013604 | L160: 01 | M160: =VLOOKUP(tb.ubicacion[[#This Row],[Tipo de ubicación]],tb.tipubic[],2,FALSE) -> PALLET NORMAL | N160: 107 | O160: 1.39 | Q160: 40000856 | R160: 24
K161: F0013605 | L161: 01 | M161: =VLOOKUP(tb.ubicacion[[#This Row],[Tipo de ubicación]],tb.tipubic[],2,FALSE) -> PALLET NORMAL | N161: 107 | O161: 1.39 | Q161: 40000858 | R161: 12
K162: F0013606 | L162: 01 | M162: =VLOOKUP(tb.ubicacion[[#This Row],[Tipo de ubicación]],tb.tipubic[],2,FALSE) -> PALLET NORMAL | N162: 107 | O162: 1.39 | Q162: 40000865 | R162: 6
K163: F0013607 | L163: 07 | M163: =VLOOKUP(tb.ubicacion[[#This Row],[Tipo de ubicación]],tb.tipubic[],2,FALSE) -> PALLET ALTO | N163: 107 | O163: 2.47 | Q163: 40000869 | R163: 13
K164: F0013702 | L164: 08 | M164: =VLOOKUP(tb.ubicacion[[#This Row],[Tipo de ubicación]],tb.tipubic[],2,FALSE) -> PALLET DOBLE | N164: 107 | O164: 3.2 | Q164: 40000871 | R164: 1
K165: F0013703 | L165: 08 | M165: =VLOOKUP(tb.ubicacion[[#This Row],[Tipo de ubicación]],tb.tipubic[],2,FALSE) -> PALLET DOBLE | N165: 107 | O165: 3.2 | Q165: 40000880 | R165: 1
K166: F0013704 | L166: 08 | M166: =VLOOKUP(tb.ubicacion[[#This Row],[Tipo de ubicación]],tb.tipubic[],2,FALSE) -> PALLET DOBLE | N166: 107 | O166: 3.2 | Q166: 40000907 | R166: 12
K167: F0013705 | L167: 01 | M167: =VLOOKUP(tb.ubicacion[[#This Row],[Tipo de ubicación]],tb.tipubic[],2,FALSE) -> PALLET NORMAL | N167: 107 | O167: 1.39 | Q167: 40000909 | R167: 12
K168: F0013706 | L168: 01 | M168: =VLOOKUP(tb.ubicacion[[#This Row],[Tipo de ubicación]],tb.tipubic[],2,FALSE) -> PALLET NORMAL | N168: 107 | O168: 1.39 | Q168: 40000911 | R168: 12
K169: F0013707 | L169: 07 | M169: =VLOOKUP(tb.ubicacion[[#This Row],[Tipo de ubicación]],tb.tipubic[],2,FALSE) -> PALLET ALTO | N169: 107 | O169: 2.47 | Q169: 40000943 | R169: 12
K170: F0013804 | L170: 01 | M170: =VLOOKUP(tb.ubicacion[[#This Row],[Tipo de ubicación]],tb.tipubic[],2,FALSE) -> PALLET NORMAL | N170: 107 | O170: 1.39 | Q170: 40001088 | R170: 12
K171: F0013805 | L171: 01 | M171: =VLOOKUP(tb.ubicacion[[#This Row],[Tipo de ubicación]],tb.tipubic[],2,FALSE) -> PALLET NORMAL | N171: 107 | O171: 1.39 | Q171: 40001089 | R171: 20
K172: F0013806 | L172: 01 | M172: =VLOOKUP(tb.ubicacion[[#This Row],[Tipo de ubicación]],tb.tipubic[],2,FALSE) -> PALLET NORMAL | N172: 107 | O172: 1.39 | Q172: 40001105 | R172: 50
K173: F0013807 | L173: 07 | M173: =VLOOKUP(tb.ubicacion[[#This Row],[Tipo de ubicación]],tb.tipubic[],2,FALSE) -> PALLET ALTO | N173: 107 | O173: 2.47 | Q173: 40001106 | R173: 12
K174: F0013902 | L174: 08 | M174: =VLOOKUP(tb.ubicacion[[#This Row],[Tipo de ubicación]],tb.tipubic[],2,FALSE) -> PALLET DOBLE | N174: 107 | O174: 3.2 | Q174: 40001107 | R174: 50
K175: F0013903 | L175: 08 | M175: =VLOOKUP(tb.ubicacion[[#This Row],[Tipo de ubicación]],tb.tipubic[],2,FALSE) -> PALLET DOBLE | N175: 107 | O175: 3.2 | Q175: 40001109 | R175: 50
K176: F0013904 | L176: 08 | M176: =VLOOKUP(tb.ubicacion[[#This Row],[Tipo de ubicación]],tb.tipubic[],2,FALSE) -> PALLET DOBLE | N176: 107 | O176: 3.2 | Q176: 40001110 | R176: 12
K177: F0013905 | L177: 01 | M177: =VLOOKUP(tb.ubicacion[[#This Row],[Tipo de ubicación]],tb.tipubic[],2,FALSE) -> PALLET NORMAL | N177: 107 | O177: 1.39 | Q177: 40001169 | R177: 80
K178: F0013906 | L178: 01 | M178: =VLOOKUP(tb.ubicacion[[#This Row],[Tipo de ubicación]],tb.tipubic[],2,FALSE) -> PALLET NORMAL | N178: 107 | O178: 1.39 | Q178: 40001171 | R178: 40
K179: F0013907 | L179: 07 | M179: =VLOOKUP(tb.ubicacion[[#This Row],[Tipo de ubicación]],tb.tipubic[],2,FALSE) -> PALLET ALTO | N179: 107 | O179: 2.47 | Q179: 40001188 | R179: 40
K180: F0014004 | L180: 01 | M180: =VLOOKUP(tb.ubicacion[[#This Row],[Tipo de ubicación]],tb.tipubic[],2,FALSE) -> PALLET NORMAL | N180: 107 | O180: 1.39 | Q180: 40001194 | R180: 30
K181: F0014005 | L181: 01 | M181: =VLOOKUP(tb.ubicacion[[#This Row],[Tipo de ubicación]],tb.tipubic[],2,FALSE) -> PALLET NORMAL | N181: 107 | O181: 1.39 | Q181: 40001207 | R181: 24
K182: F0014006 | L182: 01 | M182: =VLOOKUP(tb.ubicacion[[#This Row],[Tipo de ubicación]],tb.tipubic[],2,FALSE) -> PALLET NORMAL | N182: 107 | O182: 1.39 | Q182: 40001216 | R182: 40
K183: F0014007 | L183: 07 | M183: =VLOOKUP(tb.ubicacion[[#This Row],[Tipo de ubicación]],tb.tipubic[],2,FALSE) -> PALLET ALTO | N183: 107 | O183: 2.47 | Q183: 40001258 | R183: 40
K184: F0014102 | L184: 08 | M184: =VLOOKUP(tb.ubicacion[[#This Row],[Tipo de ubicación]],tb.tipubic[],2,FALSE) -> PALLET DOBLE | N184: 107 | O184: 3.2 | Q184: 40001261 | R184: 16
K185: F0014103 | L185: 08 | M185: =VLOOKUP(tb.ubicacion[[#This Row],[Tipo de ubicación]],tb.tipubic[],2,FALSE) -> PALLET DOBLE | N185: 107 | O185: 3.2 | Q185: 40001264 | R185: 36
K186: F0014104 | L186: 08 | M186: =VLOOKUP(tb.ubicacion[[#This Row],[Tipo de ubicación]],tb.tipubic[],2,FALSE) -> PALLET DOBLE | N186: 107 | O186: 3.2 | Q186: 40001269 | R186: 30
K187: F0014105 | L187: 01 | M187: =VLOOKUP(tb.ubicacion[[#This Row],[Tipo de ubicación]],tb.tipubic[],2,FALSE) -> PALLET NORMAL | N187: 107 | O187: 1.39 | Q187: 40001272 | R187: 36
K188: F0014106 | L188: 01 | M188: =VLOOKUP(tb.ubicacion[[#This Row],[Tipo de ubicación]],tb.tipubic[],2,FALSE) -> PALLET NORMAL | N188: 107 | O188: 1.39 | Q188: 40001286 | R188: 12
K189: F0014107 | L189: 07 | M189: =VLOOKUP(tb.ubicacion[[#This Row],[Tipo de ubicación]],tb.tipubic[],2,FALSE) -> PALLET ALTO | N189: 107 | O189: 2.47 | Q189: 40001287 | R189: 4
K190: F0014204 | L190: 01 | M190: =VLOOKUP(tb.ubicacion[[#This Row],[Tipo de ubicación]],tb.tipubic[],2,FALSE) -> PALLET NORMAL | N190: 107 | O190: 1.39 | Q190: 40001288 | R190: 12
K191: F0014205 | L191: 01 | M191: =VLOOKUP(tb.ubicacion[[#This Row],[Tipo de ubicación]],tb.tipubic[],2,FALSE) -> PALLET NORMAL | N191: 107 | O191: 1.39 | Q191: 40001289 | R191: 4
K192: F0014206 | L192: 01 | M192: =VLOOKUP(tb.ubicacion[[#This Row],[Tipo de ubicación]],tb.tipubic[],2,FALSE) -> PALLET NORMAL | N192: 107 | O192: 1.39 | Q192: 40001303 | R192: 4
K193: F0014207 | L193: 07 | M193: =VLOOKUP(tb.ubicacion[[#This Row],[Tipo de ubicación]],tb.tipubic[],2,FALSE) -> PALLET ALTO | N193: 107 | O193: 2.47 | Q193: 40001306 | R193: 4
K194: F0020102 | L194: 08 | M194: =VLOOKUP(tb.ubicacion[[#This Row],[Tipo de ubicación]],tb.tipubic[],2,FALSE) -> PALLET DOBLE | N194: 107 | O194: 3.2 | Q194: 40001310 | R194: 4
K195: F0020103 | L195: 08 | M195: =VLOOKUP(tb.ubicacion[[#This Row],[Tipo de ubicación]],tb.tipubic[],2,FALSE) -> PALLET DOBLE | N195: 107 | O195: 3.2 | Q195: 40001315 | R195: 12
K196: F0020104 | L196: 08 | M196: =VLOOKUP(tb.ubicacion[[#This Row],[Tipo de ubicación]],tb.tipubic[],2,FALSE) -> PALLET DOBLE | N196: 107 | O196: 3200 | Q196: 40001317 | R196: 12
K197: F0020105 | L197: 01 | M197: =VLOOKUP(tb.ubicacion[[#This Row],[Tipo de ubicación]],tb.tipubic[],2,FALSE) -> PALLET NORMAL | N197: 107 | O197: 1.39 | Q197: 40001318 | R197: 4
K198: F0020106 | L198: 07 | M198: =VLOOKUP(tb.ubicacion[[#This Row],[Tipo de ubicación]],tb.tipubic[],2,FALSE) -> PALLET ALTO | N198: 107 | O198: 2.47 | Q198: 40001320 | R198: 8
K199: F0020204 | L199: 01 | M199: =VLOOKUP(tb.ubicacion[[#This Row],[Tipo de ubicación]],tb.tipubic[],2,FALSE) -> PALLET NORMAL | N199: 107 | O199: 1.39 | Q199: 40001324 | R199: 4
K200: F0020205 | L200: 01 | M200: =VLOOKUP(tb.ubicacion[[#This Row],[Tipo de ubicación]],tb.tipubic[],2,FALSE) -> PALLET NORMAL | N200: 107 | O200: 1.39 | Q200: 40001332 | R200: 12
... 4300 more rows

Sheet JUGUET (hidden)
D1: JUEVES 14 /JUNIO/2018 // DESCARGA VIERNES 15 /JUNIO/2018
D2: BODEGA | E2: OPERACIÓN | F2: PEDIDO | G2: PROV. | H2: NOMBRE DEL PROVEEDOR | I2: CAPACIDAD | J2: DÍAS LIBRES HASTA | K2: CONTENEDOR | L2: MÓDULO | M2: DESPACHADOR | N2: TRANSPORTE
D3: CD / JUGUETES | E3: 2018-0441 | F3: 4800018399 | G3: 101691 | H3: KIH CHUAN INDUSTRIAL CO., LTD. | I3: 1*20 | J3: 2018-07-01 | K3: EISU2102892 | L3: INARPI | M3: VALERO | N3: TELSUPREMA | O3: CORREO | P3: 2018-06-14
D6: JUEVES 14 /JUNIO/2018 // DESCARGA VIERNES 15 /JUNIO/2018
D7: BODEGA | E7: OPERACIÓN | F7: PEDIDO | G7: PROV. | H7: NOMBRE DEL PROVEEDOR | I7: CAPACIDAD | J7: DÍAS LIBRES HASTA | K7: CONTENEDOR | L7: MÓDULO | M7: DESPACHADOR | N7: TRANSPORTE
D8: CD / JUGUETES | E8: 2017-2504 | F8: 4800018304 | G8: 109057 | H8: CAROLINGE INVESTMENT CORP. | I8: 1*40 | J8: 2018-06-25 | K8: EGSU9044264 | L8: INARPI | M8: MACOBSA | N8: TELSUPREMA | O8: CORREO | P8: 2018-06-14
E13: SÁBADO 16 /JUNIO/2018 // DESCARGA LUNES 18 /JUNIO/2018
D14: BODEGA | E14: OPERACIÓN | F14: PEDIDO | G14: PROV. | H14: NOMBRE DEL PROVEEDOR | I14: CAPACIDAD | J14: DÍAS LIBRES HASTA | K14: CONTENEDOR | L14: MÓDULO | M14: DESPACHADOR | N14: TRANSPORTE
D15: CD / JUGUETES | E15: 2018-0247 | F15: 4800018678 | G15: 107130 | H15: PLAYVALUE INC. | I15: 1*20 | J15: 2018-06-27 | K15: OCGU2081786 | L15: INARPI | M15: VALERO | N15: TELSUPREMA | O15: CORREO | P15: 2018-06-15
E24: LUNES 18 /JUNIO/2018 // DESCARGA MARTES 19 /JUNIO/2018
D25: BODEGA | E25: OPERACIÓN | F25: PEDIDO | G25: PROV. | H25: NOMBRE DEL PROVEEDOR | I25: CAPACIDAD | J25: DÍAS LIBRES HASTA | K25: CONTENEDOR | L25: MÓDULO | M25: DESPACHADOR | N25: TRANSPORTE
D26: CD / JUGUETES | E26: 2017-2440 | F26: 4800019548 | G26: 107975 | H26: BOING GLOBAL S. DE R.L. | I26: 1*40 | J26: 2018-06-23 | K26: IKSU8660749 | L26: INARPI | M26: VALERO | N26: TELSUPREMA | O26: CORREO | P26: 2018-06-18
E29: MARTES 19 /JUNIO/2018 // DESCARGA MIÉRCOLES 20 /JUNIO/2018
D30: BODEGA | E30: OPERACIÓN | F30: PEDIDO | G30: PROV. | H30: NOMBRE DEL PROVEEDOR | I30: CAPACIDAD | J30: DÍAS LIBRES HASTA | K30: CONTENEDOR | L30: MÓDULO | M30: DESPACHADOR | N30: TRANSPORTE
D31: CD / JUGUETES | E31: 2017-2420 | F31: 4800016650 | G31: 101288 | H31: JIEYANG DEFA INDUSTRY CO.,LTD | I31: 2*40 | J31: 2018-06-25 | K31: EISU9979688 | L31: INARPI | M31: MACOBSA | N31: TELSUPREMA | O31: CORREO | P31: 2018-06-18
K32: TCLU8816529 | P32: 15:52:00
E35: MIÉRCOLES 20 /JUNIO/2018 // DESCARGA JUEVES 21 /JUNIO/2018
D36: BODEGA | E36: OPERACIÓN | F36: PEDIDO | G36: PROV. | H36: NOMBRE DEL PROVEEDOR | I36: CAPACIDAD | J36: DÍAS LIBRES HASTA | K36: CONTENEDOR | L36: MÓDULO | M36: DESPACHADOR | N36: TRANSPORTE
D37: CD / JUGUETES | E37: 2018-0644 | F37: 4800018676 | G37: 117106 | H37: PAT AVENUE HK LIMITED | I37: 1*20 – 1*40 | J37: 2018-06-26 | K37: ECMU1898205 CMAU7147338 | L37: INARPI | M37: MACOBSA | N37: TELSUPREMA | O37: correo | P37: 2018-06-19
E40: JUEVES 21 /JUNIO/2018 // DESCARGA VIERNES 22 /JUNIO/2018
D41: BODEGA | E41: OPERACIÓN | F41: PEDIDO | G41: PROV. | H41: NOMBRE DEL PROVEEDOR | I41: CAPACIDAD | J41: DÍAS LIBRES HASTA | K41: CONTENEDOR | L41: MÓDULO | M41: DESPACHADOR | N41: TRANSPORTE
D42: CONSOLIDADO 884
D43: CD / JUGUETES | E43: 2018-0120 | F43: 4800019028 | G43: 117106 | H43: PAT AVENUE HK LIMITED | I43: 1*40 | J43: 2018-07-03 | K43: EGSU1008553 | L43: INARPI | M43: MACOBSA | N43: TELSUPREMA | O43: CORREO | P43: 2018-06-20
E44: 2018-0334 | F44: 4800018707 | G44: 117106 | H44: PAT AVENUE HK LIMITED | O44: CORREO | P44: 2018-06-20
E47: SÁBADO 23 /JUNIO/2018 // DESCARGA LUNES 25 /JUNIO/2018
D48: BODEGA | E48: OPERACIÓN | F48: PEDIDO | G48: PROV. | H48: NOMBRE DEL PROVEEDOR | I48: CAPACIDAD | J48: DÍAS LIBRES HASTA | K48: CONTENEDOR | L48: MÓDULO | M48: DESPACHADOR | N48: TRANSPORTE
D49: CD / JUGUETES | E49: 2018-0320 | F49: 4800019744 | G49: 107190 | H49: IMC TOYS HONG KONG LIMITED | I49: 1*20 | J49: 2018-07-03 | K49: EITU0449818 | L49: INARPI | M49: MACOBSA | N49: TELSUPREMA | O49: CORREO | P49: 2018-06-20
D52: CORREO | E52: 2018-06-22
D54: MARTES 26 /JUNIO/2018 // DESCARGA MIÉRCOLES 27 /JUNIO/2018
D55: BODEGA | E55: OPERACIÓN | F55: PEDIDO | G55: PROV. | H55: NOMBRE DEL PROVEEDOR | I55: CAPACIDAD | J55: DÍAS LIBRES HASTA | K55: CONTENEDOR | L55: MÓDULO | M55: DESPACHADOR | N55: TRANSPORTE | O55: correo | P55: FILES GENERADOS | Q55: FILES DMAESTROS | R55: DRIVE
D56: CD / JUGUETES | E56: 2018-0440 | F56: 4800020531 | G56: 115358 | H56: TIGERHEAD TOYS LTD | I56: 1*40 | J56: 2018-07-09 | K56: EGSU9057699 | L56: INARPI | M56: VALERO | N56: TELSUPREMA | O56: 2018-06-25
E59: MIÉRCOLES 27 /JUNIO/2018 // DESCARGA JUEVES 28 /JUNIO/2018
D60: BODEGA | E60: OPERACIÓN | F60: PEDIDO | G60: PROV. | H60: NOMBRE DEL PROVEEDOR | I60: CAPACIDAD | J60: DÍAS LIBRES HASTA | K60: CONTENEDOR | L60: MÓDULO | M60: DESPACHADOR | N60: TRANSPORTE | O60: correo | P60: FILES GENERADOS | Q60: FILES DMAESTROS | R60: DRIVE
D61: CD / JUGUETES | E61: 2018-0913 | F61: 4800020416 | G61: 100210 | H61: MATTEL, INC. | I61: 2*40 | J61: 2018-07-09 | K61: EISU1811867 | L61: INARPI | M61: MACOBSA | N61: TELSUPREMA | O61: 2018-06-25 | R61: OK
K62: EITU1679190
E65: JUEVES 28 /JUNIO/2018 // DESCARGA VIERNES 29 /JUNIO/2018
D66: BODEGA | E66: OPERACIÓN | F66: PEDIDO | G66: PROV. | H66: NOMBRE DEL PROVEEDOR | I66: CAPACIDAD | J66: DÍAS LIBRES HASTA | K66: CONTENEDOR | L66: MÓDULO | M66: DESPACHADOR | N66: TRANSPORTE | O66: correo | P66: FILES GENERADOS | Q66: FILES DMAESTROS | R66: DRIVE
D67: CD / JUGUETES | E67: 2018-0757 | F67: 4800020410 | G67: 100210 | H67: MATTEL, INC. | I67: 1*40 | J67: 2018-07-15 | K67: TCLU4392973 | L67: INARPI | M67: VALERO | N67: TELSUPREMA | O67: 2018-06-25 | Q67: pendiente | R67: OK
E70: SÁBADO 30 /JUNIO/2018 // DESCARGA LUNES 2 /JULIO/2018
D71: BODEGA | E71: OPERACIÓN | F71: PEDIDO | G71: PROV. | H71: NOMBRE DEL PROVEEDOR | I71: CAPACIDAD | J71: DÍAS LIBRES HASTA | K71: CONTENEDOR | L71: MÓDULO | M71: DESPACHADOR | N71: TRANSPORTE | O71: correo | P71: FILES GENERADOS | Q71: FILES DMAESTROS | R71: DRIVE
D72: CD / JUGUETES | E72: 2018-0393 | F72: 4800020134 | G72: 102251 | H72: JAKKS PACIFIC (HK) LIMITED | I72: 2*40 | J72: 2018-07-09 | K72: EGHU9087880 | L72: INARPI | M72: VALERO | N72: TELSUPREMA | O72: 2018-06-25 | R72: OK
K73: HMCU9189770
D76: MAIL-2506
D77: DESCARGA LUNES 25 /JUNIO/2018 | O77: correo | P77: FILES GENERADOS | Q77: FILES DMAESTROS | R77: DRIVE
C78: =N78 -> TELSUPREMA | D78: CD / JUGUETES | E78: 2018-0299 | F78: 4800019433 | G78: 117962 | H78: GLORY BRIGHT (HK) INTERNATIONAL CO. | I78: 1*40 | J78: 2018-07-03 | K78: APZU4317796 | L78: INARPI | M78: MACOBSA | N78: TELSUPREMA | O78: 2018-06-25 | R78: OK

Sheet CONTROL.MAIL
H1: INFORMACION DE LOTES RECIBIDOS (MAIL'S)
B2: 1 | C2: 2 | D2: 3 | E2: 4 | F2: 5 | G2: 6 | H2: 7 | I2: 8 | J2: 9 | K2: 10 | L2: 11 | M2: 12 | N2: 13 | O2: 14 | P2: 15 | Q2: 16 | R2: 17 | S2: 18 | T2: 19 | U2: 20 | V2: 21 | W2: 22 | X2: 23
B3: F | C3: FASE 2 | D3: FASE 1 | E3: F4 | F3: MAIL | G3: X | H3: TRANSP | I3: BGA | J3: OPERAC. | K3: Nº PEDIDO | L3: PROV. | M3: NOMBRE / PROVEEDOR | N3: CPDAD | O3: LIBRE HASTA | P3: CONTENEDOR | Q3: MÓDULO | R3: DESP. | S3: TRANSPORTE | T3: GENERDO EL | U3: MAIL ENVIADO | V3: RESPUESTA- DM | W3: DRIVE | X3: DM
B4: =VLOOKUP(TB.CTRLFERRI[[#This Row],[Nº PEDIDO]],TB.TDS[[Nº PEDIDO]:[Columna12]],26,FALSE) ->  | D4: =VLOOKUP(TB.CTRLFERRI[[#This Row],[Nº PEDIDO]],NM.OCS,1,FALSE) ->  | E4: =LEFT(TB.CTRLFERRI[[#This Row],[BGA]],3) ->  | H4: =IF(TB.CTRLFERRI[[#This Row],[Nº PEDIDO]]>0,TB.CTRLFERRI[[#This Row],[TRANSPORTE]],"") ->  | X4: =IF(TB.CTRLFERRI[[#This Row],[DRIVE]]>0,"OK","") -> 
B5: =VLOOKUP(TB.CTRLFERRI[[#This Row],[Nº PEDIDO]],TB.TDS[[Nº PEDIDO]:[Columna12]],26,FALSE) ->  | D5: =VLOOKUP(TB.CTRLFERRI[[#This Row],[Nº PEDIDO]],NM.OCS,1,FALSE) ->  | E5: =LEFT(TB.CTRLFERRI[[#This Row],[BGA]],3) ->  | H5: =IF(TB.CTRLFERRI[[#This Row],[Nº PEDIDO]]>0,TB.CTRLFERRI[[#This Row],[TRANSPORTE]],"") ->  | X5: =IF(TB.CTRLFERRI[[#This Row],[DRIVE]]>0,"OK","") -> 
B6: =VLOOKUP(TB.CTRLFERRI[[#This Row],[Nº PEDIDO]],TB.TDS[[Nº PEDIDO]:[Columna12]],26,FALSE) ->  | D6: =VLOOKUP(TB.CTRLFERRI[[#This Row],[Nº PEDIDO]],NM.OCS,1,FALSE) ->  | E6: =LEFT(TB.CTRLFERRI[[#This Row],[BGA]],3) ->  | H6: =IF(TB.CTRLFERRI[[#This Row],[Nº PEDIDO]]>0,TB.CTRLFERRI[[#This Row],[TRANSPORTE]],"") ->  | V6: =IF(TB.CTRLFERRI[[#This Row],[Nº PEDIDO]]>0,IFERROR(VLOOKUP(TB.CTRLFERRI[[#This Row],[Nº PEDIDO]],#REF!,3,FALSE),""),"") ->  | X6: =IF(TB.CTRLFERRI[[#This Row],[DRIVE]]>0,"OK","") -> 
B7: =VLOOKUP(TB.CTRLFERRI[[#This Row],[Nº PEDIDO]],TB.TDS[[Nº PEDIDO]:[Columna12]],26,FALSE) ->  | D7: =VLOOKUP(TB.CTRLFERRI[[#This Row],[Nº PEDIDO]],NM.OCS,1,FALSE) ->  | E7: =LEFT(TB.CTRLFERRI[[#This Row],[BGA]],3) -> SAL | F7: 2018-07-10 | H7: =IF(TB.CTRLFERRI[[#This Row],[Nº PEDIDO]]>0,TB.CTRLFERRI[[#This Row],[TRANSPORTE]],"") ->  | I7: SALE MIÉRCOLES 11/JULIO/2018 | V7: =IF(TB.CTRLFERRI[[#This Row],[Nº PEDIDO]]>0,IFERROR(VLOOKUP(TB.CTRLFERRI[[#This Row],[Nº PEDIDO]],#REF!,3,FALSE),""),"") ->  | X7: =IF(TB.CTRLFERRI[[#This Row],[DRIVE]]>0,"OK","") -> 
B8: =VLOOKUP(TB.CTRLFERRI[[#This Row],[Nº PEDIDO]],TB.TDS[[Nº PEDIDO]:[Columna12]],26,FALSE) ->  | D8: =VLOOKUP(TB.CTRLFERRI[[#This Row],[Nº PEDIDO]],NM.OCS,1,FALSE) ->  | E8: =LEFT(TB.CTRLFERRI[[#This Row],[BGA]],3) -> BGA | F8: 2018-07-10 | H8: =IF(TB.CTRLFERRI[[#This Row],[Nº PEDIDO]]>0,TB.CTRLFERRI[[#This Row],[TRANSPORTE]],"") -> TRANSPORTE | I8: BGA | J8: OPERAC. | K8: Nº PEDIDO | L8: PROV. | M8: NOMBRE / PROVEEDOR | N8: CAPACIDAD | O8: LIBRE HASTA | P8: CONTENEDOR | Q8: MÓDULO | R8: DESP. | S8: TRANSPORTE | V8: =IF(TB.CTRLFERRI[[#This Row],[Nº PEDIDO]]>0,IFERROR(VLOOKUP(TB.CTRLFERRI[[#This Row],[Nº PEDIDO]],#REF!,3,FALSE),""),"") ->  | X8: =IF(TB.CTRLFERRI[[#This Row],[DRIVE]]>0,"OK","") -> 
B9: =VLOOKUP(TB.CTRLFERRI[[#This Row],[Nº PEDIDO]],TB.TDS[[Nº PEDIDO]:[Columna12]],26,FALSE) ->  | D9: =VLOOKUP(TB.CTRLFERRI[[#This Row],[Nº PEDIDO]],NM.OCS,1,FALSE) ->  | E9: =LEFT(TB.CTRLFERRI[[#This Row],[BGA]],3) ->  | F9: 2018-07-10 | H9: =IF(TB.CTRLFERRI[[#This Row],[Nº PEDIDO]]>0,TB.CTRLFERRI[[#This Row],[TRANSPORTE]],"") ->  | J9: CONSOLIDADO 1043 | V9: =IF(TB.CTRLFERRI[[#This Row],[Nº PEDIDO]]>0,IFERROR(VLOOKUP(TB.CTRLFERRI[[#This Row],[Nº PEDIDO]],#REF!,3,FALSE),""),"") ->  | X9: =IF(TB.CTRLFERRI[[#This Row],[DRIVE]]>0,"OK","") -> 
B10: =VLOOKUP(TB.CTRLFERRI[[#This Row],[Nº PEDIDO]],TB.TDS[[Nº PEDIDO]:[Columna12]],26,FALSE) -> OK | D10: =VLOOKUP(TB.CTRLFERRI[[#This Row],[Nº PEDIDO]],NM.OCS,1,FALSE) -> 4800020025 | E10: =LEFT(TB.CTRLFERRI[[#This Row],[BGA]],3) -> FER | F10: 2018-07-10 | H10: =IF(TB.CTRLFERRI[[#This Row],[Nº PEDIDO]]>0,TB.CTRLFERRI[[#This Row],[TRANSPORTE]],"") -> TCE | I10: FERRI | J10: 2018-1135 | K10: 4800020025 | L10: 118809 | M10: INTERDESIGN INC | N10: C/SUELTA | O10: SOLO LLEGARAN REF DE CORTINAS | P10: SALIDA ALMACENERA | Q10: TCE | R10: MACOBSA | S10: TCE | T10: 2018-07-10 | U10: 2018-07-10 | V10: 2018-07-10 | W10: 2018-07-10 | X10: =IF(TB.CTRLFERRI[[#This Row],[DRIVE]]>0,"OK","") -> OK
B11: =VLOOKUP(TB.CTRLFERRI[[#This Row],[Nº PEDIDO]],TB.TDS[[Nº PEDIDO]:[Columna12]],26,FALSE) -> OK | D11: =VLOOKUP(TB.CTRLFERRI[[#This Row],[Nº PEDIDO]],NM.OCS,1,FALSE) -> 4800019738 | E11: =LEFT(TB.CTRLFERRI[[#This Row],[BGA]],3) -> FER | F11: 2018-07-10 | H11: =IF(TB.CTRLFERRI[[#This Row],[Nº PEDIDO]]>0,TB.CTRLFERRI[[#This Row],[TRANSPORTE]],"") -> TELSUPREMA | I11: FERRI | J11: 2018-0839 | K11: 4800019738 | L11: 100719 | M11: NINGBO KING POWER INDUSTRY CO, LTD | N11: C/SUELTA | O11: 406 CTNES | P11: TEMU9264062 | Q11: INARPI | R11: VALERO | S11: TELSUPREMA | T11: 2018-07-10 | U11: 2018-07-10 | V11: 2018-07-10 | W11: 2018-07-10 | X11: =IF(TB.CTRLFERRI[[#This Row],[DRIVE]]>0,"OK","") -> OK
B12: =VLOOKUP(TB.CTRLFERRI[[#This Row],[Nº PEDIDO]],TB.TDS[[Nº PEDIDO]:[Columna12]],26,FALSE) -> OK | D12: =VLOOKUP(TB.CTRLFERRI[[#This Row],[Nº PEDIDO]],NM.OCS,1,FALSE) -> 4800020827 | E12: =LEFT(TB.CTRLFERRI[[#This Row],[BGA]],3) -> FER | F12: 2018-07-10 | H12: =IF(TB.CTRLFERRI[[#This Row],[Nº PEDIDO]]>0,TB.CTRLFERRI[[#This Row],[TRANSPORTE]],"") -> TELSUPREMA | I12: FERRI | J12: 2018-1268 | K12: 4800020827 | L12: 112921 | M12: POLIMES S.A.S | N12: 1*40 | O12: 43299 | P12: EITU1901706 | Q12: FERTISA | R12: VALERO | S12: TELSUPREMA | T12: 2018-07-10 | U12: 2018-07-10 | V12: 2018-07-10 | W12: 2018-07-10 | X12: =IF(TB.CTRLFERRI[[#This Row],[DRIVE]]>0,"OK","") -> OK
B13: =VLOOKUP(TB.CTRLFERRI[[#This Row],[Nº PEDIDO]],TB.TDS[[Nº PEDIDO]:[Columna12]],26,FALSE) -> OK | D13: =VLOOKUP(TB.CTRLFERRI[[#This Row],[Nº PEDIDO]],NM.OCS,1,FALSE) -> 4800019735 | E13: =LEFT(TB.CTRLFERRI[[#This Row],[BGA]],3) -> FER | F13: 2018-07-10 | H13: =IF(TB.CTRLFERRI[[#This Row],[Nº PEDIDO]]>0,TB.CTRLFERRI[[#This Row],[TRANSPORTE]],"") -> TELSUPREMA | I13: FERRI | J13: 2018-0841 | K13: 4800019735 | L13: 112975 | M13: ACE (CODEAL) | N13: 1*20 | O13: 43297 | P13: SEGU1766242 | Q13: INARPI | R13: PEREZ | S13: TELSUPREMA | T13: 2018-07-10 | U13: 2018-07-10 | V13: 2018-07-10 | W13: 2018-07-10 | X13: =IF(TB.CTRLFERRI[[#This Row],[DRIVE]]>0,"OK","") -> OK
B14: =VLOOKUP(TB.CTRLFERRI[[#This Row],[Nº PEDIDO]],TB.TDS[[Nº PEDIDO]:[Columna12]],26,FALSE) ->  | D14: =VLOOKUP(TB.CTRLFERRI[[#This Row],[Nº PEDIDO]],NM.OCS,1,FALSE) ->  | E14: =LEFT(TB.CTRLFERRI[[#This Row],[BGA]],3) -> LAB | F14: MUESTRAS | H14: =IF(TB.CTRLFERRI[[#This Row],[Nº PEDIDO]]>0,TB.CTRLFERRI[[#This Row],[TRANSPORTE]],"") -> TELSUPREMA | I14: LAB | J14: 2018-1576 | K14: 4800021195 | L14: 119111 | M14: GIBSON OVERSEAS, INC | N14: C/SUELTA – 3 PALLETS | O14: PRUEBAS DE LABORATORIO | P14: DFIU4260381 | Q14: NAPORTEC | R14: MACOBSA | S14: TELSUPREMA | V14: =IF(TB.CTRLFERRI[[#This Row],[Nº PEDIDO]]>0,IFERROR(VLOOKUP(TB.CTRLFERRI[[#This Row],[Nº PEDIDO]],#REF!,3,FALSE),""),"") ->  | X14: =IF(TB.CTRLFERRI[[#This Row],[DRIVE]]>0,"OK","") -> 
B15: =VLOOKUP(TB.CTRLFERRI[[#This Row],[Nº PEDIDO]],TB.TDS[[Nº PEDIDO]:[Columna12]],26,FALSE) ->  | D15: =VLOOKUP(TB.CTRLFERRI[[#This Row],[Nº PEDIDO]],NM.OCS,1,FALSE) ->  | E15: =LEFT(TB.CTRLFERRI[[#This Row],[BGA]],3) ->  | H15: =IF(TB.CTRLFERRI[[#This Row],[Nº PEDIDO]]>0,TB.CTRLFERRI[[#This Row],[TRANSPORTE]],"") ->  | V15: =IF(TB.CTRLFERRI[[#This Row],[Nº PEDIDO]]>0,IFERROR(VLOOKUP(TB.CTRLFERRI[[#This Row],[Nº PEDIDO]],#REF!,3,FALSE),""),"") ->  | X15: =IF(TB.CTRLFERRI[[#This Row],[DRIVE]]>0,"OK","") -> 
B16: =VLOOKUP(TB.CTRLFERRI[[#This Row],[Nº PEDIDO]],TB.TDS[[Nº PEDIDO]:[Columna12]],26,FALSE) ->  | D16: =VLOOKUP(TB.CTRLFERRI[[#This Row],[Nº PEDIDO]],NM.OCS,1,FALSE) ->  | E16: =LEFT(TB.CTRLFERRI[[#This Row],[BGA]],3) -> SAL | F16: 2018-07-06 | H16: =IF(TB.CTRLFERRI[[#This Row],[Nº PEDIDO]]>0,TB.CTRLFERRI[[#This Row],[TRANSPORTE]],"") ->  | I16: SALE SÁBADO 7 /JULIO/2018 // DESCARGA LUNES 9 /JULIO/2018 | X16: =IF(TB.CTRLFERRI[[#This Row],[DRIVE]]>0,"OK","") -> 
B17: =VLOOKUP(TB.CTRLFERRI[[#This Row],[Nº PEDIDO]],TB.TDS[[Nº PEDIDO]:[Columna12]],26,FALSE) ->  | D17: =VLOOKUP(TB.CTRLFERRI[[#This Row],[Nº PEDIDO]],NM.OCS,1,FALSE) ->  | E17: =LEFT(TB.CTRLFERRI[[#This Row],[BGA]],3) -> BGA | F17: 2018-07-06 | H17: =IF(TB.CTRLFERRI[[#This Row],[Nº PEDIDO]]>0,TB.CTRLFERRI[[#This Row],[TRANSPORTE]],"") -> TRANSPORTE | I17: BGA | J17: OPERAC. | K17: Nº PEDIDO | L17: PROV. | M17: NOMBRE / PROVEEDOR | N17: CAPACIDAD | O17: LIBRE HASTA | P17: CONTENEDOR | Q17: MÓDULO | R17: DESP. | S17: TRANSPORTE | X17: =IF(TB.CTRLFERRI[[#This Row],[DRIVE]]>0,"OK","") -> 
B18: =VLOOKUP(TB.CTRLFERRI[[#This Row],[Nº PEDIDO]],TB.TDS[[Nº PEDIDO]:[Columna12]],26,FALSE) ->  | D18: =VLOOKUP(TB.CTRLFERRI[[#This Row],[Nº PEDIDO]],NM.OCS,1,FALSE) ->  | E18: =LEFT(TB.CTRLFERRI[[#This Row],[BGA]],3) ->  | F18: 2018-07-06 | H18: =IF(TB.CTRLFERRI[[#This Row],[Nº PEDIDO]]>0,TB.CTRLFERRI[[#This Row],[TRANSPORTE]],"") ->  | J18: CONSOLIDADO 1045 | X18: =IF(TB.CTRLFERRI[[#This Row],[DRIVE]]>0,"OK","") -> 
B19: =VLOOKUP(TB.CTRLFERRI[[#This Row],[Nº PEDIDO]],TB.TDS[[Nº PEDIDO]:[Columna12]],26,FALSE) -> OK | D19: =VLOOKUP(TB.CTRLFERRI[[#This Row],[Nº PEDIDO]],NM.OCS,1,FALSE) -> 4800016763 | E19: =LEFT(TB.CTRLFERRI[[#This Row],[BGA]],3) -> JUG | F19: 2018-07-06 | H19: =IF(TB.CTRLFERRI[[#This Row],[Nº PEDIDO]]>0,TB.CTRLFERRI[[#This Row],[TRANSPORTE]],"") -> TELSUPREMA | I19: JUGUET | J19: 2017-2333 | K19: 4800016763 | L19: 116539 | M19: AMIJOC TOYS SL | N19: 1*20 | O19: 43298 | P19: TRHU2244896 | Q19: INARPI | R19: VALERO | S19: TELSUPREMA | T19: 2018-07-06 | U19: 2018-07-06 | V19: 2018-07-06 | W19: 2018-07-07 | X19: =IF(TB.CTRLFERRI[[#This Row],[DRIVE]]>0,"OK","") -> OK
B20: =VLOOKUP(TB.CTRLFERRI[[#This Row],[Nº PEDIDO]],TB.TDS[[Nº PEDIDO]:[Columna12]],26,FALSE) -> OK | D20: =VLOOKUP(TB.CTRLFERRI[[#This Row],[Nº PEDIDO]],NM.OCS,1,FALSE) -> 4800019413 | E20: =LEFT(TB.CTRLFERRI[[#This Row],[BGA]],3) -> JUG | F20: 2018-07-06 | H20: =IF(TB.CTRLFERRI[[#This Row],[Nº PEDIDO]]>0,TB.CTRLFERRI[[#This Row],[TRANSPORTE]],"") -> TELSUPREMA | I20: JUGUET | J20: 2018-0134 | K20: 4800019413 | L20: 116539 | M20: AMIJOC TOYS SL | N20: 1*20 | S20: TELSUPREMA | T20: 2018-07-06 | U20: 2018-07-06 | V20: 2018-07-06 | W20: 2018-07-07 | X20: =IF(TB.CTRLFERRI[[#This Row],[DRIVE]]>0,"OK","") -> OK
B21: =VLOOKUP(TB.CTRLFERRI[[#This Row],[Nº PEDIDO]],TB.TDS[[Nº PEDIDO]:[Columna12]],26,FALSE) ->  | D21: =VLOOKUP(TB.CTRLFERRI[[#This Row],[Nº PEDIDO]],NM.OCS,1,FALSE) ->  | E21: =LEFT(TB.CTRLFERRI[[#This Row],[BGA]],3) ->  | H21: =IF(TB.CTRLFERRI[[#This Row],[Nº PEDIDO]]>0,TB.CTRLFERRI[[#This Row],[TRANSPORTE]],"") ->  | X21: =IF(TB.CTRLFERRI[[#This Row],[DRIVE]]>0,"OK","") -> 
B22: =VLOOKUP(TB.CTRLFERRI[[#This Row],[Nº PEDIDO]],TB.TDS[[Nº PEDIDO]:[Columna12]],26,FALSE) ->  | D22: =VLOOKUP(TB.CTRLFERRI[[#This Row],[Nº PEDIDO]],NM.OCS,1,FALSE) ->  | E22: =LEFT(TB.CTRLFERRI[[#This Row],[BGA]],3) -> SAL | H22: =IF(TB.CTRLFERRI[[#This Row],[Nº PEDIDO]]>0,TB.CTRLFERRI[[#This Row],[TRANSPORTE]],"") ->  | I22: SALE SÁBADO 07/JULIO/2018 | X22: =IF(TB.CTRLFERRI[[#This Row],[DRIVE]]>0,"OK","") -> 
B23: =VLOOKUP(TB.CTRLFERRI[[#This Row],[Nº PEDIDO]],TB.TDS[[Nº PEDIDO]:[Columna12]],26,FALSE) ->  | D23: =VLOOKUP(TB.CTRLFERRI[[#This Row],[Nº PEDIDO]],NM.OCS,1,FALSE) ->  | E23: =LEFT(TB.CTRLFERRI[[#This Row],[BGA]],3) -> BGA | H23: =IF(TB.CTRLFERRI[[#This Row],[Nº PEDIDO]]>0,TB.CTRLFERRI[[#This Row],[TRANSPORTE]],"") -> TRANSPORTE | I23: BGA | J23: OPERAC. | K23: Nº PEDIDO | L23: PROV. | M23: NOMBRE / PROVEEDOR | N23: CAPACIDAD | O23: LIBRE HASTA | P23: CONTENEDOR | Q23: MÓDULO | R23: DESP. | S23: TRANSPORTE | X23: =IF(TB.CTRLFERRI[[#This Row],[DRIVE]]>0,"OK","") -> 
B24: =VLOOKUP(TB.CTRLFERRI[[#This Row],[Nº PEDIDO]],TB.TDS[[Nº PEDIDO]:[Columna12]],26,FALSE) -> OK | D24: =VLOOKUP(TB.CTRLFERRI[[#This Row],[Nº PEDIDO]],NM.OCS,1,FALSE) -> 4800018334 | E24: =LEFT(TB.CTRLFERRI[[#This Row],[BGA]],3) -> FER | F24: 2018-07-06 | H24: =IF(TB.CTRLFERRI[[#This Row],[Nº PEDIDO]]>0,TB.CTRLFERRI[[#This Row],[TRANSPORTE]],"") -> TELSUPREMA | I24: FERRI | J24: 2018-0034 | K24: 4800018334 | L24: 113919 | M24: CHINA GREAT WALL INDUSTRY GUANGZHOU | N24: 2*40 | O24: 43292 | P24: KKFU1711634 | Q24: INARPI | R24: MACOBSA | S24: TELSUPREMA | T24: 2018-07-06 | U24: 2018-07-06 | V24: 2018-07-06 | W24: 2018-07-06 | X24: =IF(TB.CTRLFERRI[[#This Row],[DRIVE]]>0,"OK","") -> OK
B25: =VLOOKUP(TB.CTRLFERRI[[#This Row],[Nº PEDIDO]],TB.TDS[[Nº PEDIDO]:[Columna12]],26,FALSE) ->  | D25: =VLOOKUP(TB.CTRLFERRI[[#This Row],[Nº PEDIDO]],NM.OCS,1,FALSE) ->  | E25: =LEFT(TB.CTRLFERRI[[#This Row],[BGA]],3) ->  | H25: =IF(TB.CTRLFERRI[[#This Row],[Nº PEDIDO]]>0,TB.CTRLFERRI[[#This Row],[TRANSPORTE]],"") ->  | P25: TCLU9365651 | X25: =IF(TB.CTRLFERRI[[#This Row],[DRIVE]]>0,"OK","") -> 
B26: =VLOOKUP(TB.CTRLFERRI[[#This Row],[Nº PEDIDO]],TB.TDS[[Nº PEDIDO]:[Columna12]],26,FALSE) -> OK | D26: =VLOOKUP(TB.CTRLFERRI[[#This Row],[Nº PEDIDO]],NM.OCS,1,FALSE) -> 4800020508 | E26: =LEFT(TB.CTRLFERRI[[#This Row],[BGA]],3) -> FER | F26: REPETIDO | H26: =IF(TB.CTRLFERRI[[#This Row],[Nº PEDIDO]]>0,TB.CTRLFERRI[[#This Row],[TRANSPORTE]],"") -> TELSUPREMA | I26: FERRI | J26: 2018-1084 | K26: 4800020508 | L26: 101806 | M26: CERAMICA LIMA | N26: 4*20 | O26: 43290 | P26: TEMU3655347 | Q26: FERTISA | R26: VALERO | S26: TELSUPREMA | T26: 2018-07-03 | U26: 2018-07-04 | V26: 2018-07-04 | W26: 2018-07-04 | X26: =IF(TB.CTRLFERRI[[#This Row],[DRIVE]]>0,"OK","") -> OK
B27: =VLOOKUP(TB.CTRLFERRI[[#This Row],[Nº PEDIDO]],TB.TDS[[Nº PEDIDO]:[Columna12]],26,FALSE) ->  | D27: =VLOOKUP(TB.CTRLFERRI[[#This Row],[Nº PEDIDO]],NM.OCS,1,FALSE) ->  | E27: =LEFT(TB.CTRLFERRI[[#This Row],[BGA]],3) ->  | H27: =IF(TB.CTRLFERRI[[#This Row],[Nº PEDIDO]]>0,TB.CTRLFERRI[[#This Row],[TRANSPORTE]],"") ->  | P27: XINU1155625 | X27: =IF(TB.CTRLFERRI[[#This Row],[DRIVE]]>0,"OK","") -> 
B28: =VLOOKUP(TB.CTRLFERRI[[#This Row],[Nº PEDIDO]],TB.TDS[[Nº PEDIDO]:[Columna12]],26,FALSE) ->  | D28: =VLOOKUP(TB.CTRLFERRI[[#This Row],[Nº PEDIDO]],NM.OCS,1,FALSE) ->  | E28: =LEFT(TB.CTRLFERRI[[#This Row],[BGA]],3) ->  | H28: =IF(TB.CTRLFERRI[[#This Row],[Nº PEDIDO]]>0,TB.CTRLFERRI[[#This Row],[TRANSPORTE]],"") ->  | J28: CONSOLIDADO 927 | X28: =IF(TB.CTRLFERRI[[#This Row],[DRIVE]]>0,"OK","") -> 
B29: =VLOOKUP(TB.CTRLFERRI[[#This Row],[Nº PEDIDO]],TB.TDS[[Nº PEDIDO]:[Columna12]],26,FALSE) -> OK | D29: =VLOOKUP(TB.CTRLFERRI[[#This Row],[Nº PEDIDO]],NM.OCS,1,FALSE) -> 4800018464 | E29: =LEFT(TB.CTRLFERRI[[#This Row],[BGA]],3) -> FER | F29: REPETIDO | H29: =IF(TB.CTRLFERRI[[#This Row],[Nº PEDIDO]]>0,TB.CTRLFERRI[[#This Row],[TRANSPORTE]],"") -> TELSUPREMA | I29: FERRI | J29: 2018-0350 | K29: 4800018464 | L29: 114960 | M29: GLOBAL LYNX CORPORATION LIMITED ZON | N29: C/SUELTA | O29: 135 CTNES | P29: CXRU1302464 | Q29: INARPI | R29: MACOBSA | S29: TELSUPREMA | T29: 2018-07-04 | U29: 2018-07-04 | V29: 2018-07-04 | W29: 2018-07-04 | X29: =IF(TB.CTRLFERRI[[#This Row],[DRIVE]]>0,"OK","") -> OK
B30: =VLOOKUP(TB.CTRLFERRI[[#This Row],[Nº PEDIDO]],TB.TDS[[Nº PEDIDO]:[Columna12]],26,FALSE) -> OK | D30: =VLOOKUP(TB.CTRLFERRI[[#This Row],[Nº PEDIDO]],NM.OCS,1,FALSE) -> 4800018462 | E30: =LEFT(TB.CTRLFERRI[[#This Row],[BGA]],3) -> FER | F30: REPETIDO | H30: =IF(TB.CTRLFERRI[[#This Row],[Nº PEDIDO]]>0,TB.CTRLFERRI[[#This Row],[TRANSPORTE]],"") -> TELSUPREMA | I30: FERRI | J30: 2018-0352 | K30: 4800018462 | L30: 107205 | M30: GLOBAL LYNX CORPORATION LIMITED ZON | N30: C/SUELTA | S30: TELSUPREMA | T30: 2018-07-04 | U30: 2018-07-04 | V30: 2018-07-04 | W30: 2018-07-04 | X30: =IF(TB.CTRLFERRI[[#This Row],[DRIVE]]>0,"OK","") -> OK
B31: =VLOOKUP(TB.CTRLFERRI[[#This Row],[Nº PEDIDO]],TB.TDS[[Nº PEDIDO]:[Columna12]],26,FALSE) ->  | D31: =VLOOKUP(TB.CTRLFERRI[[#This Row],[Nº PEDIDO]],NM.OCS,1,FALSE) ->  | E31: =LEFT(TB.CTRLFERRI[[#This Row],[BGA]],3) ->  | H31: =IF(TB.CTRLFERRI[[#This Row],[Nº PEDIDO]]>0,TB.CTRLFERRI[[#This Row],[TRANSPORTE]],"") ->  | X31: =IF(TB.CTRLFERRI[[#This Row],[DRIVE]]>0,"OK","") -> 
B32: =VLOOKUP(TB.CTRLFERRI[[#This Row],[Nº PEDIDO]],TB.TDS[[Nº PEDIDO]:[Columna12]],26,FALSE) ->  | D32: =VLOOKUP(TB.CTRLFERRI[[#This Row],[Nº PEDIDO]],NM.OCS,1,FALSE) ->  | E32: =LEFT(TB.CTRLFERRI[[#This Row],[BGA]],3) -> SAL | H32: =IF(TB.CTRLFERRI[[#This Row],[Nº PEDIDO]]>0,TB.CTRLFERRI[[#This Row],[TRANSPORTE]],"") ->  | I32: SALE LUNES 09/JULIO/2018 | X32: =IF(TB.CTRLFERRI[[#This Row],[DRIVE]]>0,"OK","") -> 
B33: =VLOOKUP(TB.CTRLFERRI[[#This Row],[Nº PEDIDO]],TB.TDS[[Nº PEDIDO]:[Columna12]],26,FALSE) ->  | D33: =VLOOKUP(TB.CTRLFERRI[[#This Row],[Nº PEDIDO]],NM.OCS,1,FALSE) ->  | E33: =LEFT(TB.CTRLFERRI[[#This Row],[BGA]],3) -> BGA | H33: =IF(TB.CTRLFERRI[[#This Row],[Nº PEDIDO]]>0,TB.CTRLFERRI[[#This Row],[TRANSPORTE]],"") -> TRANSPORTE | I33: BGA | J33: OPERAC. | K33: Nº PEDIDO | L33: PROV. | M33: NOMBRE / PROVEEDOR | N33: CAPACIDAD | O33: LIBRE HASTA | P33: CONTENEDOR | Q33: MÓDULO | R33: DESP. | S33: TRANSPORTE | X33: =IF(TB.CTRLFERRI[[#This Row],[DRIVE]]>0,"OK","") -> 
B34: =VLOOKUP(TB.CTRLFERRI[[#This Row],[Nº PEDIDO]],TB.TDS[[Nº PEDIDO]:[Columna12]],26,FALSE) -> OK | D34: =VLOOKUP(TB.CTRLFERRI[[#This Row],[Nº PEDIDO]],NM.OCS,1,FALSE) -> 4800018520 | E34: =LEFT(TB.CTRLFERRI[[#This Row],[BGA]],3) -> FER | F34: 2018-07-06 | H34: =IF(TB.CTRLFERRI[[#This Row],[Nº PEDIDO]]>0,TB.CTRLFERRI[[#This Row],[TRANSPORTE]],"") -> TRANSGOM | I34: FERRI | J34: 2018-0304 | K34: 4800018520 | L34: 118762 | M34: WENZHOU TENYALE(ANJI OFFICE FURNITU | N34: 2*40 | O34: 43296 | P34: SEGU5525557 – 6048 KGS | Q34: INARPI | R34: MACOBSA | S34: TRANSGOM | T34: 2018-07-06 | U34: 2018-07-06 | V34: 2018-07-06 | W34: 2018-07-06 | X34: =IF(TB.CTRLFERRI[[#This Row],[DRIVE]]>0,"OK","") -> OK
B35: =VLOOKUP(TB.CTRLFERRI[[#This Row],[Nº PEDIDO]],TB.TDS[[Nº PEDIDO]:[Columna12]],26,FALSE) ->  | D35: =VLOOKUP(TB.CTRLFERRI[[#This Row],[Nº PEDIDO]],NM.OCS,1,FALSE) ->  | E35: =LEFT(TB.CTRLFERRI[[#This Row],[BGA]],3) ->  | H35: =IF(TB.CTRLFERRI[[#This Row],[Nº PEDIDO]]>0,TB.CTRLFERRI[[#This Row],[TRANSPORTE]],"") ->  | P35: TCLU4015141 – 4872 KGS | X35: =IF(TB.CTRLFERRI[[#This Row],[DRIVE]]>0,"OK","") -> 
B36: =VLOOKUP(TB.CTRLFERRI[[#This Row],[Nº PEDIDO]],TB.TDS[[Nº PEDIDO]:[Columna12]],26,FALSE) -> OK | D36: =VLOOKUP(TB.CTRLFERRI[[#This Row],[Nº PEDIDO]],NM.OCS,1,FALSE) -> 4800018400 | E36: =LEFT(TB.CTRLFERRI[[#This Row],[BGA]],3) -> FER | F36: 2018-07-06 | H36: =IF(TB.CTRLFERRI[[#This Row],[Nº PEDIDO]]>0,TB.CTRLFERRI[[#This Row],[TRANSPORTE]],"") -> TELSUPREMA | I36: FERRI | J36: 2018-0036 | K36: 4800018400 | L36: 114941 | M36: KENNEY MANUFACTURING COMPANY | N36: C/SUELTA | O36: 1711 CTNES | P36: CCLU8593666 | Q36: INARPI | R36: VALERO | S36: TELSUPREMA | T36: 2018-07-06 | U36: 2018-07-06 | V36: 2018-07-06 | W36: 2018-07-06 | X36: =IF(TB.CTRLFERRI[[#This Row],[DRIVE]]>0,"OK","") -> OK
B37: =VLOOKUP(TB.CTRLFERRI[[#This Row],[Nº PEDIDO]],TB.TDS[[Nº PEDIDO]:[Columna12]],26,FALSE) ->  | D37: =VLOOKUP(TB.CTRLFERRI[[#This Row],[Nº PEDIDO]],NM.OCS,1,FALSE) ->  | E37: =LEFT(TB.CTRLFERRI[[#This Row],[BGA]],3) ->  | H37: =IF(TB.CTRLFERRI[[#This Row],[Nº PEDIDO]]>0,TB.CTRLFERRI[[#This Row],[TRANSPORTE]],"") ->  | J37: CONSOLIDADO 1079 | X37: =IF(TB.CTRLFERRI[[#This Row],[DRIVE]]>0,"OK","") -> 
B38: =VLOOKUP(TB.CTRLFERRI[[#This Row],[Nº PEDIDO]],TB.TDS[[Nº PEDIDO]:[Columna12]],26,FALSE) -> OK | D38: =VLOOKUP(TB.CTRLFERRI[[#This Row],[Nº PEDIDO]],NM.OCS,1,FALSE) -> 4800020472 | E38: =LEFT(TB.CTRLFERRI[[#This Row],[BGA]],3) -> FER | F38: 2018-07-06 | H38: =IF(TB.CTRLFERRI[[#This Row],[Nº PEDIDO]]>0,TB.CTRLFERRI[[#This Row],[TRANSPORTE]],"") -> TELSUPREMA | I38: FERRI | J38: 2018-1236 | K38: 4800020472 | L38: 112379 | M38: ACE HARDWARE(INEN) | N38: 1*40 | O38: 43296 | P38: KOSU4989660 | Q38: CONTECON | R38: MACOBSA | S38: TELSUPREMA | T38: 2018-07-06 | U38: 2018-07-06 | V38: 2018-07-06 | W38: 2018-07-06 | X38: =IF(TB.CTRLFERRI[[#This Row],[DRIVE]]>0,"OK","") -> OK
B39: =VLOOKUP(TB.CTRLFERRI[[#This Row],[Nº PEDIDO]],TB.TDS[[Nº PEDIDO]:[Columna12]],26,FALSE) -> OK | D39: =VLOOKUP(TB.CTRLFERRI[[#This Row],[Nº PEDIDO]],NM.OCS,1,FALSE) -> 4800020963 | E39: =LEFT(TB.CTRLFERRI[[#This Row],[BGA]],3) -> FER | F39: 2018-07-06 | H39: =IF(TB.CTRLFERRI[[#This Row],[Nº PEDIDO]]>0,TB.CTRLFERRI[[#This Row],[TRANSPORTE]],"") -> TELSUPREMA | I39: FERRI | J39: 2018-1499 | K39: 4800020963 | L39: 100349 | M39: ACE HARDWARE CORPORATION | N39: 1*40 | S39: TELSUPREMA | T39: 2018-07-06 | U39: 2018-07-06 | V39: 2018-07-06 | W39: 2018-07-06 | X39: =IF(TB.CTRLFERRI[[#This Row],[DRIVE]]>0,"OK","") -> OK
B40: =VLOOKUP(TB.CTRLFERRI[[#This Row],[Nº PEDIDO]],TB.TDS[[Nº PEDIDO]:[Columna12]],26,FALSE) -> OK | D40: =VLOOKUP(TB.CTRLFERRI[[#This Row],[Nº PEDIDO]],NM.OCS,1,FALSE) -> 4800020959 | E40: =LEFT(TB.CTRLFERRI[[#This Row],[BGA]],3) -> FER | F40: 2018-07-06 | H40: =IF(TB.CTRLFERRI[[#This Row],[Nº PEDIDO]]>0,TB.CTRLFERRI[[#This Row],[TRANSPORTE]],"") -> TELSUPREMA | I40: FERRI | J40: 2018-1500 | K40: 4800020959 | L40: 109838 | M40: ACE HARDWARE CORPORATION(ESPECIALES | N40: 1*40 | S40: TELSUPREMA | T40: 2018-07-06 | U40: 2018-07-06 | V40: 2018-07-06 | W40: 2018-07-06 | X40: =IF(TB.CTRLFERRI[[#This Row],[DRIVE]]>0,"OK","") -> OK
B41: =VLOOKUP(TB.CTRLFERRI[[#This Row],[Nº PEDIDO]],TB.TDS[[Nº PEDIDO]:[Columna12]],26,FALSE) -> OK | D41: =VLOOKUP(TB.CTRLFERRI[[#This Row],[Nº PEDIDO]],NM.OCS,1,FALSE) -> 4800020960 | E41: =LEFT(TB.CTRLFERRI[[#This Row],[BGA]],3) -> FER | F41: 2018-07-06 | H41: =IF(TB.CTRLFERRI[[#This Row],[Nº PEDIDO]]>0,TB.CTRLFERRI[[#This Row],[TRANSPORTE]],"") -> TELSUPREMA | I41: FERRI | J41: 2018-1501 | K41: 4800020960 | L41: 117397 | M41: ACE HARDWARE (JARDIN/CONST/MUEB) | N41: 1*40 | S41: TELSUPREMA | T41: 2018-07-06 | U41: 2018-07-06 | V41: 2018-07-06 | W41: 2018-07-06 | X41: =IF(TB.CTRLFERRI[[#This Row],[DRIVE]]>0,"OK","") -> OK
B42: =VLOOKUP(TB.CTRLFERRI[[#This Row],[Nº PEDIDO]],TB.TDS[[Nº PEDIDO]:[Columna12]],26,FALSE) -> OK | D42: =VLOOKUP(TB.CTRLFERRI[[#This Row],[Nº PEDIDO]],NM.OCS,1,FALSE) -> 4800020961 | E42: =LEFT(TB.CTRLFERRI[[#This Row],[BGA]],3) -> FER | F42: 2018-07-06 | H42: =IF(TB.CTRLFERRI[[#This Row],[Nº PEDIDO]]>0,TB.CTRLFERRI[[#This Row],[TRANSPORTE]],"") -> TELSUPREMA | I42: FERRI | J42: 2018-1503 | K42: 4800020961 | L42: 117398 | M42: ACE HARDWARE (HERR/AUTOM) | N42: 1*40 | S42: TELSUPREMA | T42: 2018-07-06 | U42: 2018-07-06 | V42: 2018-07-06 | W42: 2018-07-06 | X42: =IF(TB.CTRLFERRI[[#This Row],[DRIVE]]>0,"OK","") -> OK
B43: =VLOOKUP(TB.CTRLFERRI[[#This Row],[Nº PEDIDO]],TB.TDS[[Nº PEDIDO]:[Columna12]],26,FALSE) -> OK | D43: =VLOOKUP(TB.CTRLFERRI[[#This Row],[Nº PEDIDO]],NM.OCS,1,FALSE) -> 4800020962 | E43: =LEFT(TB.CTRLFERRI[[#This Row],[BGA]],3) -> FER | F43: 2018-07-06 | H43: =IF(TB.CTRLFERRI[[#This Row],[Nº PEDIDO]]>0,TB.CTRLFERRI[[#This Row],[TRANSPORTE]],"") -> TELSUPREMA | I43: FERRI | J43: 2018-1504 | K43: 4800020962 | L43: 117399 | M43: ACE HARDWARE (PLOMERIA/PINTU) | N43: 1*40 | S43: TELSUPREMA | T43: 2018-07-06 | U43: 2018-07-06 | V43: 2018-07-06 | W43: 2018-07-06 | X43: =IF(TB.CTRLFERRI[[#This Row],[DRIVE]]>0,"OK","") -> OK
B44: =VLOOKUP(TB.CTRLFERRI[[#This Row],[Nº PEDIDO]],TB.TDS[[Nº PEDIDO]:[Columna12]],26,FALSE) ->  | D44: =VLOOKUP(TB.CTRLFERRI[[#This Row],[Nº PEDIDO]],NM.OCS,1,FALSE) ->  | E44: =LEFT(TB.CTRLFERRI[[#This Row],[BGA]],3) ->  | H44: =IF(TB.CTRLFERRI[[#This Row],[Nº PEDIDO]]>0,TB.CTRLFERRI[[#This Row],[TRANSPORTE]],"") ->  | X44: =IF(TB.CTRLFERRI[[#This Row],[DRIVE]]>0,"OK","") -> 
B45: =VLOOKUP(TB.CTRLFERRI[[#This Row],[Nº PEDIDO]],TB.TDS[[Nº PEDIDO]:[Columna12]],26,FALSE) ->  | D45: =VLOOKUP(TB.CTRLFERRI[[#This Row],[Nº PEDIDO]],NM.OCS,1,FALSE) ->  | E45: =LEFT(TB.CTRLFERRI[[#This Row],[BGA]],3) -> SAL | H45: =IF(TB.CTRLFERRI[[#This Row],[Nº PEDIDO]]>0,TB.CTRLFERRI[[#This Row],[TRANSPORTE]],"") ->  | I45: SALE MARTES 10/JULIO/2018 | X45: =IF(TB.CTRLFERRI[[#This Row],[DRIVE]]>0,"OK","") -> 
B46: =VLOOKUP(TB.CTRLFERRI[[#This Row],[Nº PEDIDO]],TB.TDS[[Nº PEDIDO]:[Columna12]],26,FALSE) ->  | D46: =VLOOKUP(TB.CTRLFERRI[[#This Row],[Nº PEDIDO]],NM.OCS,1,FALSE) ->  | E46: =LEFT(TB.CTRLFERRI[[#This Row],[BGA]],3) -> BGA | H46: =IF(TB.CTRLFERRI[[#This Row],[Nº PEDIDO]]>0,TB.CTRLFERRI[[#This Row],[TRANSPORTE]],"") -> TRANSPORTE | I46: BGA | J46: OPERAC. | K46: Nº PEDIDO | L46: PROV. | M46: NOMBRE / PROVEEDOR | N46: CAPACIDAD | O46: LIBRE HASTA | P46: CONTENEDOR | Q46: MÓDULO | R46: DESP. | S46: TRANSPORTE | X46: =IF(TB.CTRLFERRI[[#This Row],[DRIVE]]>0,"OK","") -> 
B47: =VLOOKUP(TB.CTRLFERRI[[#This Row],[Nº PEDIDO]],TB.TDS[[Nº PEDIDO]:[Columna12]],26,FALSE) ->  | D47: =VLOOKUP(TB.CTRLFERRI[[#This Row],[Nº PEDIDO]],NM.OCS,1,FALSE) ->  | E47: =LEFT(TB.CTRLFERRI[[#This Row],[BGA]],3) -> FER | H47: =IF(TB.CTRLFERRI[[#This Row],[Nº PEDIDO]]>0,TB.CTRLFERRI[[#This Row],[TRANSPORTE]],"") ->  | I47: FERRI | J47: CONSOLIDADO 1041 | S47: TCE | T47: 2018-07-06 | U47: 2018-07-06 | X47: =IF(TB.CTRLFERRI[[#This Row],[DRIVE]]>0,"OK","") -> 
B48: =VLOOKUP(TB.CTRLFERRI[[#This Row],[Nº PEDIDO]],TB.TDS[[Nº PEDIDO]:[Columna12]],26,FALSE) -> OK | D48: =VLOOKUP(TB.CTRLFERRI[[#This Row],[Nº PEDIDO]],NM.OCS,1,FALSE) -> 4800020500 | E48: =LEFT(TB.CTRLFERRI[[#This Row],[BGA]],3) -> FER | F48: 2018-07-06 | H48: =IF(TB.CTRLFERRI[[#This Row],[Nº PEDIDO]]>0,TB.CTRLFERRI[[#This Row],[TRANSPORTE]],"") -> TCE | I48: FERRI | J48: 2018-1144 | K48: 4800020500 | L48: 117051 | M48: ACE HARDWARE E.E.U.U (FITOSANITARIO | N48: 1*40 | O48: SALIDA ALMACENERA TOTAL | P48: SE DESCARGA EL MISMO DIA | Q48: TCE | R48: VALERO | S48: TCE | T48: 2018-07-06 | U48: 2018-07-06 | V48: 2018-07-06 | W48: 2018-07-07 | X48: =IF(TB.CTRLFERRI[[#This Row],[DRIVE]]>0,"OK","") -> OK
B49: =VLOOKUP(TB.CTRLFERRI[[#This Row],[Nº PEDIDO]],TB.TDS[[Nº PEDIDO]:[Columna12]],26,FALSE) -> OK | D49: =VLOOKUP(TB.CTRLFERRI[[#This Row],[Nº PEDIDO]],NM.OCS,1,FALSE) -> 4800020820 | E49: =LEFT(TB.CTRLFERRI[[#This Row],[BGA]],3) -> FER | F49: 2018-07-06 | H49: =IF(TB.CTRLFERRI[[#This Row],[Nº PEDIDO]]>0,TB.CTRLFERRI[[#This Row],[TRANSPORTE]],"") -> TCE | I49: FERRI | J49: 2018-1199 | K49: 4800020820 | L49: 100349 | M49: ACE HARDWARE CORPORATION | N49: 1*40 | S49: TCE | T49: 2018-07-06 | U49: 2018-07-06 | V49: 2018-07-06 | W49: 2018-07-07 | X49: =IF(TB.CTRLFERRI[[#This Row],[DRIVE]]>0,"OK","") -> OK
B50: =VLOOKUP(TB.CTRLFERRI[[#This Row],[Nº PEDIDO]],TB.TDS[[Nº PEDIDO]:[Columna12]],26,FALSE) -> OK | D50: =VLOOKUP(TB.CTRLFERRI[[#This Row],[Nº PEDIDO]],NM.OCS,1,FALSE) -> 4800020814 | E50: =LEFT(TB.CTRLFERRI[[#This Row],[BGA]],3) -> FER | F50: 2018-07-06 | H50: =IF(TB.CTRLFERRI[[#This Row],[Nº PEDIDO]]>0,TB.CTRLFERRI[[#This Row],[TRANSPORTE]],"") -> TCE | I50: FERRI | J50: 2018-1201 | K50: 4800020814 | L50: 109838 | M50: ACE HARDWARE CORPORATION(ESPECIALES | N50: 1*40 | S50: TCE | T50: 2018-07-06 | U50: 2018-07-06 | V50: 2018-07-06 | W50: 2018-07-07 | X50: =IF(TB.CTRLFERRI[[#This Row],[DRIVE]]>0,"OK","") -> OK
B51: =VLOOKUP(TB.CTRLFERRI[[#This Row],[Nº PEDIDO]],TB.TDS[[Nº PEDIDO]:[Columna12]],26,FALSE) -> OK | D51: =VLOOKUP(TB.CTRLFERRI[[#This Row],[Nº PEDIDO]],NM.OCS,1,FALSE) -> 4800020809 | E51: =LEFT(TB.CTRLFERRI[[#This Row],[BGA]],3) -> FER | F51: 2018-07-06 | H51: =IF(TB.CTRLFERRI[[#This Row],[Nº PEDIDO]]>0,TB.CTRLFERRI[[#This Row],[TRANSPORTE]],"") -> TCE | I51: FERRI | J51: 2018-1203 | K51: 4800020809 | L51: 117397 | M51: ACE HARDWARE (JARDIN/CONST/MUEB) | N51: 1*40 | S51: TCE | T51: 2018-07-06 | U51: 2018-07-06 | V51: 2018-07-06 | W51: 2018-07-06 | X51: =IF(TB.CTRLFERRI[[#This Row],[DRIVE]]>0,"OK","") -> OK
B52: =VLOOKUP(TB.CTRLFERRI[[#This Row],[Nº PEDIDO]],TB.TDS[[Nº PEDIDO]:[Columna12]],26,FALSE) -> OK | D52: =VLOOKUP(TB.CTRLFERRI[[#This Row],[Nº PEDIDO]],NM.OCS,1,FALSE) -> 4800020819 | E52: =LEFT(TB.CTRLFERRI[[#This Row],[BGA]],3) -> FER | F52: 2018-07-06 | H52: =IF(TB.CTRLFERRI[[#This Row],[Nº PEDIDO]]>0,TB.CTRLFERRI[[#This Row],[TRANSPORTE]],"") -> TCE | I52: FERRI | J52: 2018-1204 | K52: 4800020819 | L52: 117398 | M52: ACE HARDWARE (HERR/AUTOM) | N52: 1*40 | S52: TCE | T52: 2018-07-06 | U52: 2018-07-06 | V52: 2018-07-06 | W52: 2018-07-06 | X52: =IF(TB.CTRLFERRI[[#This Row],[DRIVE]]>0,"OK","") -> OK
B53: =VLOOKUP(TB.CTRLFERRI[[#This Row],[Nº PEDIDO]],TB.TDS[[Nº PEDIDO]:[Columna12]],26,FALSE) -> OK | D53: =VLOOKUP(TB.CTRLFERRI[[#This Row],[Nº PEDIDO]],NM.OCS,1,FALSE) -> 4800020817 | E53: =LEFT(TB.CTRLFERRI[[#This Row],[BGA]],3) -> FER | F53: 2018-07-06 | H53: =IF(TB.CTRLFERRI[[#This Row],[Nº PEDIDO]]>0,TB.CTRLFERRI[[#This Row],[TRANSPORTE]],"") -> TCE | I53: FERRI | J53: 2018-1206 | K53: 4800020817 | L53: 117399 | M53: ACE HARDWARE (PLOMERIA/PINTU) | N53: 1*40 | S53: TCE | T53: 2018-07-06 | U53: 2018-07-06 | V53: 2018-07-06 | W53: 2018-07-06 | X53: =IF(TB.CTRLFERRI[[#This Row],[DRIVE]]>0,"OK","") -> OK
B54: =VLOOKUP(TB.CTRLFERRI[[#This Row],[Nº PEDIDO]],TB.TDS[[Nº PEDIDO]:[Columna12]],26,FALSE) ->  | D54: =VLOOKUP(TB.CTRLFERRI[[#This Row],[Nº PEDIDO]],NM.OCS,1,FALSE) ->  | E54: =LEFT(TB.CTRLFERRI[[#This Row],[BGA]],3) ->  | F54: 2018-07-06 | H54: =IF(TB.CTRLFERRI[[#This Row],[Nº PEDIDO]]>0,TB.CTRLFERRI[[#This Row],[TRANSPORTE]],"") ->  | X54: =IF(TB.CTRLFERRI[[#This Row],[DRIVE]]>0,"OK","") -> 
B55: =VLOOKUP(TB.CTRLFERRI[[#This Row],[Nº PEDIDO]],TB.TDS[[Nº PEDIDO]:[Columna12]],26,FALSE) -> OK | D55: =VLOOKUP(TB.CTRLFERRI[[#This Row],[Nº PEDIDO]],NM.OCS,1,FALSE) -> 4800018297 | E55: =LEFT(TB.CTRLFERRI[[#This Row],[BGA]],3) -> FER | F55: 2018-07-06 | H55: =IF(TB.CTRLFERRI[[#This Row],[Nº PEDIDO]]>0,TB.CTRLFERRI[[#This Row],[TRANSPORTE]],"") -> TRANSGOM | I55: FERRI | J55: 2018-0093 | K55: 4800018297 | L55: 118606 | M55: WENZHOU ZHENGAI IMPORT & EXPORT CO. | N55: 1*40 | O55: 43293 | P55: CMAU4184106 – 14850 KGS | Q55: INARPI | R55: VALERO | S55: TRANSGOM | T55: 2018-07-06 | U55: 2018-07-06 | V55: 2018-07-06 | W55: 2018-07-07 | X55: =IF(TB.CTRLFERRI[[#This Row],[DRIVE]]>0,"OK","") -> OK
B56: =VLOOKUP(TB.CTRLFERRI[[#This Row],[Nº PEDIDO]],TB.TDS[[Nº PEDIDO]:[Columna12]],26,FALSE) -> OK | D56: =VLOOKUP(TB.CTRLFERRI[[#This Row],[Nº PEDIDO]],NM.OCS,1,FALSE) -> 4800019023 | E56: =LEFT(TB.CTRLFERRI[[#This Row],[BGA]],3) -> FER | F56: 2018-07-06 | H56: =IF(TB.CTRLFERRI[[#This Row],[Nº PEDIDO]]>0,TB.CTRLFERRI[[#This Row],[TRANSPORTE]],"") -> TRANSGOM | I56: FERRI | J56: 2018-0548 | K56: 4800019023 | L56: 112624 | M56: ORIENT INTERNATIONAL HOLDING SHANGH | N56: 1*20 | O56: 43293 | P56: AMFU3254208 – 4062 KGS | Q56: INARPI | R56: MACOBSA | S56: TRANSGOM | T56: 2018-07-06 | U56: 2018-07-06 | V56: 2018-07-06 | W56: 2018-07-07 | X56: =IF(TB.CTRLFERRI[[#This Row],[DRIVE]]>0,"OK","") -> OK
B57: =VLOOKUP(TB.CTRLFERRI[[#This Row],[Nº PEDIDO]],TB.TDS[[Nº PEDIDO]:[Columna12]],26,FALSE) -> OK | D57: =VLOOKUP(TB.CTRLFERRI[[#This Row],[Nº PEDIDO]],NM.OCS,1,FALSE) -> 4800019761 | E57: =LEFT(TB.CTRLFERRI[[#This Row],[BGA]],3) -> FER | F57: 2018-07-06 | H57: =IF(TB.CTRLFERRI[[#This Row],[Nº PEDIDO]]>0,TB.CTRLFERRI[[#This Row],[TRANSPORTE]],"") -> TRANSGOM | I57: FERRI | J57: 2018-0731 | K57: 4800019761 | L57: 118193 | M57: ITC (NIKOTEX) | N57: 1*20 | O57: 43293 | P57: FCIU6203915 – 5170 KGM | Q57: NAPORTEC | R57: VALERO | S57: TRANSGOM | T57: 2018-07-06 | U57: 2018-07-06 | V57: 2018-07-06 | W57: 2018-07-07 | X57: =IF(TB.CTRLFERRI[[#This Row],[DRIVE]]>0,"OK","") -> OK
B58: =VLOOKUP(TB.CTRLFERRI[[#This Row],[Nº PEDIDO]],TB.TDS[[Nº PEDIDO]:[Columna12]],26,FALSE) ->  | D58: =VLOOKUP(TB.CTRLFERRI[[#This Row],[Nº PEDIDO]],NM.OCS,1,FALSE) ->  | E58: =LEFT(TB.CTRLFERRI[[#This Row],[BGA]],3) ->  | F58: 2018-07-06 | H58: =IF(TB.CTRLFERRI[[#This Row],[Nº PEDIDO]]>0,TB.CTRLFERRI[[#This Row],[TRANSPORTE]],"") ->  | J58: CONSOLIDADO 1078 | S58: TRANSGOM | T58: 2018-07-06 | U58: 2018-07-06 | X58: =IF(TB.CTRLFERRI[[#This Row],[DRIVE]]>0,"OK","") -> 
B59: =VLOOKUP(TB.CTRLFERRI[[#This Row],[Nº PEDIDO]],TB.TDS[[Nº PEDIDO]:[Columna12]],26,FALSE) -> OK | D59: =VLOOKUP(TB.CTRLFERRI[[#This Row],[Nº PEDIDO]],NM.OCS,1,FALSE) -> 4800018747 | E59: =LEFT(TB.CTRLFERRI[[#This Row],[BGA]],3) -> FER | F59: 2018-07-06 | H59: =IF(TB.CTRLFERRI[[#This Row],[Nº PEDIDO]]>0,TB.CTRLFERRI[[#This Row],[TRANSPORTE]],"") -> TRANSGOM | I59: FERRI | J59: 2018-0580 | K59: 4800018747 | L59: 112344 | M59: ACE(REBULL INTERNATIONAL CORP.) | N59: 1*20 | O59: 43296 | P59: KOSU2205076 – 4315.48 KG | Q59: CONTECON | R59: MACOBSA | S59: TRANSGOM | T59: 2018-07-06 | U59: 2018-07-06 | V59: 2018-07-06 | W59: 2018-07-07 | X59: =IF(TB.CTRLFERRI[[#This Row],[DRIVE]]>0,"OK","") -> OK
B60: =VLOOKUP(TB.CTRLFERRI[[#This Row],[Nº PEDIDO]],TB.TDS[[Nº PEDIDO]:[Columna12]],26,FALSE) -> OK | D60: =VLOOKUP(TB.CTRLFERRI[[#This Row],[Nº PEDIDO]],NM.OCS,1,FALSE) -> 4800020511 | E60: =LEFT(TB.CTRLFERRI[[#This Row],[BGA]],3) -> FER | F60: 2018-07-06 | H60: =IF(TB.CTRLFERRI[[#This Row],[Nº PEDIDO]]>0,TB.CTRLFERRI[[#This Row],[TRANSPORTE]],"") -> TRANSGOM | I60: FERRI | J60: 2018-1036 | K60: 4800020511 | L60: 110853 | M60: ACE (WESTCLOX) | N60: 1*20 | S60: TRANSGOM | T60: 2018-07-06 | U60: 2018-07-06 | V60: 2018-07-06 | W60: 2018-07-07 | X60: =IF(TB.CTRLFERRI[[#This Row],[DRIVE]]>0,"OK","") -> OK
B61: =VLOOKUP(TB.CTRLFERRI[[#This Row],[Nº PEDIDO]],TB.TDS[[Nº PEDIDO]:[Columna12]],26,FALSE) -> OK | D61: =VLOOKUP(TB.CTRLFERRI[[#This Row],[Nº PEDIDO]],NM.OCS,1,FALSE) -> 4800020908 | E61: =LEFT(TB.CTRLFERRI[[#This Row],[BGA]],3) -> FER | F61: 2018-07-06 | H61: =IF(TB.CTRLFERRI[[#This Row],[Nº PEDIDO]]>0,TB.CTRLFERRI[[#This Row],[TRANSPORTE]],"") -> TRANSGOM | I61: FERRI | J61: 2018-1272 | K61: 4800020908 | L61: 101986 | M61: ACE (NORTH STATES IND. INC.) | N61: 1*20 | S61: TRANSGOM | T61: 2018-07-06 | U61: 2018-07-06 | V61: 2018-07-06 | W61: 2018-07-06 | X61: =IF(TB.CTRLFERRI[[#This Row],[DRIVE]]>0,"OK","") -> OK
B62: =VLOOKUP(TB.CTRLFERRI[[#This Row],[Nº PEDIDO]],TB.TDS[[Nº PEDIDO]:[Columna12]],26,FALSE) -> OK | D62: =VLOOKUP(TB.CTRLFERRI[[#This Row],[Nº PEDIDO]],NM.OCS,1,FALSE) -> 4800020919 | E62: =LEFT(TB.CTRLFERRI[[#This Row],[BGA]],3) -> FER | F62: 2018-07-06 | H62: =IF(TB.CTRLFERRI[[#This Row],[Nº PEDIDO]]>0,TB.CTRLFERRI[[#This Row],[TRANSPORTE]],"") -> TRANSGOM | I62: FERRI | J62: 2018-1344 | K62: 4800020919 | L62: 102004 | M62: ACE (PHIFER WIRE PRODUCTS, INC.) | N62: 1*20 | S62: TRANSGOM | T62: 2018-07-06 | U62: 2018-07-06 | V62: 2018-07-06 | W62: 2018-07-06 | X62: =IF(TB.CTRLFERRI[[#This Row],[DRIVE]]>0,"OK","") -> OK
B63: =VLOOKUP(TB.CTRLFERRI[[#This Row],[Nº PEDIDO]],TB.TDS[[Nº PEDIDO]:[Columna12]],26,FALSE) -> OK | D63: =VLOOKUP(TB.CTRLFERRI[[#This Row],[Nº PEDIDO]],NM.OCS,1,FALSE) -> 4800020845 | E63: =LEFT(TB.CTRLFERRI[[#This Row],[BGA]],3) -> FER | F63: 2018-07-06 | H63: =IF(TB.CTRLFERRI[[#This Row],[Nº PEDIDO]]>0,TB.CTRLFERRI[[#This Row],[TRANSPORTE]],"") -> TRANSGOM | I63: FERRI | J63: 2018-1389 | K63: 4800020845 | L63: 100470 | M63: ACE (LINZER PRODUCTS CORP.) | N63: 1*20 | S63: TRANSGOM | T63: 2018-07-06 | U63: 2018-07-06 | V63: 2018-07-06 | W63: 2018-07-06 | X63: =IF(TB.CTRLFERRI[[#This Row],[DRIVE]]>0,"OK","") -> OK
B64: =VLOOKUP(TB.CTRLFERRI[[#This Row],[Nº PEDIDO]],TB.TDS[[Nº PEDIDO]:[Columna12]],26,FALSE) ->  | D64: =VLOOKUP(TB.CTRLFERRI[[#This Row],[Nº PEDIDO]],NM.OCS,1,FALSE) ->  | E64: =LEFT(TB.CTRLFERRI[[#This Row],[BGA]],3) ->  | F64: 2018-07-06 | H64: =IF(TB.CTRLFERRI[[#This Row],[Nº PEDIDO]]>0,TB.CTRLFERRI[[#This Row],[TRANSPORTE]],"") ->  | X64: =IF(TB.CTRLFERRI[[#This Row],[DRIVE]]>0,"OK","") -> 
B65: =VLOOKUP(TB.CTRLFERRI[[#This Row],[Nº PEDIDO]],TB.TDS[[Nº PEDIDO]:[Columna12]],26,FALSE) -> OK | D65: =VLOOKUP(TB.CTRLFERRI[[#This Row],[Nº PEDIDO]],NM.OCS,1,FALSE) -> 4800018615 | E65: =LEFT(TB.CTRLFERRI[[#This Row],[BGA]],3) -> FER | F65: 2018-07-06 | H65: =IF(TB.CTRLFERRI[[#This Row],[Nº PEDIDO]]>0,TB.CTRLFERRI[[#This Row],[TRANSPORTE]],"") -> TELSUPREMA | I65: FERRI | J65: 2018-0371 | K65: 4800018615 | L65: 117584 | M65: GBR CORPORATION LTD (ZONA "E") | N65: C/SUELTA | O65: 150 CTNES | P65: BMOU9782303 | Q65: INARPI | R65: MACOBSA | S65: TELSUPREMA | T65: 2018-07-06 | U65: 2018-07-06 | V65: 2018-07-06 | W65: 2018-07-07 | X65: =IF(TB.CTRLFERRI[[#This Row],[DRIVE]]>0,"OK","") -> OK
B66: =VLOOKUP(TB.CTRLFERRI[[#This Row],[Nº PEDIDO]],TB.TDS[[Nº PEDIDO]:[Columna12]],26,FALSE) -> OK | D66: =VLOOKUP(TB.CTRLFERRI[[#This Row],[Nº PEDIDO]],NM.OCS,1,FALSE) -> 4800020613 | E66: =LEFT(TB.CTRLFERRI[[#This Row],[BGA]],3) -> FER | F66: 2018-07-06 | H66: =IF(TB.CTRLFERRI[[#This Row],[Nº PEDIDO]]>0,TB.CTRLFERRI[[#This Row],[TRANSPORTE]],"") -> TELSUPREMA | I66: FERRI | J66: 2018-1083 | K66: 4800020613 | L66: 101806 | M66: CERAMICA LIMA | N66: 7*20 | O66: 43295 | P66: DRYU2585601 | S66: TELSUPREMA | T66: 2018-07-06 | U66: 2018-07-06 | V66: 2018-07-06 | W66: 2018-07-07 | X66: =IF(TB.CTRLFERRI[[#This Row],[DRIVE]]>0,"OK","") -> OK
B67: =VLOOKUP(TB.CTRLFERRI[[#This Row],[Nº PEDIDO]],TB.TDS[[Nº PEDIDO]:[Columna12]],26,FALSE) ->  | D67: =VLOOKUP(TB.CTRLFERRI[[#This Row],[Nº PEDIDO]],NM.OCS,1,FALSE) ->  | E67: =LEFT(TB.CTRLFERRI[[#This Row],[BGA]],3) ->  | H67: =IF(TB.CTRLFERRI[[#This Row],[Nº PEDIDO]]>0,TB.CTRLFERRI[[#This Row],[TRANSPORTE]],"") ->  | P67: EITU0027068 | X67: =IF(TB.CTRLFERRI[[#This Row],[DRIVE]]>0,"OK","") -> 
B68: =VLOOKUP(TB.CTRLFERRI[[#This Row],[Nº PEDIDO]],TB.TDS[[Nº PEDIDO]:[Columna12]],26,FALSE) ->  | D68: =VLOOKUP(TB.CTRLFERRI[[#This Row],[Nº PEDIDO]],NM.OCS,1,FALSE) ->  | E68: =LEFT(TB.CTRLFERRI[[#This Row],[BGA]],3) -> SAL | F68: 2018-07-05 | H68: =IF(TB.CTRLFERRI[[#This Row],[Nº PEDIDO]]>0,TB.CTRLFERRI[[#This Row],[TRANSPORTE]],"") ->  | I68: SALE VIERNES 06/JULIO/2018 | X68: =IF(TB.CTRLFERRI[[#This Row],[DRIVE]]>0,"OK","") -> 
B69: =VLOOKUP(TB.CTRLFERRI[[#This Row],[Nº PEDIDO]],TB.TDS[[Nº PEDIDO]:[Columna12]],26,FALSE) ->  | D69: =VLOOKUP(TB.CTRLFERRI[[#This Row],[Nº PEDIDO]],NM.OCS,1,FALSE) ->  | E69: =LEFT(TB.CTRLFERRI[[#This Row],[BGA]],3) -> BGA | F69: 2018-07-05 | H69: =IF(TB.CTRLFERRI[[#This Row],[Nº PEDIDO]]>0,TB.CTRLFERRI[[#This Row],[TRANSPORTE]],"") -> TRANSPORTE | I69: BGA | J69: OPERAC. | K69: Nº PEDIDO | L69: PROV. | M69: NOMBRE / PROVEEDOR | N69: CAPACIDAD | O69: LIBRE HASTA | P69: CONTENEDOR | Q69: MÓDULO | R69: DESP. | S69: TRANSPORTE | X69: =IF(TB.CTRLFERRI[[#This Row],[DRIVE]]>0,"OK","") -> 
B70: =VLOOKUP(TB.CTRLFERRI[[#This Row],[Nº PEDIDO]],TB.TDS[[Nº PEDIDO]:[Columna12]],26,FALSE) -> OK | D70: =VLOOKUP(TB.CTRLFERRI[[#This Row],[Nº PEDIDO]],NM.OCS,1,FALSE) -> 4800018376 | E70: =LEFT(TB.CTRLFERRI[[#This Row],[BGA]],3) -> FER | F70: REPETIDO | H70: =IF(TB.CTRLFERRI[[#This Row],[Nº PEDIDO]]>0,TB.CTRLFERRI[[#This Row],[TRANSPORTE]],"") -> TRANSGOM | I70: FERRI | J70: 2018-0360 | K70: 4800018376 | L70: 118665 | M70: ITC (ANJI TAIHE) | N70: 1*40 | O70: 43290 | P70: SEGU4053646 – 4914 KGS | Q70: INARPI | R70: PEREZ | S70: TRANSGOM | T70: 2018-07-04 | U70: 2018-07-04 | V70: 2018-07-04 | W70: 2018-07-04 | X70: =IF(TB.CTRLFERRI[[#This Row],[DRIVE]]>0,"OK","") -> OK
B71: =VLOOKUP(TB.CTRLFERRI[[#This Row],[Nº PEDIDO]],TB.TDS[[Nº PEDIDO]:[Columna12]],26,FALSE) -> OK | D71: =VLOOKUP(TB.CTRLFERRI[[#This Row],[Nº PEDIDO]],NM.OCS,1,FALSE) -> 4800018225 | E71: =LEFT(TB.CTRLFERRI[[#This Row],[BGA]],3) -> FER | F71: 2018-07-05 | H71: =IF(TB.CTRLFERRI[[#This Row],[Nº PEDIDO]]>0,TB.CTRLFERRI[[#This Row],[TRANSPORTE]],"") -> TRANSGOM | I71: FERRI | J71: 2018-0054 | K71: 4800018225 | L71: 114780 | M71: ACE(WUXI SUNLI) | N71: 1*20 | O71: PAGANDO DEMORAJE | P71: TCLU6866454 – 6545 KGS | Q71: INARPI | R71: PEREZ | S71: TRANSGOM | T71: 2018-07-05 | U71: 2018-07-05 | V71: 2018-07-05 | W71: 2018-07-05 | X71: =IF(TB.CTRLFERRI[[#This Row],[DRIVE]]>0,"OK","") -> OK
B72: =VLOOKUP(TB.CTRLFERRI[[#This Row],[Nº PEDIDO]],TB.TDS[[Nº PEDIDO]:[Columna12]],26,FALSE) -> OK | D72: =VLOOKUP(TB.CTRLFERRI[[#This Row],[Nº PEDIDO]],NM.OCS,1,FALSE) -> 4800018671 | E72: =LEFT(TB.CTRLFERRI[[#This Row],[BGA]],3) -> FER | F72: REPETIDO | H72: =IF(TB.CTRLFERRI[[#This Row],[Nº PEDIDO]]>0,TB.CTRLFERRI[[#This Row],[TRANSPORTE]],"") -> TRANSGOM | I72: FERRI | J72: 2018-0521 | K72: 4800018671 | L72: 101485 | M72: ITC (GUANGZHOU BAIYUN HOMECARE HARD | N72: 1*20 | O72: 43289 | P72: FCIU3013932 – 3530 KGS | Q72: INARPI | R72: MACOBSA | S72: TRANSGOM | T72: 2018-07-04 | U72: 2018-07-04 | V72: 2018-07-04 | W72: 2018-07-04 | X72: =IF(TB.CTRLFERRI[[#This Row],[DRIVE]]>0,"OK","") -> OK
B73: =VLOOKUP(TB.CTRLFERRI[[#This Row],[Nº PEDIDO]],TB.TDS[[Nº PEDIDO]:[Columna12]],26,FALSE) -> OK | D73: =VLOOKUP(TB.CTRLFERRI[[#This Row],[Nº PEDIDO]],NM.OCS,1,FALSE) -> 4800020436 | E73: =LEFT(TB.CTRLFERRI[[#This Row],[BGA]],3) -> FER | F73: 2018-07-05 | H73: =IF(TB.CTRLFERRI[[#This Row],[Nº PEDIDO]]>0,TB.CTRLFERRI[[#This Row],[TRANSPORTE]],"") -> TRANSGOM | I73: FERRI | J73: 2018-1270 | K73: 4800020436 | L73: 101249 | M73: CORPORATIVO BORO, S.A. DE C.V. | N73: 1*20 | O73: 43290 | P73: EISU2145359 – 6904.62 KGS | Q73: INARPI | R73: VALERO | S73: TRANSGOM | T73: 2018-07-05 | U73: 2018-07-05 | V73: 2018-07-05 | W73: 2018-07-05 | X73: =IF(TB.CTRLFERRI[[#This Row],[DRIVE]]>0,"OK","") -> OK
B74: =VLOOKUP(TB.CTRLFERRI[[#This Row],[Nº PEDIDO]],TB.TDS[[Nº PEDIDO]:[Columna12]],26,FALSE) ->  | D74: =VLOOKUP(TB.CTRLFERRI[[#This Row],[Nº PEDIDO]],NM.OCS,1,FALSE) ->  | E74: =LEFT(TB.CTRLFERRI[[#This Row],[BGA]],3) ->  | H74: =IF(TB.CTRLFERRI[[#This Row],[Nº PEDIDO]]>0,TB.CTRLFERRI[[#This Row],[TRANSPORTE]],"") ->  | X74: =IF(TB.CTRLFERRI[[#This Row],[DRIVE]]>0,"OK","") -> 
B75: =VLOOKUP(TB.CTRLFERRI[[#This Row],[Nº PEDIDO]],TB.TDS[[Nº PEDIDO]:[Columna12]],26,FALSE) ->  | D75: =VLOOKUP(TB.CTRLFERRI[[#This Row],[Nº PEDIDO]],NM.OCS,1,FALSE) ->  | E75: =LEFT(TB.CTRLFERRI[[#This Row],[BGA]],3) -> SAL | H75: =IF(TB.CTRLFERRI[[#This Row],[Nº PEDIDO]]>0,TB.CTRLFERRI[[#This Row],[TRANSPORTE]],"") ->  | I75: SALE EL JUEVES 5 /JULIO/2018 // DESCARGA VIERNES 6 /JULIO/2018 | X75: =IF(TB.CTRLFERRI[[#This Row],[DRIVE]]>0,"OK","") -> 
B76: =VLOOKUP(TB.CTRLFERRI[[#This Row],[Nº PEDIDO]],TB.TDS[[Nº PEDIDO]:[Columna12]],26,FALSE) ->  | D76: =VLOOKUP(TB.CTRLFERRI[[#This Row],[Nº PEDIDO]],NM.OCS,1,FALSE) ->  | E76: =LEFT(TB.CTRLFERRI[[#This Row],[BGA]],3) -> BGA | H76: =IF(TB.CTRLFERRI[[#This Row],[Nº PEDIDO]]>0,TB.CTRLFERRI[[#This Row],[TRANSPORTE]],"") -> TRANSPORTE | I76: BGA | J76: OPERAC. | K76: Nº PEDIDO | L76: PROV. | M76: NOMBRE / PROVEEDOR | N76: CAPACIDAD | O76: DÍAS LIBRES HASTA | P76: CONTENEDOR | Q76: MÓDULO | R76: DESPACHADOR | S76: TRANSPORTE | X76: =IF(TB.CTRLFERRI[[#This Row],[DRIVE]]>0,"OK","") -> 
B77: =VLOOKUP(TB.CTRLFERRI[[#This Row],[Nº PEDIDO]],TB.TDS[[Nº PEDIDO]:[Columna12]],26,FALSE) -> OK | D77: =VLOOKUP(TB.CTRLFERRI[[#This Row],[Nº PEDIDO]],NM.OCS,1,FALSE) -> 4800019628 | E77: =LEFT(TB.CTRLFERRI[[#This Row],[BGA]],3) -> JUG | F77: 2018-07-04 | H77: =IF(TB.CTRLFERRI[[#This Row],[Nº PEDIDO]]>0,TB.CTRLFERRI[[#This Row],[TRANSPORTE]],"") -> TELSUPREMA | I77: JUGUET | J77: 2018-0772 | K77: 4800019628 | L77: 102015 | M77: STOR,S.L. | N77: 1*20 | O77: 43301 | P77: TEMU1659791 | Q77: INARPI | R77: MACOBSA | S77: TELSUPREMA | T77: 2018-07-04 | U77: 2018-07-04 | V77: 2018-07-04 | W77: 2018-07-04 | X77: =IF(TB.CTRLFERRI[[#This Row],[DRIVE]]>0,"OK","") -> OK
B78: =VLOOKUP(TB.CTRLFERRI[[#This Row],[Nº PEDIDO]],TB.TDS[[Nº PEDIDO]:[Columna12]],26,FALSE) ->  | D78: =VLOOKUP(TB.CTRLFERRI[[#This Row],[Nº PEDIDO]],NM.OCS,1,FALSE) ->  | E78: =LEFT(TB.CTRLFERRI[[#This Row],[BGA]],3) ->  | H78: =IF(TB.CTRLFERRI[[#This Row],[Nº PEDIDO]]>0,TB.CTRLFERRI[[#This Row],[TRANSPORTE]],"") ->  | X78: =IF(TB.CTRLFERRI[[#This Row],[DRIVE]]>0,"OK","") -> 
B79: =VLOOKUP(TB.CTRLFERRI[[#This Row],[Nº PEDIDO]],TB.TDS[[Nº PEDIDO]:[Columna12]],26,FALSE) ->  | D79: =VLOOKUP(TB.CTRLFERRI[[#This Row],[Nº PEDIDO]],NM.OCS,1,FALSE) ->  | E79: =LEFT(TB.CTRLFERRI[[#This Row],[BGA]],3) ->  | H79: =IF(TB.CTRLFERRI[[#This Row],[Nº PEDIDO]]>0,TB.CTRLFERRI[[#This Row],[TRANSPORTE]],"") ->  | X79: =IF(TB.CTRLFERRI[[#This Row],[DRIVE]]>0,"OK","") -> 
B80: =VLOOKUP(TB.CTRLFERRI[[#This Row],[Nº PEDIDO]],TB.TDS[[Nº PEDIDO]:[Columna12]],26,FALSE) ->  | D80: =VLOOKUP(TB.CTRLFERRI[[#This Row],[Nº PEDIDO]],NM.OCS,1,FALSE) ->  | E80: =LEFT(TB.CTRLFERRI[[#This Row],[BGA]],3) ->  | H80: =IF(TB.CTRLFERRI[[#This Row],[Nº PEDIDO]]>0,TB.CTRLFERRI[[#This Row],[TRANSPORTE]],"") ->  | X80: =IF(TB.CTRLFERRI[[#This Row],[DRIVE]]>0,"OK","") -> 
B81: =VLOOKUP(TB.CTRLFERRI[[#This Row],[Nº PEDIDO]],TB.TDS[[Nº PEDIDO]:[Columna12]],26,FALSE) ->  | D81: =VLOOKUP(TB.CTRLFERRI[[#This Row],[Nº PEDIDO]],NM.OCS,1,FALSE) ->  | E81: =LEFT(TB.CTRLFERRI[[#This Row],[BGA]],3) -> SAL | F81: 2018-07-04 | H81: =IF(TB.CTRLFERRI[[#This Row],[Nº PEDIDO]]>0,TB.CTRLFERRI[[#This Row],[TRANSPORTE]],"") ->  | I81: SALE VIERNES 06/JULIO/2018 | X81: =IF(TB.CTRLFERRI[[#This Row],[DRIVE]]>0,"OK","") -> 
B82: =VLOOKUP(TB.CTRLFERRI[[#This Row],[Nº PEDIDO]],TB.TDS[[Nº PEDIDO]:[Columna12]],26,FALSE) ->  | D82: =VLOOKUP(TB.CTRLFERRI[[#This Row],[Nº PEDIDO]],NM.OCS,1,FALSE) ->  | E82: =LEFT(TB.CTRLFERRI[[#This Row],[BGA]],3) -> BGA | F82: 2018-07-04 | H82: =IF(TB.CTRLFERRI[[#This Row],[Nº PEDIDO]]>0,TB.CTRLFERRI[[#This Row],[TRANSPORTE]],"") -> TRANSPORTE | I82: BGA | J82: OPERAC. | K82: Nº PEDIDO | L82: PROV. | M82: NOMBRE / PROVEEDOR | N82: CAPACIDAD | O82: LIBRE HASTA | P82: CONTENEDOR | Q82: MÓDULO | R82: DESP. | S82: TRANSPORTE | X82: =IF(TB.CTRLFERRI[[#This Row],[DRIVE]]>0,"OK","") -> 
B83: =VLOOKUP(TB.CTRLFERRI[[#This Row],[Nº PEDIDO]],TB.TDS[[Nº PEDIDO]:[Columna12]],26,FALSE) -> OK | D83: =VLOOKUP(TB.CTRLFERRI[[#This Row],[Nº PEDIDO]],NM.OCS,1,FALSE) -> 4800018376 | E83: =LEFT(TB.CTRLFERRI[[#This Row],[BGA]],3) -> FER | F83: 2018-07-04 | H83: =IF(TB.CTRLFERRI[[#This Row],[Nº PEDIDO]]>0,TB.CTRLFERRI[[#This Row],[TRANSPORTE]],"") -> TRANSGOM | I83: FERRI | J83: 2018-0360 | K83: 4800018376 | L83: 118665 | M83: ITC (ANJI TAIHE) | N83: 1*40 | O83: 43290 | P83: SEGU4053646 – 4914 KGS | Q83: INARPI | R83: PEREZ | S83: TRANSGOM | T83: 2018-07-04 | U83: 2018-07-04 | V83: 2018-07-04 | W83: 2018-07-04 | X83: =IF(TB.CTRLFERRI[[#This Row],[DRIVE]]>0,"OK","") -> OK
B84: =VLOOKUP(TB.CTRLFERRI[[#This Row],[Nº PEDIDO]],TB.TDS[[Nº PEDIDO]:[Columna12]],26,FALSE) -> OK | D84: =VLOOKUP(TB.CTRLFERRI[[#This Row],[Nº PEDIDO]],NM.OCS,1,FALSE) -> 4800018671 | E84: =LEFT(TB.CTRLFERRI[[#This Row],[BGA]],3) -> FER | F84: 2018-07-04 | H84: =IF(TB.CTRLFERRI[[#This Row],[Nº PEDIDO]]>0,TB.CTRLFERRI[[#This Row],[TRANSPORTE]],"") -> TRANSGOM | I84: FERRI | J84: 2018-0521 | K84: 4800018671 | L84: 101485 | M84: ITC (GUANGZHOU BAIYUN HOMECARE HARD | N84: 1*20 | O84: 43289 | P84: FCIU3013932 – 3530 KGS | Q84: INARPI | R84: MACOBSA | S84: TRANSGOM | T84: 2018-07-04 | U84: 2018-07-04 | V84: 2018-07-04 | W84: 2018-07-04 | X84: =IF(TB.CTRLFERRI[[#This Row],[DRIVE]]>0,"OK","") -> OK
B85: =VLOOKUP(TB.CTRLFERRI[[#This Row],[Nº PEDIDO]],TB.TDS[[Nº PEDIDO]:[Columna12]],26,FALSE) ->  | D85: =VLOOKUP(TB.CTRLFERRI[[#This Row],[Nº PEDIDO]],NM.OCS,1,FALSE) ->  | E85: =LEFT(TB.CTRLFERRI[[#This Row],[BGA]],3) ->  | F85: 2018-07-04 | H85: =IF(TB.CTRLFERRI[[#This Row],[Nº PEDIDO]]>0,TB.CTRLFERRI[[#This Row],[TRANSPORTE]],"") ->  | J85: CONSOLIDADO 927 | S85: TRANSGOM | X85: =IF(TB.CTRLFERRI[[#This Row],[DRIVE]]>0,"OK","") -> 
B86: =VLOOKUP(TB.CTRLFERRI[[#This Row],[Nº PEDIDO]],TB.TDS[[Nº PEDIDO]:[Columna12]],26,FALSE) -> OK | D86: =VLOOKUP(TB.CTRLFERRI[[#This Row],[Nº PEDIDO]],NM.OCS,1,FALSE) -> 4800018464 | E86: =LEFT(TB.CTRLFERRI[[#This Row],[BGA]],3) -> FER | F86: 2018-07-04 | H86: =IF(TB.CTRLFERRI[[#This Row],[Nº PEDIDO]]>0,TB.CTRLFERRI[[#This Row],[TRANSPORTE]],"") -> TRANSGOM | I86: FERRI | J86: 2018-0350 | K86: 4800018464 | L86: 114960 | M86: GLOBAL LYNX CORPORATION LIMITED ZON | N86: C/SUELTA | O86: 135 CTNES | P86: CXRU1302464 – 1469.5 KGS / 6.57 M3 | Q86: INARPI | R86: MACOBSA | S86: TRANSGOM | T86: 2018-07-04 | U86: 2018-07-04 | V86: 2018-07-04 | W86: 2018-07-04 | X86: =IF(TB.CTRLFERRI[[#This Row],[DRIVE]]>0,"OK","") -> OK
B87: =VLOOKUP(TB.CTRLFERRI[[#This Row],[Nº PEDIDO]],TB.TDS[[Nº PEDIDO]:[Columna12]],26,FALSE) -> OK | D87: =VLOOKUP(TB.CTRLFERRI[[#This Row],[Nº PEDIDO]],NM.OCS,1,FALSE) -> 4800018462 | E87: =LEFT(TB.CTRLFERRI[[#This Row],[BGA]],3) -> FER | F87: 2018-07-04 | H87: =IF(TB.CTRLFERRI[[#This Row],[Nº PEDIDO]]>0,TB.CTRLFERRI[[#This Row],[TRANSPORTE]],"") -> TRANSGOM | I87: FERRI | J87: 2018-0352 | K87: 4800018462 | L87: 107205 | M87: GLOBAL LYNX CORPORATION LIMITED ZON | N87: C/SUELTA | S87: TRANSGOM | T87: 2018-07-04 | U87: 2018-07-04 | V87: 2018-07-04 | W87: 2018-07-04 | X87: =IF(TB.CTRLFERRI[[#This Row],[DRIVE]]>0,"OK","") -> OK
B88: =VLOOKUP(TB.CTRLFERRI[[#This Row],[Nº PEDIDO]],TB.TDS[[Nº PEDIDO]:[Columna12]],26,FALSE) ->  | D88: =VLOOKUP(TB.CTRLFERRI[[#This Row],[Nº PEDIDO]],NM.OCS,1,FALSE) ->  | E88: =LEFT(TB.CTRLFERRI[[#This Row],[BGA]],3) ->  | H88: =IF(TB.CTRLFERRI[[#This Row],[Nº PEDIDO]]>0,TB.CTRLFERRI[[#This Row],[TRANSPORTE]],"") ->  | X88: =IF(TB.CTRLFERRI[[#This Row],[DRIVE]]>0,"OK","") -> 
B89: =VLOOKUP(TB.CTRLFERRI[[#This Row],[Nº PEDIDO]],TB.TDS[[Nº PEDIDO]:[Columna12]],26,FALSE) ->  | D89: =VLOOKUP(TB.CTRLFERRI[[#This Row],[Nº PEDIDO]],NM.OCS,1,FALSE) ->  | E89: =LEFT(TB.CTRLFERRI[[#This Row],[BGA]],3) -> SAL | F89: 2018-07-03 | H89: =IF(TB.CTRLFERRI[[#This Row],[Nº PEDIDO]]>0,TB.CTRLFERRI[[#This Row],[TRANSPORTE]],"") ->  | I89: SALE MIÉRCOLES 04/JULIO/2018 | X89: =IF(TB.CTRLFERRI[[#This Row],[DRIVE]]>0,"OK","") -> 
B90: =VLOOKUP(TB.CTRLFERRI[[#This Row],[Nº PEDIDO]],TB.TDS[[Nº PEDIDO]:[Columna12]],26,FALSE) ->  | D90: =VLOOKUP(TB.CTRLFERRI[[#This Row],[Nº PEDIDO]],NM.OCS,1,FALSE) ->  | E90: =LEFT(TB.CTRLFERRI[[#This Row],[BGA]],3) -> BGA | F90: 2018-07-03 | H90: =IF(TB.CTRLFERRI[[#This Row],[Nº PEDIDO]]>0,TB.CTRLFERRI[[#This Row],[TRANSPORTE]],"") -> TRANSPORTE | I90: BGA | J90: OPERAC. | K90: Nº PEDIDO | L90: PROV. | M90: NOMBRE / PROVEEDOR | N90: CAPACIDAD | O90: LIBRE HASTA | P90: CONTENEDOR | Q90: MÓDULO | R90: DESP. | S90: TRANSPORTE | X90: =IF(TB.CTRLFERRI[[#This Row],[DRIVE]]>0,"OK","") -> 
B91: =VLOOKUP(TB.CTRLFERRI[[#This Row],[Nº PEDIDO]],TB.TDS[[Nº PEDIDO]:[Columna12]],26,FALSE) -> OK | D91: =VLOOKUP(TB.CTRLFERRI[[#This Row],[Nº PEDIDO]],NM.OCS,1,FALSE) -> 4800018387 | E91: =LEFT(TB.CTRLFERRI[[#This Row],[BGA]],3) -> FER | F91: 2018-07-03 | H91: =IF(TB.CTRLFERRI[[#This Row],[Nº PEDIDO]]>0,TB.CTRLFERRI[[#This Row],[TRANSPORTE]],"") -> TELSUPREMA | I91: FERRI | J91: 2018-0315 | K91: 4800018387 | L91: 118751 | M91: WENZHOU TENYALE(CINTA FIB/VID) | N91: C/SUELTA | O91: 253 CTNES | P91: TTNU8649360 | Q91: INARPI | R91: MACOBSA | S91: TELSUPREMA | T91: 2018-07-03 | U91: 2018-07-03 | V91: 2018-07-03 | W91: 2018-07-03 | X91: =IF(TB.CTRLFERRI[[#This Row],[DRIVE]]>0,"OK","") -> OK
B92: =VLOOKUP(TB.CTRLFERRI[[#This Row],[Nº PEDIDO]],TB.TDS[[Nº PEDIDO]:[Columna12]],26,FALSE) ->  | D92: =VLOOKUP(TB.CTRLFERRI[[#This Row],[Nº PEDIDO]],NM.OCS,1,FALSE) ->  | E92: =LEFT(TB.CTRLFERRI[[#This Row],[BGA]],3) ->  | F92: 2018-07-03 | H92: =IF(TB.CTRLFERRI[[#This Row],[Nº PEDIDO]]>0,TB.CTRLFERRI[[#This Row],[TRANSPORTE]],"") ->  | J92: CONSOLIDADO 1075 | S92: TELSUPREMA
B93: =VLOOKUP(TB.CTRLFERRI[[#This Row],[Nº PEDIDO]],TB.TDS[[Nº PEDIDO]:[Columna12]],26,FALSE) -> OK | D93: =VLOOKUP(TB.CTRLFERRI[[#This Row],[Nº PEDIDO]],NM.OCS,1,FALSE) -> 4800018386 | E93: =LEFT(TB.CTRLFERRI[[#This Row],[BGA]],3) -> FER | F93: 2018-07-03 | H93: =IF(TB.CTRLFERRI[[#This Row],[Nº PEDIDO]]>0,TB.CTRLFERRI[[#This Row],[TRANSPORTE]],"") -> TELSUPREMA | I93: FERRI | J93: 2018-0263 | K93: 4800018386 | L93: 111935 | M93: ACE(HARMAN) | N93: 1*40 | O93: 43289 | P93: SMLU7971896 | Q93: CONTECON | R93: VALERO | S93: TELSUPREMA | T93: 2018-07-03 | U93: 2018-07-03 | V93: 2018-07-03 | W93: 2018-07-03 | X93: =IF(TB.CTRLFERRI[[#This Row],[DRIVE]]>0,"OK","") -> OK
B94: =VLOOKUP(TB.CTRLFERRI[[#This Row],[Nº PEDIDO]],TB.TDS[[Nº PEDIDO]:[Columna12]],26,FALSE) -> OK | D94: =VLOOKUP(TB.CTRLFERRI[[#This Row],[Nº PEDIDO]],NM.OCS,1,FALSE) -> 4800018655 | E94: =LEFT(TB.CTRLFERRI[[#This Row],[BGA]],3) -> FER | F94: 2018-07-03 | H94: =IF(TB.CTRLFERRI[[#This Row],[Nº PEDIDO]]>0,TB.CTRLFERRI[[#This Row],[TRANSPORTE]],"") -> TELSUPREMA | I94: FERRI | J94: 2018-0504 | K94: 4800018655 | L94: 118421 | M94: ACE (TOMMYCO) | N94: 1*40 | S94: TELSUPREMA | T94: 2018-07-03 | U94: 2018-07-03 | V94: 2018-07-03 | W94: 2018-07-03 | X94: =IF(TB.CTRLFERRI[[#This Row],[DRIVE]]>0,"OK","") -> OK
B95: =VLOOKUP(TB.CTRLFERRI[[#This Row],[Nº PEDIDO]],TB.TDS[[Nº PEDIDO]:[Columna12]],26,FALSE) -> OK | D95: =VLOOKUP(TB.CTRLFERRI[[#This Row],[Nº PEDIDO]],NM.OCS,1,FALSE) -> 4800019556 | E95: =LEFT(TB.CTRLFERRI[[#This Row],[BGA]],3) -> FER | F95: 2018-07-03 | H95: =IF(TB.CTRLFERRI[[#This Row],[Nº PEDIDO]]>0,TB.CTRLFERRI[[#This Row],[TRANSPORTE]],"") -> TELSUPREMA | I95: FERRI | J95: 2018-0739 | K95: 4800019556 | L95: 114499 | M95: ACE(UNITED SOLUTIONS) | N95: 1*40 | S95: TELSUPREMA | T95: 2018-07-03 | U95: 2018-07-03 | V95: 2018-07-03 | W95: 2018-07-03 | X95: =IF(TB.CTRLFERRI[[#This Row],[DRIVE]]>0,"OK","") -> OK
B96: =VLOOKUP(TB.CTRLFERRI[[#This Row],[Nº PEDIDO]],TB.TDS[[Nº PEDIDO]:[Columna12]],26,FALSE) -> OK | D96: =VLOOKUP(TB.CTRLFERRI[[#This Row],[Nº PEDIDO]],NM.OCS,1,FALSE) -> 4800019823 | E96: =LEFT(TB.CTRLFERRI[[#This Row],[BGA]],3) -> FER | F96: 2018-07-03 | H96: =IF(TB.CTRLFERRI[[#This Row],[Nº PEDIDO]]>0,TB.CTRLFERRI[[#This Row],[TRANSPORTE]],"") -> TELSUPREMA | I96: FERRI | J96: 2018-0863 | K96: 4800019823 | L96: 100516 | M96: ACE (WILLIAM H.HARVEY COMPANY) | N96: 1*40 | S96: TELSUPREMA | T96: 2018-07-03 | U96: 2018-07-03 | V96: 2018-07-03 | W96: 2018-07-03 | X96: =IF(TB.CTRLFERRI[[#This Row],[DRIVE]]>0,"OK","") -> OK
B97: =VLOOKUP(TB.CTRLFERRI[[#This Row],[Nº PEDIDO]],TB.TDS[[Nº PEDIDO]:[Columna12]],26,FALSE) -> OK | D97: =VLOOKUP(TB.CTRLFERRI[[#This Row],[Nº PEDIDO]],NM.OCS,1,FALSE) -> 4800020509 | E97: =LEFT(TB.CTRLFERRI[[#This Row],[BGA]],3) -> FER | F97: 2018-07-03 | H97: =IF(TB.CTRLFERRI[[#This Row],[Nº PEDIDO]]>0,TB.CTRLFERRI[[#This Row],[TRANSPORTE]],"") -> TELSUPREMA | I97: FERRI | J97: 2018-1139 | K97: 4800020509 | L97: 108950 | M97: ACE (WOODSTREAM CORPORATION) | N97: 1*40 | S97: TELSUPREMA | T97: 2018-07-03 | U97: 2018-07-03 | V97: 2018-07-03 | W97: 2018-07-03 | X97: =IF(TB.CTRLFERRI[[#This Row],[DRIVE]]>0,"OK","") -> OK
B98: =VLOOKUP(TB.CTRLFERRI[[#This Row],[Nº PEDIDO]],TB.TDS[[Nº PEDIDO]:[Columna12]],26,FALSE) ->  | D98: =VLOOKUP(TB.CTRLFERRI[[#This Row],[Nº PEDIDO]],NM.OCS,1,FALSE) ->  | E98: =LEFT(TB.CTRLFERRI[[#This Row],[BGA]],3) -> FER | F98: bcentral | H98: =IF(TB.CTRLFERRI[[#This Row],[Nº PEDIDO]]>0,TB.CTRLFERRI[[#This Row],[TRANSPORTE]],"") -> TELSUPREMA | I98: FERRI | J98: 2018-1142 | K98: 4800020145 | L98: 107647 | M98: UNILEVER HPC USA / BGA CENTRAL | N98: 1*40 | S98: TELSUPREMA | X98: =IF(TB.CTRLFERRI[[#This Row],[DRIVE]]>0,"OK","") -> 
B99: =VLOOKUP(TB.CTRLFERRI[[#This Row],[Nº PEDIDO]],TB.TDS[[Nº PEDIDO]:[Columna12]],26,FALSE) -> OK | D99: =VLOOKUP(TB.CTRLFERRI[[#This Row],[Nº PEDIDO]],NM.OCS,1,FALSE) -> 4800020454 | E99: =LEFT(TB.CTRLFERRI[[#This Row],[BGA]],3) -> FER | F99: 2018-07-03 | H99: =IF(TB.CTRLFERRI[[#This Row],[Nº PEDIDO]]>0,TB.CTRLFERRI[[#This Row],[TRANSPORTE]],"") -> TELSUPREMA | I99: FERRI | J99: 2018-1158 | K99: 4800020454 | L99: 109201 | M99: ACE(CHAMBERLAIN GROUP) | N99: 1*40 | S99: TELSUPREMA | T99: 2018-07-03 | U99: 2018-07-03 | V99: 2018-07-03 | W99: 2018-07-03 | X99: =IF(TB.CTRLFERRI[[#This Row],[DRIVE]]>0,"OK","") -> OK
B100: =VLOOKUP(TB.CTRLFERRI[[#This Row],[Nº PEDIDO]],TB.TDS[[Nº PEDIDO]:[Columna12]],26,FALSE) -> OK | D100: =VLOOKUP(TB.CTRLFERRI[[#This Row],[Nº PEDIDO]],NM.OCS,1,FALSE) -> 4800020461 | E100: =LEFT(TB.CTRLFERRI[[#This Row],[BGA]],3) -> FER | F100: 2018-07-03 | H100: =IF(TB.CTRLFERRI[[#This Row],[Nº PEDIDO]]>0,TB.CTRLFERRI[[#This Row],[TRANSPORTE]],"") -> TELSUPREMA | I100: FERRI | J100: 2018-1159 | K100: 4800020461 | L100: 110946 | M100: ACE(SPECTRUM DIVERSIFIED DESIGNS IN | N100: 1*40 | S100: TELSUPREMA | T100: 2018-07-03 | U100: 2018-07-03 | V100: 2018-07-03 | W100: 2018-07-03 | X100: =IF(TB.CTRLFERRI[[#This Row],[DRIVE]]>0,"OK","") -> OK
B101: =VLOOKUP(TB.CTRLFERRI[[#This Row],[Nº PEDIDO]],TB.TDS[[Nº PEDIDO]:[Columna12]],26,FALSE) -> OK | D101: =VLOOKUP(TB.CTRLFERRI[[#This Row],[Nº PEDIDO]],NM.OCS,1,FALSE) -> 4800020433 | E101: =LEFT(TB.CTRLFERRI[[#This Row],[BGA]],3) -> FER | F101: 2018-07-03 | H101: =IF(TB.CTRLFERRI[[#This Row],[Nº PEDIDO]]>0,TB.CTRLFERRI[[#This Row],[TRANSPORTE]],"") -> TELSUPREMA | I101: FERRI | J101: 2018-1179 | K101: 4800020433 | L101: 100516 | M101: ACE (WILLIAM H.HARVEY COMPANY) | N101: 1*40 | S101: TELSUPREMA | T101: 2018-07-03 | U101: 2018-07-03 | V101: 2018-07-03 | W101: 2018-07-03 | X101: =IF(TB.CTRLFERRI[[#This Row],[DRIVE]]>0,"OK","") -> OK
B102: =VLOOKUP(TB.CTRLFERRI[[#This Row],[Nº PEDIDO]],TB.TDS[[Nº PEDIDO]:[Columna12]],26,FALSE) -> OK | D102: =VLOOKUP(TB.CTRLFERRI[[#This Row],[Nº PEDIDO]],NM.OCS,1,FALSE) -> 4800020320 | E102: =LEFT(TB.CTRLFERRI[[#This Row],[BGA]],3) -> FER | F102: 2018-07-03 | H102: =IF(TB.CTRLFERRI[[#This Row],[Nº PEDIDO]]>0,TB.CTRLFERRI[[#This Row],[TRANSPORTE]],"") -> TELSUPREMA | I102: FERRI | J102: 2018-1211 | K102: 4800020320 | L102: 101500 | M102: ACE (DEFLECT-O CORPORATION) | N102: 1*40 | S102: TELSUPREMA | T102: 2018-07-03 | U102: 2018-07-03 | V102: 2018-07-03 | W102: 2018-07-03 | X102: =IF(TB.CTRLFERRI[[#This Row],[DRIVE]]>0,"OK","") -> OK
B103: =VLOOKUP(TB.CTRLFERRI[[#This Row],[Nº PEDIDO]],TB.TDS[[Nº PEDIDO]:[Columna12]],26,FALSE) -> OK | D103: =VLOOKUP(TB.CTRLFERRI[[#This Row],[Nº PEDIDO]],NM.OCS,1,FALSE) -> 4800020325 | E103: =LEFT(TB.CTRLFERRI[[#This Row],[BGA]],3) -> FER | F103: 2018-07-03 | H103: =IF(TB.CTRLFERRI[[#This Row],[Nº PEDIDO]]>0,TB.CTRLFERRI[[#This Row],[TRANSPORTE]],"") -> TELSUPREMA | I103: FERRI | J103: 2018-1232 | K103: 4800020325 | L103: 101885 | M103: ACE (KEEPER CORPORATION) | N103: 1*40 | S103: TELSUPREMA | T103: 2018-07-03 | U103: 2018-07-03 | V103: 2018-07-03 | W103: 2018-07-03 | X103: =IF(TB.CTRLFERRI[[#This Row],[DRIVE]]>0,"OK","") -> OK
B104: =VLOOKUP(TB.CTRLFERRI[[#This Row],[Nº PEDIDO]],TB.TDS[[Nº PEDIDO]:[Columna12]],26,FALSE) -> OK | D104: =VLOOKUP(TB.CTRLFERRI[[#This Row],[Nº PEDIDO]],NM.OCS,1,FALSE) -> 4800020910 | E104: =LEFT(TB.CTRLFERRI[[#This Row],[BGA]],3) -> FER | F104: 2018-07-03 | H104: =IF(TB.CTRLFERRI[[#This Row],[Nº PEDIDO]]>0,TB.CTRLFERRI[[#This Row],[TRANSPORTE]],"") -> TELSUPREMA | I104: FERRI | J104: 2018-1343 | K104: 4800020910 | L104: 100525 | M104: ACE (CUSTOM ACCESORIES INC.) | N104: 1*40 | S104: TELSUPREMA | T104: 2018-07-03 | U104: 2018-07-03 | V104: 2018-07-03 | W104: 2018-07-03 | X104: =IF(TB.CTRLFERRI[[#This Row],[DRIVE]]>0,"OK","") -> OK
B105: =VLOOKUP(TB.CTRLFERRI[[#This Row],[Nº PEDIDO]],TB.TDS[[Nº PEDIDO]:[Columna12]],26,FALSE) ->  | D105: =VLOOKUP(TB.CTRLFERRI[[#This Row],[Nº PEDIDO]],NM.OCS,1,FALSE) ->  | E105: =LEFT(TB.CTRLFERRI[[#This Row],[BGA]],3) ->  | H105: =IF(TB.CTRLFERRI[[#This Row],[Nº PEDIDO]]>0,TB.CTRLFERRI[[#This Row],[TRANSPORTE]],"") ->  | X105: =IF(TB.CTRLFERRI[[#This Row],[DRIVE]]>0,"OK","") -> 
B106: =VLOOKUP(TB.CTRLFERRI[[#This Row],[Nº PEDIDO]],TB.TDS[[Nº PEDIDO]:[Columna12]],26,FALSE) ->  | D106: =VLOOKUP(TB.CTRLFERRI[[#This Row],[Nº PEDIDO]],NM.OCS,1,FALSE) ->  | E106: =LEFT(TB.CTRLFERRI[[#This Row],[BGA]],3) -> SAL | F106: 2018-07-03 | H106: =IF(TB.CTRLFERRI[[#This Row],[Nº PEDIDO]]>0,TB.CTRLFERRI[[#This Row],[TRANSPORTE]],"") ->  | I106: SALE JUEVES 05/JULIO/2018 | X106: =IF(TB.CTRLFERRI[[#This Row],[DRIVE]]>0,"OK","") -> 
B107: =VLOOKUP(TB.CTRLFERRI[[#This Row],[Nº PEDIDO]],TB.TDS[[Nº PEDIDO]:[Columna12]],26,FALSE) ->  | D107: =VLOOKUP(TB.CTRLFERRI[[#This Row],[Nº PEDIDO]],NM.OCS,1,FALSE) ->  | E107: =LEFT(TB.CTRLFERRI[[#This Row],[BGA]],3) -> BGA | F107: 2018-07-03 | H107: =IF(TB.CTRLFERRI[[#This Row],[Nº PEDIDO]]>0,TB.CTRLFERRI[[#This Row],[TRANSPORTE]],"") -> TRANSPORTE | I107: BGA | J107: OPERAC. | K107: Nº PEDIDO | L107: PROV. | M107: NOMBRE / PROVEEDOR | N107: CAPACIDAD | O107: LIBRE HASTA | P107: CONTENEDOR | Q107: MÓDULO | R107: DESP. | S107: TRANSPORTE | X107: =IF(TB.CTRLFERRI[[#This Row],[DRIVE]]>0,"OK","") -> 
B108: =VLOOKUP(TB.CTRLFERRI[[#This Row],[Nº PEDIDO]],TB.TDS[[Nº PEDIDO]:[Columna12]],26,FALSE) -> OK | D108: =VLOOKUP(TB.CTRLFERRI[[#This Row],[Nº PEDIDO]],NM.OCS,1,FALSE) -> 4800020508 | E108: =LEFT(TB.CTRLFERRI[[#This Row],[BGA]],3) -> FER | F108: 2018-07-03 | H108: =IF(TB.CTRLFERRI[[#This Row],[Nº PEDIDO]]>0,TB.CTRLFERRI[[#This Row],[TRANSPORTE]],"") -> TRANSGOM | I108: FERRI | J108: 2018-1084 | K108: 4800020508 | L108: 101806 | M108: CERAMICA LIMA | N108: 6*20 | O108: 43290 | P108: EITU0113905 | Q108: FERTISA | R108: VALERO | S108: TRANSGOM | T108: 2018-07-03 | U108: 2018-07-04 | V108: 2018-07-04 | W108: 2018-07-04 | X108: =IF(TB.CTRLFERRI[[#This Row],[DRIVE]]>0,"OK","") -> OK
B109: =VLOOKUP(TB.CTRLFERRI[[#This Row],[Nº PEDIDO]],TB.TDS[[Nº PEDIDO]:[Columna12]],26,FALSE) ->  | D109: =VLOOKUP(TB.CTRLFERRI[[#This Row],[Nº PEDIDO]],NM.OCS,1,FALSE) ->  | E109: =LEFT(TB.CTRLFERRI[[#This Row],[BGA]],3) ->  | F109: 2018-07-03 | H109: =IF(TB.CTRLFERRI[[#This Row],[Nº PEDIDO]]>0,TB.CTRLFERRI[[#This Row],[TRANSPORTE]],"") ->  | L109: 101806 | M109: HMCU3018955 | N109: 6*20 | O109: 43290 | P109: HMCU3018955 | S109: TRANSGOM | X109: =IF(TB.CTRLFERRI[[#This Row],[DRIVE]]>0,"OK","") -> 
B110: =VLOOKUP(TB.CTRLFERRI[[#This Row],[Nº PEDIDO]],TB.TDS[[Nº PEDIDO]:[Columna12]],26,FALSE) ->  | D110: =VLOOKUP(TB.CTRLFERRI[[#This Row],[Nº PEDIDO]],NM.OCS,1,FALSE) ->  | E110: =LEFT(TB.CTRLFERRI[[#This Row],[BGA]],3) ->  | F110: 2018-07-03 | H110: =IF(TB.CTRLFERRI[[#This Row],[Nº PEDIDO]]>0,TB.CTRLFERRI[[#This Row],[TRANSPORTE]],"") ->  | L110: 101806 | M110: TEMU3655347 | N110: 6*20 | O110: 43290 | P110: TEMU3655347 | S110: TRANSGOM | X110: =IF(TB.CTRLFERRI[[#This Row],[DRIVE]]>0,"OK","") -> 
B111: =VLOOKUP(TB.CTRLFERRI[[#This Row],[Nº PEDIDO]],TB.TDS[[Nº PEDIDO]:[Columna12]],26,FALSE) ->  | D111: =VLOOKUP(TB.CTRLFERRI[[#This Row],[Nº PEDIDO]],NM.OCS,1,FALSE) ->  | E111: =LEFT(TB.CTRLFERRI[[#This Row],[BGA]],3) ->  | F111: 2018-07-03 | H111: =IF(TB.CTRLFERRI[[#This Row],[Nº PEDIDO]]>0,TB.CTRLFERRI[[#This Row],[TRANSPORTE]],"") ->  | L111: 101806 | M111: TGHU1205342 | N111: 6*20 | O111: 43290 | P111: TGHU1205342 | S111: TRANSGOM | X111: =IF(TB.CTRLFERRI[[#This Row],[DRIVE]]>0,"OK","") -> 
B112: =VLOOKUP(TB.CTRLFERRI[[#This Row],[Nº PEDIDO]],TB.TDS[[Nº PEDIDO]:[Columna12]],26,FALSE) ->  | D112: =VLOOKUP(TB.CTRLFERRI[[#This Row],[Nº PEDIDO]],NM.OCS,1,FALSE) ->  | E112: =LEFT(TB.CTRLFERRI[[#This Row],[BGA]],3) ->  | F112: 2018-07-03 | H112: =IF(TB.CTRLFERRI[[#This Row],[Nº PEDIDO]]>0,TB.CTRLFERRI[[#This Row],[TRANSPORTE]],"") ->  | L112: 101806 | M112: TGHU3479640 | N112: 6*20 | O112: 43290 | P112: TGHU3479640 | S112: TRANSGOM | X112: =IF(TB.CTRLFERRI[[#This Row],[DRIVE]]>0,"OK","") -> 
B113: =VLOOKUP(TB.CTRLFERRI[[#This Row],[Nº PEDIDO]],TB.TDS[[Nº PEDIDO]:[Columna12]],26,FALSE) ->  | D113: =VLOOKUP(TB.CTRLFERRI[[#This Row],[Nº PEDIDO]],NM.OCS,1,FALSE) ->  | E113: =LEFT(TB.CTRLFERRI[[#This Row],[BGA]],3) ->  | F113: 2018-07-03 | H113: =IF(TB.CTRLFERRI[[#This Row],[Nº PEDIDO]]>0,TB.CTRLFERRI[[#This Row],[TRANSPORTE]],"") ->  | L113: 101806 | M113: XINU1155625 | N113: 6*20 | P113: XINU1155625 | S113: TRANSGOM | X113: =IF(TB.CTRLFERRI[[#This Row],[DRIVE]]>0,"OK","") -> 
B114: =VLOOKUP(TB.CTRLFERRI[[#This Row],[Nº PEDIDO]],TB.TDS[[Nº PEDIDO]:[Columna12]],26,FALSE) -> OK | D114: =VLOOKUP(TB.CTRLFERRI[[#This Row],[Nº PEDIDO]],NM.OCS,1,FALSE) -> 4800020813 | E114: =LEFT(TB.CTRLFERRI[[#This Row],[BGA]],3) -> FER | F114: 2018-07-03 | H114: =IF(TB.CTRLFERRI[[#This Row],[Nº PEDIDO]]>0,TB.CTRLFERRI[[#This Row],[TRANSPORTE]],"") -> TRANSGOM | I114: FERRI | J114: 2018-1330 | K114: 4800020813 | L114: 101773 | M114: COMERCIALIZADORA CENTROAMERICANA GL | N114: 1*20 | O114: 43289 | P114: EITU0109253 – 1737 KGS | Q114: FERTISA | R114: MACOBSA | S114: TRANSGOM | T114: 2018-07-03 | U114: 2018-07-03 | V114: 2018-07-03 | W114: 2018-07-04 | X114: =IF(TB.CTRLFERRI[[#This Row],[DRIVE]]>0,"OK","") -> OK
B115: =VLOOKUP(TB.CTRLFERRI[[#This Row],[Nº PEDIDO]],TB.TDS[[Nº PEDIDO]:[Columna12]],26,FALSE) -> OK | D115: =VLOOKUP(TB.CTRLFERRI[[#This Row],[Nº PEDIDO]],NM.OCS,1,FALSE) -> 4800019531 | E115: =LEFT(TB.CTRLFERRI[[#This Row],[BGA]],3) -> FER | F115: 2018-07-03 | H115: =IF(TB.CTRLFERRI[[#This Row],[Nº PEDIDO]]>0,TB.CTRLFERRI[[#This Row],[TRANSPORTE]],"") -> TRANSGOM | I115: FERRI | J115: 2018-0706 | K115: 4800019531 | L115: 114465 | M115: GLOBAL LYNX CORPORATION LIMITED ZON | N115: C/SUELTA | O115: 250 CTNES | P115: BMOU9782303 | Q115: INARPI | R115: VALERO | S115: TRANSGOM | T115: 2018-07-03 | U115: 2018-07-04 | V115: 2018-07-04 | W115: 2018-07-04 | X115: =IF(TB.CTRLFERRI[[#This Row],[DRIVE]]>0,"OK","") -> OK
B116: =VLOOKUP(TB.CTRLFERRI[[#This Row],[Nº PEDIDO]],TB.TDS[[Nº PEDIDO]:[Columna12]],26,FALSE) ->  | D116: =VLOOKUP(TB.CTRLFERRI[[#This Row],[Nº PEDIDO]],NM.OCS,1,FALSE) ->  | E116: =LEFT(TB.CTRLFERRI[[#This Row],[BGA]],3) ->  | F116: 2018-07-03 | H116: =IF(TB.CTRLFERRI[[#This Row],[Nº PEDIDO]]>0,TB.CTRLFERRI[[#This Row],[TRANSPORTE]],"") ->  | J116: CONSOLIDADO 1046 | S116: TRANSGOM | X116: =IF(TB.CTRLFERRI[[#This Row],[DRIVE]]>0,"OK","") -> 
B117: =VLOOKUP(TB.CTRLFERRI[[#This Row],[Nº PEDIDO]],TB.TDS[[Nº PEDIDO]:[Columna12]],26,FALSE) -> OK | D117: =VLOOKUP(TB.CTRLFERRI[[#This Row],[Nº PEDIDO]],NM.OCS,1,FALSE) -> 4800019767 | E117: =LEFT(TB.CTRLFERRI[[#This Row],[BGA]],3) -> FER | F117: 2018-07-03 | H117: =IF(TB.CTRLFERRI[[#This Row],[Nº PEDIDO]]>0,TB.CTRLFERRI[[#This Row],[TRANSPORTE]],"") -> TRANSGOM | I117: FERRI | J117: 2018-0890 | K117: 4800019767 | L117: 117308 | M117: BLACK & DECKER(STANLEY) | N117: 1*40 | O117: 43290 | P117: SMLU7905960 – 12477 KG | Q117: CONTECON | R117: VALERO | S117: TRANSGOM | T117: 2018-07-03 | U117: 2018-07-04 | V117: 2018-07-04 | W117: 2018-07-04 | X117: =IF(TB.CTRLFERRI[[#This Row],[DRIVE]]>0,"OK","") -> OK
B118: =VLOOKUP(TB.CTRLFERRI[[#This Row],[Nº PEDIDO]],TB.TDS[[Nº PEDIDO]:[Columna12]],26,FALSE) -> OK | D118: =VLOOKUP(TB.CTRLFERRI[[#This Row],[Nº PEDIDO]],NM.OCS,1,FALSE) -> 4800020112 | E118: =LEFT(TB.CTRLFERRI[[#This Row],[BGA]],3) -> FER | F118: 2018-07-03 | H118: =IF(TB.CTRLFERRI[[#This Row],[Nº PEDIDO]]>0,TB.CTRLFERRI[[#This Row],[TRANSPORTE]],"") -> TRANSGOM | I118: FERRI | J118: 2018-1050 | K118: 4800020112 | L118: 108886 | M118: BLACK & DECKER(US) INC(DEWALT) | N118: 1*40 | S118: TRANSGOM | T118: 2018-07-03 | U118: 2018-07-04 | V118: 2018-07-04 | W118: 2018-07-04 | X118: =IF(TB.CTRLFERRI[[#This Row],[DRIVE]]>0,"OK","") -> OK
B119: =VLOOKUP(TB.CTRLFERRI[[#This Row],[Nº PEDIDO]],TB.TDS[[Nº PEDIDO]:[Columna12]],26,FALSE) -> OK | D119: =VLOOKUP(TB.CTRLFERRI[[#This Row],[Nº PEDIDO]],NM.OCS,1,FALSE) -> 4800020318 | E119: =LEFT(TB.CTRLFERRI[[#This Row],[BGA]],3) -> FER | F119: 2018-07-03 | H119: =IF(TB.CTRLFERRI[[#This Row],[Nº PEDIDO]]>0,TB.CTRLFERRI[[#This Row],[TRANSPORTE]],"") -> TRANSGOM | I119: FERRI | J119: 2018-1073 | K119: 4800020318 | L119: 100924 | M119: BLACK & DECKER(US) INC(PANAMA HERRA | N119: 1*40 | S119: TRANSGOM | T119: 2018-07-03 | U119: 2018-07-04 | V119: 2018-07-04 | W119: 2018-07-04 | X119: =IF(TB.CTRLFERRI[[#This Row],[DRIVE]]>0,"OK","") -> OK
B120: =VLOOKUP(TB.CTRLFERRI[[#This Row],[Nº PEDIDO]],TB.TDS[[Nº PEDIDO]:[Columna12]],26,FALSE) -> OK | D120: =VLOOKUP(TB.CTRLFERRI[[#This Row],[Nº PEDIDO]],NM.OCS,1,FALSE) -> 4800020514 | E120: =LEFT(TB.CTRLFERRI[[#This Row],[BGA]],3) -> FER | F120: 2018-07-03 | H120: =IF(TB.CTRLFERRI[[#This Row],[Nº PEDIDO]]>0,TB.CTRLFERRI[[#This Row],[TRANSPORTE]],"") -> TRANSGOM | I120: FERRI | J120: 2018-1133 | K120: 4800020514 | L120: 100325 | M120: STANLEY BLACK & DECKER,INC(HERRAMIE | N120: 1*40 | S120: TRANSGOM | T120: 2018-07-03 | U120: 2018-07-04 | V120: 2018-07-04 | W120: 2018-07-04 | X120: =IF(TB.CTRLFERRI[[#This Row],[DRIVE]]>0,"OK","") -> OK
B121: =VLOOKUP(TB.CTRLFERRI[[#This Row],[Nº PEDIDO]],TB.TDS[[Nº PEDIDO]:[Columna12]],26,FALSE) -> OK | D121: =VLOOKUP(TB.CTRLFERRI[[#This Row],[Nº PEDIDO]],NM.OCS,1,FALSE) -> 4800020183 | E121: =LEFT(TB.CTRLFERRI[[#This Row],[BGA]],3) -> FER | F121: 2018-07-03 | H121: =IF(TB.CTRLFERRI[[#This Row],[Nº PEDIDO]]>0,TB.CTRLFERRI[[#This Row],[TRANSPORTE]],"") -> TRANSGOM | I121: FERRI | J121: 2018-1134 | K121: 4800020183 | L121: 117308 | M121: BLACK & DECKER(STANLEY) | N121: 1*40 | S121: TRANSGOM | T121: 2018-07-03 | U121: 2018-07-04 | V121: 2018-07-04 | W121: 2018-07-04 | X121: =IF(TB.CTRLFERRI[[#This Row],[DRIVE]]>0,"OK","") -> OK
B122: =VLOOKUP(TB.CTRLFERRI[[#This Row],[Nº PEDIDO]],TB.TDS[[Nº PEDIDO]:[Columna12]],26,FALSE) -> OK | D122: =VLOOKUP(TB.CTRLFERRI[[#This Row],[Nº PEDIDO]],NM.OCS,1,FALSE) -> 4800020305 | E122: =LEFT(TB.CTRLFERRI[[#This Row],[BGA]],3) -> FER | F122: 2018-07-03 | H122: =IF(TB.CTRLFERRI[[#This Row],[Nº PEDIDO]]>0,TB.CTRLFERRI[[#This Row],[TRANSPORTE]],"") -> TRANSGOM | I122: FERRI | J122: 2018-1184 | K122: 4800020305 | L122: 117304 | M122: BLACK & DECKER(DE WALT-INEN) | N122: 1*40 | S122: TRANSGOM | T122: 2018-07-03 | U122: 2018-07-04 | V122: 2018-07-04 | W122: 2018-07-04 | X122: =IF(TB.CTRLFERRI[[#This Row],[DRIVE]]>0,"OK","") -> OK
B123: =VLOOKUP(TB.CTRLFERRI[[#This Row],[Nº PEDIDO]],TB.TDS[[Nº PEDIDO]:[Columna12]],26,FALSE) -> OK | D123: =VLOOKUP(TB.CTRLFERRI[[#This Row],[Nº PEDIDO]],NM.OCS,1,FALSE) -> 4800020448 | E123: =LEFT(TB.CTRLFERRI[[#This Row],[BGA]],3) -> FER | F123: 2018-07-03 | H123: =IF(TB.CTRLFERRI[[#This Row],[Nº PEDIDO]]>0,TB.CTRLFERRI[[#This Row],[TRANSPORTE]],"") -> TRANSGOM | I123: FERRI | J123: 2018-1186 | K123: 4800020448 | L123: 117304 | M123: BLACK & DECKER(DE WALT-INEN) | N123: 1*40 | S123: TRANSGOM | T123: 2018-07-03 | U123: 2018-07-04 | V123: 2018-07-04 | W123: 2018-07-04 | X123: =IF(TB.CTRLFERRI[[#This Row],[DRIVE]]>0,"OK","") -> OK
B124: =VLOOKUP(TB.CTRLFERRI[[#This Row],[Nº PEDIDO]],TB.TDS[[Nº PEDIDO]:[Columna12]],26,FALSE) -> OK | D124: =VLOOKUP(TB.CTRLFERRI[[#This Row],[Nº PEDIDO]],NM.OCS,1,FALSE) -> 4800020306 | E124: =LEFT(TB.CTRLFERRI[[#This Row],[BGA]],3) -> FER | F124: 2018-07-03 | H124: =IF(TB.CTRLFERRI[[#This Row],[Nº PEDIDO]]>0,TB.CTRLFERRI[[#This Row],[TRANSPORTE]],"") -> TRANSGOM | I124: FERRI | J124: 2018-1187 | K124: 4800020306 | L124: 117305 | M124: BLACK & DECKER(B&D-INEN) | N124: 1*40 | S124: TRANSGOM | T124: 2018-07-03 | U124: 2018-07-04 | V124: 2018-07-04 | W124: 2018-07-04 | X124: =IF(TB.CTRLFERRI[[#This Row],[DRIVE]]>0,"OK","") -> OK
B125: =VLOOKUP(TB.CTRLFERRI[[#This Row],[Nº PEDIDO]],TB.TDS[[Nº PEDIDO]:[Columna12]],26,FALSE) -> OK | D125: =VLOOKUP(TB.CTRLFERRI[[#This Row],[Nº PEDIDO]],NM.OCS,1,FALSE) -> 4800020614 | E125: =LEFT(TB.CTRLFERRI[[#This Row],[BGA]],3) -> FER | F125: 2018-07-03 | H125: =IF(TB.CTRLFERRI[[#This Row],[Nº PEDIDO]]>0,TB.CTRLFERRI[[#This Row],[TRANSPORTE]],"") -> TRANSGOM | I125: FERRI | J125: 2018-1191 | K125: 4800020614 | L125: 118779 | M125: BREWSTER HOME FASHIONS | N125: 1*40 | S125: TRANSGOM | T125: 2018-07-03 | U125: 2018-07-04 | V125: 2018-07-04 | W125: 2018-07-04 | X125: =IF(TB.CTRLFERRI[[#This Row],[DRIVE]]>0,"OK","") -> OK
B126: =VLOOKUP(TB.CTRLFERRI[[#This Row],[Nº PEDIDO]],TB.TDS[[Nº PEDIDO]:[Columna12]],26,FALSE) -> OK | D126: =VLOOKUP(TB.CTRLFERRI[[#This Row],[Nº PEDIDO]],NM.OCS,1,FALSE) -> 4800020462 | E126: =LEFT(TB.CTRLFERRI[[#This Row],[BGA]],3) -> FER | F126: 2018-07-03 | H126: =IF(TB.CTRLFERRI[[#This Row],[Nº PEDIDO]]>0,TB.CTRLFERRI[[#This Row],[TRANSPORTE]],"") -> TRANSGOM | I126: FERRI | J126: 2018-1239 | K126: 4800020462 | L126: 101970 | M126: STANLEY BLACK & DECKER(ACCES-MIRAMA | N126: 1*40 | S126: TRANSGOM | T126: 2018-07-03 | U126: 2018-07-03 | V126: 2018-07-03 | W126: 2018-07-04 | X126: =IF(TB.CTRLFERRI[[#This Row],[DRIVE]]>0,"OK","") -> OK
B127: =VLOOKUP(TB.CTRLFERRI[[#This Row],[Nº PEDIDO]],TB.TDS[[Nº PEDIDO]:[Columna12]],26,FALSE) -> OK | D127: =VLOOKUP(TB.CTRLFERRI[[#This Row],[Nº PEDIDO]],NM.OCS,1,FALSE) -> 4800020477 | E127: =LEFT(TB.CTRLFERRI[[#This Row],[BGA]],3) -> FER | F127: 2018-07-03 | H127: =IF(TB.CTRLFERRI[[#This Row],[Nº PEDIDO]]>0,TB.CTRLFERRI[[#This Row],[TRANSPORTE]],"") -> TRANSGOM | I127: FERRI | J127: 2018-1240 | K127: 4800020477 | L127: 117761 | M127: STANLEY BLACK & DECKER(ACCES-FORT | N127: 1*40 | S127: TRANSGOM | T127: 2018-07-03 | U127: 2018-07-03 | V127: 2018-07-03 | W127: 2018-07-04 | X127: =IF(TB.CTRLFERRI[[#This Row],[DRIVE]]>0,"OK","") -> OK
B128: =VLOOKUP(TB.CTRLFERRI[[#This Row],[Nº PEDIDO]],TB.TDS[[Nº PEDIDO]:[Columna12]],26,FALSE) -> OK | D128: =VLOOKUP(TB.CTRLFERRI[[#This Row],[Nº PEDIDO]],NM.OCS,1,FALSE) -> 4800020811 | E128: =LEFT(TB.CTRLFERRI[[#This Row],[BGA]],3) -> FER | F128: 2018-07-03 | H128: =IF(TB.CTRLFERRI[[#This Row],[Nº PEDIDO]]>0,TB.CTRLFERRI[[#This Row],[TRANSPORTE]],"") -> TRANSGOM | I128: FERRI | J128: 2018-1347 | K128: 4800020811 | L128: 100341 | M128: A.L.P. LIGHTING COMPONENTS INC. | N128: 1*40 | S128: TRANSGOM | T128: 2018-07-03 | U128: 2018-07-03 | V128: 2018-07-03 | W128: 2018-07-04 | X128: =IF(TB.CTRLFERRI[[#This Row],[DRIVE]]>0,"OK","") -> OK
B129: =VLOOKUP(TB.CTRLFERRI[[#This Row],[Nº PEDIDO]],TB.TDS[[Nº PEDIDO]:[Columna12]],26,FALSE) -> OK | D129: =VLOOKUP(TB.CTRLFERRI[[#This Row],[Nº PEDIDO]],NM.OCS,1,FALSE) -> 4800020496 | E129: =LEFT(TB.CTRLFERRI[[#This Row],[BGA]],3) -> FER | F129: 2018-07-03 | H129: =IF(TB.CTRLFERRI[[#This Row],[Nº PEDIDO]]>0,TB.CTRLFERRI[[#This Row],[TRANSPORTE]],"") -> TRANSGOM | I129: FERRI | J129: 2018-1357 | K129: 4800020496 | L129: 108886 | M129: BLACK & DECKER(US) INC(DEWALT) | N129: 1*40 | S129: TRANSGOM | T129: 2018-07-03 | U129: 2018-07-03 | V129: 2018-07-03 | W129: 2018-07-04 | X129: =IF(TB.CTRLFERRI[[#This Row],[DRIVE]]>0,"OK","") -> OK
B130: =VLOOKUP(TB.CTRLFERRI[[#This Row],[Nº PEDIDO]],TB.TDS[[Nº PEDIDO]:[Columna12]],26,FALSE) ->  | D130: =VLOOKUP(TB.CTRLFERRI[[#This Row],[Nº PEDIDO]],NM.OCS,1,FALSE) ->  | E130: =LEFT(TB.CTRLFERRI[[#This Row],[BGA]],3) ->  | H130: =IF(TB.CTRLFERRI[[#This Row],[Nº PEDIDO]]>0,TB.CTRLFERRI[[#This Row],[TRANSPORTE]],"") ->  | X130: =IF(TB.CTRLFERRI[[#This Row],[DRIVE]]>0,"OK","") -> 
B131: =VLOOKUP(TB.CTRLFERRI[[#This Row],[Nº PEDIDO]],TB.TDS[[Nº PEDIDO]:[Columna12]],26,FALSE) ->  | D131: =VLOOKUP(TB.CTRLFERRI[[#This Row],[Nº PEDIDO]],NM.OCS,1,FALSE) ->  | E131: =LEFT(TB.CTRLFERRI[[#This Row],[BGA]],3) ->  | H131: =IF(TB.CTRLFERRI[[#This Row],[Nº PEDIDO]]>0,TB.CTRLFERRI[[#This Row],[TRANSPORTE]],"") ->  | X131: =IF(TB.CTRLFERRI[[#This Row],[DRIVE]]>0,"OK","") -> 
B132: =VLOOKUP(TB.CTRLFERRI[[#This Row],[Nº PEDIDO]],TB.TDS[[Nº PEDIDO]:[Columna12]],26,FALSE) ->  | D132: =VLOOKUP(TB.CTRLFERRI[[#This Row],[Nº PEDIDO]],NM.OCS,1,FALSE) ->  | E132: =LEFT(TB.CTRLFERRI[[#This Row],[BGA]],3) -> SAL | F132: 2018-07-02 | H132: =IF(TB.CTRLFERRI[[#This Row],[Nº PEDIDO]]>0,TB.CTRLFERRI[[#This Row],[TRANSPORTE]],"") ->  | I132: SALE MARTES 03/JULIO/2018 | X132: =IF(TB.CTRLFERRI[[#This Row],[DRIVE]]>0,"OK","") -> 
B133: =VLOOKUP(TB.CTRLFERRI[[#This Row],[Nº PEDIDO]],TB.TDS[[Nº PEDIDO]:[Columna12]],26,FALSE) ->  | D133: =VLOOKUP(TB.CTRLFERRI[[#This Row],[Nº PEDIDO]],NM.OCS,1,FALSE) ->  | E133: =LEFT(TB.CTRLFERRI[[#This Row],[BGA]],3) -> BGA | F133: 2018-07-02 | H133: =IF(TB.CTRLFERRI[[#This Row],[Nº PEDIDO]]>0,TB.CTRLFERRI[[#This Row],[TRANSPORTE]],"") -> TRANSPORTE | I133: BGA | J133: OPERAC. | K133: Nº PEDIDO | L133: PROV. | M133: NOMBRE / PROVEEDOR | N133: CAPACIDAD | O133: LIBRE HASTA | P133: CONTENEDOR | Q133: MÓDULO | R133: DESP. | S133: TRANSPORTE | X133: =IF(TB.CTRLFERRI[[#This Row],[DRIVE]]>0,"OK","") -> 
B134: =VLOOKUP(TB.CTRLFERRI[[#This Row],[Nº PEDIDO]],TB.TDS[[Nº PEDIDO]:[Columna12]],26,FALSE) -> OK | D134: =VLOOKUP(TB.CTRLFERRI[[#This Row],[Nº PEDIDO]],NM.OCS,1,FALSE) -> 4800019520 | E134: =LEFT(TB.CTRLFERRI[[#This Row],[BGA]],3) -> FER | F134: REPETIDO | H134: =IF(TB.CTRLFERRI[[#This Row],[Nº PEDIDO]]>0,TB.CTRLFERRI[[#This Row],[TRANSPORTE]],"") -> TRANSGOM | I134: FERRI | J134: 2018-0832 | K134: 4800019520 | L134: 117169 | M134: PANASONIC LATIN(AIRE ACONDICIONADO) | N134: 1*40 | O134: 43283 | P134: TCLU4560022 – 8787.85 KGS | Q134: INARPI | R134: MACOBSA | S134: TRANSGOM | W134: 2018-06-29 | X134: =IF(TB.CTRLFERRI[[#This Row],[DRIVE]]>0,"OK","") -> OK
B135: =VLOOKUP(TB.CTRLFERRI[[#This Row],[Nº PEDIDO]],TB.TDS[[Nº PEDIDO]:[Columna12]],26,FALSE) ->  | D135: =VLOOKUP(TB.CTRLFERRI[[#This Row],[Nº PEDIDO]],NM.OCS,1,FALSE) ->  | E135: =LEFT(TB.CTRLFERRI[[#This Row],[BGA]],3) ->  | F135: 2018-07-02 | H135: =IF(TB.CTRLFERRI[[#This Row],[Nº PEDIDO]]>0,TB.CTRLFERRI[[#This Row],[TRANSPORTE]],"") ->  | J135: CONSOLIDADO 993 | S135: TCE | X135: =IF(TB.CTRLFERRI[[#This Row],[DRIVE]]>0,"OK","") -> 
B136: =VLOOKUP(TB.CTRLFERRI[[#This Row],[Nº PEDIDO]],TB.TDS[[Nº PEDIDO]:[Columna12]],26,FALSE) -> OK | D136: =VLOOKUP(TB.CTRLFERRI[[#This Row],[Nº PEDIDO]],NM.OCS,1,FALSE) -> 4800019601 | E136: =LEFT(TB.CTRLFERRI[[#This Row],[BGA]],3) -> FER | F136: REPETIDO | H136: =IF(TB.CTRLFERRI[[#This Row],[Nº PEDIDO]]>0,TB.CTRLFERRI[[#This Row],[TRANSPORTE]],"") -> TCE | I136: FERRI | J136: 2018-0854 | K136: 4800019601 | L136: 118809 | M136: INTERDESIGN INC | N136: 1*40 | O136: SEPARACION | P136: SALIDA ALMACENERA – SE DESCARGA EL MISMO DIA | Q136: TCE | R136: MACOBSA | S136: TCE | W136: 2018-06-26 | X136: =IF(TB.CTRLFERRI[[#This Row],[DRIVE]]>0,"OK","") -> OK
B137: =VLOOKUP(TB.CTRLFERRI[[#This Row],[Nº PEDIDO]],TB.TDS[[Nº PEDIDO]:[Columna12]],26,FALSE) ->  | D137: =VLOOKUP(TB.CTRLFERRI[[#This Row],[Nº PEDIDO]],NM.OCS,1,FALSE) ->  | E137: =LEFT(TB.CTRLFERRI[[#This Row],[BGA]],3) -> FER | F137: ropa | H137: =IF(TB.CTRLFERRI[[#This Row],[Nº PEDIDO]]>0,TB.CTRLFERRI[[#This Row],[TRANSPORTE]],"") -> TCE | I137: FERRI | J137: 2018-0923 | K137: 4800020030 | L137: 114863 | M137: NEWELL RUBBERMAID COMPANY – ROPA | N137: 1*40 | S137: TCE | X137: =IF(TB.CTRLFERRI[[#This Row],[DRIVE]]>0,"OK","") -> 
B138: =VLOOKUP(TB.CTRLFERRI[[#This Row],[Nº PEDIDO]],TB.TDS[[Nº PEDIDO]:[Columna12]],26,FALSE) ->  | D138: =VLOOKUP(TB.CTRLFERRI[[#This Row],[Nº PEDIDO]],NM.OCS,1,FALSE) ->  | E138: =LEFT(TB.CTRLFERRI[[#This Row],[BGA]],3) -> FER | F138: bcentral | H138: =IF(TB.CTRLFERRI[[#This Row],[Nº PEDIDO]]>0,TB.CTRLFERRI[[#This Row],[TRANSPORTE]],"") -> TCE | I138: FERRI | J138: 2018-1020 | K138: 4800019653 | L138: 107157 | M138: BADIA SPICES, INC. | N138: 1*40 | S138: TCE | X138: =IF(TB.CTRLFERRI[[#This Row],[DRIVE]]>0,"OK","") -> 
B139: =VLOOKUP(TB.CTRLFERRI[[#This Row],[Nº PEDIDO]],TB.TDS[[Nº PEDIDO]:[Columna12]],26,FALSE) -> OK | D139: =VLOOKUP(TB.CTRLFERRI[[#This Row],[Nº PEDIDO]],NM.OCS,1,FALSE) -> 4800019819 | E139: =LEFT(TB.CTRLFERRI[[#This Row],[BGA]],3) -> FER | F139: 2018-07-02 | H139: =IF(TB.CTRLFERRI[[#This Row],[Nº PEDIDO]]>0,TB.CTRLFERRI[[#This Row],[TRANSPORTE]],"") -> TELSUPREMA | I139: FERRI | J139: 2018-0970 | K139: 4800019819 | L139: 100647 | M139: PLASTICOS RIMAX S.A.S. | N139: 5*40 | O139: 43285 | P139: MRKU0030293 | Q139: CONTECON | R139: VALERO | S139: TELSUPREMA | T139: 2018-07-02 | U139: 2018-07-02 | V139: 2018-07-02 | W139: 2018-07-02 | X139: =IF(TB.CTRLFERRI[[#This Row],[DRIVE]]>0,"OK","") -> OK
B140: =VLOOKUP(TB.CTRLFERRI[[#This Row],[Nº PEDIDO]],TB.TDS[[Nº PEDIDO]:[Columna12]],26,FALSE) ->  | D140: =VLOOKUP(TB.CTRLFERRI[[#This Row],[Nº PEDIDO]],NM.OCS,1,FALSE) ->  | E140: =LEFT(TB.CTRLFERRI[[#This Row],[BGA]],3) ->  | H140: =IF(TB.CTRLFERRI[[#This Row],[Nº PEDIDO]]>0,TB.CTRLFERRI[[#This Row],[TRANSPORTE]],"") ->  | X140: =IF(TB.CTRLFERRI[[#This Row],[DRIVE]]>0,"OK","") -> 
B141: =VLOOKUP(TB.CTRLFERRI[[#This Row],[Nº PEDIDO]],TB.TDS[[Nº PEDIDO]:[Columna12]],26,FALSE) ->  | D141: =VLOOKUP(TB.CTRLFERRI[[#This Row],[Nº PEDIDO]],NM.OCS,1,FALSE) ->  | E141: =LEFT(TB.CTRLFERRI[[#This Row],[BGA]],3) -> SAL | F141: 2018-06-29 | H141: =IF(TB.CTRLFERRI[[#This Row],[Nº PEDIDO]]>0,TB.CTRLFERRI[[#This Row],[TRANSPORTE]],"") ->  | I141: SALE LUNES 2 /JULIO/2018 // DESCARGA - MARTES 3 /JULIO/2018 | X141: =IF(TB.CTRLFERRI[[#This Row],[DRIVE]]>0,"OK","") -> 
B142: =VLOOKUP(TB.CTRLFERRI[[#This Row],[Nº PEDIDO]],TB.TDS[[Nº PEDIDO]:[Columna12]],26,FALSE) ->  | D142: =VLOOKUP(TB.CTRLFERRI[[#This Row],[Nº PEDIDO]],NM.OCS,1,FALSE) ->  | E142: =LEFT(TB.CTRLFERRI[[#This Row],[BGA]],3) -> BGA | F142: 2018-06-29 | H142: =IF(TB.CTRLFERRI[[#This Row],[Nº PEDIDO]]>0,TB.CTRLFERRI[[#This Row],[TRANSPORTE]],"") -> TRANSPORTE | I142: BGA | J142: OPERAC. | K142: Nº PEDIDO | L142: PROV. | M142: NOMBRE / PROVEEDOR | N142: CAPACIDAD | O142: DÍAS LIBRES HASTA | P142: CONTENEDOR | Q142: MÓDULO | R142: DESPACHADOR | S142: TRANSPORTE | X142: =IF(TB.CTRLFERRI[[#This Row],[DRIVE]]>0,"OK","") -> 
B143: =VLOOKUP(TB.CTRLFERRI[[#This Row],[Nº PEDIDO]],TB.TDS[[Nº PEDIDO]:[Columna12]],26,FALSE) -> OK | D143: =VLOOKUP(TB.CTRLFERRI[[#This Row],[Nº PEDIDO]],NM.OCS,1,FALSE) -> 4800018565 | E143: =LEFT(TB.CTRLFERRI[[#This Row],[BGA]],3) -> JUG | F143: 2018-06-29 | H143: =IF(TB.CTRLFERRI[[#This Row],[Nº PEDIDO]]>0,TB.CTRLFERRI[[#This Row],[TRANSPORTE]],"") -> TELSUPREMA | I143: JUGUET | J143: 2017-2899 | K143: 4800018565 | L143: 118651 | M143: ITC-R.G.H WOLF GROUP | N143: 1*40 | O143: 43297 | P143: TGHU4780690 | Q143: INARPI | R143: MACOBSA | S143: TELSUPREMA | T143: 2018-06-29 | U143: 2018-06-29 | V143: 2018-06-29 | W143: 2018-06-29 | X143: =IF(TB.CTRLFERRI[[#This Row],[DRIVE]]>0,"OK","") -> OK
B144: =VLOOKUP(TB.CTRLFERRI[[#This Row],[Nº PEDIDO]],TB.TDS[[Nº PEDIDO]:[Columna12]],26,FALSE) ->  | D144: =VLOOKUP(TB.CTRLFERRI[[#This Row],[Nº PEDIDO]],NM.OCS,1,FALSE) ->  | E144: =LEFT(TB.CTRLFERRI[[#This Row],[BGA]],3) ->  | F144: 2018-06-29 | H144: =IF(TB.CTRLFERRI[[#This Row],[Nº PEDIDO]]>0,TB.CTRLFERRI[[#This Row],[TRANSPORTE]],"") ->  | X144: =IF(TB.CTRLFERRI[[#This Row],[DRIVE]]>0,"OK","") -> 
B145: =VLOOKUP(TB.CTRLFERRI[[#This Row],[Nº PEDIDO]],TB.TDS[[Nº PEDIDO]:[Columna12]],26,FALSE) ->  | D145: =VLOOKUP(TB.CTRLFERRI[[#This Row],[Nº PEDIDO]],NM.OCS,1,FALSE) ->  | E145: =LEFT(TB.CTRLFERRI[[#This Row],[BGA]],3) ->  | F145: 2018-06-29 | H145: =IF(TB.CTRLFERRI[[#This Row],[Nº PEDIDO]]>0,TB.CTRLFERRI[[#This Row],[TRANSPORTE]],"") ->  | X145: =IF(TB.CTRLFERRI[[#This Row],[DRIVE]]>0,"OK","") -> 
B146: =VLOOKUP(TB.CTRLFERRI[[#This Row],[Nº PEDIDO]],TB.TDS[[Nº PEDIDO]:[Columna12]],26,FALSE) ->  | D146: =VLOOKUP(TB.CTRLFERRI[[#This Row],[Nº PEDIDO]],NM.OCS,1,FALSE) ->  | E146: =LEFT(TB.CTRLFERRI[[#This Row],[BGA]],3) -> SAL | F146: 2018-06-29 | H146: =IF(TB.CTRLFERRI[[#This Row],[Nº PEDIDO]]>0,TB.CTRLFERRI[[#This Row],[TRANSPORTE]],"") ->  | I146: SALE MARTES 3 /JULIO/2018 // DESCARGA MIÉRCOLES 4 /JULIO/2018 | X146: =IF(TB.CTRLFERRI[[#This Row],[DRIVE]]>0,"OK","") -> 
B147: =VLOOKUP(TB.CTRLFERRI[[#This Row],[Nº PEDIDO]],TB.TDS[[Nº PEDIDO]:[Columna12]],26,FALSE) ->  | D147: =VLOOKUP(TB.CTRLFERRI[[#This Row],[Nº PEDIDO]],NM.OCS,1,FALSE) ->  | E147: =LEFT(TB.CTRLFERRI[[#This Row],[BGA]],3) -> BGA | F147: 2018-06-29 | H147: =IF(TB.CTRLFERRI[[#This Row],[Nº PEDIDO]]>0,TB.CTRLFERRI[[#This Row],[TRANSPORTE]],"") -> TRANSPORTE | I147: BGA | J147: OPERAC. | K147: Nº PEDIDO | L147: PROV. | M147: NOMBRE / PROVEEDOR | N147: CAPACIDAD | O147: DÍAS LIBRES HASTA | P147: CONTENEDOR | Q147: MÓDULO | R147: DESPACHADOR | S147: TRANSPORTE | X147: =IF(TB.CTRLFERRI[[#This Row],[DRIVE]]>0,"OK","") -> 
B148: =VLOOKUP(TB.CTRLFERRI[[#This Row],[Nº PEDIDO]],TB.TDS[[Nº PEDIDO]:[Columna12]],26,FALSE) -> OK | D148: =VLOOKUP(TB.CTRLFERRI[[#This Row],[Nº PEDIDO]],NM.OCS,1,FALSE) -> 4800020409 | E148: =LEFT(TB.CTRLFERRI[[#This Row],[BGA]],3) -> JUG | F148: 2018-06-29 | H148: =IF(TB.CTRLFERRI[[#This Row],[Nº PEDIDO]]>0,TB.CTRLFERRI[[#This Row],[TRANSPORTE]],"") -> TELSUPREMA | I148: JUGUET | J148: 2018-0758 | K148: 4800020409 | L148: 100210 | M148: MATTEL, INC. | N148: 1*20 | O148: 43297 | P148: EITU0018940 | Q148: INARPI | R148: MACOBSA | S148: TELSUPREMA | T148: 2018-07-02 | U148: 2018-07-02 | V148: 2018-07-02 | W148: 2018-07-02 | X148: =IF(TB.CTRLFERRI[[#This Row],[DRIVE]]>0,"OK","") -> OK
B149: =VLOOKUP(TB.CTRLFERRI[[#This Row],[Nº PEDIDO]],TB.TDS[[Nº PEDIDO]:[Columna12]],26,FALSE) ->  | D149: =VLOOKUP(TB.CTRLFERRI[[#This Row],[Nº PEDIDO]],NM.OCS,1,FALSE) ->  | E149: =LEFT(TB.CTRLFERRI[[#This Row],[BGA]],3) ->  | F149: 2018-06-29 | H149: =IF(TB.CTRLFERRI[[#This Row],[Nº PEDIDO]]>0,TB.CTRLFERRI[[#This Row],[TRANSPORTE]],"") ->  | X149: =IF(TB.CTRLFERRI[[#This Row],[DRIVE]]>0,"OK","") -> 
B150: =VLOOKUP(TB.CTRLFERRI[[#This Row],[Nº PEDIDO]],TB.TDS[[Nº PEDIDO]:[Columna12]],26,FALSE) ->  | D150: =VLOOKUP(TB.CTRLFERRI[[#This Row],[Nº PEDIDO]],NM.OCS,1,FALSE) ->  | E150: =LEFT(TB.CTRLFERRI[[#This Row],[BGA]],3) ->  | F150: 2018-06-29 | H150: =IF(TB.CTRLFERRI[[#This Row],[Nº PEDIDO]]>0,TB.CTRLFERRI[[#This Row],[TRANSPORTE]],"") ->  | X150: =IF(TB.CTRLFERRI[[#This Row],[DRIVE]]>0,"OK","") -> 
B151: =VLOOKUP(TB.CTRLFERRI[[#This Row],[Nº PEDIDO]],TB.TDS[[Nº PEDIDO]:[Columna12]],26,FALSE) ->  | D151: =VLOOKUP(TB.CTRLFERRI[[#This Row],[Nº PEDIDO]],NM.OCS,1,FALSE) ->  | E151: =LEFT(TB.CTRLFERRI[[#This Row],[BGA]],3) -> SAL | F151: 2018-06-29 | H151: =IF(TB.CTRLFERRI[[#This Row],[Nº PEDIDO]]>0,TB.CTRLFERRI[[#This Row],[TRANSPORTE]],"") ->  | I151: SALE MIÉRCOLES 4 /JULIO/2018 // DESCARGA JUEVES 5 /JULIO/2018 | J151: SALE MIÉRCOLES 4 /JULIO/2018 // DESCARGA JUEVES 5 /JULIO/2018 | X151: =IF(TB.CTRLFERRI[[#This Row],[DRIVE]]>0,"OK","") -> 
B152: =VLOOKUP(TB.CTRLFERRI[[#This Row],[Nº PEDIDO]],TB.TDS[[Nº PEDIDO]:[Columna12]],26,FALSE) ->  | D152: =VLOOKUP(TB.CTRLFERRI[[#This Row],[Nº PEDIDO]],NM.OCS,1,FALSE) ->  | E152: =LEFT(TB.CTRLFERRI[[#This Row],[BGA]],3) -> BGA | F152: 2018-06-29 | H152: =IF(TB.CTRLFERRI[[#This Row],[Nº PEDIDO]]>0,TB.CTRLFERRI[[#This Row],[TRANSPORTE]],"") -> TRANSPORTE | I152: BGA | J152: OPERAC. | K152: Nº PEDIDO | L152: PROV. | M152: NOMBRE / PROVEEDOR | N152: CAPACIDAD | O152: DÍAS LIBRES HASTA | P152: CONTENEDOR | Q152: MÓDULO | R152: DESPACHADOR | S152: TRANSPORTE | X152: =IF(TB.CTRLFERRI[[#This Row],[DRIVE]]>0,"OK","") -> 
B153: =VLOOKUP(TB.CTRLFERRI[[#This Row],[Nº PEDIDO]],TB.TDS[[Nº PEDIDO]:[Columna12]],26,FALSE) -> OK | D153: =VLOOKUP(TB.CTRLFERRI[[#This Row],[Nº PEDIDO]],NM.OCS,1,FALSE) -> 4800018011 | E153: =LEFT(TB.CTRLFERRI[[#This Row],[BGA]],3) -> JUG | F153: 2018-06-29 | H153: =IF(TB.CTRLFERRI[[#This Row],[Nº PEDIDO]]>0,TB.CTRLFERRI[[#This Row],[TRANSPORTE]],"") -> TELSUPREMA | I153: JUGUET | J153: 2017-2765 | K153: 4800018011 | L153: 100993 | M153: FOSTER INTERNATIONAL CORP | N153: 1*40 | O153: 43298 | P153: TCLU7975336 | Q153: INARPI | R153: VALERO | S153: TELSUPREMA | T153: 2018-07-02 | U153: 2018-07-02 | V153: 2018-07-02 | W153: 2018-07-02 | X153: =IF(TB.CTRLFERRI[[#This Row],[DRIVE]]>0,"OK","") -> OK
B154: =VLOOKUP(TB.CTRLFERRI[[#This Row],[Nº PEDIDO]],TB.TDS[[Nº PEDIDO]:[Columna12]],26,FALSE) ->  | D154: =VLOOKUP(TB.CTRLFERRI[[#This Row],[Nº PEDIDO]],NM.OCS,1,FALSE) ->  | E154: =LEFT(TB.CTRLFERRI[[#This Row],[BGA]],3) ->  | H154: =IF(TB.CTRLFERRI[[#This Row],[Nº PEDIDO]]>0,TB.CTRLFERRI[[#This Row],[TRANSPORTE]],"") ->  | X154: =IF(TB.CTRLFERRI[[#This Row],[DRIVE]]>0,"OK","") -> 
B155: =VLOOKUP(TB.CTRLFERRI[[#This Row],[Nº PEDIDO]],TB.TDS[[Nº PEDIDO]:[Columna12]],26,FALSE) ->  | D155: =VLOOKUP(TB.CTRLFERRI[[#This Row],[Nº PEDIDO]],NM.OCS,1,FALSE) ->  | E155: =LEFT(TB.CTRLFERRI[[#This Row],[BGA]],3) ->  | X155: =IF(TB.CTRLFERRI[[#This Row],[DRIVE]]>0,"OK","") -> 
B156: =VLOOKUP(TB.CTRLFERRI[[#This Row],[Nº PEDIDO]],TB.TDS[[Nº PEDIDO]:[Columna12]],26,FALSE) ->  | D156: =VLOOKUP(TB.CTRLFERRI[[#This Row],[Nº PEDIDO]],NM.OCS,1,FALSE) ->  | E156: =LEFT(TB.CTRLFERRI[[#This Row],[BGA]],3) -> SAL | F156: 2018-06-29 | H156: =IF(TB.CTRLFERRI[[#This Row],[Nº PEDIDO]]>0,TB.CTRLFERRI[[#This Row],[TRANSPORTE]],"") ->  | I156: SALE SÁBADO 30/JUNIO/2018 | X156: =IF(TB.CTRLFERRI[[#This Row],[DRIVE]]>0,"OK","") -> 
B157: =VLOOKUP(TB.CTRLFERRI[[#This Row],[Nº PEDIDO]],TB.TDS[[Nº PEDIDO]:[Columna12]],26,FALSE) ->  | D157: =VLOOKUP(TB.CTRLFERRI[[#This Row],[Nº PEDIDO]],NM.OCS,1,FALSE) ->  | E157: =LEFT(TB.CTRLFERRI[[#This Row],[BGA]],3) -> BGA | F157: 2018-06-29 | H157: =IF(TB.CTRLFERRI[[#This Row],[Nº PEDIDO]]>0,TB.CTRLFERRI[[#This Row],[TRANSPORTE]],"") -> TRANSPORTE | I157: BGA | J157: OPERAC. | K157: Nº PEDIDO | L157: PROV. | M157: NOMBRE / PROVEEDOR | N157: CAPACIDAD | O157: LIBRE HASTA | P157: CONTENEDOR | Q157: MÓDULO | R157: DESP. | S157: TRANSPORTE | X157: =IF(TB.CTRLFERRI[[#This Row],[DRIVE]]>0,"OK","") -> 
B158: =VLOOKUP(TB.CTRLFERRI[[#This Row],[Nº PEDIDO]],TB.TDS[[Nº PEDIDO]:[Columna12]],26,FALSE) -> OK | D158: =VLOOKUP(TB.CTRLFERRI[[#This Row],[Nº PEDIDO]],NM.OCS,1,FALSE) -> 4800018759 | E158: =LEFT(TB.CTRLFERRI[[#This Row],[BGA]],3) -> FER | F158: 2018-06-29 | H158: =IF(TB.CTRLFERRI[[#This Row],[Nº PEDIDO]]>0,TB.CTRLFERRI[[#This Row],[TRANSPORTE]],"") -> TELSUPREMA | I158: FERRI | J158: 2018-0482 | K158: 4800018759 | L158: 107452 | M158: ACE (NINGBO QINYUAN GROUP CO.LTD) | N158: 1*20 – 1*40 | O158: 43283 | P158: APZU4520226 | Q158: INARPI | R158: VALERO | S158: TELSUPREMA | T158: 2018-06-29 | U158: 2018-06-29 | V158: 2018-06-29 | W158: 2018-06-29 | X158: =IF(TB.CTRLFERRI[[#This Row],[DRIVE]]>0,"OK","") -> OK
B159: =VLOOKUP(TB.CTRLFERRI[[#This Row],[Nº PEDIDO]],TB.TDS[[Nº PEDIDO]:[Columna12]],26,FALSE) -> OK | D159: =VLOOKUP(TB.CTRLFERRI[[#This Row],[Nº PEDIDO]],NM.OCS,1,FALSE) -> 4800018708 | E159: =LEFT(TB.CTRLFERRI[[#This Row],[BGA]],3) -> FER | F159: 2018-06-29 | H159: =IF(TB.CTRLFERRI[[#This Row],[Nº PEDIDO]]>0,TB.CTRLFERRI[[#This Row],[TRANSPORTE]],"") -> TELSUPREMA | I159: FERRI | J159: 2018-0424 | K159: 4800018708 | L159: 117351 | M159: GREATER KINGDON LIMITED(SANDUCHER | N159: 1*20 | O159: 43283 | P159: 43283 | Q159: INARPI | R159: MACOBSA | S159: TELSUPREMA | T159: 2018-06-29 | U159: 2018-06-29 | V159: 2018-06-29 | W159: 2018-06-29 | X159: =IF(TB.CTRLFERRI[[#This Row],[DRIVE]]>0,"OK","") -> OK
B160: =VLOOKUP(TB.CTRLFERRI[[#This Row],[Nº PEDIDO]],TB.TDS[[Nº PEDIDO]:[Columna12]],26,FALSE) -> OK | D160: =VLOOKUP(TB.CTRLFERRI[[#This Row],[Nº PEDIDO]],NM.OCS,1,FALSE) -> 4800018567 | E160: =LEFT(TB.CTRLFERRI[[#This Row],[BGA]],3) -> FER | F160: 2018-06-29 | H160: =IF(TB.CTRLFERRI[[#This Row],[Nº PEDIDO]]>0,TB.CTRLFERRI[[#This Row],[TRANSPORTE]],"") -> TELSUPREMA | I160: FERRI | J160: 2018-0246 | K160: 4800018567 | L160: 118598 | M160: WENZHOU TENYALE(BLOQUES DE VIDRIO) | N160: 2*20 | O160: 43286 | P160: EISU3759351 EMCU3880714 | Q160: INARPI | R160: PEREZ | S160: TELSUPREMA | T160: 2018-06-29 | U160: 2018-06-29 | V160: 2018-06-29 | W160: 2018-07-02 | X160: =IF(TB.CTRLFERRI[[#This Row],[DRIVE]]>0,"OK","") -> OK
B161: =VLOOKUP(TB.CTRLFERRI[[#This Row],[Nº PEDIDO]],TB.TDS[[Nº PEDIDO]:[Columna12]],26,FALSE) -> OK | D161: =VLOOKUP(TB.CTRLFERRI[[#This Row],[Nº PEDIDO]],NM.OCS,1,FALSE) -> 4800018220 | E161: =LEFT(TB.CTRLFERRI[[#This Row],[BGA]],3) -> FER | F161: 2018-06-29 | H161: =IF(TB.CTRLFERRI[[#This Row],[Nº PEDIDO]]>0,TB.CTRLFERRI[[#This Row],[TRANSPORTE]],"") -> TELSUPREMA | I161: FERRI | J161: 2018-0037 | K161: 4800018220 | L161: 116293 | M161: SMP INTERNATIONAL LTD | N161: 1*40 | O161: 43283 | P161: DFSU7395420 – 10579.366 KGS | Q161: INARPI | R161: MACOBSA | S161: TELSUPREMA | T161: 2018-06-29 | U161: 2018-06-29 | V161: 2018-06-29 | W161: 2018-06-29 | X161: =IF(TB.CTRLFERRI[[#This Row],[DRIVE]]>0,"OK","") -> OK
B162: =VLOOKUP(TB.CTRLFERRI[[#This Row],[Nº PEDIDO]],TB.TDS[[Nº PEDIDO]:[Columna12]],26,FALSE) -> OK | D162: =VLOOKUP(TB.CTRLFERRI[[#This Row],[Nº PEDIDO]],NM.OCS,1,FALSE) -> 4800019514 | E162: =LEFT(TB.CTRLFERRI[[#This Row],[BGA]],3) -> FER | F162: 2018-06-29 | H162: =IF(TB.CTRLFERRI[[#This Row],[Nº PEDIDO]]>0,TB.CTRLFERRI[[#This Row],[TRANSPORTE]],"") -> TELSUPREMA | I162: FERRI | J162: 2018-0241 | K162: 4800019514 | L162: 117036 | M162: MBR INC (NINGBO 01) | N162: 1*40 | O162: 43284 | P162: CMAU9009127 | Q162: INARPI | R162: MACOBSA | S162: TELSUPREMA | T162: 2018-06-29 | U162: 2018-06-29 | V162: 2018-06-29 | W162: 2018-06-29 | X162: =IF(TB.CTRLFERRI[[#This Row],[DRIVE]]>0,"OK","") -> OK
B163: =VLOOKUP(TB.CTRLFERRI[[#This Row],[Nº PEDIDO]],TB.TDS[[Nº PEDIDO]:[Columna12]],26,FALSE) -> OK | D163: =VLOOKUP(TB.CTRLFERRI[[#This Row],[Nº PEDIDO]],NM.OCS,1,FALSE) -> 4800020482 | E163: =LEFT(TB.CTRLFERRI[[#This Row],[BGA]],3) -> FER | F163: 2018-06-29 | H163: =IF(TB.CTRLFERRI[[#This Row],[Nº PEDIDO]]>0,TB.CTRLFERRI[[#This Row],[TRANSPORTE]],"") -> TELSUPREMA | I163: FERRI | J163: 2018-1212 | K163: 4800020482 | L163: 118809 | M163: INTERDESIGN INC | N163: 1*20 | O163: 43284 | P163: KOSU2202101 | Q163: CONTECON | R163: MACOBSA | S163: TELSUPREMA | T163: 2018-06-29 | U163: 2018-06-29 | V163: 2018-06-29 | W163: 2018-06-29 | X163: =IF(TB.CTRLFERRI[[#This Row],[DRIVE]]>0,"OK","") -> OK
B164: =VLOOKUP(TB.CTRLFERRI[[#This Row],[Nº PEDIDO]],TB.TDS[[Nº PEDIDO]:[Columna12]],26,FALSE) ->  | D164: =VLOOKUP(TB.CTRLFERRI[[#This Row],[Nº PEDIDO]],NM.OCS,1,FALSE) ->  | E164: =LEFT(TB.CTRLFERRI[[#This Row],[BGA]],3) ->  | F164: 2018-06-29 | H164: =IF(TB.CTRLFERRI[[#This Row],[Nº PEDIDO]]>0,TB.CTRLFERRI[[#This Row],[TRANSPORTE]],"") ->  | X164: =IF(TB.CTRLFERRI[[#This Row],[DRIVE]]>0,"OK","") -> 
B165: =VLOOKUP(TB.CTRLFERRI[[#This Row],[Nº PEDIDO]],TB.TDS[[Nº PEDIDO]:[Columna12]],26,FALSE) ->  | D165: =VLOOKUP(TB.CTRLFERRI[[#This Row],[Nº PEDIDO]],NM.OCS,1,FALSE) ->  | E165: =LEFT(TB.CTRLFERRI[[#This Row],[BGA]],3) -> SAL | F165: 2018-06-29 | H165: =IF(TB.CTRLFERRI[[#This Row],[Nº PEDIDO]]>0,TB.CTRLFERRI[[#This Row],[TRANSPORTE]],"") ->  | I165: SALE LUNES 02/JULIO/2018 | X165: =IF(TB.CTRLFERRI[[#This Row],[DRIVE]]>0,"OK","") -> 
B166: =VLOOKUP(TB.CTRLFERRI[[#This Row],[Nº PEDIDO]],TB.TDS[[Nº PEDIDO]:[Columna12]],26,FALSE) ->  | D166: =VLOOKUP(TB.CTRLFERRI[[#This Row],[Nº PEDIDO]],NM.OCS,1,FALSE) ->  | E166: =LEFT(TB.CTRLFERRI[[#This Row],[BGA]],3) -> BGA | F166: 2018-06-29 | H166: =IF(TB.CTRLFERRI[[#This Row],[Nº PEDIDO]]>0,TB.CTRLFERRI[[#This Row],[TRANSPORTE]],"") -> TRANSPORTE | I166: BGA | J166: OPERAC. | K166: Nº PEDIDO | L166: PROV. | M166: NOMBRE / PROVEEDOR | N166: CAPACIDAD | O166: LIBRE HASTA | P166: CONTENEDOR | Q166: MÓDULO | R166: DESP. | S166: TRANSPORTE | X166: =IF(TB.CTRLFERRI[[#This Row],[DRIVE]]>0,"OK","") -> 
B167: =VLOOKUP(TB.CTRLFERRI[[#This Row],[Nº PEDIDO]],TB.TDS[[Nº PEDIDO]:[Columna12]],26,FALSE) -> OK | D167: =VLOOKUP(TB.CTRLFERRI[[#This Row],[Nº PEDIDO]],NM.OCS,1,FALSE) -> 4800020009 | E167: =LEFT(TB.CTRLFERRI[[#This Row],[BGA]],3) -> FER | F167: 2018-06-29 | H167: =IF(TB.CTRLFERRI[[#This Row],[Nº PEDIDO]]>0,TB.CTRLFERRI[[#This Row],[TRANSPORTE]],"") -> TELSUPREMA | I167: FERRI | J167: 2018-1023 | K167: 4800020009 | L167: 118155 | M167: KITTRICH CORPORATION | N167: C/SUELTA | O167: 7 PALLETS | P167: DFIU4232456 | Q167: NAPORTEC | R167: MACOBSA | S167: TELSUPREMA | T167: 2018-06-29 | U167: 2018-06-29 | V167: 2018-06-29 | W167: 2018-06-29 | X167: =IF(TB.CTRLFERRI[[#This Row],[DRIVE]]>0,"OK","") -> OK
B168: =VLOOKUP(TB.CTRLFERRI[[#This Row],[Nº PEDIDO]],TB.TDS[[Nº PEDIDO]:[Columna12]],26,FALSE) -> OK | D168: =VLOOKUP(TB.CTRLFERRI[[#This Row],[Nº PEDIDO]],NM.OCS,1,FALSE) -> 4800020826 | E168: =LEFT(TB.CTRLFERRI[[#This Row],[BGA]],3) -> FER | F168: 2018-06-29 | H168: =IF(TB.CTRLFERRI[[#This Row],[Nº PEDIDO]]>0,TB.CTRLFERRI[[#This Row],[TRANSPORTE]],"") -> TELSUPREMA | I168: FERRI | J168: 2018-1327 | K168: 4800020826 | L168: 109924 | M168: C.I. RTA DESIGN S.A. | N168: 1*20 | O168: 43287 | P168: TCLU1417743 | Q168: CONTECON | R168: VALERO | S168: TELSUPREMA | T168: 2018-06-29 | U168: 2018-06-29 | V168: 2018-06-29 | W168: 2018-06-29 | X168: =IF(TB.CTRLFERRI[[#This Row],[DRIVE]]>0,"OK","") -> OK
B169: =VLOOKUP(TB.CTRLFERRI[[#This Row],[Nº PEDIDO]],TB.TDS[[Nº PEDIDO]:[Columna12]],26,FALSE) -> OK | D169: =VLOOKUP(TB.CTRLFERRI[[#This Row],[Nº PEDIDO]],NM.OCS,1,FALSE) -> 4800020615 | E169: =LEFT(TB.CTRLFERRI[[#This Row],[BGA]],3) -> FER | F169: 2018-06-29 | H169: =IF(TB.CTRLFERRI[[#This Row],[Nº PEDIDO]]>0,TB.CTRLFERRI[[#This Row],[TRANSPORTE]],"") -> TELSUPREMA | I169: FERRI | J169: 2018-1294 | K169: 4800020615 | L169: 111575 | M169: ACE (ANHO) | N169: 1*20 | O169: 43287 | P169: TEMU0703924 | Q169: INARPI | R169: MACOBSA | S169: TELSUPREMA | T169: 2018-06-29 | U169: 2018-06-29 | V169: 2018-06-29 | W169: 2018-06-29 | X169: =IF(TB.CTRLFERRI[[#This Row],[DRIVE]]>0,"OK","") -> OK
B170: =VLOOKUP(TB.CTRLFERRI[[#This Row],[Nº PEDIDO]],TB.TDS[[Nº PEDIDO]:[Columna12]],26,FALSE) -> OK | D170: =VLOOKUP(TB.CTRLFERRI[[#This Row],[Nº PEDIDO]],NM.OCS,1,FALSE) -> 4800018516 | E170: =LEFT(TB.CTRLFERRI[[#This Row],[BGA]],3) -> FER | F170: 2018-06-29 | H170: =IF(TB.CTRLFERRI[[#This Row],[Nº PEDIDO]]>0,TB.CTRLFERRI[[#This Row],[TRANSPORTE]],"") -> TELSUPREMA | I170: FERRI | J170: 2018-0046 | K170: 4800018516 | L170: 110618 | M170: ACE (NEXUS ELECTRICAL JIAXING LIMIT | N170: 1*20 | O170: 1*20 | P170: MOAU0731277 | Q170: INARPI | R170: PEREZ | S170: TELSUPREMA | T170: 2018-06-29 | U170: 2018-06-29 | V170: 2018-06-29 | W170: 2018-06-29 | X170: =IF(TB.CTRLFERRI[[#This Row],[DRIVE]]>0,"OK","") -> OK
B171: =VLOOKUP(TB.CTRLFERRI[[#This Row],[Nº PEDIDO]],TB.TDS[[Nº PEDIDO]:[Columna12]],26,FALSE) ->  | D171: =VLOOKUP(TB.CTRLFERRI[[#This Row],[Nº PEDIDO]],NM.OCS,1,FALSE) ->  | E171: =LEFT(TB.CTRLFERRI[[#This Row],[BGA]],3) ->  | F171: 2018-06-29 | H171: =IF(TB.CTRLFERRI[[#This Row],[Nº PEDIDO]]>0,TB.CTRLFERRI[[#This Row],[TRANSPORTE]],"") ->  | J171: CONSOLIDADO 1074 | S171: TELSUPREMA | X171: =IF(TB.CTRLFERRI[[#This Row],[DRIVE]]>0,"OK","") -> 
B172: =VLOOKUP(TB.CTRLFERRI[[#This Row],[Nº PEDIDO]],TB.TDS[[Nº PEDIDO]:[Columna12]],26,FALSE) -> OK | D172: =VLOOKUP(TB.CTRLFERRI[[#This Row],[Nº PEDIDO]],NM.OCS,1,FALSE) -> 4800020475 | E172: =LEFT(TB.CTRLFERRI[[#This Row],[BGA]],3) -> FER | F172: 2018-06-29 | H172: =IF(TB.CTRLFERRI[[#This Row],[Nº PEDIDO]]>0,TB.CTRLFERRI[[#This Row],[TRANSPORTE]],"") -> TELSUPREMA | I172: FERRI | J172: 2018-1229 | K172: 4800020475 | L172: 108503 | M172: PANASONIC LATIN AMERICA S.A. | N172: C/SUELTA | O172: 179 CTNES | P172: SMLU7875233 | Q172: CONTECON | R172: VALERO | S172: TELSUPREMA | T172: 2018-06-29 | U172: 2018-06-29 | V172: 2018-06-29 | W172: 2018-06-29 | X172: =IF(TB.CTRLFERRI[[#This Row],[DRIVE]]>0,"OK","") -> OK
B173: =VLOOKUP(TB.CTRLFERRI[[#This Row],[Nº PEDIDO]],TB.TDS[[Nº PEDIDO]:[Columna12]],26,FALSE) -> OK | D173: =VLOOKUP(TB.CTRLFERRI[[#This Row],[Nº PEDIDO]],NM.OCS,1,FALSE) -> 4800020916 | E173: =LEFT(TB.CTRLFERRI[[#This Row],[BGA]],3) -> FER | F173: 2018-06-29 | H173: =IF(TB.CTRLFERRI[[#This Row],[Nº PEDIDO]]>0,TB.CTRLFERRI[[#This Row],[TRANSPORTE]],"") -> TELSUPREMA | I173: FERRI | J173: 2018-1329 | K173: 4800020916 | L173: 108184 | M173: SONY INTER-AMERICAN S.A. | N173: C/SUELTA | S173: TELSUPREMA | T173: 2018-06-29 | U173: 2018-06-29 | V173: 2018-06-29 | W173: 2018-06-29 | X173: =IF(TB.CTRLFERRI[[#This Row],[DRIVE]]>0,"OK","") -> OK
B174: =VLOOKUP(TB.CTRLFERRI[[#This Row],[Nº PEDIDO]],TB.TDS[[Nº PEDIDO]:[Columna12]],26,FALSE) -> OK | D174: =VLOOKUP(TB.CTRLFERRI[[#This Row],[Nº PEDIDO]],NM.OCS,1,FALSE) -> 4800020815 | E174: =LEFT(TB.CTRLFERRI[[#This Row],[BGA]],3) -> FER | F174: 2018-06-29 | H174: =IF(TB.CTRLFERRI[[#This Row],[Nº PEDIDO]]>0,TB.CTRLFERRI[[#This Row],[TRANSPORTE]],"") -> TELSUPREMA | I174: FERRI | J174: 2018-1356 | K174: 4800020815 | L174: 118699 | M174: INTERNATIONAL HARDWARE CORP. | N174: C/SUELTA | S174: TELSUPREMA | T174: 2018-06-29 | U174: 2018-06-29 | V174: 2018-06-29 | W174: 2018-06-29 | X174: =IF(TB.CTRLFERRI[[#This Row],[DRIVE]]>0,"OK","") -> OK
B175: =VLOOKUP(TB.CTRLFERRI[[#This Row],[Nº PEDIDO]],TB.TDS[[Nº PEDIDO]:[Columna12]],26,FALSE) ->  | D175: =VLOOKUP(TB.CTRLFERRI[[#This Row],[Nº PEDIDO]],NM.OCS,1,FALSE) ->  | E175: =LEFT(TB.CTRLFERRI[[#This Row],[BGA]],3) ->  | H175: =IF(TB.CTRLFERRI[[#This Row],[Nº PEDIDO]]>0,TB.CTRLFERRI[[#This Row],[TRANSPORTE]],"") ->  | X175: =IF(TB.CTRLFERRI[[#This Row],[DRIVE]]>0,"OK","") -> 
B176: =VLOOKUP(TB.CTRLFERRI[[#This Row],[Nº PEDIDO]],TB.TDS[[Nº PEDIDO]:[Columna12]],26,FALSE) ->  | D176: =VLOOKUP(TB.CTRLFERRI[[#This Row],[Nº PEDIDO]],NM.OCS,1,FALSE) ->  | E176: =LEFT(TB.CTRLFERRI[[#This Row],[BGA]],3) -> SAL | F176: 2018-06-28 | H176: =IF(TB.CTRLFERRI[[#This Row],[Nº PEDIDO]]>0,TB.CTRLFERRI[[#This Row],[TRANSPORTE]],"") ->  | I176: SALE VIERNES 29/JUNIO/2018 | X176: =IF(TB.CTRLFERRI[[#This Row],[DRIVE]]>0,"OK","") -> 
B177: =VLOOKUP(TB.CTRLFERRI[[#This Row],[Nº PEDIDO]],TB.TDS[[Nº PEDIDO]:[Columna12]],26,FALSE) ->  | D177: =VLOOKUP(TB.CTRLFERRI[[#This Row],[Nº PEDIDO]],NM.OCS,1,FALSE) ->  | E177: =LEFT(TB.CTRLFERRI[[#This Row],[BGA]],3) -> BGA | F177: 2018-06-28 | H177: =IF(TB.CTRLFERRI[[#This Row],[Nº PEDIDO]]>0,TB.CTRLFERRI[[#This Row],[TRANSPORTE]],"") -> TRANSPORTE | I177: BGA | J177: OPERAC. | K177: Nº PEDIDO | L177: PROV. | M177: NOMBRE / PROVEEDOR | N177: CAPACIDAD | O177: LIBRE HASTA | P177: CONTENEDOR | Q177: MÓDULO | R177: DESP. | S177: TRANSPORTE | X177: =IF(TB.CTRLFERRI[[#This Row],[DRIVE]]>0,"OK","") -> 
B178: =VLOOKUP(TB.CTRLFERRI[[#This Row],[Nº PEDIDO]],TB.TDS[[Nº PEDIDO]:[Columna12]],26,FALSE) -> OK | D178: =VLOOKUP(TB.CTRLFERRI[[#This Row],[Nº PEDIDO]],NM.OCS,1,FALSE) -> 4800019711 | E178: =LEFT(TB.CTRLFERRI[[#This Row],[BGA]],3) -> FER | F178: 2018-06-28 | H178: =IF(TB.CTRLFERRI[[#This Row],[Nº PEDIDO]]>0,TB.CTRLFERRI[[#This Row],[TRANSPORTE]],"") -> TRANSGOM | I178: FERRI | J178: 2018-0364 | K178: 4800019711 | L178: 118790 | M178: MAJIC PRODUCTS INC. (GATA) | N178: 1*20 | O178: 43283 | P178: CMAU1808723 – 12743.50 KGS | Q178: INARPI | R178: MACOBSA | S178: TRANSGOM | T178: 2018-06-28 | U178: 2018-06-28 | V178: 2018-06-28 | W178: 2018-06-29 | X178: =IF(TB.CTRLFERRI[[#This Row],[DRIVE]]>0,"OK","") -> OK
B179: =VLOOKUP(TB.CTRLFERRI[[#This Row],[Nº PEDIDO]],TB.TDS[[Nº PEDIDO]:[Columna12]],26,FALSE) -> OK | D179: =VLOOKUP(TB.CTRLFERRI[[#This Row],[Nº PEDIDO]],NM.OCS,1,FALSE) -> 4800019520 | E179: =LEFT(TB.CTRLFERRI[[#This Row],[BGA]],3) -> FER | F179: 2018-06-28 | H179: =IF(TB.CTRLFERRI[[#This Row],[Nº PEDIDO]]>0,TB.CTRLFERRI[[#This Row],[TRANSPORTE]],"") -> TRANSGOM | I179: FERRI | J179: 2018-0832 | K179: 4800019520 | L179: 117169 | M179: PANASONIC LATIN(AIRE ACONDICIONADO) | N179: 1*40 | O179: 43283 | P179: TCLU4560022 – 8787.85 KGS | Q179: INARPI | R179: MACOBSA | S179: TRANSGOM | T179: 2018-06-28 | U179: 2018-06-28 | V179: 2018-06-28 | W179: 2018-06-29 | X179: =IF(TB.CTRLFERRI[[#This Row],[DRIVE]]>0,"OK","") -> OK
B180: =VLOOKUP(TB.CTRLFERRI[[#This Row],[Nº PEDIDO]],TB.TDS[[Nº PEDIDO]:[Columna12]],26,FALSE) -> OK | D180: =VLOOKUP(TB.CTRLFERRI[[#This Row],[Nº PEDIDO]],NM.OCS,1,FALSE) -> 4800018247 | E180: =LEFT(TB.CTRLFERRI[[#This Row],[BGA]],3) -> FER | F180: 2018-06-28 | H180: =IF(TB.CTRLFERRI[[#This Row],[Nº PEDIDO]]>0,TB.CTRLFERRI[[#This Row],[TRANSPORTE]],"") -> TRANSGOM | I180: FERRI | J180: 2018-0244 | K180: 4800018247 | L180: 117247 | M180: ROYAL TOP TECHNOLOGY INC (ALEROS) | N180: 2*40 | O180: 43283 | P180: TCLU4532782 | Q180: INARPI | R180: MACOBSA | S180: TRANSGOM | T180: 2018-06-28 | U180: 2018-06-28 | V180: 2018-06-28 | W180: 2018-06-29 | X180: =IF(TB.CTRLFERRI[[#This Row],[DRIVE]]>0,"OK","") -> OK
B181: =VLOOKUP(TB.CTRLFERRI[[#This Row],[Nº PEDIDO]],TB.TDS[[Nº PEDIDO]:[Columna12]],26,FALSE) ->  | D181: =VLOOKUP(TB.CTRLFERRI[[#This Row],[Nº PEDIDO]],NM.OCS,1,FALSE) ->  | E181: =LEFT(TB.CTRLFERRI[[#This Row],[BGA]],3) ->  | F181: 2018-06-28 | H181: =IF(TB.CTRLFERRI[[#This Row],[Nº PEDIDO]]>0,TB.CTRLFERRI[[#This Row],[TRANSPORTE]],"") ->  | P181: TCLU9775091 | U181: 2018-06-28 | V181: 2018-06-28 | X181: =IF(TB.CTRLFERRI[[#This Row],[DRIVE]]>0,"OK","") -> 
B182: =VLOOKUP(TB.CTRLFERRI[[#This Row],[Nº PEDIDO]],TB.TDS[[Nº PEDIDO]:[Columna12]],26,FALSE) -> OK | D182: =VLOOKUP(TB.CTRLFERRI[[#This Row],[Nº PEDIDO]],NM.OCS,1,FALSE) -> 4800018574 | E182: =LEFT(TB.CTRLFERRI[[#This Row],[BGA]],3) -> FER | F182: 2018-06-28 | H182: =IF(TB.CTRLFERRI[[#This Row],[Nº PEDIDO]]>0,TB.CTRLFERRI[[#This Row],[TRANSPORTE]],"") -> TCE | I182: FERRI | J182: 2018-0215 | K182: 4800018574 | L182: 118160 | M182: ARC FRANCE | N182: 1*20 | O182: SALIDA ALMACENERA TOTAL | P182: SE DESCARGA EL MISMO DIA | Q182: TCE | R182: MACOBSA | S182: TCE | T182: 2018-06-28 | U182: 2018-06-28 | V182: 2018-06-28 | W182: 2018-06-29 | X182: =IF(TB.CTRLFERRI[[#This Row],[DRIVE]]>0,"OK","") -> OK
B183: =VLOOKUP(TB.CTRLFERRI[[#This Row],[Nº PEDIDO]],TB.TDS[[Nº PEDIDO]:[Columna12]],26,FALSE) ->  | D183: =VLOOKUP(TB.CTRLFERRI[[#This Row],[Nº PEDIDO]],NM.OCS,1,FALSE) ->  | E183: =LEFT(TB.CTRLFERRI[[#This Row],[BGA]],3) ->  | F183: 2018-06-28 | H183: =IF(TB.CTRLFERRI[[#This Row],[Nº PEDIDO]]>0,TB.CTRLFERRI[[#This Row],[TRANSPORTE]],"") ->  | X183: =IF(TB.CTRLFERRI[[#This Row],[DRIVE]]>0,"OK","") -> 
B184: =VLOOKUP(TB.CTRLFERRI[[#This Row],[Nº PEDIDO]],TB.TDS[[Nº PEDIDO]:[Columna12]],26,FALSE) ->  | D184: =VLOOKUP(TB.CTRLFERRI[[#This Row],[Nº PEDIDO]],NM.OCS,1,FALSE) ->  | E184: =LEFT(TB.CTRLFERRI[[#This Row],[BGA]],3) ->  | F184: 2018-06-28 | H184: =IF(TB.CTRLFERRI[[#This Row],[Nº PEDIDO]]>0,TB.CTRLFERRI[[#This Row],[TRANSPORTE]],"") ->  | J184: CONSOLIDADO 939 | S184: TCE | X184: =IF(TB.CTRLFERRI[[#This Row],[DRIVE]]>0,"OK","") -> 
B185: =VLOOKUP(TB.CTRLFERRI[[#This Row],[Nº PEDIDO]],TB.TDS[[Nº PEDIDO]:[Columna12]],26,FALSE) -> OK | D185: =VLOOKUP(TB.CTRLFERRI[[#This Row],[Nº PEDIDO]],NM.OCS,1,FALSE) -> 4800019513 | E185: =LEFT(TB.CTRLFERRI[[#This Row],[BGA]],3) -> FER | F185: 2018-06-28 | H185: =IF(TB.CTRLFERRI[[#This Row],[Nº PEDIDO]]>0,TB.CTRLFERRI[[#This Row],[TRANSPORTE]],"") -> TCE | I185: FERRI | J185: 2018-0583 | K185: 4800019513 | L185: 112717 | M185: ACE HARDWARE INTER HOLDINGS, LTD(IN | N185: C/SUELTA | O185: SALIDA TOTAL | P185: SEGUNDA SALIDA | Q185: TCE | R185: MACOBSA | S185: TCE | T185: 2018-06-28 | U185: 2018-06-28 | V185: 2018-06-28 | W185: 2018-06-29 | X185: =IF(TB.CTRLFERRI[[#This Row],[DRIVE]]>0,"OK","") -> OK
B186: =VLOOKUP(TB.CTRLFERRI[[#This Row],[Nº PEDIDO]],TB.TDS[[Nº PEDIDO]:[Columna12]],26,FALSE) ->  | D186: =VLOOKUP(TB.CTRLFERRI[[#This Row],[Nº PEDIDO]],NM.OCS,1,FALSE) ->  | E186: =LEFT(TB.CTRLFERRI[[#This Row],[BGA]],3) ->  | F186: 2018-06-28 | H186: =IF(TB.CTRLFERRI[[#This Row],[Nº PEDIDO]]>0,TB.CTRLFERRI[[#This Row],[TRANSPORTE]],"") ->  | X186: =IF(TB.CTRLFERRI[[#This Row],[DRIVE]]>0,"OK","") -> 
B187: =VLOOKUP(TB.CTRLFERRI[[#This Row],[Nº PEDIDO]],TB.TDS[[Nº PEDIDO]:[Columna12]],26,FALSE) ->  | D187: =VLOOKUP(TB.CTRLFERRI[[#This Row],[Nº PEDIDO]],NM.OCS,1,FALSE) ->  | E187: =LEFT(TB.CTRLFERRI[[#This Row],[BGA]],3) ->  | F187: 2018-06-28 | H187: =IF(TB.CTRLFERRI[[#This Row],[Nº PEDIDO]]>0,TB.CTRLFERRI[[#This Row],[TRANSPORTE]],"") ->  | J187: CONSOLIDADO 973 | S187: TCE | X187: =IF(TB.CTRLFERRI[[#This Row],[DRIVE]]>0,"OK","") -> 
B188: =VLOOKUP(TB.CTRLFERRI[[#This Row],[Nº PEDIDO]],TB.TDS[[Nº PEDIDO]:[Columna12]],26,FALSE) -> OK | D188: =VLOOKUP(TB.CTRLFERRI[[#This Row],[Nº PEDIDO]],NM.OCS,1,FALSE) -> 4800018575 | E188: =LEFT(TB.CTRLFERRI[[#This Row],[BGA]],3) -> FER | F188: 2018-06-28 | H188: =IF(TB.CTRLFERRI[[#This Row],[Nº PEDIDO]]>0,TB.CTRLFERRI[[#This Row],[TRANSPORTE]],"") -> TCE | I188: FERRI | J188: 2018-0278 | K188: 4800018575 | L188: 112379 | M188: ACE HARDWARE(INEN) | N188: 1*40 | P188: SALIDA ALMACENERA | Q188: TCE | R188: VALERO | S188: TCE | T188: 2018-06-28 | U188: 2018-06-28 | V188: 2018-06-28 | W188: 2018-06-29 | X188: =IF(TB.CTRLFERRI[[#This Row],[DRIVE]]>0,"OK","") -> OK
B189: =VLOOKUP(TB.CTRLFERRI[[#This Row],[Nº PEDIDO]],TB.TDS[[Nº PEDIDO]:[Columna12]],26,FALSE) -> OK | D189: =VLOOKUP(TB.CTRLFERRI[[#This Row],[Nº PEDIDO]],NM.OCS,1,FALSE) -> 4800019630 | E189: =LEFT(TB.CTRLFERRI[[#This Row],[BGA]],3) -> FER | F189: 2018-06-28 | H189: =IF(TB.CTRLFERRI[[#This Row],[Nº PEDIDO]]>0,TB.CTRLFERRI[[#This Row],[TRANSPORTE]],"") -> TCE | I189: FERRI | J189: 2018-0643 | K189: 4800019630 | L189: 117051 | M189: ACE HARDWARE E.E.U.U (FITOSANITARIO | N189: 1*40 | S189: TCE | T189: 2018-06-28 | U189: 2018-06-28 | V189: 2018-06-28 | W189: 2018-06-29 | X189: =IF(TB.CTRLFERRI[[#This Row],[DRIVE]]>0,"OK","") -> OK
B190: =VLOOKUP(TB.CTRLFERRI[[#This Row],[Nº PEDIDO]],TB.TDS[[Nº PEDIDO]:[Columna12]],26,FALSE) -> OK | D190: =VLOOKUP(TB.CTRLFERRI[[#This Row],[Nº PEDIDO]],NM.OCS,1,FALSE) -> 4800019105 | E190: =LEFT(TB.CTRLFERRI[[#This Row],[BGA]],3) -> FER | F190: 2018-06-28 | H190: =IF(TB.CTRLFERRI[[#This Row],[Nº PEDIDO]]>0,TB.CTRLFERRI[[#This Row],[TRANSPORTE]],"") -> TCE | I190: FERRI | J190: 2018-0740 | K190: 4800019105 | L190: 112379 | M190: ACE HARDWARE(INEN) | N190: 1*40 | P190: SE DESCARGA EL MISMO DIA | S190: TCE | T190: 2018-06-28 | U190: 2018-06-28 | V190: 2018-06-28 | W190: 2018-06-29 | X190: =IF(TB.CTRLFERRI[[#This Row],[DRIVE]]>0,"OK","") -> OK
B191: =VLOOKUP(TB.CTRLFERRI[[#This Row],[Nº PEDIDO]],TB.TDS[[Nº PEDIDO]:[Columna12]],26,FALSE) -> OK | D191: =VLOOKUP(TB.CTRLFERRI[[#This Row],[Nº PEDIDO]],NM.OCS,1,FALSE) -> 4800019906 | E191: =LEFT(TB.CTRLFERRI[[#This Row],[BGA]],3) -> FER | F191: 2018-06-28 | H191: =IF(TB.CTRLFERRI[[#This Row],[Nº PEDIDO]]>0,TB.CTRLFERRI[[#This Row],[TRANSPORTE]],"") -> TCE | I191: FERRI | J191: 2018-0948 | K191: 4800019906 | L191: 100349 | M191: ACE HARDWARE CORPORATION | N191: 1*40 | S191: TCE | T191: 2018-06-28 | U191: 2018-06-28 | V191: 2018-06-28 | W191: 2018-06-29 | X191: =IF(TB.CTRLFERRI[[#This Row],[DRIVE]]>0,"OK","") -> OK
B192: =VLOOKUP(TB.CTRLFERRI[[#This Row],[Nº PEDIDO]],TB.TDS[[Nº PEDIDO]:[Columna12]],26,FALSE) -> OK | D192: =VLOOKUP(TB.CTRLFERRI[[#This Row],[Nº PEDIDO]],NM.OCS,1,FALSE) -> 4800019905 | E192: =LEFT(TB.CTRLFERRI[[#This Row],[BGA]],3) -> FER | F192: 2018-06-28 | H192: =IF(TB.CTRLFERRI[[#This Row],[Nº PEDIDO]]>0,TB.CTRLFERRI[[#This Row],[TRANSPORTE]],"") -> TCE | I192: FERRI | J192: 2018-0949 | K192: 4800019905 | L192: 109838 | M192: ACE HARDWARE CORPORATION(ESPECIALES | N192: 1*40 | S192: TCE | T192: 2018-06-28 | U192: 2018-06-28 | V192: 2018-06-28 | W192: 2018-06-29 | X192: =IF(TB.CTRLFERRI[[#This Row],[DRIVE]]>0,"OK","") -> OK
B193: =VLOOKUP(TB.CTRLFERRI[[#This Row],[Nº PEDIDO]],TB.TDS[[Nº PEDIDO]:[Columna12]],26,FALSE) -> OK | D193: =VLOOKUP(TB.CTRLFERRI[[#This Row],[Nº PEDIDO]],NM.OCS,1,FALSE) -> 4800019904 | E193: =LEFT(TB.CTRLFERRI[[#This Row],[BGA]],3) -> FER | F193: 2018-06-28 | H193: =IF(TB.CTRLFERRI[[#This Row],[Nº PEDIDO]]>0,TB.CTRLFERRI[[#This Row],[TRANSPORTE]],"") -> TCE | I193: FERRI | J193: 2018-0950 | K193: 4800019904 | L193: 117397 | M193: ACE HARDWARE (JARDIN/CONST/MUEB) | N193: 1*40 | S193: TCE | T193: 2018-06-28 | U193: 2018-06-28 | V193: 2018-06-28 | W193: 2018-06-29 | X193: =IF(TB.CTRLFERRI[[#This Row],[DRIVE]]>0,"OK","") -> OK
B194: =VLOOKUP(TB.CTRLFERRI[[#This Row],[Nº PEDIDO]],TB.TDS[[Nº PEDIDO]:[Columna12]],26,FALSE) -> OK | D194: =VLOOKUP(TB.CTRLFERRI[[#This Row],[Nº PEDIDO]],NM.OCS,1,FALSE) -> 4800019903 | E194: =LEFT(TB.CTRLFERRI[[#This Row],[BGA]],3) -> FER | F194: 2018-06-28 | H194: =IF(TB.CTRLFERRI[[#This Row],[Nº PEDIDO]]>0,TB.CTRLFERRI[[#This Row],[TRANSPORTE]],"") -> TCE | I194: FERRI | J194: 2018-0951 | K194: 4800019903 | L194: 117398 | M194: ACE HARDWARE (HERR/AUTOM) | N194: 1*40 | S194: TCE | T194: 2018-06-28 | U194: 2018-06-28 | V194: 2018-06-28 | W194: 2018-06-29 | X194: =IF(TB.CTRLFERRI[[#This Row],[DRIVE]]>0,"OK","") -> OK
B195: =VLOOKUP(TB.CTRLFERRI[[#This Row],[Nº PEDIDO]],TB.TDS[[Nº PEDIDO]:[Columna12]],26,FALSE) -> OK | D195: =VLOOKUP(TB.CTRLFERRI[[#This Row],[Nº PEDIDO]],NM.OCS,1,FALSE) -> 4800019902 | E195: =LEFT(TB.CTRLFERRI[[#This Row],[BGA]],3) -> FER | F195: 2018-06-28 | H195: =IF(TB.CTRLFERRI[[#This Row],[Nº PEDIDO]]>0,TB.CTRLFERRI[[#This Row],[TRANSPORTE]],"") -> TCE | I195: FERRI | J195: 2018-0952 | K195: 4800019902 | L195: 117399 | M195: ACE HARDWARE (PLOMERIA/PINTU) | N195: 1*40 | S195: TCE | T195: 2018-06-28 | U195: 2018-06-28 | V195: 2018-06-28 | W195: 2018-06-29 | X195: =IF(TB.CTRLFERRI[[#This Row],[DRIVE]]>0,"OK","") -> OK
B196: =VLOOKUP(TB.CTRLFERRI[[#This Row],[Nº PEDIDO]],TB.TDS[[Nº PEDIDO]:[Columna12]],26,FALSE) ->  | D196: =VLOOKUP(TB.CTRLFERRI[[#This Row],[Nº PEDIDO]],NM.OCS,1,FALSE) ->  | E196: =LEFT(TB.CTRLFERRI[[#This Row],[BGA]],3) ->  | H196: =IF(TB.CTRLFERRI[[#This Row],[Nº PEDIDO]]>0,TB.CTRLFERRI[[#This Row],[TRANSPORTE]],"") ->  | X196: =IF(TB.CTRLFERRI[[#This Row],[DRIVE]]>0,"OK","") -> 
B197: =VLOOKUP(TB.CTRLFERRI[[#This Row],[Nº PEDIDO]],TB.TDS[[Nº PEDIDO]:[Columna12]],26,FALSE) ->  | D197: =VLOOKUP(TB.CTRLFERRI[[#This Row],[Nº PEDIDO]],NM.OCS,1,FALSE) ->  | E197: =LEFT(TB.CTRLFERRI[[#This Row],[BGA]],3) -> SAL | F197: 2018-06-27 | H197: =IF(TB.CTRLFERRI[[#This Row],[Nº PEDIDO]]>0,TB.CTRLFERRI[[#This Row],[TRANSPORTE]],"") ->  | I197: SALE JUEVES 28/JUNIO/2018 | X197: =IF(TB.CTRLFERRI[[#This Row],[DRIVE]]>0,"OK","") -> 
B198: =VLOOKUP(TB.CTRLFERRI[[#This Row],[Nº PEDIDO]],TB.TDS[[Nº PEDIDO]:[Columna12]],26,FALSE) ->  | D198: =VLOOKUP(TB.CTRLFERRI[[#This Row],[Nº PEDIDO]],NM.OCS,1,FALSE) ->  | E198: =LEFT(TB.CTRLFERRI[[#This Row],[BGA]],3) -> BGA | F198: 2018-06-27 | H198: =IF(TB.CTRLFERRI[[#This Row],[Nº PEDIDO]]>0,TB.CTRLFERRI[[#This Row],[TRANSPORTE]],"") -> TRANSPORTE | I198: BGA | J198: OPERAC. | K198: Nº PEDIDO | L198: PROV. | M198: NOMBRE / PROVEEDOR | N198: CAPACIDAD | O198: LIBRE HASTA | P198: CONTENEDOR | Q198: MÓDULO | R198: DESP. | S198: TRANSPORTE | X198: =IF(TB.CTRLFERRI[[#This Row],[DRIVE]]>0,"OK","") -> 
B199: =VLOOKUP(TB.CTRLFERRI[[#This Row],[Nº PEDIDO]],TB.TDS[[Nº PEDIDO]:[Columna12]],26,FALSE) -> OK | D199: =VLOOKUP(TB.CTRLFERRI[[#This Row],[Nº PEDIDO]],NM.OCS,1,FALSE) -> 4800016534 | E199: =LEFT(TB.CTRLFERRI[[#This Row],[BGA]],3) -> FER | F199: 2018-06-27 | H199: =IF(TB.CTRLFERRI[[#This Row],[Nº PEDIDO]]>0,TB.CTRLFERRI[[#This Row],[TRANSPORTE]],"") -> TRANSGOM | I199: FERRI | J199: 2017-2293 | K199: 4800016534 | L199: 111899 | M199: ACE(PLG-PULAIGAO SANITARY WARE) | N199: 1*20 | O199: 43281 | P199: CMAU1969060 – 3783.60 KGS | Q199: INARPI | R199: MACOBSA | S199: TRANSGOM | T199: 2018-06-27 | U199: 2018-06-27 | V199: 2018-06-27 | W199: 2018-06-27 | X199: =IF(TB.CTRLFERRI[[#This Row],[DRIVE]]>0,"OK","") -> OK
B200: =VLOOKUP(TB.CTRLFERRI[[#This Row],[Nº PEDIDO]],TB.TDS[[Nº PEDIDO]:[Columna12]],26,FALSE) -> OK | D200: =VLOOKUP(TB.CTRLFERRI[[#This Row],[Nº PEDIDO]],NM.OCS,1,FALSE) -> 4800020304 | E200: =LEFT(TB.CTRLFERRI[[#This Row],[BGA]],3) -> FER | F200: 2018-06-27 | H200: =IF(TB.CTRLFERRI[[#This Row],[Nº PEDIDO]]>0,TB.CTRLFERRI[[#This Row],[TRANSPORTE]],"") -> TRANSGOM | I200: FERRI | J200: 2018-0702 | K200: 4800020304 | L200: 102008 | M200: ASSA ABLOY CHILE SPA | N200: 1*20 | O200: 43281 | P200: DRYU2523791 – 3919.20 KGS | Q200: FERTISA | R200: MACOBSA | S200: TRANSGOM | T200: 2018-06-27 | U200: 2018-06-27 | V200: 2018-06-27 | W200: 2018-06-27 | X200: =IF(TB.CTRLFERRI[[#This Row],[DRIVE]]>0,"OK","") -> OK
... 7 more rows

Sheet TABLA.IMP
L5: 2018-1187 | R5: ME2N | Y5: ZWM_REPORT01
L7: 1 | M7: 2 | N7: 3 | O7: 4 | P7: 5 | Q7: 6 | R7: 7 | S7: 8 | T7: 9 | U7: 10 | V7: 11 | W7: 12 | X7: 13 | Y7: 14 | Z7: 15 | AA7: 16 | AB7: 17 | AC7: 18 | AD7: 19 | AE7: 20 | AF7: 21 | AG7: 22 | AH7: 23 | AI7: 24 | AJ7: 25 | AK7: 26
B8: val | C8: VAL1 | D8: Columna7 | E8: Columna6 | F8: Columna5 | G8: Columna4 | H8: Columna1 | I8: TRANSP. | J8: BGA | K8: OPERAC. | L8: Nº PEDIDO | M8: PROV. | N8: NOMBRE / PROVEEDOR | O8: CAPACIDAD | P8: FEC1 | Q8: FEC2 | R8: Pos. | S8: Material | T8: Texto breve | U8: Cantidad | V8: UMP | W8: SAP | X8: Mat.prov. | Y8: Longitud | Z8: Ancho | AA8: Altura | AB8: IndÁr | AC8: TES | AD8: TSA | AE8: GrpA | AF8: Ctd.MAC | AG8: EAN/UPC | AH8: Ubicación | AI8: Ctd.máx. | AJ8: Columna3 | AK8: Columna12
B9: =IF(TB.TDS[[#This Row],[Material]]=TB.TDS[[#This Row],[SAP]],"OK","REV") -> OK | C9: =VLOOKUP(TB.TDS[[#This Row],[Nº PEDIDO]],NM.NUMPEDIDO,1,FALSE) ->  | D9: =IF(TB.TDS[[#This Row],[Material]]>0,"OK","") ->  | E9: =IF(TB.TDS[[#This Row],[SAP]]>0,"OK","") -> 
B10: =IF(TB.TDS[[#This Row],[Material]]=TB.TDS[[#This Row],[SAP]],"OK","REV") -> OK | C10: =VLOOKUP(TB.TDS[[#This Row],[Nº PEDIDO]],NM.NUMPEDIDO,1,FALSE) ->  | D10: =IF(TB.TDS[[#This Row],[Material]]>0,"OK","") -> OK | E10: =IF(TB.TDS[[#This Row],[SAP]]>0,"OK","") -> OK | I10: TRANSGOM | J10: FERRI | K10: 2017-2114 | L10: 4800014824 | M10: 118420 | N10: ITC (SUNWAY) | O10: 1*20 | P10: 2018-06-27 | Q10: 2018-06-27 | R10: 10 | S10: 40300577 | T10: PARRILLA GALVANIZADA C/REJI | U10: 500 | V10: UN | W10: 40300577 | X10: AT404G | Y10: 0 | Z10: 0 | AA10: 0 | AB10: 0 | AC10: 0 | AD10: 0 | AE10: F93 | AF10: 0 | AG10: 7896584563733 | AH10: 0 | AI10: 0 | AK10: OK
B11: =IF(TB.TDS[[#This Row],[Material]]=TB.TDS[[#This Row],[SAP]],"OK","REV") -> OK | C11: =VLOOKUP(TB.TDS[[#This Row],[Nº PEDIDO]],NM.NUMPEDIDO,1,FALSE) ->  | D11: =IF(TB.TDS[[#This Row],[Material]]>0,"OK","") -> OK | E11: =IF(TB.TDS[[#This Row],[SAP]]>0,"OK","") -> OK | I11: TRANSGOM | J11: FERRI | K11: 2017-2114 | L11: 4800014824 | M11: 118420 | N11: ITC (SUNWAY) | O11: 1*20 | P11: 2018-06-27 | Q11: 2018-06-27 | R11: 20 | S11: 40300579 | T11: REGADERA C/AGARRADERA METAL | U11: 300 | V11: UN | W11: 40300579 | X11: WA301 | Y11: 0 | Z11: 0 | AA11: 0 | AB11: 0 | AC11: 0 | AD11: 0 | AE11: F93 | AF11: 0 | AG11: 7896584563740 | AH11: 0 | AI11: 0 | AK11: OK
B12: =IF(TB.TDS[[#This Row],[Material]]=TB.TDS[[#This Row],[SAP]],"OK","REV") -> OK | C12: =VLOOKUP(TB.TDS[[#This Row],[Nº PEDIDO]],NM.NUMPEDIDO,1,FALSE) ->  | D12: =IF(TB.TDS[[#This Row],[Material]]>0,"OK","") -> OK | E12: =IF(TB.TDS[[#This Row],[SAP]]>0,"OK","") -> OK | I12: TRANSGOM | J12: FERRI | K12: 2017-2114 | L12: 4800014824 | M12: 118420 | N12: ITC (SUNWAY) | O12: 1*20 | P12: 2018-06-27 | Q12: 2018-06-27 | R12: 30 | S12: 40300580 | T12: REGADERA C/AGARRA GALVANIZADA | U12: 360 | V12: UN | W12: 40300580 | X12: WA301G | Y12: 0 | Z12: 0 | AA12: 0 | AB12: 0 | AC12: 0 | AD12: 0 | AE12: F93 | AF12: 0 | AG12: 7896584563757 | AH12: 0 | AI12: 0 | AK12: OK
B13: =IF(TB.TDS[[#This Row],[Material]]=TB.TDS[[#This Row],[SAP]],"OK","REV") -> OK | C13: =VLOOKUP(TB.TDS[[#This Row],[Nº PEDIDO]],NM.NUMPEDIDO,1,FALSE) ->  | D13: =IF(TB.TDS[[#This Row],[Material]]>0,"OK","") -> OK | E13: =IF(TB.TDS[[#This Row],[SAP]]>0,"OK","") -> OK | I13: TRANSGOM | J13: FERRI | K13: 2017-2114 | L13: 4800014824 | M13: 118420 | N13: ITC (SUNWAY) | O13: 1*20 | P13: 2018-06-27 | Q13: 2018-06-27 | R13: 40 | S13: 40300581 | T13: REGADERA C/DISEÑO METALICA | U13: 402 | V13: UN | W13: 40300581 | X13: WA302 | Y13: 0 | Z13: 0 | AA13: 0 | AB13: 0 | AC13: 0 | AD13: 0 | AE13: F93 | AF13: 0 | AG13: 7896584563849 | AH13: 0 | AI13: 0 | AK13: OK
B14: =IF(TB.TDS[[#This Row],[Material]]=TB.TDS[[#This Row],[SAP]],"OK","REV") -> OK | C14: =VLOOKUP(TB.TDS[[#This Row],[Nº PEDIDO]],NM.NUMPEDIDO,1,FALSE) ->  | D14: =IF(TB.TDS[[#This Row],[Material]]>0,"OK","") ->  | E14: =IF(TB.TDS[[#This Row],[SAP]]>0,"OK","") -> 
B15: =IF(TB.TDS[[#This Row],[Material]]=TB.TDS[[#This Row],[SAP]],"OK","REV") -> OK | C15: =VLOOKUP(TB.TDS[[#This Row],[Nº PEDIDO]],NM.NUMPEDIDO,1,FALSE) ->  | D15: =IF(TB.TDS[[#This Row],[Material]]>0,"OK","") ->  | E15: =IF(TB.TDS[[#This Row],[SAP]]>0,"OK","") -> 
B16: =IF(TB.TDS[[#This Row],[Material]]=TB.TDS[[#This Row],[SAP]],"OK","REV") -> OK | C16: =VLOOKUP(TB.TDS[[#This Row],[Nº PEDIDO]],NM.NUMPEDIDO,1,FALSE) -> 4800019601 | D16: =IF(TB.TDS[[#This Row],[Material]]>0,"OK","") -> OK | E16: =IF(TB.TDS[[#This Row],[SAP]]>0,"OK","") -> OK | I16: TCE | J16: FERRI | K16: 2018-0854 | L16: 4800019601 | M16: 118809 | N16: INTERDESIGN INC | O16: 1*40 | P16: 2018-06-27 | Q16: 2018-06-27 | R16: 500 | S16: 40044479 | T16: PORTA ESPONJA TRANSPARENTE | U16: 104 | V16: UN | W16: 40044479 | X16: 25300 | Y16: 11 | Z16: 5 | AA16: 13 | AB16: 114 | AC16: 101 | AD16: 105 | AE16: FD2 | AF16: 1846 | AG16: 81492253006 | AH16: F01734021 | AI16: 108 | AK16: OK
B17: =IF(TB.TDS[[#This Row],[Material]]=TB.TDS[[#This Row],[SAP]],"OK","REV") -> OK | C17: =VLOOKUP(TB.TDS[[#This Row],[Nº PEDIDO]],NM.NUMPEDIDO,1,FALSE) -> 4800019601 | D17: =IF(TB.TDS[[#This Row],[Material]]>0,"OK","") -> OK | E17: =IF(TB.TDS[[#This Row],[SAP]]>0,"OK","") -> OK | I17: TCE | J17: FERRI | K17: 2018-0854 | L17: 4800019601 | M17: 118809 | N17: INTERDESIGN INC | O17: 1*40 | P17: 2018-06-27 | Q17: 2018-06-27 | R17: 530 | S17: 40044480 | T17: JABONERA TRASPARENTE | U17: 66 | V17: UN | W17: 40044480 | X17: 38600 | Y17: 24 | Z17: 13 | AA17: 3 | AB17: 114 | AC17: 101 | AD17: 105 | AE17: FD2 | AF17: 2160 | AG17: 81492386001 | AH17: F01837021 | AI17: 216 | AK17: OK
B18: =IF(TB.TDS[[#This Row],[Material]]=TB.TDS[[#This Row],[SAP]],"OK","REV") -> OK | C18: =VLOOKUP(TB.TDS[[#This Row],[Nº PEDIDO]],NM.NUMPEDIDO,1,FALSE) -> 4800019601 | D18: =IF(TB.TDS[[#This Row],[Material]]>0,"OK","") -> OK | E18: =IF(TB.TDS[[#This Row],[SAP]]>0,"OK","") -> OK | I18: TCE | J18: FERRI | K18: 2018-0854 | L18: 4800019601 | M18: 118809 | N18: INTERDESIGN INC | O18: 1*40 | P18: 2018-06-27 | Q18: 2018-06-27 | R18: 60 | S18: 40044487 | T18: PORTA PAPEL HIGIENICO | U18: 84 | V18: UN | W18: 40044487 | X18: 68740 | Y18: 8 | Z18: 15 | AA18: 63 | AB18: 114 | AC18: 101 | AD18: 105 | AE18: FD2 | AF18: 84 | AG18: 81492687405 | AH18: F0163001 | AI18: 48 | AK18: OK
B19: =IF(TB.TDS[[#This Row],[Material]]=TB.TDS[[#This Row],[SAP]],"OK","REV") -> OK | C19: =VLOOKUP(TB.TDS[[#This Row],[Nº PEDIDO]],NM.NUMPEDIDO,1,FALSE) -> 4800019601 | D19: =IF(TB.TDS[[#This Row],[Material]]>0,"OK","") -> OK | E19: =IF(TB.TDS[[#This Row],[SAP]]>0,"OK","") -> OK | I19: TCE | J19: FERRI | K19: 2018-0854 | L19: 4800019601 | M19: 118809 | N19: INTERDESIGN INC | O19: 1*40 | P19: 2018-06-27 | Q19: 2018-06-27 | R19: 210 | S19: 40064512 | T19: JABONERA PLASTICA TRANSPARENTE | U19: 840 | V19: UN | W19: 40064512 | X19: 30100 | Y19: 17 | Z19: 8 | AA19: 2 | AB19: 114 | AC19: 101 | AD19: 105 | AE19: FD2 | AF19: 5710 | AG19: 81492301004 | AH19: F01642033 | AI19: 960 | AK19: OK
B20: =IF(TB.TDS[[#This Row],[Material]]=TB.TDS[[#This Row],[SAP]],"OK","REV") -> OK | C20: =VLOOKUP(TB.TDS[[#This Row],[Nº PEDIDO]],NM.NUMPEDIDO,1,FALSE) -> 4800019601 | D20: =IF(TB.TDS[[#This Row],[Material]]>0,"OK","") -> OK | E20: =IF(TB.TDS[[#This Row],[SAP]]>0,"OK","") -> OK | I20: TCE | J20: FERRI | K20: 2018-0854 | L20: 4800019601 | M20: 118809 | N20: INTERDESIGN INC | O20: 1*40 | P20: 2018-06-27 | Q20: 2018-06-27 | R20: 620 | S20: 40064521 | T20: JABONERA PLASTICA TRANSPARENTE | U20: 72 | V20: UN | W20: 40064521 | X20: 25700 | Y20: 2 | Z20: 13 | AA20: 12 | AB20: 114 | AC20: 101 | AD20: 105 | AE20: FD2 | AF20: 4230 | AG20: 81492257004 | AH20: F01639023 | AI20: 576 | AK20: OK
B21: =IF(TB.TDS[[#This Row],[Material]]=TB.TDS[[#This Row],[SAP]],"OK","REV") -> OK | C21: =VLOOKUP(TB.TDS[[#This Row],[Nº PEDIDO]],NM.NUMPEDIDO,1,FALSE) -> 4800019601 | D21: =IF(TB.TDS[[#This Row],[Material]]>0,"OK","") -> OK | E21: =IF(TB.TDS[[#This Row],[SAP]]>0,"OK","") -> OK | I21: TCE | J21: FERRI | K21: 2018-0854 | L21: 4800019601 | M21: 118809 | N21: INTERDESIGN INC | O21: 1*40 | P21: 2018-06-27 | Q21: 2018-06-27 | R21: 550 | S21: 40064584 | T21: JABONERA PLASTICA TRANSP CLEAR | U21: 120 | V21: UN | W21: 40064584 | X21: 31300 | Y21: 15 | Z21: 10 | AA21: 2 | AB21: 114 | AC21: 101 | AD21: 105 | AE21: FD2 | AF21: 8640 | AG21: 81492313007 | AH21: F01623031 | AI21: 720 | AK21: OK
B22: =IF(TB.TDS[[#This Row],[Material]]=TB.TDS[[#This Row],[SAP]],"OK","REV") -> OK | C22: =VLOOKUP(TB.TDS[[#This Row],[Nº PEDIDO]],NM.NUMPEDIDO,1,FALSE) -> 4800019601 | D22: =IF(TB.TDS[[#This Row],[Material]]>0,"OK","") -> OK | E22: =IF(TB.TDS[[#This Row],[SAP]]>0,"OK","") -> OK | I22: TCE | J22: FERRI | K22: 2018-0854 | L22: 4800019601 | M22: 118809 | N22: INTERDESIGN INC | O22: 1*40 | P22: 2018-06-27 | Q22: 2018-06-27 | R22: 650 | S22: 40066650 | T22: GANCHO ADHES 2.1/2X1.5/8" BLANCO | U22: 72 | V22: UN | W22: 40066650 | X22: 14201 | Y22: 14 | Z22: 10 | AA22: 3 | AB22: 105 | AC22: 101 | AD22: 105 | AE22: F92 | AF22: 3413 | AG22: 81492142010 | AH22: F04011032 | AI22: 360 | AK22: OK
B23: =IF(TB.TDS[[#This Row],[Material]]=TB.TDS[[#This Row],[SAP]],"OK","REV") -> OK | C23: =VLOOKUP(TB.TDS[[#This Row],[Nº PEDIDO]],NM.NUMPEDIDO,1,FALSE) -> 4800019601 | D23: =IF(TB.TDS[[#This Row],[Material]]>0,"OK","") -> OK | E23: =IF(TB.TDS[[#This Row],[SAP]]>0,"OK","") -> OK | I23: TCE | J23: FERRI | K23: 2018-0854 | L23: 4800019601 | M23: 118809 | N23: INTERDESIGN INC | O23: 1*40 | P23: 2018-06-27 | Q23: 2018-06-27 | R23: 390 | S23: 40066809 | T23: GANCHO ADHES 3" | U23: 246 | V23: UN | W23: 40066809 | X23: 16001 | Y23: 10 | Z23: 14 | AA23: 5 | AB23: 105 | AC23: 101 | AD23: 105 | AE23: F92 | AF23: 1272 | AG23: 81492160014 | AH23: F00609012 | AI23: 252 | AK23: OK
B24: =IF(TB.TDS[[#This Row],[Material]]=TB.TDS[[#This Row],[SAP]],"OK","REV") -> OK | C24: =VLOOKUP(TB.TDS[[#This Row],[Nº PEDIDO]],NM.NUMPEDIDO,1,FALSE) -> 4800019601 | D24: =IF(TB.TDS[[#This Row],[Material]]>0,"OK","") -> OK | E24: =IF(TB.TDS[[#This Row],[SAP]]>0,"OK","") -> OK | I24: TCE | J24: FERRI | K24: 2018-0854 | L24: 4800019601 | M24: 118809 | N24: INTERDESIGN INC | O24: 1*40 | P24: 2018-06-27 | Q24: 2018-06-27 | R24: 100 | S24: 40105418 | T24: CADDY P BAÑO | U24: 52 | V24: UN | W24: 40105418 | X24: 20020 | Y24: 59 | Z24: 25 | AA24: 12 | AB24: 114 | AC24: 101 | AD24: 105 | AE24: FD2 | AF24: 96 | AG24: 81492200208 | AH24: F01831022 | AI24: 12 | AK24: OK
B25: =IF(TB.TDS[[#This Row],[Material]]=TB.TDS[[#This Row],[SAP]],"OK","REV") -> OK | C25: =VLOOKUP(TB.TDS[[#This Row],[Nº PEDIDO]],NM.NUMPEDIDO,1,FALSE) -> 4800019601 | D25: =IF(TB.TDS[[#This Row],[Material]]>0,"OK","") -> OK | E25: =IF(TB.TDS[[#This Row],[SAP]]>0,"OK","") -> OK | I25: TCE | J25: FERRI | K25: 2018-0854 | L25: 4800019601 | M25: 118809 | N25: INTERDESIGN INC | O25: 1*40 | P25: 2018-06-27 | Q25: 2018-06-27 | R25: 590 | S25: 40110585 | T25: GANCHO P/GABINETE 1"X2.25X3" ACER INOX | U25: 48 | V25: UN | W25: 40110585 | X25: 29420 | Y25: 14 | Z25: 11 | AA25: 6 | AB25: 114 | AC25: 101 | AD25: 105 | AE25: FD2 | AF25: 1429 | AG25: 81492294207 | AH25: F01824022 | AI25: 192 | AK25: OK
B26: =IF(TB.TDS[[#This Row],[Material]]=TB.TDS[[#This Row],[SAP]],"OK","REV") -> OK | C26: =VLOOKUP(TB.TDS[[#This Row],[Nº PEDIDO]],NM.NUMPEDIDO,1,FALSE) -> 4800019601 | D26: =IF(TB.TDS[[#This Row],[Material]]>0,"OK","") -> OK | E26: =IF(TB.TDS[[#This Row],[SAP]]>0,"OK","") -> OK | I26: TCE | J26: FERRI | K26: 2018-0854 | L26: 4800019601 | M26: 118809 | N26: INTERDESIGN INC | O26: 1*40 | P26: 2018-06-27 | Q26: 2018-06-27 | R26: 300 | S26: 40110588 | T26: TOALLERO P GABINETE 9" ACERO INOX | U26: 92 | V26: UN | W26: 40110588 | X26: 29450 | Y26: 25 | Z26: 14 | AA26: 4 | AB26: 105 | AC26: 101 | AD26: 105 | AE26: F92 | AF26: 942 | AG26: 81492294504 | AH26: F04011011 | AI26: 96 | AK26: OK
B27: =IF(TB.TDS[[#This Row],[Material]]=TB.TDS[[#This Row],[SAP]],"OK","REV") -> OK | C27: =VLOOKUP(TB.TDS[[#This Row],[Nº PEDIDO]],NM.NUMPEDIDO,1,FALSE) -> 4800019601 | D27: =IF(TB.TDS[[#This Row],[Material]]>0,"OK","") -> OK | E27: =IF(TB.TDS[[#This Row],[SAP]]>0,"OK","") -> OK | I27: TCE | J27: FERRI | K27: 2018-0854 | L27: 4800019601 | M27: 118809 | N27: INTERDESIGN INC | O27: 1*40 | P27: 2018-06-27 | Q27: 2018-06-27 | R27: 110 | S27: 40119974 | T27: PORTA CUBIERTOS LINUS | U27: 108 | V27: UN | W27: 40119974 | X27: 53930 | Y27: 35 | Z27: 28 | AA27: 6 | AB27: 114 | AC27: 101 | AD27: 105 | AE27: FD2 | AF27: 288 | AG27: 81492539308 | AH27: F0201101 | AI27: 144 | AK27: OK
B28: =IF(TB.TDS[[#This Row],[Material]]=TB.TDS[[#This Row],[SAP]],"OK","REV") -> OK | C28: =VLOOKUP(TB.TDS[[#This Row],[Nº PEDIDO]],NM.NUMPEDIDO,1,FALSE) -> 4800019601 | D28: =IF(TB.TDS[[#This Row],[Material]]>0,"OK","") -> OK | E28: =IF(TB.TDS[[#This Row],[SAP]]>0,"OK","") -> OK | I28: TCE | J28: FERRI | K28: 2018-0854 | L28: 4800019601 | M28: 118809 | N28: INTERDESIGN INC | O28: 1*40 | P28: 2018-06-27 | Q28: 2018-06-27 | R28: 190 | S28: 40119975 | T28: JABONERA EVA TRANSPARENTE | U28: 222 | V28: UN | W28: 40119975 | X28: 55120 | Y28: 12 | Z28: 4 | AA28: 10 | AB28: 114 | AC28: 101 | AD28: 105 | AE28: FD2 | AF28: 4620 | AG28: 81492551201 | AH28: F01633031 | AI28: 720 | AK28: OK
B29: =IF(TB.TDS[[#This Row],[Material]]=TB.TDS[[#This Row],[SAP]],"OK","REV") -> OK | C29: =VLOOKUP(TB.TDS[[#This Row],[Nº PEDIDO]],NM.NUMPEDIDO,1,FALSE) -> 4800019601 | D29: =IF(TB.TDS[[#This Row],[Material]]>0,"OK","") -> OK | E29: =IF(TB.TDS[[#This Row],[SAP]]>0,"OK","") -> OK | I29: TCE | J29: FERRI | K29: 2018-0854 | L29: 4800019601 | M29: 118809 | N29: INTERDESIGN INC | O29: 1*40 | P29: 2018-06-27 | Q29: 2018-06-27 | R29: 30 | S29: 40119977 | T29: DISPENSADOR JABON LIQUIDO EVA TRANSPAREN | U29: 330 | V29: UN | W29: 40119977 | X29: 55220 | Y29: 6 | Z29: 6 | AA29: 21 | AB29: 114 | AC29: 101 | AD29: 105 | AE29: FD2 | AF29: 960 | AG29: 81492552208 | AH29: F01641023 | AI29: 120 | AK29: OK
B30: =IF(TB.TDS[[#This Row],[Material]]=TB.TDS[[#This Row],[SAP]],"OK","REV") -> OK | C30: =VLOOKUP(TB.TDS[[#This Row],[Nº PEDIDO]],NM.NUMPEDIDO,1,FALSE) -> 4800019601 | D30: =IF(TB.TDS[[#This Row],[Material]]>0,"OK","") -> OK | E30: =IF(TB.TDS[[#This Row],[SAP]]>0,"OK","") -> OK | I30: TCE | J30: FERRI | K30: 2018-0854 | L30: 4800019601 | M30: 118809 | N30: INTERDESIGN INC | O30: 1*40 | P30: 2018-06-27 | Q30: 2018-06-27 | R30: 40 | S30: 40119979 | T30: PORTA PAPEL HIGIÉNICO DOBLE COLGANTE | U30: 276 | V30: UN | W30: 40119979 | X30: 55665 | Y30: 28 | Z30: 16 | AA30: 33 | AB30: 114 | AC30: 101 | AD30: 105 | AE30: FD2 | AF30: 504 | AG30: 81492556657 | AH30: F04957021 | AI30: 48 | AK30: OK
B31: =IF(TB.TDS[[#This Row],[Material]]=TB.TDS[[#This Row],[SAP]],"OK","REV") -> OK | C31: =VLOOKUP(TB.TDS[[#This Row],[Nº PEDIDO]],NM.NUMPEDIDO,1,FALSE) -> 4800019601 | D31: =IF(TB.TDS[[#This Row],[Material]]>0,"OK","") -> OK | E31: =IF(TB.TDS[[#This Row],[SAP]]>0,"OK","") -> OK | I31: TCE | J31: FERRI | K31: 2018-0854 | L31: 4800019601 | M31: 118809 | N31: INTERDESIGN INC | O31: 1*40 | P31: 2018-06-27 | Q31: 2018-06-27 | R31: 680 | S31: 40147458 | T31: CADDY P/BAÑO YORK LYRA BRONZE | U31: 1 | V31: UN | W31: 40147458 | X31: 61971 | Y31: 56 | Z31: 26 | AA31: 11 | AB31: 114 | AC31: 101 | AD31: 105 | AE31: FD2 | AF31: 144 | AG31: 81492619710 | AH31: F0192702 | AI31: 96 | AK31: OK
B32: =IF(TB.TDS[[#This Row],[Material]]=TB.TDS[[#This Row],[SAP]],"OK","REV") -> OK | C32: =VLOOKUP(TB.TDS[[#This Row],[Nº PEDIDO]],NM.NUMPEDIDO,1,FALSE) -> 4800019601 | D32: =IF(TB.TDS[[#This Row],[Material]]>0,"OK","") -> OK | E32: =IF(TB.TDS[[#This Row],[SAP]]>0,"OK","") -> OK | I32: TCE | J32: FERRI | K32: 2018-0854 | L32: 4800019601 | M32: 118809 | N32: INTERDESIGN INC | O32: 1*40 | P32: 2018-06-27 | Q32: 2018-06-27 | R32: 220 | S32: 40191078 | T32: GANCHO P/CORTINA 12PZS SATIN ROLLERZ | U32: 102 | V32: UN | W32: 40191078 | X32: 76572 | Y32: 25 | Z32: 9 | AA32: 3 | AB32: 114 | AC32: 101 | AD32: 105 | AE32: FD2 | AF32: 1956 | AG32: 81492765721 | AH32: F01821031 | AI32: 210 | AK32: OK
B33: =IF(TB.TDS[[#This Row],[Material]]=TB.TDS[[#This Row],[SAP]],"OK","REV") -> OK | C33: =VLOOKUP(TB.TDS[[#This Row],[Nº PEDIDO]],NM.NUMPEDIDO,1,FALSE) -> 4800019601 | D33: =IF(TB.TDS[[#This Row],[Material]]>0,"OK","") -> OK | E33: =IF(TB.TDS[[#This Row],[SAP]]>0,"OK","") -> OK | I33: TCE | J33: FERRI | K33: 2018-0854 | L33: 4800019601 | M33: 118809 | N33: INTERDESIGN INC | O33: 1*40 | P33: 2018-06-27 | Q33: 2018-06-27 | R33: 70 | S33: 40196457 | T33: PORTACEPILLO EVA TRANSPARENTE | U33: 408 | V33: UN | W33: 40196457 | X33: 55520 | Y33: 7 | Z33: 7 | AA33: 12 | AB33: 114 | AC33: 101 | AD33: 105 | AE33: FD2 | AF33: 2245 | AG33: 81492555209 | AH33: F01828023 | AI33: 288 | AK33: OK
B34: =IF(TB.TDS[[#This Row],[Material]]=TB.TDS[[#This Row],[SAP]],"OK","REV") -> OK | C34: =VLOOKUP(TB.TDS[[#This Row],[Nº PEDIDO]],NM.NUMPEDIDO,1,FALSE) -> 4800019601 | D34: =IF(TB.TDS[[#This Row],[Material]]>0,"OK","") -> OK | E34: =IF(TB.TDS[[#This Row],[SAP]]>0,"OK","") -> OK | I34: TCE | J34: FERRI | K34: 2018-0854 | L34: 4800019601 | M34: 118809 | N34: INTERDESIGN INC | O34: 1*40 | P34: 2018-06-27 | Q34: 2018-06-27 | R34: 140 | S34: 40200368 | T34: PORTA PAPEL HIGIEN DOBLE COLGANTE BRONZE | U34: 120 | V34: UN | W34: 40200368 | X34: 55645 | Y34: 28 | Z34: 15 | AA34: 16 | AB34: 114 | AC34: 101 | AD34: 105 | AE34: FD2 | AF34: 196 | AG34: 81492556459 | AH34: F01819033 | AI34: 48 | AK34: OK
B35: =IF(TB.TDS[[#This Row],[Material]]=TB.TDS[[#This Row],[SAP]],"OK","REV") -> OK | C35: =VLOOKUP(TB.TDS[[#This Row],[Nº PEDIDO]],NM.NUMPEDIDO,1,FALSE) -> 4800019601 | D35: =IF(TB.TDS[[#This Row],[Material]]>0,"OK","") -> OK | E35: =IF(TB.TDS[[#This Row],[SAP]]>0,"OK","") -> OK | I35: TCE | J35: FERRI | K35: 2018-0854 | L35: 4800019601 | M35: 118809 | N35: INTERDESIGN INC | O35: 1*40 | P35: 2018-06-27 | Q35: 2018-06-27 | R35: 440 | S35: 40200369 | T35: PORTA TOALLA CROMO | U35: 26 | V35: UN | W35: 40200369 | X35: 55658 | Y35: 35 | Z35: 19 | AA35: 17 | AB35: 114 | AC35: 101 | AD35: 105 | AE35: FD2 | AF35: 144 | AG35: 81492556589 | AH35: F01831031 | AI35: 20 | AK35: OK
B36: =IF(TB.TDS[[#This Row],[Material]]=TB.TDS[[#This Row],[SAP]],"OK","REV") -> OK | C36: =VLOOKUP(TB.TDS[[#This Row],[Nº PEDIDO]],NM.NUMPEDIDO,1,FALSE) -> 4800019601 | D36: =IF(TB.TDS[[#This Row],[Material]]>0,"OK","") -> OK | E36: =IF(TB.TDS[[#This Row],[SAP]]>0,"OK","") -> OK | I36: TCE | J36: FERRI | K36: 2018-0854 | L36: 4800019601 | M36: 118809 | N36: INTERDESIGN INC | O36: 1*40 | P36: 2018-06-27 | Q36: 2018-06-27 | R36: 330 | S36: 40200370 | T36: PORTA TOALLA BRONZE | U36: 40 | V36: UN | W36: 40200370 | X36: 55638 | Y36: 36 | Z36: 19 | AA36: 17 | AB36: 114 | AC36: 101 | AD36: 105 | AE36: FD2 | AF36: 120 | AG36: 81492556381 | AH36: F01827023 | AI36: 26 | AK36: OK
B37: =IF(TB.TDS[[#This Row],[Material]]=TB.TDS[[#This Row],[SAP]],"OK","REV") -> OK | C37: =VLOOKUP(TB.TDS[[#This Row],[Nº PEDIDO]],NM.NUMPEDIDO,1,FALSE) -> 4800019601 | D37: =IF(TB.TDS[[#This Row],[Material]]>0,"OK","") -> OK | E37: =IF(TB.TDS[[#This Row],[SAP]]>0,"OK","") -> OK | I37: TCE | J37: FERRI | K37: 2018-0854 | L37: 4800019601 | M37: 118809 | N37: INTERDESIGN INC | O37: 1*40 | P37: 2018-06-27 | Q37: 2018-06-27 | R37: 90 | S37: 40200371 | T37: PORTA PAPEL HIGIENICO BRONZE | U37: 76 | V37: UN | W37: 40200371 | X37: 68743 | Y37: 8 | Z37: 15 | AA37: 63 | AB37: 114 | AC37: 101 | AD37: 105 | AE37: FD2 | AF37: 84 | AG37: 81492687436 | AH37: F0163201 | AI37: 48 | AK37: OK
B38: =IF(TB.TDS[[#This Row],[Material]]=TB.TDS[[#This Row],[SAP]],"OK","REV") -> OK | C38: =VLOOKUP(TB.TDS[[#This Row],[Nº PEDIDO]],NM.NUMPEDIDO,1,FALSE) -> 4800019601 | D38: =IF(TB.TDS[[#This Row],[Material]]>0,"OK","") -> OK | E38: =IF(TB.TDS[[#This Row],[SAP]]>0,"OK","") -> OK | I38: TCE | J38: FERRI | K38: 2018-0854 | L38: 4800019601 | M38: 118809 | N38: INTERDESIGN INC | O38: 1*40 | P38: 2018-06-27 | Q38: 2018-06-27 | R38: 690 | S38: 40200383 | T38: TUBO EXTENSIBLE P'BAÑO 25"A 43" A/I | U38: 4 | V38: UN | W38: 40200383 | X38: 78470 | Y38: 69 | Z38: 7 | AA38: 7 | AB38: 114 | AC38: 101 | AD38: 105 | AE38: FD2 | AF38: 414 | AG38: 81492784708 | AH38: F0472202 | AI38: 48 | AK38: OK
B39: =IF(TB.TDS[[#This Row],[Material]]=TB.TDS[[#This Row],[SAP]],"OK","REV") -> OK | C39: =VLOOKUP(TB.TDS[[#This Row],[Nº PEDIDO]],NM.NUMPEDIDO,1,FALSE) -> 4800019601 | D39: =IF(TB.TDS[[#This Row],[Material]]>0,"OK","") -> OK | E39: =IF(TB.TDS[[#This Row],[SAP]]>0,"OK","") -> OK | I39: TCE | J39: FERRI | K39: 2018-0854 | L39: 4800019601 | M39: 118809 | N39: INTERDESIGN INC | O39: 1*40 | P39: 2018-06-27 | Q39: 2018-06-27 | R39: 230 | S39: 40200385 | T39: TUBO EXTENSIBLE P'BAÑO 43"A 75" A/I | U39: 36 | V39: UN | W39: 40200385 | X39: 77101 | Y39: 119 | Z39: 7 | AA39: 7 | AB39: 114 | AC39: 101 | AD39: 105 | AE39: FD2 | AF39: 168 | AG39: 81492771012 | AH39: F01828031 | AI39: 24 | AK39: OK
B40: =IF(TB.TDS[[#This Row],[Material]]=TB.TDS[[#This Row],[SAP]],"OK","REV") -> OK | C40: =VLOOKUP(TB.TDS[[#This Row],[Nº PEDIDO]],NM.NUMPEDIDO,1,FALSE) -> 4800019601 | D40: =IF(TB.TDS[[#This Row],[Material]]>0,"OK","") -> OK | E40: =IF(TB.TDS[[#This Row],[SAP]]>0,"OK","") -> OK | I40: TCE | J40: FERRI | K40: 2018-0854 | L40: 4800019601 | M40: 118809 | N40: INTERDESIGN INC | O40: 1*40 | P40: 2018-06-27 | Q40: 2018-06-27 | R40: 480 | S40: 40200388 | T40: PORTA TOALLA DE COCINA CROMO | U40: 42 | V40: UN | W40: 40200388 | X40: 35402 | Y40: 26 | Z40: 14 | AA40: 15 | AB40: 114 | AC40: 101 | AD40: 105 | AE40: FD2 | AF40: 672 | AG40: 81492354024 | AH40: F01831033 | AI40: 72 | AK40: OK
B41: =IF(TB.TDS[[#This Row],[Material]]=TB.TDS[[#This Row],[SAP]],"OK","REV") -> OK | C41: =VLOOKUP(TB.TDS[[#This Row],[Nº PEDIDO]],NM.NUMPEDIDO,1,FALSE) -> 4800019601 | D41: =IF(TB.TDS[[#This Row],[Material]]>0,"OK","") -> OK | E41: =IF(TB.TDS[[#This Row],[SAP]]>0,"OK","") -> OK | I41: TCE | J41: FERRI | K41: 2018-0854 | L41: 4800019601 | M41: 118809 | N41: INTERDESIGN INC | O41: 1*40 | P41: 2018-06-27 | Q41: 2018-06-27 | R41: 580 | S41: 40200389 | T41: TOALLERO P GABINETE 9" BRONZE | U41: 1 | V41: UN | W41: 40200389 | X41: 57271 | Y41: 27 | Z41: 14 | AA41: 8 | AB41: 114 | AC41: 101 | AD41: 105 | AE41: FD2 | AF41: 437 | AG41: 81492572718 | AH41: F01824021 | AI41: 96 | AK41: OK
B42: =IF(TB.TDS[[#This Row],[Material]]=TB.TDS[[#This Row],[SAP]],"OK","REV") -> OK | C42: =VLOOKUP(TB.TDS[[#This Row],[Nº PEDIDO]],NM.NUMPEDIDO,1,FALSE) -> 4800019601 | D42: =IF(TB.TDS[[#This Row],[Material]]>0,"OK","") -> OK | E42: =IF(TB.TDS[[#This Row],[SAP]]>0,"OK","") -> OK | I42: TCE | J42: FERRI | K42: 2018-0854 | L42: 4800019601 | M42: 118809 | N42: INTERDESIGN INC | O42: 1*40 | P42: 2018-06-27 | Q42: 2018-06-27 | R42: 340 | S42: 40200390 | T42: PORTA TOALLA DE COCINA BRONZE | U42: 64 | V42: UN | W42: 40200390 | X42: 58771 | Y42: 26 | Z42: 17 | AA42: 14 | AB42: 114 | AC42: 101 | AD42: 105 | AE42: FD2 | AF42: 720 | AG42: 81492587712 | AH42: F04906011 | AI42: 32 | AK42: OK
B43: =IF(TB.TDS[[#This Row],[Material]]=TB.TDS[[#This Row],[SAP]],"OK","REV") -> OK | C43: =VLOOKUP(TB.TDS[[#This Row],[Nº PEDIDO]],NM.NUMPEDIDO,1,FALSE) -> 4800019601 | D43: =IF(TB.TDS[[#This Row],[Material]]>0,"OK","") -> OK | E43: =IF(TB.TDS[[#This Row],[SAP]]>0,"OK","") -> OK | I43: TCE | J43: FERRI | K43: 2018-0854 | L43: 4800019601 | M43: 118809 | N43: INTERDESIGN INC | O43: 1*40 | P43: 2018-06-27 | Q43: 2018-06-27 | R43: 660 | S43: 40200394 | T43: PROTECTOR PLASTICO P/DESAGUE | U43: 54 | V43: UN | W43: 40200394 | X43: 22510 | Y43: 18 | Z43: 12 | AA43: 3 | AB43: 114 | AC43: 101 | AD43: 105 | AE43: FD2 | AF43: 3056 | AG43: 81492225102 | AH43: F05539023 | AI43: 216 | AK43: OK
B44: =IF(TB.TDS[[#This Row],[Material]]=TB.TDS[[#This Row],[SAP]],"OK","REV") -> OK | C44: =VLOOKUP(TB.TDS[[#This Row],[Nº PEDIDO]],NM.NUMPEDIDO,1,FALSE) -> 4800019601 | D44: =IF(TB.TDS[[#This Row],[Material]]>0,"OK","") -> OK | E44: =IF(TB.TDS[[#This Row],[SAP]]>0,"OK","") -> OK | I44: TCE | J44: FERRI | K44: 2018-0854 | L44: 4800019601 | M44: 118809 | N44: INTERDESIGN INC | O44: 1*40 | P44: 2018-06-27 | Q44: 2018-06-27 | R44: 360 | S44: 40235199 | T44: CADDY P/BAÑO SILVER CLASSIC | U44: 36 | V44: UN | W44: 40235199 | X44: 60166 | Y44: 53 | Z44: 12 | AA44: 23 | AB44: 114 | AC44: 101 | AD44: 105 | AE44: FD2 | AF44: 120 | AG44: 81492601661 | AH44: F0192502 | AI44: 72 | AK44: OK
B45: =IF(TB.TDS[[#This Row],[Material]]=TB.TDS[[#This Row],[SAP]],"OK","REV") -> OK | C45: =VLOOKUP(TB.TDS[[#This Row],[Nº PEDIDO]],NM.NUMPEDIDO,1,FALSE) -> 4800019601 | D45: =IF(TB.TDS[[#This Row],[Material]]>0,"OK","") -> OK | E45: =IF(TB.TDS[[#This Row],[SAP]]>0,"OK","") -> OK | I45: TCE | J45: FERRI | K45: 2018-0854 | L45: 4800019601 | M45: 118809 | N45: INTERDESIGN INC | O45: 1*40 | P45: 2018-06-27 | Q45: 2018-06-27 | R45: 610 | S45: 40235203 | T45: JABONERA YORK BRONZE | U45: 14 | V45: UN | W45: 40235203 | X45: 76085 | Y45: 14 | Z45: 10 | AA45: 4 | AB45: 114 | AC45: 101 | AD45: 105 | AE45: FD2 | AF45: 1296 | AG45: 81492760856 | AH45: F04906023 | AI45: 144 | AK45: OK
B46: =IF(TB.TDS[[#This Row],[Material]]=TB.TDS[[#This Row],[SAP]],"OK","REV") -> OK | C46: =VLOOKUP(TB.TDS[[#This Row],[Nº PEDIDO]],NM.NUMPEDIDO,1,FALSE) -> 4800019601 | D46: =IF(TB.TDS[[#This Row],[Material]]>0,"OK","") -> OK | E46: =IF(TB.TDS[[#This Row],[SAP]]>0,"OK","") -> OK | I46: TCE | J46: FERRI | K46: 2018-0854 | L46: 4800019601 | M46: 118809 | N46: INTERDESIGN INC | O46: 1*40 | P46: 2018-06-27 | Q46: 2018-06-27 | R46: 160 | S46: 40235220 | T46: CADDY P/BAÑO YORK LIRA SILVER | U46: 52 | V46: UN | W46: 40235220 | X46: 61976 | Y46: 56 | Z46: 25 | AA46: 10 | AB46: 114 | AC46: 101 | AD46: 105 | AE46: FD2 | AF46: 160 | AG46: 81492619765 | AH46: F01838022 | AI46: 16 | AK46: OK
B47: =IF(TB.TDS[[#This Row],[Material]]=TB.TDS[[#This Row],[SAP]],"OK","REV") -> OK | C47: =VLOOKUP(TB.TDS[[#This Row],[Nº PEDIDO]],NM.NUMPEDIDO,1,FALSE) -> 4800019601 | D47: =IF(TB.TDS[[#This Row],[Material]]>0,"OK","") -> OK | E47: =IF(TB.TDS[[#This Row],[SAP]]>0,"OK","") -> OK | I47: TCE | J47: FERRI | K47: 2018-0854 | L47: 4800019601 | M47: 118809 | N47: INTERDESIGN INC | O47: 1*40 | P47: 2018-06-27 | Q47: 2018-06-27 | R47: 240 | S47: 40235221 | T47: CADDY P/BAÑO PEBBLZ CL/SILVER 2 NIVELES | U47: 36 | V47: UN | W47: 40235221 | X47: 68566 | Y47: 56 | Z47: 26 | AA47: 12 | AB47: 114 | AC47: 101 | AD47: 105 | AE47: FD2 | AF47: 96 | AG47: 81492685661 | AH47: F01839023 | AI47: 8 | AK47: OK
B48: =IF(TB.TDS[[#This Row],[Material]]=TB.TDS[[#This Row],[SAP]],"OK","REV") -> OK | C48: =VLOOKUP(TB.TDS[[#This Row],[Nº PEDIDO]],NM.NUMPEDIDO,1,FALSE) -> 4800019601 | D48: =IF(TB.TDS[[#This Row],[Material]]>0,"OK","") -> OK | E48: =IF(TB.TDS[[#This Row],[SAP]]>0,"OK","") -> OK | I48: TCE | J48: FERRI | K48: 2018-0854 | L48: 4800019601 | M48: 118809 | N48: INTERDESIGN INC | O48: 1*40 | P48: 2018-06-27 | Q48: 2018-06-27 | R48: 470 | S48: 40235240 | T48: GANCHO PORTA FUNDA P/COCINA | U48: 68 | V48: UN | W48: 40235240 | X48: 34110 | Y48: 4 | Z48: 17 | AA48: 24 | AB48: 114 | AC48: 101 | AD48: 105 | AE48: FD2 | AF48: 576 | AG48: 81492341109 | AH48: F01826023 | AI48: 96 | AK48: OK
B49: =IF(TB.TDS[[#This Row],[Material]]=TB.TDS[[#This Row],[SAP]],"OK","REV") -> OK | C49: =VLOOKUP(TB.TDS[[#This Row],[Nº PEDIDO]],NM.NUMPEDIDO,1,FALSE) -> 4800019601 | D49: =IF(TB.TDS[[#This Row],[Material]]>0,"OK","") -> OK | E49: =IF(TB.TDS[[#This Row],[SAP]]>0,"OK","") -> OK | I49: TCE | J49: FERRI | K49: 2018-0854 | L49: 4800019601 | M49: 118809 | N49: INTERDESIGN INC | O49: 1*40 | P49: 2018-06-27 | Q49: 2018-06-27 | R49: 640 | S49: 40253444 | T49: GANCHO P/COLGAR CLEAR | U49: 36 | V49: UN | W49: 40253444 | X49: 52920 | Y49: 16 | Z49: 10 | AA49: 5 | AB49: 105 | AC49: 101 | AD49: 105 | AE49: F92 | AF49: 1650 | AG49: 81492529200 | AH49: F04013022 | AI49: 96 | AK49: OK
B50: =IF(TB.TDS[[#This Row],[Material]]=TB.TDS[[#This Row],[SAP]],"OK","REV") -> OK | C50: =VLOOKUP(TB.TDS[[#This Row],[Nº PEDIDO]],NM.NUMPEDIDO,1,FALSE) -> 4800019601 | D50: =IF(TB.TDS[[#This Row],[Material]]>0,"OK","") -> OK | E50: =IF(TB.TDS[[#This Row],[SAP]]>0,"OK","") -> OK | I50: TCE | J50: FERRI | K50: 2018-0854 | L50: 4800019601 | M50: 118809 | N50: INTERDESIGN INC | O50: 1*40 | P50: 2018-06-27 | Q50: 2018-06-27 | R50: 600 | S50: 40253458 | T50: GANCHO ADHESIVO (4) BLANCO | U50: 48 | V50: UN | W50: 40253458 | X50: 14801 | Y50: 17 | Z50: 10 | AA50: 5 | AB50: 105 | AC50: 101 | AD50: 105 | AE50: F92 | AF50: 2588 | AG50: 81492148012 | AH50: F04001032 | AI50: 288 | AK50: OK
B51: =IF(TB.TDS[[#This Row],[Material]]=TB.TDS[[#This Row],[SAP]],"OK","REV") -> OK | C51: =VLOOKUP(TB.TDS[[#This Row],[Nº PEDIDO]],NM.NUMPEDIDO,1,FALSE) -> 4800019601 | D51: =IF(TB.TDS[[#This Row],[Material]]>0,"OK","") -> OK | E51: =IF(TB.TDS[[#This Row],[SAP]]>0,"OK","") -> OK | I51: TCE | J51: FERRI | K51: 2018-0854 | L51: 4800019601 | M51: 118809 | N51: INTERDESIGN INC | O51: 1*40 | P51: 2018-06-27 | Q51: 2018-06-27 | R51: 490 | S51: 40274699 | T51: DISPENSADOR DE JABON LIQUIDO TRANSP/NIQU | U51: 32 | V51: UN | W51: 40274699 | X51: 50100 | Y51: 20 | Z51: 8 | AA51: 8 | AB51: 114 | AC51: 101 | AD51: 105 | AE51: FD2 | AF51: 576 | AG51: 81492501008 | AH51: F01822033 | AI51: 96 | AK51: OK
B52: =IF(TB.TDS[[#This Row],[Material]]=TB.TDS[[#This Row],[SAP]],"OK","REV") -> OK | C52: =VLOOKUP(TB.TDS[[#This Row],[Nº PEDIDO]],NM.NUMPEDIDO,1,FALSE) -> 4800019601 | D52: =IF(TB.TDS[[#This Row],[Material]]>0,"OK","") -> OK | E52: =IF(TB.TDS[[#This Row],[SAP]]>0,"OK","") -> OK | I52: TCE | J52: FERRI | K52: 2018-0854 | L52: 4800019601 | M52: 118809 | N52: INTERDESIGN INC | O52: 1*40 | P52: 2018-06-27 | Q52: 2018-06-27 | R52: 420 | S52: 40274701 | T52: DISPENSADOR DE JABON LIQUIDO CLARITY | U52: 64 | V52: UN | W52: 40274701 | X52: 41380 | Y52: 16 | Z52: 10 | AA52: 7 | AB52: 114 | AC52: 101 | AD52: 105 | AE52: FD2 | AF52: 1152 | AG52: 81492413806 | AH52: F01824023 | AI52: 128 | AK52: OK
B53: =IF(TB.TDS[[#This Row],[Material]]=TB.TDS[[#This Row],[SAP]],"OK","REV") -> OK | C53: =VLOOKUP(TB.TDS[[#This Row],[Nº PEDIDO]],NM.NUMPEDIDO,1,FALSE) -> 4800019601 | D53: =IF(TB.TDS[[#This Row],[Material]]>0,"OK","") -> OK | E53: =IF(TB.TDS[[#This Row],[SAP]]>0,"OK","") -> OK | I53: TCE | J53: FERRI | K53: 2018-0854 | L53: 4800019601 | M53: 118809 | N53: INTERDESIGN INC | O53: 1*40 | P53: 2018-06-27 | Q53: 2018-06-27 | R53: 460 | S53: 40274703 | T53: PORTACEPILLO DENTAL CLARITY | U53: 72 | V53: UN | W53: 40274703 | X53: 41280 | Y53: 10 | Z53: 6 | AA53: 6 | AB53: 114 | AC53: 101 | AD53: 105 | AE53: FD2 | AF53: 1152 | AG53: 81492412809 | AH53: F01504041 | AI53: 96 | AK53: OK
B54: =IF(TB.TDS[[#This Row],[Material]]=TB.TDS[[#This Row],[SAP]],"OK","REV") -> OK | C54: =VLOOKUP(TB.TDS[[#This Row],[Nº PEDIDO]],NM.NUMPEDIDO,1,FALSE) -> 4800019601 | D54: =IF(TB.TDS[[#This Row],[Material]]>0,"OK","") -> OK | E54: =IF(TB.TDS[[#This Row],[SAP]]>0,"OK","") -> OK | I54: TCE | J54: FERRI | K54: 2018-0854 | L54: 4800019601 | M54: 118809 | N54: INTERDESIGN INC | O54: 1*40 | P54: 2018-06-27 | Q54: 2018-06-27 | R54: 520 | S54: 40274716 | T54: CORTINA P/BAÑO PEVA SAND 72"X72" | U54: 56 | V54: UN | W54: 40274716 | X54: 12053 | Y54: 27 | Z54: 14 | AA54: 8 | AB54: 114 | AC54: 101 | AD54: 105 | AE54: FD2 | AF54: 1536 | AG54: 81492120537 | AH54: F01825032 | AI54: 128 | AK54: OK
B55: =IF(TB.TDS[[#This Row],[Material]]=TB.TDS[[#This Row],[SAP]],"OK","REV") -> OK | C55: =VLOOKUP(TB.TDS[[#This Row],[Nº PEDIDO]],NM.NUMPEDIDO,1,FALSE) -> 4800019601 | D55: =IF(TB.TDS[[#This Row],[Material]]>0,"OK","") -> OK | E55: =IF(TB.TDS[[#This Row],[SAP]]>0,"OK","") -> OK | I55: TCE | J55: FERRI | K55: 2018-0854 | L55: 4800019601 | M55: 118809 | N55: INTERDESIGN INC | O55: 1*40 | P55: 2018-06-27 | Q55: 2018-06-27 | R55: 170 | S55: 40292016 | T55: PORTA CEPILLO DENTAL FORMA SS | U55: 88 | V55: UN | W55: 40292016 | X55: 22067 | Y55: 10 | Z55: 7 | AA55: 7 | AB55: 114 | AC55: 101 | AD55: 105 | AE55: FD2 | AF55: 1152 | AG55: 81492220671 | AH55: F01837022 | AI55: 192 | AK55: OK
B56: =IF(TB.TDS[[#This Row],[Material]]=TB.TDS[[#This Row],[SAP]],"OK","REV") -> OK | C56: =VLOOKUP(TB.TDS[[#This Row],[Nº PEDIDO]],NM.NUMPEDIDO,1,FALSE) -> 4800019601 | D56: =IF(TB.TDS[[#This Row],[Material]]>0,"OK","") -> OK | E56: =IF(TB.TDS[[#This Row],[SAP]]>0,"OK","") -> OK | I56: TCE | J56: FERRI | K56: 2018-0854 | L56: 4800019601 | M56: 118809 | N56: INTERDESIGN INC | O56: 1*40 | P56: 2018-06-27 | Q56: 2018-06-27 | R56: 450 | S56: 40292017 | T56: JABONERA FORMA SS | U56: 36 | V56: UN | W56: 40292017 | X56: 21167 | Y56: 14 | Z56: 10 | AA56: 2 | AB56: 114 | AC56: 101 | AD56: 105 | AE56: FD2 | AF56: 1920 | AG56: 81492211679 | AH56: F01724033 | AI56: 192 | AK56: OK
B57: =IF(TB.TDS[[#This Row],[Material]]=TB.TDS[[#This Row],[SAP]],"OK","REV") -> OK | C57: =VLOOKUP(TB.TDS[[#This Row],[Nº PEDIDO]],NM.NUMPEDIDO,1,FALSE) -> 4800019601 | D57: =IF(TB.TDS[[#This Row],[Material]]>0,"OK","") -> OK | E57: =IF(TB.TDS[[#This Row],[SAP]]>0,"OK","") -> OK | I57: TCE | J57: FERRI | K57: 2018-0854 | L57: 4800019601 | M57: 118809 | N57: INTERDESIGN INC | O57: 1*40 | P57: 2018-06-27 | Q57: 2018-06-27 | R57: 380 | S57: 40292018 | T57: VASO FORMA SS | U57: 50 | V57: UN | W57: 40292018 | X57: 21867 | Y57: 10 | Z57: 8 | AA57: 8 | AB57: 114 | AC57: 101 | AD57: 105 | AE57: FD2 | AF57: 1152 | AG57: 81492218678 | AH57: F01728021 | AI57: 96 | AK57: OK
B58: =IF(TB.TDS[[#This Row],[Material]]=TB.TDS[[#This Row],[SAP]],"OK","REV") -> OK | C58: =VLOOKUP(TB.TDS[[#This Row],[Nº PEDIDO]],NM.NUMPEDIDO,1,FALSE) -> 4800019601 | D58: =IF(TB.TDS[[#This Row],[Material]]>0,"OK","") -> OK | E58: =IF(TB.TDS[[#This Row],[SAP]]>0,"OK","") -> OK | I58: TCE | J58: FERRI | K58: 2018-0854 | L58: 4800019601 | M58: 118809 | N58: INTERDESIGN INC | O58: 1*40 | P58: 2018-06-27 | Q58: 2018-06-27 | R58: 270 | S58: 40292019 | T58: DISPENSASDOR JABON LIQUIDO FORMA SS | U58: 58 | V58: UN | W58: 40292019 | X58: 21767 | Y58: 22 | Z58: 8 | AA58: 8 | AB58: 114 | AC58: 101 | AD58: 105 | AE58: FD2 | AF58: 720 | AG58: 81492217671 | AH58: F04941011 | AI58: 144 | AK58: OK
B59: =IF(TB.TDS[[#This Row],[Material]]=TB.TDS[[#This Row],[SAP]],"OK","REV") -> OK | C59: =VLOOKUP(TB.TDS[[#This Row],[Nº PEDIDO]],NM.NUMPEDIDO,1,FALSE) -> 4800019601 | D59: =IF(TB.TDS[[#This Row],[Material]]>0,"OK","") -> OK | E59: =IF(TB.TDS[[#This Row],[SAP]]>0,"OK","") -> OK | I59: TCE | J59: FERRI | K59: 2018-0854 | L59: 4800019601 | M59: 118809 | N59: INTERDESIGN INC | O59: 1*40 | P59: 2018-06-27 | Q59: 2018-06-27 | R59: 410 | S59: 40292020 | T59: VASO PORTA CEPILLO CLARITY CLEAR/BRUSHED | U59: 60 | V59: UN | W59: 40292020 | X59: 41180 | Y59: 10 | Z59: 6 | AA59: 6 | AB59: 114 | AC59: 101 | AD59: 105 | AE59: FD2 | AF59: 1728 | AG59: 81492411802 | AH59: F01627032 | AI59: 128 | AK59: OK
B60: =IF(TB.TDS[[#This Row],[Material]]=TB.TDS[[#This Row],[SAP]],"OK","REV") -> OK | C60: =VLOOKUP(TB.TDS[[#This Row],[Nº PEDIDO]],NM.NUMPEDIDO,1,FALSE) -> 4800019601 | D60: =IF(TB.TDS[[#This Row],[Material]]>0,"OK","") -> OK | E60: =IF(TB.TDS[[#This Row],[SAP]]>0,"OK","") -> OK | I60: TCE | J60: FERRI | K60: 2018-0854 | L60: 4800019601 | M60: 118809 | N60: INTERDESIGN INC | O60: 1*40 | P60: 2018-06-27 | Q60: 2018-06-27 | R60: 630 | S60: 40292025 | T60: DISPENSASDOR JABON LIQUIDO C/ORGANIZ CAS | U60: 8 | V60: UN | W60: 40292025 | X60: 51339 | Y60: 18 | Z60: 7 | AA60: 20 | AB60: 114 | AC60: 101 | AD60: 105 | AE60: FD2 | AF60: 360 | AG60: 81492513391 | AH60: F04941021 | AI60: 72 | AK60: OK
B61: =IF(TB.TDS[[#This Row],[Material]]=TB.TDS[[#This Row],[SAP]],"OK","REV") -> OK | C61: =VLOOKUP(TB.TDS[[#This Row],[Nº PEDIDO]],NM.NUMPEDIDO,1,FALSE) -> 4800019601 | D61: =IF(TB.TDS[[#This Row],[Material]]>0,"OK","") -> OK | E61: =IF(TB.TDS[[#This Row],[SAP]]>0,"OK","") -> OK | I61: TCE | J61: FERRI | K61: 2018-0854 | L61: 4800019601 | M61: 118809 | N61: INTERDESIGN INC | O61: 1*40 | P61: 2018-06-27 | Q61: 2018-06-27 | R61: 310 | S61: 40292026 | T61: DISPENSASDOR JABON LIQUIDO C/ORGANIZ CAS | U61: 48 | V61: UN | W61: 40292026 | X61: 51330 | Y61: 19 | Z61: 7 | AA61: 7 | AB61: 114 | AC61: 101 | AD61: 105 | AE61: FD2 | AF61: 432 | AG61: 81492513308 | AH61: F04941022 | AI61: 72 | AK61: OK
B62: =IF(TB.TDS[[#This Row],[Material]]=TB.TDS[[#This Row],[SAP]],"OK","REV") -> OK | C62: =VLOOKUP(TB.TDS[[#This Row],[Nº PEDIDO]],NM.NUMPEDIDO,1,FALSE) -> 4800019601 | D62: =IF(TB.TDS[[#This Row],[Material]]>0,"OK","") -> OK | E62: =IF(TB.TDS[[#This Row],[SAP]]>0,"OK","") -> OK | I62: TCE | J62: FERRI | K62: 2018-0854 | L62: 4800019601 | M62: 118809 | N62: INTERDESIGN INC | O62: 1*40 | P62: 2018-06-27 | Q62: 2018-06-27 | R62: 560 | S62: 40292027 | T62: PORTA TOALLA DE PAPEL AXIS OTC CHROME | U62: 20 | V62: UN | W62: 40292027 | X62: 57570 | Y62: 32 | Z62: 17 | AA62: 2 | AB62: 114 | AC62: 101 | AD62: 105 | AE62: FD2 | AF62: 864 | AG62: 81492575702 | AH62: F01624032 | AI62: 96 | AK62: OK
B63: =IF(TB.TDS[[#This Row],[Material]]=TB.TDS[[#This Row],[SAP]],"OK","REV") -> OK | C63: =VLOOKUP(TB.TDS[[#This Row],[Nº PEDIDO]],NM.NUMPEDIDO,1,FALSE) -> 4800019601 | D63: =IF(TB.TDS[[#This Row],[Material]]>0,"OK","") -> OK | E63: =IF(TB.TDS[[#This Row],[SAP]]>0,"OK","") -> OK | I63: TCE | J63: FERRI | K63: 2018-0854 | L63: 4800019601 | M63: 118809 | N63: INTERDESIGN INC | O63: 1*40 | P63: 2018-06-27 | Q63: 2018-06-27 | R63: 200 | S63: 40292029 | T63: ORGANIZADOR P/ANAQUEL AXIS OTC DE COCINA | U63: 60 | V63: UN | W63: 40292029 | X63: 56570 | Y63: 28 | Z63: 28 | AA63: 8 | AB63: 114 | AC63: 101 | AD63: 105 | AE63: FD2 | AF63: 180 | AG63: 81492565703 | AH63: F0192801 | AI63: 108 | AK63: OK
B64: =IF(TB.TDS[[#This Row],[Material]]=TB.TDS[[#This Row],[SAP]],"OK","REV") -> OK | C64: =VLOOKUP(TB.TDS[[#This Row],[Nº PEDIDO]],NM.NUMPEDIDO,1,FALSE) -> 4800019601 | D64: =IF(TB.TDS[[#This Row],[Material]]>0,"OK","") -> OK | E64: =IF(TB.TDS[[#This Row],[SAP]]>0,"OK","") -> OK | I64: TCE | J64: FERRI | K64: 2018-0854 | L64: 4800019601 | M64: 118809 | N64: INTERDESIGN INC | O64: 1*40 | P64: 2018-06-27 | Q64: 2018-06-27 | R64: 260 | S64: 40292030 | T64: ORGANIZADOR P/ANAQUEL AXIS OTC DE COCINA | U64: 40 | V64: UN | W64: 40292030 | X64: 56770 | Y64: 33 | Z64: 31 | AA64: 18 | AB64: 114 | AC64: 101 | AD64: 105 | AE64: FD2 | AF64: 144 | AG64: 81492567707 | AH64: F0473402 | AI64: 96 | AK64: OK
B65: =IF(TB.TDS[[#This Row],[Material]]=TB.TDS[[#This Row],[SAP]],"OK","REV") -> OK | C65: =VLOOKUP(TB.TDS[[#This Row],[Nº PEDIDO]],NM.NUMPEDIDO,1,FALSE) -> 4800019601 | D65: =IF(TB.TDS[[#This Row],[Material]]>0,"OK","") -> OK | E65: =IF(TB.TDS[[#This Row],[SAP]]>0,"OK","") -> OK | I65: TCE | J65: FERRI | K65: 2018-0854 | L65: 4800019601 | M65: 118809 | N65: INTERDESIGN INC | O65: 1*40 | P65: 2018-06-27 | Q65: 2018-06-27 | R65: 320 | S65: 40292031 | T65: TOALLERO FORMA OTC 14" P/GABINETE ACERO | U65: 72 | V65: UN | W65: 40292031 | X65: 29550 | Y65: 37 | Z65: 14 | AA65: 4 | AB65: 114 | AC65: 101 | AD65: 105 | AE65: FD2 | AF65: 576 | AG65: 81492295501 | AH65: F04942011 | AI65: 144 | AK65: OK
B66: =IF(TB.TDS[[#This Row],[Material]]=TB.TDS[[#This Row],[SAP]],"OK","REV") -> OK | C66: =VLOOKUP(TB.TDS[[#This Row],[Nº PEDIDO]],NM.NUMPEDIDO,1,FALSE) -> 4800019601 | D66: =IF(TB.TDS[[#This Row],[Material]]>0,"OK","") -> OK | E66: =IF(TB.TDS[[#This Row],[SAP]]>0,"OK","") -> OK | I66: TCE | J66: FERRI | K66: 2018-0854 | L66: 4800019601 | M66: 118809 | N66: INTERDESIGN INC | O66: 1*40 | P66: 2018-06-27 | Q66: 2018-06-27 | R66: 130 | S66: 40292039 | T66: ESPEJO VANITY CHROME | U66: 42 | V66: UN | W66: 40292039 | X66: 80330 | Y66: 27 | Z66: 14 | AA66: 14 | AB66: 114 | AC66: 101 | AD66: 105 | AE66: FD2 | AF66: 192 | AG66: 81492803300 | AI66: 96 | AK66: OK
B67: =IF(TB.TDS[[#This Row],[Material]]=TB.TDS[[#This Row],[SAP]],"OK","REV") -> OK | C67: =VLOOKUP(TB.TDS[[#This Row],[Nº PEDIDO]],NM.NUMPEDIDO,1,FALSE) -> 4800019601 | D67: =IF(TB.TDS[[#This Row],[Material]]>0,"OK","") -> OK | E67: =IF(TB.TDS[[#This Row],[SAP]]>0,"OK","") -> OK | I67: TCE | J67: FERRI | K67: 2018-0854 | L67: 4800019601 | M67: 118809 | N67: INTERDESIGN INC | O67: 1*40 | P67: 2018-06-27 | Q67: 2018-06-27 | R67: 20 | S67: 40292040 | T67: PORTA PAPEL HIGIENCO METRO ALUMINUM | U67: 40 | V67: UN | W67: 40292040 | X67: 22030 | Y67: 17 | Z67: 20 | AA67: 4 | AB67: 114 | AC67: 101 | AD67: 105 | AE67: FD2 | AF67: 720 | AG67: 81492220305 | AH67: F04941031 | AI67: 64 | AK67: OK
B68: =IF(TB.TDS[[#This Row],[Material]]=TB.TDS[[#This Row],[SAP]],"OK","REV") -> OK | C68: =VLOOKUP(TB.TDS[[#This Row],[Nº PEDIDO]],NM.NUMPEDIDO,1,FALSE) -> 4800019601 | D68: =IF(TB.TDS[[#This Row],[Material]]>0,"OK","") -> OK | E68: =IF(TB.TDS[[#This Row],[SAP]]>0,"OK","") -> OK | I68: TCE | J68: FERRI | K68: 2018-0854 | L68: 4800019601 | M68: 118809 | N68: INTERDESIGN INC | O68: 1*40 | P68: 2018-06-27 | Q68: 2018-06-27 | R68: 10 | S68: 40292041 | T68: PORTA PAPEL HIGIENCO METRO ALUMINUM SILV | U68: 408 | V68: UN | W68: 40292041 | X68: 22330 | Y68: 30 | Z68: 12 | AA68: 5 | AB68: 114 | AC68: 101 | AD68: 105 | AE68: FD2 | AF68: 768 | AG68: 81492223306 | AH68: F04957022 | AI68: 48 | AK68: OK
B69: =IF(TB.TDS[[#This Row],[Material]]=TB.TDS[[#This Row],[SAP]],"OK","REV") -> OK | C69: =VLOOKUP(TB.TDS[[#This Row],[Nº PEDIDO]],NM.NUMPEDIDO,1,FALSE) -> 4800019601 | D69: =IF(TB.TDS[[#This Row],[Material]]>0,"OK","") -> OK | E69: =IF(TB.TDS[[#This Row],[SAP]]>0,"OK","") -> OK | I69: TCE | J69: FERRI | K69: 2018-0854 | L69: 4800019601 | M69: 118809 | N69: INTERDESIGN INC | O69: 1*40 | P69: 2018-06-27 | Q69: 2018-06-27 | R69: 400 | S69: 40292042 | T69: PORTA PAPEL HIGIENCO METRO ALUMINUM SILV | U69: 1 | V69: UN | W69: 40292042 | X69: 22340 | Y69: 17 | Z69: 15 | AA69: 2 | AB69: 114 | AC69: 101 | AD69: 105 | AE69: FD2 | AF69: 2160 | AG69: 81492223405 | AH69: F04957033 | AI69: 192 | AK69: OK
B70: =IF(TB.TDS[[#This Row],[Material]]=TB.TDS[[#This Row],[SAP]],"OK","REV") -> OK | C70: =VLOOKUP(TB.TDS[[#This Row],[Nº PEDIDO]],NM.NUMPEDIDO,1,FALSE) -> 4800019601 | D70: =IF(TB.TDS[[#This Row],[Material]]>0,"OK","") -> OK | E70: =IF(TB.TDS[[#This Row],[SAP]]>0,"OK","") -> OK | I70: TCE | J70: FERRI | K70: 2018-0854 | L70: 4800019601 | M70: 118809 | N70: INTERDESIGN INC | O70: 1*40 | P70: 2018-06-27 | Q70: 2018-06-27 | R70: 150 | S70: 40292043 | T70: PORTA PAPEL HIGIENCO DOBLE METRO ALUMINU | U70: 104 | V70: UN | W70: 40292043 | X70: 22710 | Y70: 27 | Z70: 17 | AA70: 2 | AB70: 114 | AC70: 101 | AD70: 105 | AE70: FD2 | AF70: 1152 | AG70: 81492227106 | AH70: F01722031 | AI70: 96 | AK70: OK
B71: =IF(TB.TDS[[#This Row],[Material]]=TB.TDS[[#This Row],[SAP]],"OK","REV") -> OK | C71: =VLOOKUP(TB.TDS[[#This Row],[Nº PEDIDO]],NM.NUMPEDIDO,1,FALSE) -> 4800019601 | D71: =IF(TB.TDS[[#This Row],[Material]]>0,"OK","") -> OK | E71: =IF(TB.TDS[[#This Row],[SAP]]>0,"OK","") -> OK | I71: TCE | J71: FERRI | K71: 2018-0854 | L71: 4800019601 | M71: 118809 | N71: INTERDESIGN INC | O71: 1*40 | P71: 2018-06-27 | Q71: 2018-06-27 | R71: 120 | S71: 40292044 | T71: PORTA TOALLA 18" METRO ALUMINUM SILVER | U71: 88 | V71: UN | W71: 40292044 | X71: 22520 | Y71: 57 | Z71: 9 | AA71: 4 | AB71: 114 | AC71: 101 | AD71: 105 | AE71: FD2 | AF71: 720 | AG71: 81492225201 | AH71: F04943011 | AI71: 144 | AK71: OK
B72: =IF(TB.TDS[[#This Row],[Material]]=TB.TDS[[#This Row],[SAP]],"OK","REV") -> OK | C72: =VLOOKUP(TB.TDS[[#This Row],[Nº PEDIDO]],NM.NUMPEDIDO,1,FALSE) -> 4800019601 | D72: =IF(TB.TDS[[#This Row],[Material]]>0,"OK","") -> OK | E72: =IF(TB.TDS[[#This Row],[SAP]]>0,"OK","") -> OK | I72: TCE | J72: FERRI | K72: 2018-0854 | L72: 4800019601 | M72: 118809 | N72: INTERDESIGN INC | O72: 1*40 | P72: 2018-06-27 | Q72: 2018-06-27 | R72: 570 | S72: 40292045 | T72: GANCHO METRO ALUMINUM | U72: 24 | V72: UN | W72: 40292045 | X72: 22540 | Y72: 12 | Z72: 9 | AA72: 5 | AB72: 105 | AC72: 101 | AD72: 105 | AE72: F92 | AF72: 2880 | AG72: 81492225409 | AH72: F00633032 | AI72: 360 | AK72: OK
B73: =IF(TB.TDS[[#This Row],[Material]]=TB.TDS[[#This Row],[SAP]],"OK","REV") -> OK | C73: =VLOOKUP(TB.TDS[[#This Row],[Nº PEDIDO]],NM.NUMPEDIDO,1,FALSE) -> 4800019601 | D73: =IF(TB.TDS[[#This Row],[Material]]>0,"OK","") -> OK | E73: =IF(TB.TDS[[#This Row],[SAP]]>0,"OK","") -> OK | I73: TCE | J73: FERRI | K73: 2018-0854 | L73: 4800019601 | M73: 118809 | N73: INTERDESIGN INC | O73: 1*40 | P73: 2018-06-27 | Q73: 2018-06-27 | R73: 510 | S73: 40292058 | T73: PORTA TOALLA METRO ALUMINUM SILVER | U73: 16 | V73: UN | W73: 40292058 | X73: 22730 | Y73: 21 | Z73: 17 | AA73: 5 | AB73: 114 | AC73: 101 | AD73: 105 | AE73: FD2 | AF73: 720 | AG73: 81492227304 | AH73: F01642023 | AI73: 120 | AK73: OK
B74: =IF(TB.TDS[[#This Row],[Material]]=TB.TDS[[#This Row],[SAP]],"OK","REV") -> OK | C74: =VLOOKUP(TB.TDS[[#This Row],[Nº PEDIDO]],NM.NUMPEDIDO,1,FALSE) -> 4800019601 | D74: =IF(TB.TDS[[#This Row],[Material]]>0,"OK","") -> OK | E74: =IF(TB.TDS[[#This Row],[SAP]]>0,"OK","") -> OK | I74: TCE | J74: FERRI | K74: 2018-0854 | L74: 4800019601 | M74: 118809 | N74: INTERDESIGN INC | O74: 1*40 | P74: 2018-06-27 | Q74: 2018-06-27 | R74: 80 | S74: 40292062 | T74: ORGANIZADOR 13" P/SARTENES CHROME | U74: 140 | V74: UN | W74: 40292062 | X74: 48680 | Y74: 31 | Z74: 17 | AA74: 14 | AB74: 114 | AC74: 101 | AD74: 105 | AE74: FD2 | AF74: 288 | AG74: 81492486800 | AH74: F04943012 | AI74: 48 | AK74: OK
B75: =IF(TB.TDS[[#This Row],[Material]]=TB.TDS[[#This Row],[SAP]],"OK","REV") -> OK | C75: =VLOOKUP(TB.TDS[[#This Row],[Nº PEDIDO]],NM.NUMPEDIDO,1,FALSE) -> 4800019601 | D75: =IF(TB.TDS[[#This Row],[Material]]>0,"OK","") -> OK | E75: =IF(TB.TDS[[#This Row],[SAP]]>0,"OK","") -> OK | I75: TCE | J75: FERRI | K75: 2018-0854 | L75: 4800019601 | M75: 118809 | N75: INTERDESIGN INC | O75: 1*40 | P75: 2018-06-27 | Q75: 2018-06-27 | R75: 250 | S75: 40292063 | T75: REPISA 2NIVELES P/COCINA ESPECIES CHROME | U75: 72 | V75: UN | W75: 40292063 | X75: 48880 | Y75: 30 | Z75: 31 | AA75: 8 | AB75: 114 | AC75: 101 | AD75: 105 | AE75: FD2 | AF75: 192 | AG75: 81492488804 | AH75: F01816033 | AI75: 16 | AK75: OK
B76: =IF(TB.TDS[[#This Row],[Material]]=TB.TDS[[#This Row],[SAP]],"OK","REV") -> OK | C76: =VLOOKUP(TB.TDS[[#This Row],[Nº PEDIDO]],NM.NUMPEDIDO,1,FALSE) -> 4800019601 | D76: =IF(TB.TDS[[#This Row],[Material]]>0,"OK","") -> OK | E76: =IF(TB.TDS[[#This Row],[SAP]]>0,"OK","") -> OK | I76: TCE | J76: FERRI | K76: 2018-0854 | L76: 4800019601 | M76: 118809 | N76: INTERDESIGN INC | O76: 1*40 | P76: 2018-06-27 | Q76: 2018-06-27 | R76: 670 | S76: 40292064 | T76: ORGANIZADOR TAPAS DE OLLA P/ANAQUEL CHR | U76: 8 | V76: UN | W76: 40292064 | X76: 48580 | Y76: 42 | Z76: 27 | AA76: 11 | AB76: 114 | AC76: 101 | AD76: 105 | AE76: FD2 | AF76: 120 | AG76: 81492485803 | AH76: F04934012 | AI76: 32 | AK76: OK
B77: =IF(TB.TDS[[#This Row],[Material]]=TB.TDS[[#This Row],[SAP]],"OK","REV") -> OK | C77: =VLOOKUP(TB.TDS[[#This Row],[Nº PEDIDO]],NM.NUMPEDIDO,1,FALSE) -> 4800019601 | D77: =IF(TB.TDS[[#This Row],[Material]]>0,"OK","") -> OK | E77: =IF(TB.TDS[[#This Row],[SAP]]>0,"OK","") -> OK | I77: TCE | J77: FERRI | K77: 2018-0854 | L77: 4800019601 | M77: 118809 | N77: INTERDESIGN INC | O77: 1*40 | P77: 2018-06-27 | Q77: 2018-06-27 | R77: 50 | S77: 40292066 | T77: REPISA EXPANDIBLE P/COCINA SILVER | U77: 124 | V77: UN | W77: 40292066 | X77: 48866 | Y77: 38 | Z77: 34 | AA77: 15 | AB77: 114 | AC77: 101 | AD77: 105 | AE77: FD2 | AF77: 180 | AG77: 81492488668 | AH77: F0182901 | AI77: 96 | AK77: OK
B78: =IF(TB.TDS[[#This Row],[Material]]=TB.TDS[[#This Row],[SAP]],"OK","REV") -> OK | C78: =VLOOKUP(TB.TDS[[#This Row],[Nº PEDIDO]],NM.NUMPEDIDO,1,FALSE) -> 4800019601 | D78: =IF(TB.TDS[[#This Row],[Material]]>0,"OK","") -> OK | E78: =IF(TB.TDS[[#This Row],[SAP]]>0,"OK","") -> OK | I78: TCE | J78: FERRI | K78: 2018-0854 | L78: 4800019601 | M78: 118809 | N78: INTERDESIGN INC | O78: 1*40 | P78: 2018-06-27 | Q78: 2018-06-27 | R78: 290 | S78: 40292067 | T78: REPISA 3NIVELES EXPANDIBLE P/COCINA SILV | U78: 36 | V78: UN | W78: 40292067 | X78: 48876 | Y78: 33 | Z78: 25 | AA78: 13 | AB78: 114 | AC78: 101 | AD78: 105 | AE78: FD2 | AF78: 144 | AG78: 81492488767 | AH78: F01633023 | AI78: 16 | AK78: OK
B79: =IF(TB.TDS[[#This Row],[Material]]=TB.TDS[[#This Row],[SAP]],"OK","REV") -> OK | C79: =VLOOKUP(TB.TDS[[#This Row],[Nº PEDIDO]],NM.NUMPEDIDO,1,FALSE) -> 4800019601 | D79: =IF(TB.TDS[[#This Row],[Material]]>0,"OK","") -> OK | E79: =IF(TB.TDS[[#This Row],[SAP]]>0,"OK","") -> OK | I79: TCE | J79: FERRI | K79: 2018-0854 | L79: 4800019601 | M79: 118809 | N79: INTERDESIGN INC | O79: 1*40 | P79: 2018-06-27 | Q79: 2018-06-27 | R79: 180 | S79: 40306224 | T79: CORTINA P/BAÑO MEDALLION SC GRAY/BLUE | U79: 56 | V79: UN | W79: 40306224 | X79: 63420 | Y79: 26.7 | Z79: 21.3 | AA79: 4.5 | AB79: 114 | AC79: 101 | AD79: 105 | AE79: FD2 | AF79: 0 | AG79: 81492634201 | AH79: F01715032 | AI79: 40 | AK79: OK
B80: =IF(TB.TDS[[#This Row],[Material]]=TB.TDS[[#This Row],[SAP]],"OK","REV") -> OK | C80: =VLOOKUP(TB.TDS[[#This Row],[Nº PEDIDO]],NM.NUMPEDIDO,1,FALSE) -> 4800019601 | D80: =IF(TB.TDS[[#This Row],[Material]]>0,"OK","") -> OK | E80: =IF(TB.TDS[[#This Row],[SAP]]>0,"OK","") -> OK | I80: TCE | J80: FERRI | K80: 2018-0854 | L80: 4800019601 | M80: 118809 | N80: INTERDESIGN INC | O80: 1*40 | P80: 2018-06-27 | Q80: 2018-06-27 | R80: 540 | S80: 40306225 | T80: CORTINA P/BAÑO FLORAL SC TEAL/NAVY | U80: 12 | V80: UN | W80: 40306225 | X80: 60720 | Y80: 26.7 | Z80: 21.3 | AA80: 4.5 | AB80: 114 | AC80: 101 | AD80: 105 | AE80: FD2 | AF80: 0 | AG80: 81492607205 | AH80: F01741032 | AI80: 40 | AK80: OK
B81: =IF(TB.TDS[[#This Row],[Material]]=TB.TDS[[#This Row],[SAP]],"OK","REV") -> OK | C81: =VLOOKUP(TB.TDS[[#This Row],[Nº PEDIDO]],NM.NUMPEDIDO,1,FALSE) -> 4800019601 | D81: =IF(TB.TDS[[#This Row],[Material]]>0,"OK","") -> OK | E81: =IF(TB.TDS[[#This Row],[SAP]]>0,"OK","") -> OK | I81: TCE | J81: FERRI | K81: 2018-0854 | L81: 4800019601 | M81: 118809 | N81: INTERDESIGN INC | O81: 1*40 | P81: 2018-06-27 | Q81: 2018-06-27 | R81: 430 | S81: 40306226 | T81: CORTINA P/BAÑO ANZU SC BLACK/TAN | U81: 30 | V81: UN | W81: 40306226 | X81: 36522 | Y81: 26.7 | Z81: 21.3 | AA81: 4.5 | AB81: 114 | AC81: 101 | AD81: 105 | AE81: FD2 | AF81: 0 | AG81: 81492365228 | AH81: F01716033 | AI81: 40 | AK81: OK
B82: =IF(TB.TDS[[#This Row],[Material]]=TB.TDS[[#This Row],[SAP]],"OK","REV") -> OK | C82: =VLOOKUP(TB.TDS[[#This Row],[Nº PEDIDO]],NM.NUMPEDIDO,1,FALSE) -> 4800019601 | D82: =IF(TB.TDS[[#This Row],[Material]]>0,"OK","") -> OK | E82: =IF(TB.TDS[[#This Row],[SAP]]>0,"OK","") -> OK | I82: TCE | J82: FERRI | K82: 2018-0854 | L82: 4800019601 | M82: 118809 | N82: INTERDESIGN INC | O82: 1*40 | P82: 2018-06-27 | Q82: 2018-06-27 | R82: 370 | S82: 40306228 | T82: CORTINA P/BAÑO GEOMETRIC NAVY/SLATE BLUE | U82: 36 | V82: UN | W82: 40306228 | X82: 60820 | Y82: 26.7 | Z82: 21.3 | AA82: 4.5 | AB82: 114 | AC82: 101 | AD82: 105 | AE82: FD2 | AF82: 0 | AG82: 81492608202 | AH82: F01829023 | AI82: 40 | AK82: OK
B83: =IF(TB.TDS[[#This Row],[Material]]=TB.TDS[[#This Row],[SAP]],"OK","REV") -> OK | C83: =VLOOKUP(TB.TDS[[#This Row],[Nº PEDIDO]],NM.NUMPEDIDO,1,FALSE) -> 4800019601 | D83: =IF(TB.TDS[[#This Row],[Material]]>0,"OK","") -> OK | E83: =IF(TB.TDS[[#This Row],[SAP]]>0,"OK","") -> OK | I83: TCE | J83: FERRI | K83: 2018-0854 | L83: 4800019601 | M83: 118809 | N83: INTERDESIGN INC | O83: 1*40 | P83: 2018-06-27 | Q83: 2018-06-27 | R83: 280 | S83: 40306229 | T83: CORTINA P/BAÑO TRIBAL DAMASK SC TAUPE | U83: 46 | V83: UN | W83: 40306229 | X83: 64420 | Y83: 26.7 | Z83: 21.3 | AA83: 4.5 | AB83: 114 | AC83: 101 | AD83: 105 | AE83: FD2 | AF83: 0 | AG83: 81492644200 | AH83: F01736021 | AI83: 40 | AK83: OK
B84: =IF(TB.TDS[[#This Row],[Material]]=TB.TDS[[#This Row],[SAP]],"OK","REV") -> OK | C84: =VLOOKUP(TB.TDS[[#This Row],[Nº PEDIDO]],NM.NUMPEDIDO,1,FALSE) -> 4800019601 | D84: =IF(TB.TDS[[#This Row],[Material]]>0,"OK","") -> OK | E84: =IF(TB.TDS[[#This Row],[SAP]]>0,"OK","") -> OK | I84: TCE | J84: FERRI | K84: 2018-0854 | L84: 4800019601 | M84: 118809 | N84: INTERDESIGN INC | O84: 1*40 | P84: 2018-06-27 | Q84: 2018-06-27 | R84: 700 | S84: 40256221001 | T84: CADDY P/DUCHA FINISH, BRONCE | U84: 4 | V84: UN | W84: 40256221001 | X84: 69281 | Y84: 30 | Z84: 11 | AA84: 56 | AB84: 114 | AC84: 101 | AD84: 105 | AE84: FD2 | AF84: 96 | AG84: 81492692812 | AH84: F0474101 | AI84: 48 | AK84: OK
B85: =IF(TB.TDS[[#This Row],[Material]]=TB.TDS[[#This Row],[SAP]],"OK","REV") -> OK | C85: =VLOOKUP(TB.TDS[[#This Row],[Nº PEDIDO]],NM.NUMPEDIDO,1,FALSE) -> 4800019601 | D85: =IF(TB.TDS[[#This Row],[Material]]>0,"OK","") -> OK | E85: =IF(TB.TDS[[#This Row],[SAP]]>0,"OK","") -> OK | I85: TCE | J85: FERRI | K85: 2018-0854 | L85: 4800019601 | M85: 118809 | N85: INTERDESIGN INC | O85: 1*40 | P85: 2018-06-27 | Q85: 2018-06-27 | R85: 350 | S85: 40256221002 | T85: CADDY P/DUCHA FINISH, SILVER | U85: 24 | V85: UN | W85: 40256221002 | X85: 69286 | Y85: 56 | Z85: 27 | AA85: 12 | AB85: 114 | AC85: 101 | AD85: 105 | AE85: FD2 | AF85: 96 | AG85: 81492692867 | AH85: F04907043 | AI85: 12 | AK85: OK
B86: =IF(TB.TDS[[#This Row],[Material]]=TB.TDS[[#This Row],[SAP]],"OK","REV") -> OK | C86: =VLOOKUP(TB.TDS[[#This Row],[Nº PEDIDO]],NM.NUMPEDIDO,1,FALSE) ->  | D86: =IF(TB.TDS[[#This Row],[Material]]>0,"OK","") ->  | E86: =IF(TB.TDS[[#This Row],[SAP]]>0,"OK","") -> 
B87: =IF(TB.TDS[[#This Row],[Material]]=TB.TDS[[#This Row],[SAP]],"OK","REV") -> OK | C87: =VLOOKUP(TB.TDS[[#This Row],[Nº PEDIDO]],NM.NUMPEDIDO,1,FALSE) ->  | D87: =IF(TB.TDS[[#This Row],[Material]]>0,"OK","") ->  | E87: =IF(TB.TDS[[#This Row],[SAP]]>0,"OK","") -> 
B88: =IF(TB.TDS[[#This Row],[Material]]=TB.TDS[[#This Row],[SAP]],"OK","REV") -> OK | C88: =VLOOKUP(TB.TDS[[#This Row],[Nº PEDIDO]],NM.NUMPEDIDO,1,FALSE) ->  | D88: =IF(TB.TDS[[#This Row],[Material]]>0,"OK","") -> OK | E88: =IF(TB.TDS[[#This Row],[SAP]]>0,"OK","") -> OK | I88: TELSUPREMA | J88: FERRI | K88: 2017-2824 | L88: 4800017918 | M88: 117582 | N88: GBR CORPORATION LTD (ZONA "C") | O88: 1*20 | P88: 2018-06-27 | Q88: 2018-06-28 | R88: 20 | S88: 40278082 | T88: HIDROLAVADORA ELECTRICA 1600W | U88: 137 | V88: UN | W88: 40278082 | X88: DAX 65-100 | Y88: 23 | Z88: 23 | AA88: 49 | AB88: 102 | AC88: 101 | AD88: 105 | AE88: F89 | AF88: 80 | AG88: 7798125043745 | AH88: F0581901 | AI88: 40 | AK88: OK
B89: =IF(TB.TDS[[#This Row],[Material]]=TB.TDS[[#This Row],[SAP]],"OK","REV") -> OK | C89: =VLOOKUP(TB.TDS[[#This Row],[Nº PEDIDO]],NM.NUMPEDIDO,1,FALSE) ->  | D89: =IF(TB.TDS[[#This Row],[Material]]>0,"OK","") -> OK | E89: =IF(TB.TDS[[#This Row],[SAP]]>0,"OK","") -> OK | I89: TELSUPREMA | J89: FERRI | K89: 2017-2824 | L89: 4800017918 | M89: 117582 | N89: GBR CORPORATION LTD (ZONA "C") | O89: 1*20 | P89: 2018-06-27 | Q89: 2018-06-28 | R89: 10 | S89: 40278083 | T89: HIDROLAVADORA ELECTRICA 1700W | U89: 432 | V89: UN | W89: 40278083 | X89: DAX 100-1700 | Y89: 32 | Z89: 32 | AA89: 60 | AB89: 102 | AC89: 101 | AD89: 105 | AE89: F89 | AF89: 27 | AG89: 7798125043721 | AH89: F0582501 | AI89: 18 | AK89: OK
B90: =IF(TB.TDS[[#This Row],[Material]]=TB.TDS[[#This Row],[SAP]],"OK","REV") -> OK | C90: =VLOOKUP(TB.TDS[[#This Row],[Nº PEDIDO]],NM.NUMPEDIDO,1,FALSE) ->  | D90: =IF(TB.TDS[[#This Row],[Material]]>0,"OK","") -> OK | E90: =IF(TB.TDS[[#This Row],[SAP]]>0,"OK","") -> OK | I90: TELSUPREMA | J90: FERRI | K90: 2017-2824 | L90: 4800017918 | M90: 117582 | N90: GBR CORPORATION LTD (ZONA "C") | O90: 1*20 | P90: 2018-06-27 | Q90: 2018-06-28 | R90: 30 | S90: 40309529 | T90: ANILLO DAX 65-100 N-10 | U90: 48 | V90: UN | W90: 40309529 | X90: GB/T3452.1-1992 | Y90: 0 | Z90: 0 | AA90: 0 | AB90: 1 | AC90: 102 | AD90: 102 | AE90: FA8 | AF90: 0 | AG90: 2000013899644 | AI90: 0 | AK90: OK
B91: =IF(TB.TDS[[#This Row],[Material]]=TB.TDS[[#This Row],[SAP]],"OK","REV") -> OK | C91: =VLOOKUP(TB.TDS[[#This Row],[Nº PEDIDO]],NM.NUMPEDIDO,1,FALSE) ->  | D91: =IF(TB.TDS[[#This Row],[Material]]>0,"OK","") -> OK | E91: =IF(TB.TDS[[#This Row],[SAP]]>0,"OK","") -> OK | I91: TELSUPREMA | J91: FERRI | K91: 2017-2824 | L91: 4800017918 | M91: 117582 | N91: GBR CORPORATION LTD (ZONA "C") | O91: 1*20 | P91: 2018-06-27 | Q91: 2018-06-28 | R91: 40 | S91: 40309530 | T91: SELLO D/ACEITE D/MARCO FRONTAL DAX 65-10 | U91: 48 | V91: UN | W91: 40309530 | X91: DAX 65-10 N-12 | Y91: 0 | Z91: 0 | AA91: 0 | AB91: 1 | AC91: 102 | AD91: 102 | AE91: FA8 | AF91: 0 | AG91: 2000013899651 | AI91: 0 | AK91: OK
B92: =IF(TB.TDS[[#This Row],[Material]]=TB.TDS[[#This Row],[SAP]],"OK","REV") -> OK | C92: =VLOOKUP(TB.TDS[[#This Row],[Nº PEDIDO]],NM.NUMPEDIDO,1,FALSE) ->  | D92: =IF(TB.TDS[[#This Row],[Material]]>0,"OK","") -> OK | E92: =IF(TB.TDS[[#This Row],[SAP]]>0,"OK","") -> OK | I92: TELSUPREMA | J92: FERRI | K92: 2017-2824 | L92: 4800017918 | M92: 117582 | N92: GBR CORPORATION LTD (ZONA "C") | O92: 1*20 | P92: 2018-06-27 | Q92: 2018-06-28 | R92: 50 | S92: 40309531 | T92: ANILLO GUÍA DAX 65-100 N-13 | U92: 48 | V92: UN | W92: 40309531 | X92: FB401-01-08 | Y92: 0 | Z92: 0 | AA92: 0 | AB92: 1 | AC92: 102 | AD92: 102 | AE92: FA8 | AF92: 0 | AG92: 2000013899668 | AI92: 0 | AK92: OK
B93: =IF(TB.TDS[[#This Row],[Material]]=TB.TDS[[#This Row],[SAP]],"OK","REV") -> OK | C93: =VLOOKUP(TB.TDS[[#This Row],[Nº PEDIDO]],NM.NUMPEDIDO,1,FALSE) ->  | D93: =IF(TB.TDS[[#This Row],[Material]]>0,"OK","") -> OK | E93: =IF(TB.TDS[[#This Row],[SAP]]>0,"OK","") -> OK | I93: TELSUPREMA | J93: FERRI | K93: 2017-2824 | L93: 4800017918 | M93: 117582 | N93: GBR CORPORATION LTD (ZONA "C") | O93: 1*20 | P93: 2018-06-27 | Q93: 2018-06-28 | R93: 60 | S93: 40309532 | T93: SELLO /AGUA TIPO Y DAX 65-100 N-14 | U93: 48 | V93: UN | W93: 40309532 | X93: FB401-01-09 | Y93: 0 | Z93: 0 | AA93: 0 | AB93: 1 | AC93: 102 | AD93: 102 | AE93: FA8 | AF93: 0 | AG93: 2000013899675 | AI93: 0 | AK93: OK
B94: =IF(TB.TDS[[#This Row],[Material]]=TB.TDS[[#This Row],[SAP]],"OK","REV") -> OK | C94: =VLOOKUP(TB.TDS[[#This Row],[Nº PEDIDO]],NM.NUMPEDIDO,1,FALSE) ->  | D94: =IF(TB.TDS[[#This Row],[Material]]>0,"OK","") -> OK | E94: =IF(TB.TDS[[#This Row],[SAP]]>0,"OK","") -> OK | I94: TELSUPREMA | J94: FERRI | K94: 2017-2824 | L94: 4800017918 | M94: 117582 | N94: GBR CORPORATION LTD (ZONA "C") | O94: 1*20 | P94: 2018-06-27 | Q94: 2018-06-28 | R94: 70 | S94: 40309533 | T94: VÁLVULA D/RETENCIÓN D/ENTRADA DAX 65-100 | U94: 48 | V94: UN | W94: 40309533 | X94: FB401-01-10/1 | Y94: 0 | Z94: 0 | AA94: 0 | AB94: 1 | AC94: 102 | AD94: 102 | AE94: FA8 | AF94: 0 | AG94: 2000013899682 | AI94: 0 | AK94: OK
B95: =IF(TB.TDS[[#This Row],[Material]]=TB.TDS[[#This Row],[SAP]],"OK","REV") -> OK | C95: =VLOOKUP(TB.TDS[[#This Row],[Nº PEDIDO]],NM.NUMPEDIDO,1,FALSE) ->  | D95: =IF(TB.TDS[[#This Row],[Material]]>0,"OK","") -> OK | E95: =IF(TB.TDS[[#This Row],[SAP]]>0,"OK","") -> OK | I95: TELSUPREMA | J95: FERRI | K95: 2017-2824 | L95: 4800017918 | M95: 117582 | N95: GBR CORPORATION LTD (ZONA "C") | O95: 1*20 | P95: 2018-06-27 | Q95: 2018-06-28 | R95: 80 | S95: 40309534 | T95: RESORTE D/VÁLVULA D/RETENCIÓN DAX 65-100 | U95: 48 | V95: UN | W95: 40309534 | X95: FB401-01-10/3 | Y95: 0 | Z95: 0 | AA95: 0 | AB95: 1 | AC95: 102 | AD95: 102 | AE95: FA8 | AF95: 0 | AG95: 2000013899699 | AI95: 0 | AK95: OK
B96: =IF(TB.TDS[[#This Row],[Material]]=TB.TDS[[#This Row],[SAP]],"OK","REV") -> OK | C96: =VLOOKUP(TB.TDS[[#This Row],[Nº PEDIDO]],NM.NUMPEDIDO,1,FALSE) ->  | D96: =IF(TB.TDS[[#This Row],[Material]]>0,"OK","") -> OK | E96: =IF(TB.TDS[[#This Row],[SAP]]>0,"OK","") -> OK | I96: TELSUPREMA | J96: FERRI | K96: 2017-2824 | L96: 4800017918 | M96: 117582 | N96: GBR CORPORATION LTD (ZONA "C") | O96: 1*20 | P96: 2018-06-27 | Q96: 2018-06-28 | R96: 90 | S96: 40309535 | T96: RETENEDOR D/VÁLVULA D/RETENCIÓN DAX 65-1 | U96: 48 | V96: UN | W96: 40309535 | X96: FB401-01-10/2 | Y96: 0 | Z96: 0 | AA96: 0 | AB96: 1 | AC96: 102 | AD96: 102 | AE96: FA8 | AF96: 0 | AG96: 2000013899705 | AI96: 0 | AK96: OK
B97: =IF(TB.TDS[[#This Row],[Material]]=TB.TDS[[#This Row],[SAP]],"OK","REV") -> OK | C97: =VLOOKUP(TB.TDS[[#This Row],[Nº PEDIDO]],NM.NUMPEDIDO,1,FALSE) ->  | D97: =IF(TB.TDS[[#This Row],[Material]]>0,"OK","") -> OK | E97: =IF(TB.TDS[[#This Row],[SAP]]>0,"OK","") -> OK | I97: TELSUPREMA | J97: FERRI | K97: 2017-2824 | L97: 4800017918 | M97: 117582 | N97: GBR CORPORATION LTD (ZONA "C") | O97: 1*20 | P97: 2018-06-27 | Q97: 2018-06-28 | R97: 100 | S97: 40309536 | T97: ANILLO DAX 65-100 N-20 | U97: 48 | V97: UN | W97: 40309536 | X97: GB/T3452.1-1992-20 | Y97: 0 | Z97: 0 | AA97: 0 | AB97: 1 | AC97: 102 | AD97: 102 | AE97: FA8 | AF97: 0 | AG97: 2000013899712 | AI97: 0 | AK97: OK
B98: =IF(TB.TDS[[#This Row],[Material]]=TB.TDS[[#This Row],[SAP]],"OK","REV") -> OK | C98: =VLOOKUP(TB.TDS[[#This Row],[Nº PEDIDO]],NM.NUMPEDIDO,1,FALSE) ->  | D98: =IF(TB.TDS[[#This Row],[Material]]>0,"OK","") -> OK | E98: =IF(TB.TDS[[#This Row],[SAP]]>0,"OK","") -> OK | I98: TELSUPREMA | J98: FERRI | K98: 2017-2824 | L98: 4800017918 | M98: 117582 | N98: GBR CORPORATION LTD (ZONA "C") | O98: 1*20 | P98: 2018-06-27 | Q98: 2018-06-28 | R98: 110 | S98: 40309537 | T98: ANILLO DAX 65-100 N-29 | U98: 48 | V98: UN | W98: 40309537 | X98: GB/T3452.1-1992-29 | Y98: 0 | Z98: 0 | AA98: 0 | AB98: 1 | AC98: 102 | AD98: 102 | AE98: FA8 | AF98: 0 | AG98: 2000013899729 | AI98: 0 | AK98: OK
B99: =IF(TB.TDS[[#This Row],[Material]]=TB.TDS[[#This Row],[SAP]],"OK","REV") -> OK | C99: =VLOOKUP(TB.TDS[[#This Row],[Nº PEDIDO]],NM.NUMPEDIDO,1,FALSE) ->  | D99: =IF(TB.TDS[[#This Row],[Material]]>0,"OK","") -> OK | E99: =IF(TB.TDS[[#This Row],[SAP]]>0,"OK","") -> OK | I99: TELSUPREMA | J99: FERRI | K99: 2017-2824 | L99: 4800017918 | M99: 117582 | N99: GBR CORPORATION LTD (ZONA "C") | O99: 1*20 | P99: 2018-06-27 | Q99: 2018-06-28 | R99: 120 | S99: 40309538 | T99: ANILLO DE SELLO N-30 | U99: 48 | V99: UN | W99: 40309538 | X99: FB401-01-16 | Y99: 0 | Z99: 0 | AA99: 0 | AB99: 1 | AC99: 102 | AD99: 102 | AE99: FA8 | AF99: 0 | AG99: 2000013899736 | AI99: 0 | AK99: OK
B100: =IF(TB.TDS[[#This Row],[Material]]=TB.TDS[[#This Row],[SAP]],"OK","REV") -> OK | C100: =VLOOKUP(TB.TDS[[#This Row],[Nº PEDIDO]],NM.NUMPEDIDO,1,FALSE) ->  | D100: =IF(TB.TDS[[#This Row],[Material]]>0,"OK","") -> OK | E100: =IF(TB.TDS[[#This Row],[SAP]]>0,"OK","") -> OK | I100: TELSUPREMA | J100: FERRI | K100: 2017-2824 | L100: 4800017918 | M100: 117582 | N100: GBR CORPORATION LTD (ZONA "C") | O100: 1*20 | P100: 2018-06-27 | Q100: 2018-06-28 | R100: 130 | S100: 40309539 | T100: VÁLVULA RETENCIÓN D/SALIDA DAX 65-100 N- | U100: 48 | V100: UN | W100: 40309539 | X100: FB401-01-11 | Y100: 0 | Z100: 0 | AA100: 0 | AB100: 1 | AC100: 102 | AD100: 102 | AE100: FA8 | AF100: 0 | AG100: 2000013899743 | AI100: 0 | AK100: OK
B101: =IF(TB.TDS[[#This Row],[Material]]=TB.TDS[[#This Row],[SAP]],"OK","REV") -> OK | C101: =VLOOKUP(TB.TDS[[#This Row],[Nº PEDIDO]],NM.NUMPEDIDO,1,FALSE) ->  | D101: =IF(TB.TDS[[#This Row],[Material]]>0,"OK","") -> OK | E101: =IF(TB.TDS[[#This Row],[SAP]]>0,"OK","") -> OK | I101: TELSUPREMA | J101: FERRI | K101: 2017-2824 | L101: 4800017918 | M101: 117582 | N101: GBR CORPORATION LTD (ZONA "C") | O101: 1*20 | P101: 2018-06-27 | Q101: 2018-06-28 | R101: 140 | S101: 40309540 | T101: BASE DE SALIDA DAX 65-100 N-32 | U101: 48 | V101: UN | W101: 40309540 | X101: FB401-01-03 | Y101: 0 | Z101: 0 | AA101: 0 | AB101: 1 | AC101: 102 | AD101: 102 | AE101: FA8 | AF101: 0 | AG101: 2000013899750 | AI101: 0 | AK101: OK
B102: =IF(TB.TDS[[#This Row],[Material]]=TB.TDS[[#This Row],[SAP]],"OK","REV") -> OK | C102: =VLOOKUP(TB.TDS[[#This Row],[Nº PEDIDO]],NM.NUMPEDIDO,1,FALSE) ->  | D102: =IF(TB.TDS[[#This Row],[Material]]>0,"OK","") -> OK | E102: =IF(TB.TDS[[#This Row],[SAP]]>0,"OK","") -> OK | I102: TELSUPREMA | J102: FERRI | K102: 2017-2824 | L102: 4800017918 | M102: 117582 | N102: GBR CORPORATION LTD (ZONA "C") | O102: 1*20 | P102: 2018-06-27 | Q102: 2018-06-28 | R102: 150 | S102: 40309541 | T102: ANILLO DAX 65-100 N-33 | U102: 48 | V102: UN | W102: 40309541 | X102: GB/T3452.1-1992-33 | Y102: 0 | Z102: 0 | AA102: 0 | AB102: 1 | AC102: 102 | AD102: 102 | AE102: FA8 | AF102: 0 | AG102: 2000013899767 | AI102: 0 | AK102: OK
B103: =IF(TB.TDS[[#This Row],[Material]]=TB.TDS[[#This Row],[SAP]],"OK","REV") -> OK | C103: =VLOOKUP(TB.TDS[[#This Row],[Nº PEDIDO]],NM.NUMPEDIDO,1,FALSE) ->  | D103: =IF(TB.TDS[[#This Row],[Material]]>0,"OK","") -> OK | E103: =IF(TB.TDS[[#This Row],[SAP]]>0,"OK","") -> OK | I103: TELSUPREMA | J103: FERRI | K103: 2017-2824 | L103: 4800017918 | M103: 117582 | N103: GBR CORPORATION LTD (ZONA "C") | O103: 1*20 | P103: 2018-06-27 | Q103: 2018-06-28 | R103: 160 | S103: 40309542 | T103: VÁLVULA D/DESBORDAMIENTO DAX 65-100 N-34 | U103: 48 | V103: UN | W103: 40309542 | X103: FB401-01-12/1 | Y103: 0 | Z103: 0 | AA103: 0 | AB103: 1 | AC103: 102 | AD103: 102 | AE103: FA8 | AF103: 0 | AG103: 2000013899781 | AI103: 0 | AK103: OK
B104: =IF(TB.TDS[[#This Row],[Material]]=TB.TDS[[#This Row],[SAP]],"OK","REV") -> OK | C104: =VLOOKUP(TB.TDS[[#This Row],[Nº PEDIDO]],NM.NUMPEDIDO,1,FALSE) ->  | D104: =IF(TB.TDS[[#This Row],[Material]]>0,"OK","") -> OK | E104: =IF(TB.TDS[[#This Row],[SAP]]>0,"OK","") -> OK | I104: TELSUPREMA | J104: FERRI | K104: 2017-2824 | L104: 4800017918 | M104: 117582 | N104: GBR CORPORATION LTD (ZONA "C") | O104: 1*20 | P104: 2018-06-27 | Q104: 2018-06-28 | R104: 170 | S104: 40309543 | T104: ANILLO DAX 65-100 N-35 | U104: 48 | V104: UN | W104: 40309543 | X104: GB/T3452.1-1992-36 | Y104: 0 | Z104: 0 | AA104: 0 | AB104: 1 | AC104: 102 | AD104: 102 | AE104: FA8 | AF104: 0 | AG104: 2000013899798 | AI104: 0 | AK104: OK
B105: =IF(TB.TDS[[#This Row],[Material]]=TB.TDS[[#This Row],[SAP]],"OK","REV") -> OK | C105: =VLOOKUP(TB.TDS[[#This Row],[Nº PEDIDO]],NM.NUMPEDIDO,1,FALSE) ->  | D105: =IF(TB.TDS[[#This Row],[Material]]>0,"OK","") -> OK | E105: =IF(TB.TDS[[#This Row],[SAP]]>0,"OK","") -> OK | I105: TELSUPREMA | J105: FERRI | K105: 2017-2824 | L105: 4800017918 | M105: 117582 | N105: GBR CORPORATION LTD (ZONA "C") | O105: 1*20 | P105: 2018-06-27 | Q105: 2018-06-28 | R105: 180 | S105: 40309544 | T105: BASE D/VÁLVULA D/REBOSE DAX 65-100 N-36 | U105: 48 | V105: UN | W105: 40309544 | X105: FB401-01-12/2 | Y105: 0 | Z105: 0 | AA105: 0 | AB105: 1 | AC105: 102 | AD105: 102 | AE105: FA8 | AF105: 0 | AG105: 2000013899811 | AI105: 0 | AK105: OK
B106: =IF(TB.TDS[[#This Row],[Material]]=TB.TDS[[#This Row],[SAP]],"OK","REV") -> OK | C106: =VLOOKUP(TB.TDS[[#This Row],[Nº PEDIDO]],NM.NUMPEDIDO,1,FALSE) ->  | D106: =IF(TB.TDS[[#This Row],[Material]]>0,"OK","") -> OK | E106: =IF(TB.TDS[[#This Row],[SAP]]>0,"OK","") -> OK | I106: TELSUPREMA | J106: FERRI | K106: 2017-2824 | L106: 4800017918 | M106: 117582 | N106: GBR CORPORATION LTD (ZONA "C") | O106: 1*20 | P106: 2018-06-27 | Q106: 2018-06-28 | R106: 190 | S106: 40309545 | T106: ANILLO DAX 65-100 N-37 | U106: 48 | V106: UN | W106: 40309545 | X106: GB/T3452.1-1992-37 | Y106: 0 | Z106: 0 | AA106: 0 | AB106: 1 | AC106: 102 | AD106: 102 | AE106: FA8 | AF106: 0 | AG106: 2000013899835 | AI106: 0 | AK106: OK
B107: =IF(TB.TDS[[#This Row],[Material]]=TB.TDS[[#This Row],[SAP]],"OK","REV") -> OK | C107: =VLOOKUP(TB.TDS[[#This Row],[Nº PEDIDO]],NM.NUMPEDIDO,1,FALSE) ->  | D107: =IF(TB.TDS[[#This Row],[Material]]>0,"OK","") -> OK | E107: =IF(TB.TDS[[#This Row],[SAP]]>0,"OK","") -> OK | I107: TELSUPREMA | J107: FERRI | K107: 2017-2824 | L107: 4800017918 | M107: 117582 | N107: GBR CORPORATION LTD (ZONA "C") | O107: 1*20 | P107: 2018-06-27 | Q107: 2018-06-28 | R107: 200 | S107: 40309546 | T107: VARILLA DE EMPUJE DAX 65-100 N-38 | U107: 48 | V107: UN | W107: 40309546 | X107: FB401-01-12/3 | Y107: 0 | Z107: 0 | AA107: 0 | AB107: 1 | AC107: 102 | AD107: 102 | AE107: FA8 | AF107: 0 | AG107: 2000013899842 | AI107: 0 | AK107: OK
B108: =IF(TB.TDS[[#This Row],[Material]]=TB.TDS[[#This Row],[SAP]],"OK","REV") -> OK | C108: =VLOOKUP(TB.TDS[[#This Row],[Nº PEDIDO]],NM.NUMPEDIDO,1,FALSE) ->  | D108: =IF(TB.TDS[[#This Row],[Material]]>0,"OK","") -> OK | E108: =IF(TB.TDS[[#This Row],[SAP]]>0,"OK","") -> OK | I108: TELSUPREMA | J108: FERRI | K108: 2017-2824 | L108: 4800017918 | M108: 117582 | N108: GBR CORPORATION LTD (ZONA "C") | O108: 1*20 | P108: 2018-06-27 | Q108: 2018-06-28 | R108: 210 | S108: 40309547 | T108: RESORTE D/VÁLVULA /DESBORDAMIENTO DAX 65 | U108: 48 | V108: UN | W108: 40309547 | X108: FB401-01-12/5 | Y108: 0 | Z108: 0 | AA108: 0 | AB108: 1 | AC108: 102 | AD108: 102 | AE108: FA8 | AF108: 0 | AG108: 2000013899859 | AI108: 0 | AK108: OK
B109: =IF(TB.TDS[[#This Row],[Material]]=TB.TDS[[#This Row],[SAP]],"OK","REV") -> OK | C109: =VLOOKUP(TB.TDS[[#This Row],[Nº PEDIDO]],NM.NUMPEDIDO,1,FALSE) ->  | D109: =IF(TB.TDS[[#This Row],[Material]]>0,"OK","") -> OK | E109: =IF(TB.TDS[[#This Row],[SAP]]>0,"OK","") -> OK | I109: TELSUPREMA | J109: FERRI | K109: 2017-2824 | L109: 4800017918 | M109: 117582 | N109: GBR CORPORATION LTD (ZONA "C") | O109: 1*20 | P109: 2018-06-27 | Q109: 2018-06-28 | R109: 220 | S109: 40309548 | T109: ANILLO D/VERIFICACIÓN DAX 65-100 N-40 | U109: 48 | V109: UN | W109: 40309548 | X109: FB401-01-12/6 | Y109: 0 | Z109: 0 | AA109: 0 | AB109: 1 | AC109: 102 | AD109: 102 | AE109: FA8 | AF109: 0 | AG109: 2000013899866 | AI109: 0 | AK109: OK
B110: =IF(TB.TDS[[#This Row],[Material]]=TB.TDS[[#This Row],[SAP]],"OK","REV") -> OK | C110: =VLOOKUP(TB.TDS[[#This Row],[Nº PEDIDO]],NM.NUMPEDIDO,1,FALSE) ->  | D110: =IF(TB.TDS[[#This Row],[Material]]>0,"OK","") -> OK | E110: =IF(TB.TDS[[#This Row],[SAP]]>0,"OK","") -> OK | I110: TELSUPREMA | J110: FERRI | K110: 2017-2824 | L110: 4800017918 | M110: 117582 | N110: GBR CORPORATION LTD (ZONA "C") | O110: 1*20 | P110: 2018-06-27 | Q110: 2018-06-28 | R110: 230 | S110: 40309549 | T110: ANILLO DAX 65-100 N-41 | U110: 48 | V110: UN | W110: 40309549 | X110: GB/T3452.1-1992-41 | Y110: 0 | Z110: 0 | AA110: 0 | AB110: 1 | AC110: 102 | AD110: 102 | AE110: FA8 | AF110: 0 | AG110: 2000013899873 | AI110: 0 | AK110: OK
B111: =IF(TB.TDS[[#This Row],[Material]]=TB.TDS[[#This Row],[SAP]],"OK","REV") -> OK | C111: =VLOOKUP(TB.TDS[[#This Row],[Nº PEDIDO]],NM.NUMPEDIDO,1,FALSE) ->  | D111: =IF(TB.TDS[[#This Row],[Material]]>0,"OK","") -> OK | E111: =IF(TB.TDS[[#This Row],[SAP]]>0,"OK","") -> OK | I111: TELSUPREMA | J111: FERRI | K111: 2017-2824 | L111: 4800017918 | M111: 117582 | N111: GBR CORPORATION LTD (ZONA "C") | O111: 1*20 | P111: 2018-06-27 | Q111: 2018-06-28 | R111: 240 | S111: 40309550 | T111: ANILLO DAX 65-100 N-42 | U111: 48 | V111: UN | W111: 40309550 | X111: GB/T3452.1-1992-42 | Y111: 0 | Z111: 0 | AA111: 0 | AB111: 1 | AC111: 102 | AD111: 102 | AE111: FA8 | AF111: 0 | AG111: 2000013899880 | AI111: 0 | AK111: OK
B112: =IF(TB.TDS[[#This Row],[Material]]=TB.TDS[[#This Row],[SAP]],"OK","REV") -> OK | C112: =VLOOKUP(TB.TDS[[#This Row],[Nº PEDIDO]],NM.NUMPEDIDO,1,FALSE) ->  | D112: =IF(TB.TDS[[#This Row],[Material]]>0,"OK","") -> OK | E112: =IF(TB.TDS[[#This Row],[SAP]]>0,"OK","") -> OK | I112: TELSUPREMA | J112: FERRI | K112: 2017-2824 | L112: 4800017918 | M112: 117582 | N112: GBR CORPORATION LTD (ZONA "C") | O112: 1*20 | P112: 2018-06-27 | Q112: 2018-06-28 | R112: 250 | S112: 40309551 | T112: TAPÓN DAX 65-100 N-43 | U112: 48 | V112: UN | W112: 40309551 | X112: FB401-01-12/4 | Y112: 0 | Z112: 0 | AA112: 0 | AB112: 1 | AC112: 102 | AD112: 102 | AE112: FA8 | AF112: 0 | AG112: 2000013899897 | AI112: 0 | AK112: OK
B113: =IF(TB.TDS[[#This Row],[Material]]=TB.TDS[[#This Row],[SAP]],"OK","REV") -> OK | C113: =VLOOKUP(TB.TDS[[#This Row],[Nº PEDIDO]],NM.NUMPEDIDO,1,FALSE) ->  | D113: =IF(TB.TDS[[#This Row],[Material]]>0,"OK","") -> OK | E113: =IF(TB.TDS[[#This Row],[SAP]]>0,"OK","") -> OK | I113: TELSUPREMA | J113: FERRI | K113: 2017-2824 | L113: 4800017918 | M113: 117582 | N113: GBR CORPORATION LTD (ZONA "C") | O113: 1*20 | P113: 2018-06-27 | Q113: 2018-06-28 | R113: 260 | S113: 40309552 | T113: ANILLO DAX 100-1700 N-30 | U113: 48 | V113: UN | W113: 40309552 | X113: GB/T3452.1-1992-30 | Y113: 0 | Z113: 0 | AA113: 0 | AB113: 1 | AC113: 102 | AD113: 102 | AE113: FA8 | AF113: 0 | AG113: 2000013899903 | AI113: 0 | AK113: OK
B114: =IF(TB.TDS[[#This Row],[Material]]=TB.TDS[[#This Row],[SAP]],"OK","REV") -> OK | C114: =VLOOKUP(TB.TDS[[#This Row],[Nº PEDIDO]],NM.NUMPEDIDO,1,FALSE) ->  | D114: =IF(TB.TDS[[#This Row],[Material]]>0,"OK","") -> OK | E114: =IF(TB.TDS[[#This Row],[SAP]]>0,"OK","") -> OK | I114: TELSUPREMA | J114: FERRI | K114: 2017-2824 | L114: 4800017918 | M114: 117582 | N114: GBR CORPORATION LTD (ZONA "C") | O114: 1*20 | P114: 2018-06-27 | Q114: 2018-06-28 | R114: 270 | S114: 40309553 | T114: CONJUNTO D/VÁLVULA 1 VÍA DAX 100-1700 N | U114: 48 | V114: UN | W114: 40309553 | X114: FB513 | Y114: 0 | Z114: 0 | AA114: 0 | AB114: 1 | AC114: 102 | AD114: 102 | AE114: FA8 | AF114: 0 | AG114: 2000013899910 | AI114: 0 | AK114: OK
B115: =IF(TB.TDS[[#This Row],[Material]]=TB.TDS[[#This Row],[SAP]],"OK","REV") -> OK | C115: =VLOOKUP(TB.TDS[[#This Row],[Nº PEDIDO]],NM.NUMPEDIDO,1,FALSE) ->  | D115: =IF(TB.TDS[[#This Row],[Material]]>0,"OK","") -> OK | E115: =IF(TB.TDS[[#This Row],[SAP]]>0,"OK","") -> OK | I115: TELSUPREMA | J115: FERRI | K115: 2017-2824 | L115: 4800017918 | M115: 117582 | N115: GBR CORPORATION LTD (ZONA "C") | O115: 1*20 | P115: 2018-06-27 | Q115: 2018-06-28 | R115: 280 | S115: 40309554 | T115: TAPA VÁLVULA UNIDIRECCIONAL DAX 100-1700 | U115: 48 | V115: UN | W115: 40309554 | X115: FB513-01-07 | Y115: 0 | Z115: 0 | AA115: 0 | AB115: 1 | AC115: 102 | AD115: 102 | AE115: FA8 | AF115: 0 | AG115: 2000013899927 | AI115: 0 | AK115: OK
B116: =IF(TB.TDS[[#This Row],[Material]]=TB.TDS[[#This Row],[SAP]],"OK","REV") -> OK | C116: =VLOOKUP(TB.TDS[[#This Row],[Nº PEDIDO]],NM.NUMPEDIDO,1,FALSE) ->  | D116: =IF(TB.TDS[[#This Row],[Material]]>0,"OK","") -> OK | E116: =IF(TB.TDS[[#This Row],[SAP]]>0,"OK","") -> OK | I116: TELSUPREMA | J116: FERRI | K116: 2017-2824 | L116: 4800017918 | M116: 117582 | N116: GBR CORPORATION LTD (ZONA "C") | O116: 1*20 | P116: 2018-06-27 | Q116: 2018-06-28 | R116: 290 | S116: 40309555 | T116: PIN POPPET DAX 100-1700 N-31-02 | U116: 48 | V116: UN | W116: 40309555 | X116: FB513-01-06 | Y116: 0 | Z116: 0 | AA116: 0 | AB116: 1 | AC116: 102 | AD116: 102 | AE116: FA8 | AF116: 0 | AG116: 2000013899934 | AI116: 0 | AK116: OK
B117: =IF(TB.TDS[[#This Row],[Material]]=TB.TDS[[#This Row],[SAP]],"OK","REV") -> OK | C117: =VLOOKUP(TB.TDS[[#This Row],[Nº PEDIDO]],NM.NUMPEDIDO,1,FALSE) ->  | D117: =IF(TB.TDS[[#This Row],[Material]]>0,"OK","") -> OK | E117: =IF(TB.TDS[[#This Row],[SAP]]>0,"OK","") -> OK | I117: TELSUPREMA | J117: FERRI | K117: 2017-2824 | L117: 4800017918 | M117: 117582 | N117: GBR CORPORATION LTD (ZONA "C") | O117: 1*20 | P117: 2018-06-27 | Q117: 2018-06-28 | R117: 300 | S117: 40309556 | T117: RESORTE /VÁLVULA D/RETENCIÓN DAX 100-170 | U117: 48 | V117: UN | W117: 40309556 | X117: FB501-01-7 | Y117: 0 | Z117: 0 | AA117: 0 | AB117: 1 | AC117: 102 | AD117: 102 | AE117: FA8 | AF117: 0 | AG117: 2000013899941 | AI117: 0 | AK117: OK
B118: =IF(TB.TDS[[#This Row],[Material]]=TB.TDS[[#This Row],[SAP]],"OK","REV") -> OK | C118: =VLOOKUP(TB.TDS[[#This Row],[Nº PEDIDO]],NM.NUMPEDIDO,1,FALSE) ->  | D118: =IF(TB.TDS[[#This Row],[Material]]>0,"OK","") -> OK | E118: =IF(TB.TDS[[#This Row],[SAP]]>0,"OK","") -> OK | I118: TELSUPREMA | J118: FERRI | K118: 2017-2824 | L118: 4800017918 | M118: 117582 | N118: GBR CORPORATION LTD (ZONA "C") | O118: 1*20 | P118: 2018-06-27 | Q118: 2018-06-28 | R118: 310 | S118: 40309557 | T118: ASIENTO D/VÁLVULA UNIDIRECCIONAL DAX 100 | U118: 48 | V118: UN | W118: 40309557 | X118: FB513-01-05 | Y118: 0 | Z118: 0 | AA118: 0 | AB118: 1 | AC118: 102 | AD118: 102 | AE118: FA8 | AF118: 0 | AG118: 2000013899958 | AI118: 0 | AK118: OK
B119: =IF(TB.TDS[[#This Row],[Material]]=TB.TDS[[#This Row],[SAP]],"OK","REV") -> OK | C119: =VLOOKUP(TB.TDS[[#This Row],[Nº PEDIDO]],NM.NUMPEDIDO,1,FALSE) ->  | D119: =IF(TB.TDS[[#This Row],[Material]]>0,"OK","") -> OK | E119: =IF(TB.TDS[[#This Row],[SAP]]>0,"OK","") -> OK | I119: TELSUPREMA | J119: FERRI | K119: 2017-2824 | L119: 4800017918 | M119: 117582 | N119: GBR CORPORATION LTD (ZONA "C") | O119: 1*20 | P119: 2018-06-27 | Q119: 2018-06-28 | R119: 320 | S119: 40309558 | T119: ANILLO DAX 125-2500 N-3 | U119: 48 | V119: UN | W119: 40309558 | X119: GB/T3452.1-1992-3 | Y119: 0 | Z119: 0 | AA119: 0 | AB119: 1 | AC119: 102 | AD119: 102 | AE119: FA8 | AF119: 0 | AG119: 2000013899965 | AI119: 0 | AK119: OK
B120: =IF(TB.TDS[[#This Row],[Material]]=TB.TDS[[#This Row],[SAP]],"OK","REV") -> OK | C120: =VLOOKUP(TB.TDS[[#This Row],[Nº PEDIDO]],NM.NUMPEDIDO,1,FALSE) ->  | D120: =IF(TB.TDS[[#This Row],[Material]]>0,"OK","") -> OK | E120: =IF(TB.TDS[[#This Row],[SAP]]>0,"OK","") -> OK | I120: TELSUPREMA | J120: FERRI | K120: 2017-2824 | L120: 4800017918 | M120: 117582 | N120: GBR CORPORATION LTD (ZONA "C") | O120: 1*20 | P120: 2018-06-27 | Q120: 2018-06-28 | R120: 330 | S120: 40309559 | T120: SELLO D/ACEITE D/MARCO DELANTERO DAX 125 | U120: 12 | V120: UN | W120: 40309559 | X120: FB601-01-16 | Y120: 0 | Z120: 0 | AA120: 0 | AB120: 1 | AC120: 102 | AD120: 102 | AE120: FA8 | AF120: 0 | AG120: 2000013899972 | AI120: 0 | AK120: OK
B121: =IF(TB.TDS[[#This Row],[Material]]=TB.TDS[[#This Row],[SAP]],"OK","REV") -> OK | C121: =VLOOKUP(TB.TDS[[#This Row],[Nº PEDIDO]],NM.NUMPEDIDO,1,FALSE) ->  | D121: =IF(TB.TDS[[#This Row],[Material]]>0,"OK","") -> OK | E121: =IF(TB.TDS[[#This Row],[SAP]]>0,"OK","") -> OK | I121: TELSUPREMA | J121: FERRI | K121: 2017-2824 | L121: 4800017918 | M121: 117582 | N121: GBR CORPORATION LTD (ZONA "C") | O121: 1*20 | P121: 2018-06-27 | Q121: 2018-06-28 | R121: 340 | S121: 40309561 | T121: ANILLO GUÍA DAX 125-2500 N-18 | U121: 12 | V121: UN | W121: 40309561 | X121: FB601-01-17 | Y121: 0 | Z121: 0 | AA121: 0 | AB121: 1 | AC121: 102 | AD121: 102 | AE121: FA8 | AF121: 0 | AG121: 2000013899996 | AI121: 0 | AK121: OK
B122: =IF(TB.TDS[[#This Row],[Material]]=TB.TDS[[#This Row],[SAP]],"OK","REV") -> OK | C122: =VLOOKUP(TB.TDS[[#This Row],[Nº PEDIDO]],NM.NUMPEDIDO,1,FALSE) ->  | D122: =IF(TB.TDS[[#This Row],[Material]]>0,"OK","") -> OK | E122: =IF(TB.TDS[[#This Row],[SAP]]>0,"OK","") -> OK | I122: TELSUPREMA | J122: FERRI | K122: 2017-2824 | L122: 4800017918 | M122: 117582 | N122: GBR CORPORATION LTD (ZONA "C") | O122: 1*20 | P122: 2018-06-27 | Q122: 2018-06-28 | R122: 350 | S122: 40309562 | T122: SELLO TIPO Y DAX 125-2500 N-19 | U122: 12 | V122: UN | W122: 40309562 | X122: FB601-01-18 | Y122: 0 | Z122: 0 | AA122: 0 | AB122: 1 | AC122: 102 | AD122: 102 | AE122: FA8 | AF122: 0 | AG122: 2000013900104 | AI122: 0 | AK122: OK
B123: =IF(TB.TDS[[#This Row],[Material]]=TB.TDS[[#This Row],[SAP]],"OK","REV") -> OK | C123: =VLOOKUP(TB.TDS[[#This Row],[Nº PEDIDO]],NM.NUMPEDIDO,1,FALSE) ->  | D123: =IF(TB.TDS[[#This Row],[Material]]>0,"OK","") -> OK | E123: =IF(TB.TDS[[#This Row],[SAP]]>0,"OK","") -> OK | I123: TELSUPREMA | J123: FERRI | K123: 2017-2824 | L123: 4800017918 | M123: 117582 | N123: GBR CORPORATION LTD (ZONA "C") | O123: 1*20 | P123: 2018-06-27 | Q123: 2018-06-28 | R123: 360 | S123: 40309563 | T123: ANILLO DAX 125-2500 N-21 | U123: 12 | V123: UN | W123: 40309563 | X123: GB/T3452.1-1992-21 | Y123: 0 | Z123: 0 | AA123: 0 | AB123: 1 | AC123: 102 | AD123: 102 | AE123: FA8 | AF123: 0 | AG123: 2000013900111 | AI123: 0 | AK123: OK
B124: =IF(TB.TDS[[#This Row],[Material]]=TB.TDS[[#This Row],[SAP]],"OK","REV") -> OK | C124: =VLOOKUP(TB.TDS[[#This Row],[Nº PEDIDO]],NM.NUMPEDIDO,1,FALSE) ->  | D124: =IF(TB.TDS[[#This Row],[Material]]>0,"OK","") -> OK | E124: =IF(TB.TDS[[#This Row],[SAP]]>0,"OK","") -> OK | I124: TELSUPREMA | J124: FERRI | K124: 2017-2824 | L124: 4800017918 | M124: 117582 | N124: GBR CORPORATION LTD (ZONA "C") | O124: 1*20 | P124: 2018-06-27 | Q124: 2018-06-28 | R124: 370 | S124: 40309564 | T124: VÁLVULA MAESTRA DAX 125-2500 N-22 | U124: 12 | V124: UN | W124: 40309564 | X124: DAX 125-2500 N-22 | Y124: 0 | Z124: 0 | AA124: 0 | AB124: 1 | AC124: 102 | AD124: 102 | AE124: FA8 | AF124: 0 | AG124: 2000013900128 | AI124: 0 | AK124: OK
B125: =IF(TB.TDS[[#This Row],[Material]]=TB.TDS[[#This Row],[SAP]],"OK","REV") -> OK | C125: =VLOOKUP(TB.TDS[[#This Row],[Nº PEDIDO]],NM.NUMPEDIDO,1,FALSE) ->  | D125: =IF(TB.TDS[[#This Row],[Material]]>0,"OK","") -> OK | E125: =IF(TB.TDS[[#This Row],[SAP]]>0,"OK","") -> OK | I125: TELSUPREMA | J125: FERRI | K125: 2017-2824 | L125: 4800017918 | M125: 117582 | N125: GBR CORPORATION LTD (ZONA "C") | O125: 1*20 | P125: 2018-06-27 | Q125: 2018-06-28 | R125: 380 | S125: 40309565 | T125: VÁLVULA D/ 1VÍA DAX 125-2500 N-22-01 | U125: 12 | V125: UN | W125: 40309565 | X125: FB601-01-13 | Y125: 0 | Z125: 0 | AA125: 0 | AB125: 1 | AC125: 102 | AD125: 102 | AE125: FA8 | AF125: 0 | AG125: 2000013900142 | AI125: 0 | AK125: OK
B126: =IF(TB.TDS[[#This Row],[Material]]=TB.TDS[[#This Row],[SAP]],"OK","REV") -> OK | C126: =VLOOKUP(TB.TDS[[#This Row],[Nº PEDIDO]],NM.NUMPEDIDO,1,FALSE) ->  | D126: =IF(TB.TDS[[#This Row],[Material]]>0,"OK","") -> OK | E126: =IF(TB.TDS[[#This Row],[SAP]]>0,"OK","") -> OK | I126: TELSUPREMA | J126: FERRI | K126: 2017-2824 | L126: 4800017918 | M126: 117582 | N126: GBR CORPORATION LTD (ZONA "C") | O126: 1*20 | P126: 2018-06-27 | Q126: 2018-06-28 | R126: 390 | S126: 40309567 | T126: RESORTE D/VÁLVULA MAESTRO DAX 125-2500 N | U126: 12 | V126: UN | W126: 40309567 | X126: FB601-01-27 | Y126: 0 | Z126: 0 | AA126: 0 | AB126: 1 | AC126: 102 | AD126: 102 | AE126: FA8 | AF126: 0 | AG126: 2000013900159 | AI126: 0 | AK126: OK
B127: =IF(TB.TDS[[#This Row],[Material]]=TB.TDS[[#This Row],[SAP]],"OK","REV") -> OK | C127: =VLOOKUP(TB.TDS[[#This Row],[Nº PEDIDO]],NM.NUMPEDIDO,1,FALSE) ->  | D127: =IF(TB.TDS[[#This Row],[Material]]>0,"OK","") -> OK | E127: =IF(TB.TDS[[#This Row],[SAP]]>0,"OK","") -> OK | I127: TELSUPREMA | J127: FERRI | K127: 2017-2824 | L127: 4800017918 | M127: 117582 | N127: GBR CORPORATION LTD (ZONA "C") | O127: 1*20 | P127: 2018-06-27 | Q127: 2018-06-28 | R127: 400 | S127: 40309569 | T127: VÁLVULA MAESTRA GAS DAX 125-2500 N-22-03 | U127: 12 | V127: UN | W127: 40309569 | X127: FB501-01-15 | Y127: 0 | Z127: 0 | AA127: 0 | AB127: 1 | AC127: 102 | AD127: 102 | AE127: FA8 | AF127: 0 | AG127: 2000013900166 | AI127: 0 | AK127: OK
B128: =IF(TB.TDS[[#This Row],[Material]]=TB.TDS[[#This Row],[SAP]],"OK","REV") -> OK | C128: =VLOOKUP(TB.TDS[[#This Row],[Nº PEDIDO]],NM.NUMPEDIDO,1,FALSE) ->  | D128: =IF(TB.TDS[[#This Row],[Material]]>0,"OK","") -> OK | E128: =IF(TB.TDS[[#This Row],[SAP]]>0,"OK","") -> OK | I128: TELSUPREMA | J128: FERRI | K128: 2017-2824 | L128: 4800017918 | M128: 117582 | N128: GBR CORPORATION LTD (ZONA "C") | O128: 1*20 | P128: 2018-06-27 | Q128: 2018-06-28 | R128: 410 | S128: 40309570 | T128: ANILLO DAX 125-2500 N-22-04 | U128: 12 | V128: UN | W128: 40309570 | X128: GB/T3452.1-1992-04 | Y128: 0 | Z128: 0 | AA128: 0 | AB128: 1 | AC128: 102 | AD128: 102 | AE128: FA8 | AF128: 0 | AG128: 2000013900173 | AI128: 0 | AK128: OK
B129: =IF(TB.TDS[[#This Row],[Material]]=TB.TDS[[#This Row],[SAP]],"OK","REV") -> OK | C129: =VLOOKUP(TB.TDS[[#This Row],[Nº PEDIDO]],NM.NUMPEDIDO,1,FALSE) ->  | D129: =IF(TB.TDS[[#This Row],[Material]]>0,"OK","") -> OK | E129: =IF(TB.TDS[[#This Row],[SAP]]>0,"OK","") -> OK | I129: TELSUPREMA | J129: FERRI | K129: 2017-2824 | L129: 4800017918 | M129: 117582 | N129: GBR CORPORATION LTD (ZONA "C") | O129: 1*20 | P129: 2018-06-27 | Q129: 2018-06-28 | R129: 420 | S129: 40309571 | T129: BONETE D/ VÁLVULA MAESTRA DAX 125-2500 N | U129: 12 | V129: UN | W129: 40309571 | X129: FB601-01-24 | Y129: 0 | Z129: 0 | AA129: 0 | AB129: 1 | AC129: 102 | AD129: 102 | AE129: FA8 | AF129: 0 | AG129: 2000013900197 | AI129: 0 | AK129: OK
B130: =IF(TB.TDS[[#This Row],[Material]]=TB.TDS[[#This Row],[SAP]],"OK","REV") -> OK | C130: =VLOOKUP(TB.TDS[[#This Row],[Nº PEDIDO]],NM.NUMPEDIDO,1,FALSE) ->  | D130: =IF(TB.TDS[[#This Row],[Material]]>0,"OK","") -> OK | E130: =IF(TB.TDS[[#This Row],[SAP]]>0,"OK","") -> OK | I130: TELSUPREMA | J130: FERRI | K130: 2017-2824 | L130: 4800017918 | M130: 117582 | N130: GBR CORPORATION LTD (ZONA "C") | O130: 1*20 | P130: 2018-06-27 | Q130: 2018-06-28 | R130: 430 | S130: 40309572 | T130: VÁLVULA D/ RETENCIÓN DAX 125-2500 N-31 | U130: 12 | V130: UN | W130: 40309572 | X130: DAX 125-2500 N-31 | Y130: 0 | Z130: 0 | AA130: 0 | AB130: 1 | AC130: 102 | AD130: 102 | AE130: FA8 | AF130: 0 | AG130: 2000013900203 | AI130: 0 | AK130: OK
B131: =IF(TB.TDS[[#This Row],[Material]]=TB.TDS[[#This Row],[SAP]],"OK","REV") -> OK | C131: =VLOOKUP(TB.TDS[[#This Row],[Nº PEDIDO]],NM.NUMPEDIDO,1,FALSE) ->  | D131: =IF(TB.TDS[[#This Row],[Material]]>0,"OK","") -> OK | E131: =IF(TB.TDS[[#This Row],[SAP]]>0,"OK","") -> OK | I131: TELSUPREMA | J131: FERRI | K131: 2017-2824 | L131: 4800017918 | M131: 117582 | N131: GBR CORPORATION LTD (ZONA "C") | O131: 1*20 | P131: 2018-06-27 | Q131: 2018-06-28 | R131: 440 | S131: 40309574 | T131: VÁLVULA D/RETENCIÓN COER DAX 125-2500 N- | U131: 12 | V131: UN | W131: 40309574 | X131: FB601-01-12 | Y131: 0 | Z131: 0 | AA131: 0 | AB131: 1 | AC131: 102 | AD131: 102 | AE131: FA8 | AF131: 0 | AG131: 2000013900210 | AI131: 0 | AK131: OK
B132: =IF(TB.TDS[[#This Row],[Material]]=TB.TDS[[#This Row],[SAP]],"OK","REV") -> OK | C132: =VLOOKUP(TB.TDS[[#This Row],[Nº PEDIDO]],NM.NUMPEDIDO,1,FALSE) ->  | D132: =IF(TB.TDS[[#This Row],[Material]]>0,"OK","") -> OK | E132: =IF(TB.TDS[[#This Row],[SAP]]>0,"OK","") -> OK | I132: TELSUPREMA | J132: FERRI | K132: 2017-2824 | L132: 4800017918 | M132: 117582 | N132: GBR CORPORATION LTD (ZONA "C") | O132: 1*20 | P132: 2018-06-27 | Q132: 2018-06-28 | R132: 450 | S132: 40309575 | T132: CASQUILLO D/VÁLVULA D/RETENCIÓN DAX 125- | U132: 12 | V132: UN | W132: 40309575 | X132: FB601-01-11 | Y132: 0 | Z132: 0 | AA132: 0 | AB132: 1 | AC132: 102 | AD132: 102 | AE132: FA8 | AF132: 0 | AG132: 2000013900234 | AI132: 0 | AK132: OK
B133: =IF(TB.TDS[[#This Row],[Material]]=TB.TDS[[#This Row],[SAP]],"OK","REV") -> OK | C133: =VLOOKUP(TB.TDS[[#This Row],[Nº PEDIDO]],NM.NUMPEDIDO,1,FALSE) ->  | D133: =IF(TB.TDS[[#This Row],[Material]]>0,"OK","") -> OK | E133: =IF(TB.TDS[[#This Row],[SAP]]>0,"OK","") -> OK | I133: TELSUPREMA | J133: FERRI | K133: 2017-2824 | L133: 4800017918 | M133: 117582 | N133: GBR CORPORATION LTD (ZONA "C") | O133: 1*20 | P133: 2018-06-27 | Q133: 2018-06-28 | R133: 460 | S133: 40309576 | T133: RESORTE D/VÁLVULA D/RETENCIÓN DAX 125-25 | U133: 12 | V133: UN | W133: 40309576 | X133: FB601-01-14 | Y133: 0 | Z133: 0 | AA133: 0 | AB133: 1 | AC133: 102 | AD133: 102 | AE133: FA8 | AF133: 0 | AG133: 2000013900241 | AI133: 0 | AK133: OK
B134: =IF(TB.TDS[[#This Row],[Material]]=TB.TDS[[#This Row],[SAP]],"OK","REV") -> OK | C134: =VLOOKUP(TB.TDS[[#This Row],[Nº PEDIDO]],NM.NUMPEDIDO,1,FALSE) ->  | D134: =IF(TB.TDS[[#This Row],[Material]]>0,"OK","") -> OK | E134: =IF(TB.TDS[[#This Row],[SAP]]>0,"OK","") -> OK | I134: TELSUPREMA | J134: FERRI | K134: 2017-2824 | L134: 4800017918 | M134: 117582 | N134: GBR CORPORATION LTD (ZONA "C") | O134: 1*20 | P134: 2018-06-27 | Q134: 2018-06-28 | R134: 470 | S134: 40311967 | T134: ANILLO DAX 100-1700 N-31-5 | U134: 12 | V134: UN | W134: 40311967 | X134: GB/T3452.1-1992 N-31/5 | Y134: 0 | Z134: 0 | AA134: 0 | AB134: 1 | AC134: 102 | AD134: 102 | AE134: FA8 | AF134: 0 | AG134: 2000013933775 | AI134: 0 | AK134: OK
B135: =IF(TB.TDS[[#This Row],[Material]]=TB.TDS[[#This Row],[SAP]],"OK","REV") -> OK | C135: =VLOOKUP(TB.TDS[[#This Row],[Nº PEDIDO]],NM.NUMPEDIDO,1,FALSE) ->  | D135: =IF(TB.TDS[[#This Row],[Material]]>0,"OK","") -> OK | E135: =IF(TB.TDS[[#This Row],[SAP]]>0,"OK","") -> OK | I135: TELSUPREMA | J135: FERRI | K135: 2017-2824 | L135: 4800017918 | M135: 117582 | N135: GBR CORPORATION LTD (ZONA "C") | O135: 1*20 | P135: 2018-06-27 | Q135: 2018-06-28 | R135: 480 | S135: 40313535 | T135: CARTONES (CAJAS VACIAS) | U135: 10 | V135: UN | W135: 40313535 | X135: NO TIENE | Y135: 0 | Z135: 0 | AA135: 0 | AB135: 1 | AC135: 102 | AD135: 102 | AE135: FA8 | AF135: 0 | AG135: 2000013973740 | AI135: 0 | AK135: OK
B136: =IF(TB.TDS[[#This Row],[Material]]=TB.TDS[[#This Row],[SAP]],"OK","REV") -> OK | C136: =VLOOKUP(TB.TDS[[#This Row],[Nº PEDIDO]],NM.NUMPEDIDO,1,FALSE) ->  | D136: =IF(TB.TDS[[#This Row],[Material]]>0,"OK","") ->  | E136: =IF(TB.TDS[[#This Row],[SAP]]>0,"OK","") -> 
B137: =IF(TB.TDS[[#This Row],[Material]]=TB.TDS[[#This Row],[SAP]],"OK","REV") -> OK | C137: =VLOOKUP(TB.TDS[[#This Row],[Nº PEDIDO]],NM.NUMPEDIDO,1,FALSE) ->  | D137: =IF(TB.TDS[[#This Row],[Material]]>0,"OK","") ->  | E137: =IF(TB.TDS[[#This Row],[SAP]]>0,"OK","") -> 
B138: =IF(TB.TDS[[#This Row],[Material]]=TB.TDS[[#This Row],[SAP]],"OK","REV") -> OK | C138: =VLOOKUP(TB.TDS[[#This Row],[Nº PEDIDO]],NM.NUMPEDIDO,1,FALSE) ->  | D138: =IF(TB.TDS[[#This Row],[Material]]>0,"OK","") -> OK | E138: =IF(TB.TDS[[#This Row],[SAP]]>0,"OK","") -> OK | I138: TELSUPREMA | J138: FERRI | K138: 2018-0329 | L138: 4800018573 | M138: 118223 | N138: ITC-NINGBO BATTERY &ELECTRICAL | O138: 1*20 | P138: 2018-06-27 | Q138: 2018-06-28 | R138: 30 | S138: 40296314 | T138: PILA TEKNO AA X 2 | U138: 24000 | V138: UN | W138: 40296314 | X138: LR6 2B | Y138: 1.7 | Z138: 7 | AA138: 8.5 | AB138: 121 | AC138: 105 | AD138: 105 | AE138: FA6 | AF138: 0 | AG138: 7861003009895 | AH138: V01306042 | AI138: 480 | AK138: OK
B139: =IF(TB.TDS[[#This Row],[Material]]=TB.TDS[[#This Row],[SAP]],"OK","REV") -> OK | C139: =VLOOKUP(TB.TDS[[#This Row],[Nº PEDIDO]],NM.NUMPEDIDO,1,FALSE) ->  | D139: =IF(TB.TDS[[#This Row],[Material]]>0,"OK","") -> OK | E139: =IF(TB.TDS[[#This Row],[SAP]]>0,"OK","") -> OK | I139: TELSUPREMA | J139: FERRI | K139: 2018-0329 | L139: 4800018573 | M139: 118223 | N139: ITC-NINGBO BATTERY &ELECTRICAL | O139: 1*20 | P139: 2018-06-27 | Q139: 2018-06-28 | R139: 20 | S139: 40296315 | T139: PILA TEKNO AA X 4 | U139: 36000 | V139: UN | W139: 40296315 | X139: LR6 4B | Y139: 1.6 | Z139: 7 | AA139: 8.5 | AB139: 121 | AC139: 105 | AD139: 105 | AE139: FA6 | AF139: 0 | AG139: 7861003009901 | AH139: V01306024 | AI139: 480 | AK139: OK
B140: =IF(TB.TDS[[#This Row],[Material]]=TB.TDS[[#This Row],[SAP]],"OK","REV") -> OK | C140: =VLOOKUP(TB.TDS[[#This Row],[Nº PEDIDO]],NM.NUMPEDIDO,1,FALSE) ->  | D140: =IF(TB.TDS[[#This Row],[Material]]>0,"OK","") -> OK | E140: =IF(TB.TDS[[#This Row],[SAP]]>0,"OK","") -> OK | I140: TELSUPREMA | J140: FERRI | K140: 2018-0329 | L140: 4800018573 | M140: 118223 | N140: ITC-NINGBO BATTERY &ELECTRICAL | O140: 1*20 | P140: 2018-06-27 | Q140: 2018-06-28 | R140: 10 | S140: 40296316 | T140: PILA TEKNO AA X 8 | U140: 19920 | V140: UN | W140: 40296316 | X140: LR6 8B | Y140: 3.2 | Z140: 8.6 | AA140: 11.5 | AB140: 121 | AC140: 105 | AD140: 105 | AE140: FA6 | AF140: 0 | AG140: 7861003009918 | AH140: V01703043 | AI140: 288 | AK140: OK
B141: =IF(TB.TDS[[#This Row],[Material]]=TB.TDS[[#This Row],[SAP]],"OK","REV") -> OK | C141: =VLOOKUP(TB.TDS[[#This Row],[Nº PEDIDO]],NM.NUMPEDIDO,1,FALSE) ->  | D141: =IF(TB.TDS[[#This Row],[Material]]>0,"OK","") -> OK | E141: =IF(TB.TDS[[#This Row],[SAP]]>0,"OK","") -> OK | I141: TELSUPREMA | J141: FERRI | K141: 2018-0329 | L141: 4800018573 | M141: 118223 | N141: ITC-NINGBO BATTERY &ELECTRICAL | O141: 1*20 | P141: 2018-06-27 | Q141: 2018-06-28 | R141: 50 | S141: 40296317 | T141: PILA TEKNO AAA X 2 | U141: 2400 | V141: UN | W141: 40296317 | X141: LR03 2B | Y141: 0 | Z141: 7 | AA141: 9 | AB141: 121 | AC141: 105 | AD141: 105 | AE141: FA6 | AF141: 0 | AG141: 7861003009925 | AH141: V01307041 | AI141: 720 | AK141: OK
B142: =IF(TB.TDS[[#This Row],[Material]]=TB.TDS[[#This Row],[SAP]],"OK","REV") -> OK | C142: =VLOOKUP(TB.TDS[[#This Row],[Nº PEDIDO]],NM.NUMPEDIDO,1,FALSE) ->  | D142: =IF(TB.TDS[[#This Row],[Material]]>0,"OK","") -> OK | E142: =IF(TB.TDS[[#This Row],[SAP]]>0,"OK","") -> OK | I142: TELSUPREMA | J142: FERRI | K142: 2018-0329 | L142: 4800018573 | M142: 118223 | N142: ITC-NINGBO BATTERY &ELECTRICAL | O142: 1*20 | P142: 2018-06-27 | Q142: 2018-06-28 | R142: 40 | S142: 40296320 | T142: PILA TEKNO AAA X 8 | U142: 2880 | V142: UN | W142: 40296320 | X142: LR03 8B | Y142: 2.2 | Z142: 7 | AA142: 8.5 | AB142: 121 | AC142: 105 | AD142: 105 | AE142: FA6 | AF142: 0 | AG142: 7861003009949 | AH142: V01308021 | AI142: 240 | AK142: OK
B143: =IF(TB.TDS[[#This Row],[Material]]=TB.TDS[[#This Row],[SAP]],"OK","REV") -> OK | C143: =VLOOKUP(TB.TDS[[#This Row],[Nº PEDIDO]],NM.NUMPEDIDO,1,FALSE) ->  | D143: =IF(TB.TDS[[#This Row],[Material]]>0,"OK","") ->  | E143: =IF(TB.TDS[[#This Row],[SAP]]>0,"OK","") -> 
B144: =IF(TB.TDS[[#This Row],[Material]]=TB.TDS[[#This Row],[SAP]],"OK","REV") -> OK | C144: =VLOOKUP(TB.TDS[[#This Row],[Nº PEDIDO]],NM.NUMPEDIDO,1,FALSE) ->  | D144: =IF(TB.TDS[[#This Row],[Material]]>0,"OK","") ->  | E144: =IF(TB.TDS[[#This Row],[SAP]]>0,"OK","") -> 
B145: =IF(TB.TDS[[#This Row],[Material]]=TB.TDS[[#This Row],[SAP]],"OK","REV") -> OK | C145: =VLOOKUP(TB.TDS[[#This Row],[Nº PEDIDO]],NM.NUMPEDIDO,1,FALSE) ->  | D145: =IF(TB.TDS[[#This Row],[Material]]>0,"OK","") -> OK | E145: =IF(TB.TDS[[#This Row],[SAP]]>0,"OK","") -> OK | I145: TELSUPREMA | J145: FERRI | K145: 2018-0200 | L145: 4800018388 | M145: 114781 | N145: KINGTEC INDUSTRIAL CO, LTD. | O145: C/SUELTA | P145: 2018-06-27 | Q145: 2018-06-28 | R145: 20 | S145: 40236073 | T145: LIJAD ORBIT 180W 1/2HP TEKNO | U145: 600 | V145: UN | W145: 40236073 | X145: LO 600 | Y145: 55 | Z145: 30 | AA145: 35 | AB145: 102 | AC145: 101 | AD145: 105 | AE145: F89 | AF145: 180 | AG145: 7798284186857 | AH145: F0562601 | AI145: 80 | AK145: OK
B146: =IF(TB.TDS[[#This Row],[Material]]=TB.TDS[[#This Row],[SAP]],"OK","REV") -> OK | C146: =VLOOKUP(TB.TDS[[#This Row],[Nº PEDIDO]],NM.NUMPEDIDO,1,FALSE) ->  | D146: =IF(TB.TDS[[#This Row],[Material]]>0,"OK","") -> OK | E146: =IF(TB.TDS[[#This Row],[SAP]]>0,"OK","") -> OK | I146: TELSUPREMA | J146: FERRI | K146: 2018-0200 | L146: 4800018388 | M146: 114781 | N146: KINGTEC INDUSTRIAL CO, LTD. | O146: C/SUELTA | P146: 2018-06-27 | Q146: 2018-06-28 | R146: 10 | S146: 40276866 | T146: TALADRO PERC 1/2" 900W TEKNO | U146: 1500 | V146: UN | W146: 40276866 | X146: TP 713/2 | Y146: 51 | Z146: 31 | AA146: 31 | AB146: 102 | AC146: 101 | AD146: 105 | AE146: F89 | AF146: 192 | AG146: 7798284183368 | AI146: 96 | AK146: OK
B147: =IF(TB.TDS[[#This Row],[Material]]=TB.TDS[[#This Row],[SAP]],"OK","REV") -> OK | C147: =VLOOKUP(TB.TDS[[#This Row],[Nº PEDIDO]],NM.NUMPEDIDO,1,FALSE) ->  | D147: =IF(TB.TDS[[#This Row],[Material]]>0,"OK","") ->  | E147: =IF(TB.TDS[[#This Row],[SAP]]>0,"OK","") -> 
B148: =IF(TB.TDS[[#This Row],[Material]]=TB.TDS[[#This Row],[SAP]],"OK","REV") -> OK | C148: =VLOOKUP(TB.TDS[[#This Row],[Nº PEDIDO]],NM.NUMPEDIDO,1,FALSE) ->  | D148: =IF(TB.TDS[[#This Row],[Material]]>0,"OK","") ->  | E148: =IF(TB.TDS[[#This Row],[SAP]]>0,"OK","") -> 
B149: =IF(TB.TDS[[#This Row],[Material]]=TB.TDS[[#This Row],[SAP]],"OK","REV") -> OK | C149: =VLOOKUP(TB.TDS[[#This Row],[Nº PEDIDO]],NM.NUMPEDIDO,1,FALSE) ->  | D149: =IF(TB.TDS[[#This Row],[Material]]>0,"OK","") -> OK | E149: =IF(TB.TDS[[#This Row],[SAP]]>0,"OK","") -> OK | I149: TELSUPREMA | J149: FERRI | K149: 2018-0201 | L149: 4800018620 | M149: 114781 | N149: KINGTEC INDUSTRIAL CO, LTD. | O149: C/SUELTA | P149: 2018-06-27 | Q149: 2018-06-28 | R149: 10 | S149: 40206076 | T149: SIERRA CALADORA 600W 3/4HP | U149: 600 | V149: UN | W149: 40206076 | X149: SK 670/1 | Y149: 27 | Z149: 22 | AA149: 8 | AB149: 102 | AC149: 101 | AD149: 105 | AE149: F89 | AF149: 220 | AG149: 7798284186864 | AH149: F0563001 | AI149: 80 | AK149: OK
B150: =IF(TB.TDS[[#This Row],[Material]]=TB.TDS[[#This Row],[SAP]],"OK","REV") -> OK | C150: =VLOOKUP(TB.TDS[[#This Row],[Nº PEDIDO]],NM.NUMPEDIDO,1,FALSE) ->  | D150: =IF(TB.TDS[[#This Row],[Material]]>0,"OK","") ->  | E150: =IF(TB.TDS[[#This Row],[SAP]]>0,"OK","") -> 
B151: =IF(TB.TDS[[#This Row],[Material]]=TB.TDS[[#This Row],[SAP]],"OK","REV") -> OK | C151: =VLOOKUP(TB.TDS[[#This Row],[Nº PEDIDO]],NM.NUMPEDIDO,1,FALSE) ->  | D151: =IF(TB.TDS[[#This Row],[Material]]>0,"OK","") ->  | E151: =IF(TB.TDS[[#This Row],[SAP]]>0,"OK","") -> 
B152: =IF(TB.TDS[[#This Row],[Material]]=TB.TDS[[#This Row],[SAP]],"OK","REV") -> OK | C152: =VLOOKUP(TB.TDS[[#This Row],[Nº PEDIDO]],NM.NUMPEDIDO,1,FALSE) ->  | D152: =IF(TB.TDS[[#This Row],[Material]]>0,"OK","") -> OK | E152: =IF(TB.TDS[[#This Row],[SAP]]>0,"OK","") -> OK | I152: TELSUPREMA | J152: FERRI | K152: 2018-0629 | L152: 4800018804 | M152: 117480 | N152: TRAMONTINA ELETRIK S.A. | O152: 1*40 | P152: 2018-06-27 | Q152: 2018-06-28 | R152: 20 | S152: 40278510 | T152: DUCHA ELECTRONICA 5400W 127V | U152: 208 | V152: UN | W152: 40278510 | X152: 58000/191 | Y152: 15 | Z152: 15 | AA152: 28 | AB152: 104 | AC152: 101 | AD152: 105 | AE152: F91 | AF152: 192 | AG152: 7891435923377 | AH152: F0424002 | AI152: 72 | AK152: OK
B153: =IF(TB.TDS[[#This Row],[Material]]=TB.TDS[[#This Row],[SAP]],"OK","REV") -> OK | C153: =VLOOKUP(TB.TDS[[#This Row],[Nº PEDIDO]],NM.NUMPEDIDO,1,FALSE) ->  | D153: =IF(TB.TDS[[#This Row],[Material]]>0,"OK","") -> OK | E153: =IF(TB.TDS[[#This Row],[SAP]]>0,"OK","") -> OK | I153: TELSUPREMA | J153: FERRI | K153: 2018-0629 | L153: 4800018804 | M153: 117480 | N153: TRAMONTINA ELETRIK S.A. | O153: 1*40 | P153: 2018-06-27 | Q153: 2018-06-28 | R153: 10 | S153: 40312354 | T153: DUCHA ELECTRICA 3T 4400W 127V | U153: 1500 | V153: UN | W153: 40312354 | X153: 58000/132 | Y153: 12.5 | Z153: 14.5 | AA153: 18.4 | AB153: 104 | AC153: 101 | AD153: 105 | AE153: F91 | AF153: 0 | AG153: 7891435933727 | AH153: F0413501 | AI153: 144 | AK153: OK
B154: =IF(TB.TDS[[#This Row],[Material]]=TB.TDS[[#This Row],[SAP]],"OK","REV") -> OK | C154: =VLOOKUP(TB.TDS[[#This Row],[Nº PEDIDO]],NM.NUMPEDIDO,1,FALSE) ->  | D154: =IF(TB.TDS[[#This Row],[Material]]>0,"OK","") ->  | E154: =IF(TB.TDS[[#This Row],[SAP]]>0,"OK","") -> 
B155: =IF(TB.TDS[[#This Row],[Material]]=TB.TDS[[#This Row],[SAP]],"OK","REV") -> OK | C155: =VLOOKUP(TB.TDS[[#This Row],[Nº PEDIDO]],NM.NUMPEDIDO,1,FALSE) ->  | D155: =IF(TB.TDS[[#This Row],[Material]]>0,"OK","") ->  | E155: =IF(TB.TDS[[#This Row],[SAP]]>0,"OK","") -> 
B156: =IF(TB.TDS[[#This Row],[Material]]=TB.TDS[[#This Row],[SAP]],"OK","REV") -> OK | C156: =VLOOKUP(TB.TDS[[#This Row],[Nº PEDIDO]],NM.NUMPEDIDO,1,FALSE) ->  | D156: =IF(TB.TDS[[#This Row],[Material]]>0,"OK","") -> OK | E156: =IF(TB.TDS[[#This Row],[SAP]]>0,"OK","") -> OK | I156: TELSUPREMA | J156: FERRI | K156: 2018-0631 | L156: 4800018806 | M156: 117391 | N156: TRAMONTINA CUTELARIA (INEN) | O156: 1*40 | P156: 2018-06-27 | Q156: 2018-06-28 | R156: 40 | S156: 40043172 | T156: MOLDE BRASIL 28CM HONDO RECTANGULAR | U156: 252 | V156: UN | W156: 40043172 | X156: 20051/028 | Y156: 34 | Z156: 25 | AA156: 7 | AB156: 114 | AC156: 101 | AD156: 105 | AE156: FD2 | AF156: 1296 | AG156: 7891112058903 | AH156: F01519043 | AI156: 96 | AK156: OK
B157: =IF(TB.TDS[[#This Row],[Material]]=TB.TDS[[#This Row],[SAP]],"OK","REV") -> OK | C157: =VLOOKUP(TB.TDS[[#This Row],[Nº PEDIDO]],NM.NUMPEDIDO,1,FALSE) ->  | D157: =IF(TB.TDS[[#This Row],[Material]]>0,"OK","") -> OK | E157: =IF(TB.TDS[[#This Row],[SAP]]>0,"OK","") -> OK | I157: TELSUPREMA | J157: FERRI | K157: 2018-0631 | L157: 4800018806 | M157: 117391 | N157: TRAMONTINA CUTELARIA (INEN) | O157: 1*40 | P157: 2018-06-27 | Q157: 2018-06-28 | R157: 70 | S157: 40043213 | T157: MOLDE BRASIL 24CM ACANAL P/TARTA | U157: 312 | V157: UN | W157: 40043213 | X157: 20056/024 | Y157: 25 | Z157: 25 | AA157: 4 | AB157: 114 | AC157: 101 | AD157: 105 | AE157: FD2 | AF157: 2304 | AG157: 7891112015968 | AH157: F01520041 | AI157: 144 | AK157: OK
B158: =IF(TB.TDS[[#This Row],[Material]]=TB.TDS[[#This Row],[SAP]],"OK","REV") -> OK | C158: =VLOOKUP(TB.TDS[[#This Row],[Nº PEDIDO]],NM.NUMPEDIDO,1,FALSE) ->  | D158: =IF(TB.TDS[[#This Row],[Material]]>0,"OK","") -> OK | E158: =IF(TB.TDS[[#This Row],[SAP]]>0,"OK","") -> OK | I158: TELSUPREMA | J158: FERRI | K158: 2018-0631 | L158: 4800018806 | M158: 117391 | N158: TRAMONTINA CUTELARIA (INEN) | O158: 1*40 | P158: 2018-06-27 | Q158: 2018-06-28 | R158: 60 | S158: 40043214 | T158: MOLDE BRASIL 24CM P/HORNEAR | U158: 276 | V158: UN | W158: 40043214 | X158: 20057/024 | Y158: 26 | Z158: 26 | AA158: 5 | AB158: 114 | AC158: 101 | AD158: 105 | AE158: FD2 | AF158: 1152 | AG158: 7891112021617 | AH158: F01526043 | AI158: 96 | AK158: OK
B159: =IF(TB.TDS[[#This Row],[Material]]=TB.TDS[[#This Row],[SAP]],"OK","REV") -> OK | C159: =VLOOKUP(TB.TDS[[#This Row],[Nº PEDIDO]],NM.NUMPEDIDO,1,FALSE) ->  | D159: =IF(TB.TDS[[#This Row],[Material]]>0,"OK","") -> OK | E159: =IF(TB.TDS[[#This Row],[SAP]]>0,"OK","") -> OK | I159: TELSUPREMA | J159: FERRI | K159: 2018-0631 | L159: 4800018806 | M159: 117391 | N159: TRAMONTINA CUTELARIA (INEN) | O159: 1*40 | P159: 2018-06-27 | Q159: 2018-06-28 | R159: 80 | S159: 40043216 | T159: MOLDE BRASIL 20CM ACANAL P/CAKE | U159: 228 | V159: UN | W159: 40043216 | X159: 20065/022 | Y159: 22 | Z159: 22 | AA159: 10 | AB159: 114 | AC159: 101 | AD159: 105 | AE159: FD2 | AF159: 1200 | AG159: 7891112015661 | AH159: F01520043 | AI159: 96 | AK159: OK
B160: =IF(TB.TDS[[#This Row],[Material]]=TB.TDS[[#This Row],[SAP]],"OK","REV") -> OK | C160: =VLOOKUP(TB.TDS[[#This Row],[Nº PEDIDO]],NM.NUMPEDIDO,1,FALSE) ->  | D160: =IF(TB.TDS[[#This Row],[Material]]>0,"OK","") -> OK | E160: =IF(TB.TDS[[#This Row],[SAP]]>0,"OK","") -> OK | I160: TELSUPREMA | J160: FERRI | K160: 2018-0631 | L160: 4800018806 | M160: 117391 | N160: TRAMONTINA CUTELARIA (INEN) | O160: 1*40 | P160: 2018-06-27 | Q160: 2018-06-28 | R160: 20 | S160: 40043776 | T160: SARTEN PARIS 26CM HONDO ANTIAD/BAQ | U160: 210 | V160: UN | W160: 40043776 | X160: 20140/626 | Y160: 45 | Z160: 27 | AA160: 7 | AB160: 114 | AC160: 101 | AD160: 105 | AE160: FD2 | AF160: 324 | AG160: 7891112048416 | AH160: F0500401 | AI160: 144 | AK160: OK
B161: =IF(TB.TDS[[#This Row],[Material]]=TB.TDS[[#This Row],[SAP]],"OK","REV") -> OK | C161: =VLOOKUP(TB.TDS[[#This Row],[Nº PEDIDO]],NM.NUMPEDIDO,1,FALSE) ->  | D161: =IF(TB.TDS[[#This Row],[Material]]>0,"OK","") -> OK | E161: =IF(TB.TDS[[#This Row],[SAP]]>0,"OK","") -> OK | I161: TELSUPREMA | J161: FERRI | K161: 2018-0631 | L161: 4800018806 | M161: 117391 | N161: TRAMONTINA CUTELARIA (INEN) | O161: 1*40 | P161: 2018-06-27 | Q161: 2018-06-28 | R161: 10 | S161: 40078332 | T161: SARTEN PARIS 28CM HONDO ANTIAD/BAQ | U161: 378 | V161: UN | W161: 40078332 | X161: 20140/628 | Y161: 47 | Z161: 29 | AA161: 8 | AB161: 114 | AC161: 101 | AD161: 105 | AE161: FD2 | AF161: 240 | AG161: 7891112048423 | AH161: F0161301 | AI161: 120 | AK161: OK
B162: =IF(TB.TDS[[#This Row],[Material]]=TB.TDS[[#This Row],[SAP]],"OK","REV") -> OK | C162: =VLOOKUP(TB.TDS[[#This Row],[Nº PEDIDO]],NM.NUMPEDIDO,1,FALSE) ->  | D162: =IF(TB.TDS[[#This Row],[Material]]>0,"OK","") -> OK | E162: =IF(TB.TDS[[#This Row],[SAP]]>0,"OK","") -> OK | I162: TELSUPREMA | J162: FERRI | K162: 2018-0631 | L162: 4800018806 | M162: 117391 | N162: TRAMONTINA CUTELARIA (INEN) | O162: 1*40 | P162: 2018-06-27 | Q162: 2018-06-28 | R162: 30 | S162: 40085100 | T162: JARRA VERSALHES HERVIDORA | U162: 228 | V162: UN | W162: 40085100 | X162: 20329/014 | Y162: 20 | Z162: 15 | AA162: 11 | AB162: 114 | AC162: 101 | AD162: 105 | AE162: FD2 | AF162: 288 | AG162: 7891112079380 | AH162: F0484801 | AI162: 144 | AK162: OK
B163: =IF(TB.TDS[[#This Row],[Material]]=TB.TDS[[#This Row],[SAP]],"OK","REV") -> OK | C163: =VLOOKUP(TB.TDS[[#This Row],[Nº PEDIDO]],NM.NUMPEDIDO,1,FALSE) ->  | D163: =IF(TB.TDS[[#This Row],[Material]]>0,"OK","") -> OK | E163: =IF(TB.TDS[[#This Row],[SAP]]>0,"OK","") -> OK | I163: TELSUPREMA | J163: FERRI | K163: 2018-0631 | L163: 4800018806 | M163: 117391 | N163: TRAMONTINA CUTELARIA (INEN) | O163: 1*40 | P163: 2018-06-27 | Q163: 2018-06-28 | R163: 90 | S163: 40109929 | T163: MOLDE BRASIL CONO 26CM DESMOLD ANTIADHER | U163: 48 | V163: UN | W163: 40109929 | X163: 20066/026 | Y163: 28 | Z163: 28 | AA163: 7 | AB163: 114 | AC163: 101 | AD163: 105 | AE163: FD2 | AF163: 120 | AG163: 7891112059054 | AH163: F0485302 | AI163: 72 | AK163: OK
B164: =IF(TB.TDS[[#This Row],[Material]]=TB.TDS[[#This Row],[SAP]],"OK","REV") -> OK | C164: =VLOOKUP(TB.TDS[[#This Row],[Nº PEDIDO]],NM.NUMPEDIDO,1,FALSE) ->  | D164: =IF(TB.TDS[[#This Row],[Material]]>0,"OK","") -> OK | E164: =IF(TB.TDS[[#This Row],[SAP]]>0,"OK","") -> OK | I164: TELSUPREMA | J164: FERRI | K164: 2018-0631 | L164: 4800018806 | M164: 117391 | N164: TRAMONTINA CUTELARIA (INEN) | O164: 1*40 | P164: 2018-06-27 | Q164: 2018-06-28 | R164: 50 | S164: 40144243 | T164: UTENCILIOS P/COCINA 5PZS NEGRO | U164: 220 | V164: UN | W164: 40144243 | X164: 25099004 | Y164: 30 | Z164: 10 | AA164: 9 | AB164: 114 | AC164: 101 | AD164: 105 | AE164: FD2 | AF164: 750 | AG164: 7891112055032 | AH164: F04954011 | AI164: 180 | AK164: OK
B165: =IF(TB.TDS[[#This Row],[Material]]=TB.TDS[[#This Row],[SAP]],"OK","REV") -> OK | C165: =VLOOKUP(TB.TDS[[#This Row],[Nº PEDIDO]],NM.NUMPEDIDO,1,FALSE) ->  | D165: =IF(TB.TDS[[#This Row],[Material]]>0,"OK","") ->  | E165: =IF(TB.TDS[[#This Row],[SAP]]>0,"OK","") -> 
B166: =IF(TB.TDS[[#This Row],[Material]]=TB.TDS[[#This Row],[SAP]],"OK","REV") -> OK | C166: =VLOOKUP(TB.TDS[[#This Row],[Nº PEDIDO]],NM.NUMPEDIDO,1,FALSE) ->  | D166: =IF(TB.TDS[[#This Row],[Material]]>0,"OK","") ->  | E166: =IF(TB.TDS[[#This Row],[SAP]]>0,"OK","") -> 
B167: =IF(TB.TDS[[#This Row],[Material]]=TB.TDS[[#This Row],[SAP]],"OK","REV") -> OK | C167: =VLOOKUP(TB.TDS[[#This Row],[Nº PEDIDO]],NM.NUMPEDIDO,1,FALSE) ->  | D167: =IF(TB.TDS[[#This Row],[Material]]>0,"OK","") -> OK | E167: =IF(TB.TDS[[#This Row],[SAP]]>0,"OK","") -> OK | I167: TELSUPREMA | J167: FERRI | K167: 2018-0633 | L167: 4800018742 | M167: 100910 | N167: TRAMONTINA S/A CUTELARIA | O167: 1*40 | P167: 2018-06-27 | Q167: 2018-06-28 | R167: 80 | S167: 40043619 | T167: CUCHILLO CARNE DYNAMIC 7" M/MAD | U167: 660 | V167: UN | W167: 40043619 | X167: 22902/107 | Y167: 38 | Z167: 7 | AA167: 2 | AB167: 114 | AC167: 101 | AD167: 105 | AE167: FD2 | AF167: 2520 | AG167: 7891112003026 | AH167: F01501022 | AI167: 240 | AK167: OK
B168: =IF(TB.TDS[[#This Row],[Material]]=TB.TDS[[#This Row],[SAP]],"OK","REV") -> OK | C168: =VLOOKUP(TB.TDS[[#This Row],[Nº PEDIDO]],NM.NUMPEDIDO,1,FALSE) ->  | D168: =IF(TB.TDS[[#This Row],[Material]]>0,"OK","") -> OK | E168: =IF(TB.TDS[[#This Row],[SAP]]>0,"OK","") -> OK | I168: TELSUPREMA | J168: FERRI | K168: 2018-0633 | L168: 4800018742 | M168: 100910 | N168: TRAMONTINA S/A CUTELARIA | O168: 1*40 | P168: 2018-06-27 | Q168: 2018-06-28 | R168: 200 | S168: 40043620 | T168: CUCHILLO CARNE DYNAMIC 8" M/MAD | U168: 360 | V168: UN | W168: 40043620 | X168: 22902/108 | Y168: 38 | Z168: 7 | AA168: 2 | AB168: 114 | AC168: 101 | AD168: 105 | AE168: FD2 | AF168: 2520 | AG168: 7891112003033 | AH168: F01506021 | AI168: 120 | AK168: OK
B169: =IF(TB.TDS[[#This Row],[Material]]=TB.TDS[[#This Row],[SAP]],"OK","REV") -> OK | C169: =VLOOKUP(TB.TDS[[#This Row],[Nº PEDIDO]],NM.NUMPEDIDO,1,FALSE) ->  | D169: =IF(TB.TDS[[#This Row],[Material]]>0,"OK","") -> OK | E169: =IF(TB.TDS[[#This Row],[SAP]]>0,"OK","") -> OK | I169: TELSUPREMA | J169: FERRI | K169: 2018-0633 | L169: 4800018742 | M169: 100910 | N169: TRAMONTINA S/A CUTELARIA | O169: 1*40 | P169: 2018-06-27 | Q169: 2018-06-28 | R169: 20 | S169: 40043621 | T169: CUCHILLO CARNE DYNAMIC 9" M/MAD | U169: 1020 | V169: UN | W169: 40043621 | X169: 22902/109 | Y169: 43 | Z169: 7 | AA169: 2 | AB169: 114 | AC169: 101 | AD169: 105 | AE169: FD2 | AF169: 2520 | AG169: 7891112003040 | AH169: F01627022 | AI169: 360 | AK169: OK
B170: =IF(TB.TDS[[#This Row],[Material]]=TB.TDS[[#This Row],[SAP]],"OK","REV") -> OK | C170: =VLOOKUP(TB.TDS[[#This Row],[Nº PEDIDO]],NM.NUMPEDIDO,1,FALSE) ->  | D170: =IF(TB.TDS[[#This Row],[Material]]>0,"OK","") -> OK | E170: =IF(TB.TDS[[#This Row],[SAP]]>0,"OK","") -> OK | I170: TELSUPREMA | J170: FERRI | K170: 2018-0633 | L170: 4800018742 | M170: 100910 | N170: TRAMONTINA S/A CUTELARIA | O170: 1*40 | P170: 2018-06-27 | Q170: 2018-06-28 | R170: 100 | S170: 40043623 | T170: CUCHILLO D/COCINA 7" MGO/PLAST | U170: 780 | V170: UN | W170: 40043623 | X170: 22921/107 | Y170: 38 | Z170: 7 | AA170: 2 | AB170: 114 | AC170: 101 | AD170: 105 | AE170: FD2 | AF170: 2520 | AG170: 7891112003064 | AH170: F01502042 | AI170: 240 | AK170: OK
B171: =IF(TB.TDS[[#This Row],[Material]]=TB.TDS[[#This Row],[SAP]],"OK","REV") -> OK | C171: =VLOOKUP(TB.TDS[[#This Row],[Nº PEDIDO]],NM.NUMPEDIDO,1,FALSE) ->  | D171: =IF(TB.TDS[[#This Row],[Material]]>0,"OK","") -> OK | E171: =IF(TB.TDS[[#This Row],[SAP]]>0,"OK","") -> OK | I171: TELSUPREMA | J171: FERRI | K171: 2018-0633 | L171: 4800018742 | M171: 100910 | N171: TRAMONTINA S/A CUTELARIA | O171: 1*40 | P171: 2018-06-27 | Q171: 2018-06-28 | R171: 120 | S171: 40043624 | T171: CUCHILLO D/COCINA 8" MGO/PLAST | U171: 660 | V171: UN | W171: 40043624 | X171: 22921/108 | Y171: 38 | Z171: 7 | AA171: 2 | AB171: 114 | AC171: 101 | AD171: 105 | AE171: FD2 | AF171: 2520 | AG171: 7891112003071 | AH171: F04914043 | AI171: 360 | AK171: OK
B172: =IF(TB.TDS[[#This Row],[Material]]=TB.TDS[[#This Row],[SAP]],"OK","REV") -> OK | C172: =VLOOKUP(TB.TDS[[#This Row],[Nº PEDIDO]],NM.NUMPEDIDO,1,FALSE) ->  | D172: =IF(TB.TDS[[#This Row],[Material]]>0,"OK","") -> OK | E172: =IF(TB.TDS[[#This Row],[SAP]]>0,"OK","") -> OK | I172: TELSUPREMA | J172: FERRI | K172: 2018-0633 | L172: 4800018742 | M172: 100910 | N172: TRAMONTINA S/A CUTELARIA | O172: 1*40 | P172: 2018-06-27 | Q172: 2018-06-28 | R172: 30 | S172: 40043678 | T172: CUBIERTOS 24PZS MGO/PP AZUL NEW KOLOR | U172: 330 | V172: UN | W172: 40043678 | X172: 23199/162 | Y172: 46 | Z172: 23 | AA172: 4 | AB172: 114 | AC172: 101 | AD172: 105 | AE172: FD2 | AF172: 400 | AG172: 7891112057210 | AH172: F01719031 | AI172: 60 | AK172: OK
